Workbook

Sheet HCl_Min_Tests
A1: =E1&"_"&I1 -> ORIS code_boiler_id | B1: primary_fuel | C1: HCl_Min_lb_per_MWh_Rank | D1: Reason_for_Removal | E1: ORIS code | F1: Plant Name | G1: State | H1: Unit Number | I1: boiler_id | J1: Unit Type | K1: boiler_type | L1: MWe_capacity | M1: max_heat_input | N1: Unit_heat_rate | O1: Fuel types | P1: fuel | Q1: Fuel_Cl_lb/MMBtu | R1: Fuel_F_lb/MMBtu | S1: Chlorine - ERT | T1: Chlorine MW - ERT | U1: Chlorine - ETTS | V1: Chlorine MW - ETTS | W1: Chlorine - Part II | X1: Chlorine MW - Part II | Y1: Chlorine - min | Z1: Chlorine MW - min | AA1: HCN - ERT | AB1: HCN MW - ERT | AC1: HCN - ETTS | AD1: HCN MW - ETTS | AE1: HCN - Part II | AF1: HCN MW - Part II | AG1: HCN - min | AH1: HCN MW - min | AI1: Hydrogen Chloride - ERT (lb/MMBtu) | AJ1: Hydrogen Chloride MW - ERT (lb/MWh) | AK1: Hydrogen Chloride - ETTS (lb/MMBtu) | AL1: Hydrogen Chloride (lb/MWh) ETTS | AM1: Hydrogen Chloride - Part II (lb/MMBtu) | AN1: Hydrogen Chloride MW - Part II (lb/MWh) | AO1: Hydrogen Chloride - min (lb/MMBtu) | AP1: Hydrogen Chloride MW - min (lb/MWh) | AQ1: Hydrogen Fluoride - ERT | AR1: Hydrogen Fluoride MW - ERT | AS1: Hydrogen Fluoride - ETTS | AT1: Hydrogen Fluoride MW - ETTS | AU1: Hydrogen Fluoride - Part II | AV1: Hydrogen Fluoride MW - Part II | AW1: Hydrogen Fluoride - min | AX1: Hydrogen Fluoride MW - min | AY1: Sulfur Dioxide - CEMS | AZ1: Sulfur Dioxide MW - CEMS | BA1: Sulfur Dioxide - ERT | BB1: Sulfur Dioxide MW - ERT | BC1: Sulfur Dioxide - ETTS | BD1: Sulfur Dioxide MW - ETTS | BE1: Sulfur Dioxide - Part II | BF1: Sulfur Dioxide MW - Part II | BG1: Sulfur Dioxide - min | BH1: Sulfur Dioxide MW - min | BI1: control_group_1 | BJ1: control_type_1 | BK1: install_date_1 | BL1: control_group_2 | BM1: control_type_2 | BN1: install_date_2 | BO1: control_group_3 | BP1: control_type_3 | BQ1: install_date_3 | BR1: control_group_4 | BS1: control_type_4 | BT1: install_date_4 | BU1: control_group_5 | BV1: control_type_5 | BW1: install_date_5 | BX1: control_group_6 | BY1: control_type_6 | BZ1: install_date_6 | CA1: control_group_7 | CB1: control_type_7 | CC1: install_date_7 | CD1: control_group_8 | CE1: control_type_8 | CF1: install_date_8 | CG1: control_group_9 | CH1: control_type_9 | CI1: install_date_9 | CJ1: control_group_10 | CK1: control_type_10 | CL1: install_date_10 | CM1: control_group_11 | CN1: control_type_11 | CO1: install_date_11 | CP1: control_group_12 | CQ1: control_type_12 | CR1: install_date_12
A2: 10043_B01 | B2: coal | C2: 1 | E2: 10043 | F2: Logan Generating Plant | G2: NJ | H2: Unit1 | I2: B01 | J2: Conventional Boiler | K2: Wall firing - opposed firing | L2: 241.7 | M2: 2116 | N2: 8.75465453 | O2: bituminous | P2: bituminous | Q2: 0.08360014196 | R2: 0.004085976213 | AC2: 2.466666667e-06 | AD2: 2.159481451e-05 | AG2: 2.466666667e-06 | AH2: 2.159481451e-05 | AI2: 1.287282744e-05 | AJ2: 0.000112697157 | AM2: 7.807615681e-05 | AN2: 0.00068352978 | AO2: =AVERAGE(HCl_QA_Calcs!AT28:AT30) -> 1.363547908e-05 | AP2: =AVERAGE(HCl_QA_Calcs!AV28:AV30) -> 0.0001193739087 | AQ2: 8.360600283e-06 | AR2: 7.319416714e-05 | AU2: 6.736978363e-06 | AV2: 5.897991814e-05 | AW2: 6.736978363e-06 | AX2: 5.897991814e-05 | BA2: 0.09099590867 | BB2: 0.7966377441 | BE2: 0.10625 | BF2: 0.9301820439 | BG2: 0.09099590867 | BH2: 0.7966377441 | BI2: NOx control | BJ2: Selective Catalytic Reduction | BK2: 1994-09-01 | BL2: SO2 control | BM2: Dry FGD - Spray Dryer | BN2: 1994-09-01 | BO2: PM control | BP2: Fabric Filter, reverse air | BQ2: 1994-09-01
A3: 3130_1 | B3: coal | C3: 2 | E3: 3130 | F3: Seward | G3: PA | H3: SEW-1 | I3: 1 | J3: Fluidized bed firing | K3: Fluidized bed firing | L3: 292.5 | M3: 3100 | N3: 10.5982906 | O3: coal refuse (culm or gob) | P3: coal refuse (culm or gob) | Q3: 0.03353003214 | R3: 0.02776291823 | AC3: 0.0001219333333 | AD3: 0.0012922849 | AG3: 0.0001219333333 | AH3: 0.0012922849 | AI3: 0.0001474192393 | AJ3: 0.001562391938 | AM3: 1.926666667e-05 | AN3: 0.0002041937322 | AO3: 1.926666667e-05 | AP3: 0.0002041937322 | AQ3: 0.0001026315452 | AR3: 0.001087718941 | AU3: 5.686666667e-06 | AV3: 6.026894587e-05 | AW3: 5.686666667e-06 | AX3: 6.026894587e-05 | BA3: 0.3353725347 | BB3: 3.554375582 | BG3: 0.3353725347 | BH3: 3.554375582 | BI3: NOx control | BJ3: Selective Noncatalytic Reduction | BK3: 2004-03-01 | BL3: PM control | BM3: Fabric Filter, pulse | BN3: 2004-03-01
A4: 3130_2 | B4: coal | C4: 3 | E4: 3130 | F4: Seward | G4: PA | H4: SEW-1 | I4: 2 | J4: Fluidized bed firing | K4: Fluidized bed firing | L4: 292.5 | M4: 3100 | N4: 10.5982906 | O4: coal refuse (culm or gob) | P4: coal refuse (culm or gob) | Q4: 0.03353003214 | R4: 0.02776291823 | AC4: 0.0001219333333 | AD4: 0.0012922849 | AG4: 0.0001219333333 | AH4: 0.0012922849 | AI4: 0.0001474192393 | AJ4: 0.001562391938 | AM4: 1.926666667e-05 | AN4: 0.0002041937322 | AO4: 1.926666667e-05 | AP4: 0.0002041937322 | AQ4: 0.0001026315452 | AR4: 0.001087718941 | AU4: 5.686666667e-06 | AV4: 6.026894587e-05 | AW4: 5.686666667e-06 | AX4: 6.026894587e-05 | BA4: 0.3353725347 | BB4: 3.554375582 | BG4: 0.3353725347 | BH4: 3.554375582 | BI4: NOx control | BJ4: Selective Noncatalytic Reduction | BK4: 2004-03-01 | BL4: PM control | BM4: Fabric Filter, pulse | BN4: 2004-03-01
A5: 54081_3A | B5: coal | C5: 4 | E5: 54081 | F5: Spruance Genco, LLC | G5: VA | H5: GEN3 | I5: 3A | J5: Conventional Boiler | K5: Stoker - underfeed | L5: 28.7 | M5: 375 | N5: 13.06620209 | O5: bituminous | P5: bituminous | Q5: 0.09109401743 | R5: 0.004018949692 | AC5: 1.619073133e-05 | AD5: 0.0002115513675 | AG5: 1.619073133e-05 | AH5: 0.0002115513675 | AI5: 1.611755686e-05 | AJ5: 0.0002105952552 | AO5: 1.611755686e-05 | AP5: 0.0002105952552 | AQ5: 1.766020026e-05 | AR5: 0.0002307517455 | AW5: 1.766020026e-05 | AX5: 0.0002307517455 | AY5: 0.0227 | AZ5: 0.2966027875 | BA5: 0.06527106518 | BB5: 0.8528449283 | BE5: 0.02524694218 | BF5: 0.3298816486 | BG5: 0.0227 | BH5: 0.2966027875 | BI5: SO2 control | BJ5: Dry FGD - Spray Dryer | BK5: 1992-05-01 | BL5: SO2 control | BM5: Dry FGD - Spray Dryer | BN5: 1992-05-01 | BO5: PM control | BP5: Fabric Filter, pulse | BQ5: 1992-05-01 | BR5: PM control | BS5: Fabric Filter, pulse | BT5: 1992-05-01
A6: 54081_3B | B6: coal | C6: 5 | E6: 54081 | F6: Spruance Genco, LLC | G6: VA | H6: GEN3 | I6: 3B | J6: Conventional Boiler | K6: Stoker - underfeed | L6: 28.7 | M6: 375 | N6: 13.06620209 | O6: bituminous | P6: bituminous | Q6: 0.09109401743 | R6: 0.004018949692 | AC6: 1.619073133e-05 | AD6: 0.0002115513675 | AG6: 1.619073133e-05 | AH6: 0.0002115513675 | AI6: 1.611755686e-05 | AJ6: 0.0002105952552 | AO6: 1.611755686e-05 | AP6: 0.0002105952552 | AQ6: 1.766020026e-05 | AR6: 0.0002307517455 | AW6: 1.766020026e-05 | AX6: 0.0002307517455 | AY6: 0.0227 | AZ6: 0.2966027875 | BA6: 0.06527106518 | BB6: 0.8528449283 | BE6: 0.02524694218 | BF6: 0.3298816486 | BG6: 0.0227 | BH6: 0.2966027875 | BI6: SO2 control | BJ6: Dry FGD - Spray Dryer | BK6: 1992-05-01 | BL6: SO2 control | BM6: Dry FGD - Spray Dryer | BN6: 1992-05-01 | BO6: PM control | BP6: Fabric Filter, pulse | BQ6: 1992-05-01 | BR6: PM control | BS6: Fabric Filter, pulse | BT6: 1992-05-01
A7: 54081_2A | B7: coal | C7: 6 | E7: 54081 | F7: Spruance Genco, LLC | G7: VA | H7: GEN2 | I7: 2A | J7: Conventional Boiler | K7: Stoker - underfeed | L7: 28.7 | M7: 375 | N7: 13.06620209 | O7: bituminous | P7: bituminous | Q7: 0.08577945637 | R7: 0.005917047943 | AC7: 2.831740503e-06 | AD7: 3.700009368e-05 | AG7: 2.831740503e-06 | AH7: 3.700009368e-05 | AI7: 1.693299655e-05 | AJ7: 0.0002212499549 | AO7: 1.693299655e-05 | AP7: 0.0002212499549 | AQ7: 0.0001531238903 | AR7: 0.002000747696 | AW7: 0.0001531238903 | AX7: 0.002000747696 | AY7: 0.0241 | AZ7: 0.3148954704 | BA7: 0.06567566955 | BB7: 0.8581315707 | BG7: 0.0241 | BH7: 0.3148954704 | BI7: SO2 control | BJ7: Dry FGD - Spray Dryer | BK7: 1992-05-01 | BL7: SO2 control | BM7: Dry FGD - Spray Dryer | BN7: 1992-05-01 | BO7: PM control | BP7: Fabric Filter, pulse | BQ7: 1992-05-01 | BR7: PM control | BS7: Fabric Filter, pulse | BT7: 1992-05-01
A8: 54081_2B | B8: coal | C8: 7 | E8: 54081 | F8: Spruance Genco, LLC | G8: VA | H8: GEN2 | I8: 2B | J8: Conventional Boiler | K8: Stoker - underfeed | L8: 28.7 | M8: 375 | N8: 13.06620209 | O8: bituminous | P8: bituminous | Q8: 0.08577945637 | R8: 0.005917047943 | AC8: 2.831740503e-06 | AD8: 3.700009368e-05 | AG8: 2.831740503e-06 | AH8: 3.700009368e-05 | AI8: 1.693299655e-05 | AJ8: 0.0002212499549 | AO8: 1.693299655e-05 | AP8: 0.0002212499549 | AQ8: 0.0001531238903 | AR8: 0.002000747696 | AW8: 0.0001531238903 | AX8: 0.002000747696 | AY8: 0.0241 | AZ8: 0.3148954704 | BA8: 0.06567566955 | BB8: 0.8581315707 | BG8: 0.0241 | BH8: 0.3148954704 | BI8: SO2 control | BJ8: Dry FGD - Spray Dryer | BK8: 1992-05-01 | BL8: SO2 control | BM8: Dry FGD - Spray Dryer | BN8: 1992-05-01 | BO8: PM control | BP8: Fabric Filter, pulse | BQ8: 1992-05-01 | BR8: PM control | BS8: Fabric Filter, pulse | BT8: 1992-05-01
A9: 52071_5A | B9: coal | C9: 8 | E9: 52071 | F9: Sandow Station | G9: TX | H9: 5A | I9: 5A | J9: Fluidized bed firing | K9: Fluidized bed firing | L9: 282.35 | M9: 2960 | N9: 10.48344254 | O9: lignite | P9: lignite | AC9: 2.659666667e-05 | AD9: 0.0002788246266 | AG9: 2.659666667e-05 | AH9: 0.0002788246266 | AI9: 9.243541696e-05 | AJ9: 0.0009690413819 | AM9: 2.118590364e-05 | AN9: 0.0002221012034 | AO9: 2.118590364e-05 | AP9: 0.0002221012034 | AQ9: 9.470105291e-05 | AR9: 0.0009927930462 | AU9: 2.241002679e-05 | AV9: 0.0002349342281 | AW9: 2.241002679e-05 | AX9: 0.0002349342281 | BA9: 0.01115532563 | BB9: 0.1169462152 | BE9: 0.02566666667 | BF9: 0.2690750251 | BG9: 0.01115532563 | BH9: 0.1169462152 | BI9: NOx control | BJ9: Selective Noncatalytic Reduction | BK9: 2009-08-01 | BL9: Other control | BM9: Activated carbon injection | BN9: 2009-08-01 | BO9: SO2 control | BP9: Dry FGD - Circulating Dry Scrubber | BQ9: 2009-08-01 | BR9: PM control | BS9: Fabric Filter, pulse | BT9: 2009-08-01
A10: 108_SGU1 | B10: coal | C10: 9 | E10: 108 | F10: HOLCOMB | G10: KS | H10: SGU1 | I10: SGU1 | J10: Conventional Boiler | K10: Wall firing - opposed firing | L10: 387 | M10: 3389 | N10: 8.757105943 | P10: subbituminous | AE10: 1e-06 | AF10: 8.757105943e-06 | AG10: 1e-06 | AH10: 8.757105943e-06 | AM10: 2.6e-05 | AN10: 0.0002276847545 | AO10: 2.6e-05 | AP10: 0.0002276847545 | AU10: 2.8e-05 | AV10: 0.0002451989664 | AW10: 2.8e-05 | AX10: 0.0002451989664 | BI10: SO2 control | BJ10: Dry FGD - Spray Dryer | BK10: 1983-08-01 | BL10: PM control | BM10: Fabric Filter, reverse air | BN10: 1983-08-01
A11: 3179_1 | B11: coal | C11: 10 | E11: 3179 | F11: Hatfield's Ferry Power Station | G11: PA | H11: 001 | I11: 1 | J11: Conventional Boiler | K11: Wall firing - opposed firing | L11: 590 | M11: 5700 | N11: 9.661016949 | O11: bituminous | P11: bituminous | Q11: 0.03323565843 | R11: 0.004806972483 | AC11: 0.001943333333 | AD11: 0.01877457627 | AG11: 0.001943333333 | AH11: 0.01877457627 | AI11: 0.0001312962964 | AJ11: 0.001268455745 | AM11: 2.47e-05 | AN11: 0.0002386271186 | AO11: 2.47e-05 | AP11: 0.0002386271186 | AQ11: 7.717573562e-05 | AR11: 0.0007455960899 | AU11: 2.47e-05 | AV11: 0.0002386271186 | AW11: 2.47e-05 | AX11: 0.0002386271186 | BA11: 0.03152490806 | BB11: 0.3045626711 | BG11: 0.03152490806 | BH11: 0.3045626711 | BI11: PM control | BJ11: Electrostatic precipitator, cold side, unspecified | BK11: 1969-01-01 | BL11: SO2 control | BM11: Wet FGD - Spray Type | BN11: 2009-06-01
A12: 52071_5B | B12: coal | C12: 11 | E12: 52071 | F12: Sandow Station | G12: TX | H12: 5B | I12: 5B | J12: Fluidized bed firing | K12: Fluidized bed firing | L12: 282.35 | M12: 2960 | N12: 10.48344254 | O12: lignite | P12: lignite | AC12: 1.62e-05 | AD12: 0.0001698317691 | AG12: 1.62e-05 | AH12: 0.0001698317691 | AI12: 3.018452875e-05 | AJ12: 0.0003164377727 | AM12: 2.552381247e-05 | AN12: 0.0002675774213 | AO12: 2.552381247e-05 | AP12: 0.0002675774213 | AQ12: 4.452484484e-05 | AR12: 0.0004667736523 | AU12: 9.523323756e-06 | AV12: 9.983721735e-05 | AW12: 9.523323756e-06 | AX12: 9.983721735e-05 | BA12: 0.0479832197 | BB12: 0.5030293264 | BE12: 0.032 | BF12: 0.3354701611 | BG12: 0.032 | BH12: 0.3354701611 | BI12: NOx control | BJ12: Selective Noncatalytic Reduction | BK12: 2009-07-01 | BL12: Other control | BM12: Activated carbon injection | BN12: 2009-08-01 | BO12: SO2 control | BP12: Dry FGD - Circulating Dry Scrubber | BQ12: 2009-07-01 | BR12: PM control | BS12: Fabric Filter, pulse | BT12: 2009-07-01
A13: 6761_101 | B13: coal | C13: 12 | E13: 6761 | F13: Rawhide | G13: CO | H13: Rawhide101 | I13: 101 | J13: Conventional Boiler | K13: Tangential firing | L13: 305 | M13: 2800 | N13: 9.180327869 | O13: subbituminous | P13: subbituminous | AC13: 1.796666667e-05 | AD13: 0.0001649398907 | AG13: 1.796666667e-05 | AH13: 0.0001649398907 | AI13: 0.0003335388845 | AJ13: 0.003061996316 | AM13: 3.608101074e-05 | AN13: 0.0003312355084 | AO13: 3.608101074e-05 | AP13: 0.0003312355084 | AQ13: 4.649066512e-05 | AR13: 0.0004267995486 | AU13: 3e-05 | AV13: 0.0002754098361 | AW13: 3e-05 | AX13: 0.0002754098361 | AY13: 0.07853333333 | AZ13: 0.7209617486 | BG13: 0.07853333333 | BH13: 0.7209617486 | BI13: SO2 control | BJ13: Dry FGD - Spray Dryer | BK13: 1984-04-01 | BL13: PM control | BM13: Fabric Filter, reverse air | BN13: 1984-04-01
A14: 50976_AABO1 | B14: coal | C14: 13 | E14: 50976 | F14: INDIANTOWN COGENERATION L.P. | G14: FL | H14: 001 | I14: AABO1 | J14: Conventional Boiler | K14: Wall firing - opposed firing | L14: 361 | M14: 3422 | N14: 9.479224377 | O14: bituminous | P14: bituminous | Q14: 0.1207760747 | AC14: 6.7e-07 | AD14: 6.351080332e-06 | AG14: 6.7e-07 | AH14: 6.351080332e-06 | AI14: 3.576646636e-05 | AJ14: 0.0003390383598 | AO14: 3.576646636e-05 | AP14: 0.0003390383598 | AQ14: 9.465509508e-05 | AR14: 0.0008972568847 | AU14: 5.037666667e-05 | AV14: 0.0004775317267 | AW14: 5.037666667e-05 | AX14: 0.0004775317267 | BA14: 0.1469212887 | BB14: 1.392699861 | BE14: 0.1266666667 | BF14: 1.200701754 | BG14: 0.1266666667 | BH14: 1.200701754 | BI14: NOx control | BJ14: Selective Catalytic Reduction | BK14: 1995-12-01 | BL14: SO2 control | BM14: Dry FGD - Spray Dryer | BN14: 1995-12-01 | BO14: PM control | BP14: Fabric Filter, pulse | BQ14: 1995-12-01
A15: 1082_4 | B15: coal | C15: 14 | E15: 1082 | F15: Walter Scott Jr. Energy Center | G15: IA | H15: 4 | I15: 4 | J15: Conventional Boiler | K15: Wall firing - unspecified | L15: 850 | M15: 7675 | N15: 9.029411765 | O15: subbituminous | P15: subbituminous | Q15: 0.0008319467554 | R15: 0.002762063228 | AC15: 1.513433333e-06 | AD15: 1.366541275e-05 | AG15: 1.513433333e-06 | AH15: 1.366541275e-05 | AI15: 7.372351989e-05 | AJ15: 0.0006656800179 | AM15: 3.8e-05 | AN15: 0.0003431176471 | AO15: 3.8e-05 | AP15: 0.0003431176471 | AQ15: 1.530655612e-05 | AR15: 0.0001382091979 | AU15: 2.9e-05 | AV15: 0.0002618529412 | AW15: 1.530655612e-05 | AX15: 0.0001382091979 | AY15: 0.078 | AZ15: 0.7042941176 | BE15: 0.041 | BF15: 0.3702058824 | BG15: 0.041 | BH15: 0.3702058824 | BI15: NOx control | BJ15: Selective Catalytic Reduction | BK15: 2007-02-01 | BL15: Other control | BM15: Activated carbon injection | BN15: 2007-02-01 | BO15: SO2 control | BP15: Dry FGD - Circulating Dry Scrubber | BQ15: 2007-02-01 | BR15: PM control | BS15: Fabric Filter, pulse | BT15: 2007-02-01
A16: 54755_BLR2 | B16: coal | C16: 15 | E16: 54755 | F16: Roanoke Valley II | G16: NC | H16: Boiler 2 | I16: BLR2 | J16: Conventional Boiler | K16: Wall firing - front firing | L16: 50 | M16: 560 | N16: 11.2 | O16: bituminous | P16: bituminous | Q16: 0.07893433227 | R16: 0.005435160776 | AC16: 0.0008593333333 | AD16: 0.009624533333 | AG16: 0.0008593333333 | AH16: 0.009624533333 | AI16: 3.217480824e-05 | AJ16: 0.0003603578522 | AM16: 0.000492 | AN16: 0.0055104 | AO16: 3.217480824e-05 | AP16: 0.0003603578522 | AQ16: 6.004299241e-05 | AR16: 0.000672481515 | AW16: 6.004299241e-05 | AX16: 0.000672481515 | BI16: NOx control | BJ16: Selective Noncatalytic Reduction | BK16: 1995-06-01 | BL16: SO2 control | BM16: Dry FGD - Spray Dryer | BN16: 1995-06-01 | BO16: PM control | BP16: Fabric Filter, pulse | BQ16: 1995-06-01
A17: 10566_Boil 1 | B17: coal | C17: 16 | E17: 10566 | F17: Chambers Cogeneration LP | G17: NJ | H17: Boil 1 | I17: Boil 1 | J17: Conventional Boiler | K17: Wall firing - front firing | L17: 142.5 | M17: 1387 | N17: 9.733333333 | O17: bituminous | P17: bituminous | Q17: 0.07131141696 | R17: 0.005419667689 | AC17: 4.343333333e-07 | AD17: 4.227511111e-06 | AG17: 4.343333333e-07 | AH17: 4.227511111e-06 | AI17: 4.239954028e-05 | AJ17: 0.0004126888587 | AO17: 4.239954028e-05 | AP17: 0.0004126888587 | AQ17: 7.368206641e-06 | AR17: 7.17172113e-05 | AU17: 1.836029128e-05 | AV17: 0.0001787068351 | AW17: 7.368206641e-06 | AX17: 7.17172113e-05 | BA17: 0.1591146155 | BB17: 1.54871559 | BG17: 0.1591146155 | BH17: 1.54871559 | BI17: NOx control | BJ17: Selective Catalytic Reduction | BK17: 1994-03-01 | BL17: SO2 control | BM17: Dry FGD - Spray Dryer | BN17: 1994-03-01 | BO17: PM control | BP17: Fabric Filter, reverse air | BQ17: 1994-03-01
A18: 130_4 | B18: coal | C18: 17 | E18: 130 | F18: Cross | G18: SC | H18: C4 | I18: 4 | J18: Conventional Boiler | K18: Tangential firing | L18: 625 | M18: 6798 | N18: 10.8768 | O18: bituminous | P18: bituminous | Q18: 0.1298483423 | R18: 6.861481938 | AC18: 1.72e-05 | AD18: 0.00018708096 | AG18: 1.72e-05 | AH18: 0.00018708096 | AI18: 0.0002289708131 | AJ18: 0.00249046974 | AM18: 4.096666667e-05 | AN18: 0.00044558624 | AO18: 4.096666667e-05 | AP18: 0.00044558624 | AQ18: 0.0001028902104 | AR18: 0.001119116241 | AU18: 3.26e-05 | AV18: 0.00035458368 | AW18: 3.26e-05 | AX18: 0.00035458368 | AY18: 0.1386 | AZ18: 1.50752448 | BG18: 0.1386 | BH18: 1.50752448 | BI18: NOx control | BJ18: Selective Catalytic Reduction | BK18: 2008-05-01 | BL18: PM control | BM18: Electrostatic precipitator, cold side, w/o flue gas conditioning | BN18: 2008-05-01 | BO18: SO2 control | BP18: Wet FGD - Spray Type | BQ18: 2008-05-01
A19: 4941_1 | B19: coal | C19: 18 | E19: 4941 | F19: Navajo Generating Station | G19: AZ | H19: 001 | I19: 1 | J19: Conventional Boiler | K19: Tangential firing | L19: 812 | M19: 7450 | N19: 9.174876847 | O19: bituminous | P19: bituminous | Q19: 0.0008300821781 | R19: 0.007304723168 | S19: 0.0002946311294 | T19: 0.002703204327 | Y19: 0.0002946311294 | Z19: 0.002703204327 | AC19: 0.0008 | AD19: 0.007339901478 | AG19: 0.0008 | AH19: 0.007339901478 | AI19: 6.480937102e-05 | AJ19: 0.0005946179977 | AK19: 5e-05 | AL19: 0.0004587438424 | AO19: 5e-05 | AP19: 0.0004587438424 | AQ19: 4.910518823e-05 | AR19: 0.0004505340546 | AS19: 5e-05 | AT19: 0.0004587438424 | AW19: 4.910518823e-05 | AX19: 0.0004505340546 | BI19: PM control | BJ19: Electrostatic precipitator, hot side, w/o flue gas conditioning | BK19: 1974-05-01 | BL19: SO2 control | BM19: Wet FGD - Spray Type | BN19: 1999-04-01
A20: 54081_4A | B20: coal | C20: 19 | E20: 54081 | F20: Spruance Genco, LLC | G20: VA | H20: GEN4 | I20: 4A | J20: Conventional Boiler | K20: Stoker - underfeed | L20: 28.7 | M20: 375 | N20: 13.06620209 | O20: bituminous | P20: bituminous | Q20: 0.08585435249 | R20: 0.005053433443 | AC20: 2.524915536e-05 | AD20: 0.0003299105665 | AG20: 2.524915536e-05 | AH20: 0.0003299105665 | AI20: 3.842044378e-05 | AJ20: 0.0005020092829 | AO20: 3.842044378e-05 | AP20: 0.0005020092829 | AQ20: 0.0001500858985 | AR20: 0.00196105268 | AW20: 0.0001500858985 | AX20: 0.00196105268 | AY20: 0.0423 | AZ20: 0.5527003484 | BA20: 0.0941058516 | BB20: 1.229606075 | BE20: 0.08995347618 | BF20: 1.175350299 | BG20: 0.0423 | BH20: 0.5527003484 | BI20: SO2 control | BJ20: Dry FGD - Spray Dryer | BK20: 1992-05-01 | BL20: SO2 control | BM20: Dry FGD - Spray Dryer | BN20: 1992-05-01 | BO20: PM control | BP20: Fabric Filter, pulse | BQ20: 1992-05-01 | BR20: PM control | BS20: Fabric Filter, pulse | BT20: 1992-05-01
A21: 54081_4B | B21: coal | C21: 20 | E21: 54081 | F21: Spruance Genco, LLC | G21: VA | H21: GEN4 | I21: 4B | J21: Conventional Boiler | K21: Stoker - underfeed | L21: 28.7 | M21: 375 | N21: 13.06620209 | O21: bituminous | P21: bituminous | Q21: 0.08585435249 | R21: 0.005053433443 | AC21: 2.524915536e-05 | AD21: 0.0003299105665 | AG21: 2.524915536e-05 | AH21: 0.0003299105665 | AI21: 3.842044378e-05 | AJ21: 0.0005020092829 | AO21: 3.842044378e-05 | AP21: 0.0005020092829 | AQ21: 0.0001500858985 | AR21: 0.00196105268 | AW21: 0.0001500858985 | AX21: 0.00196105268 | AY21: 0.0423 | AZ21: 0.5527003484 | BA21: 0.0941058516 | BB21: 1.229606075 | BE21: 0.08995347618 | BF21: 1.175350299 | BG21: 0.0423 | BH21: 0.5527003484 | BI21: SO2 control | BJ21: Dry FGD - Spray Dryer | BK21: 1992-05-01 | BL21: SO2 control | BM21: Dry FGD - Spray Dryer | BN21: 1992-05-01 | BO21: PM control | BP21: Fabric Filter, pulse | BQ21: 1992-05-01 | BR21: PM control | BS21: Fabric Filter, pulse | BT21: 1992-05-01
A22: 10566_Boil 2 | B22: coal | C22: 21 | E22: 10566 | F22: Chambers Cogeneration LP | G22: NJ | H22: Boil 2 | I22: Boil 2 | J22: Conventional Boiler | K22: Wall firing - front firing | L22: 142.5 | M22: 1387 | N22: 9.733333333 | O22: bituminous | P22: bituminous | Q22: 0.07865007865 | R22: 0.005648505649 | AC22: 6.7e-07 | AD22: 6.521333333e-06 | AG22: 6.7e-07 | AH22: 6.521333333e-06 | AI22: 5.600886329e-05 | AJ22: 0.0005451529361 | AO22: 5.600886329e-05 | AP22: 0.0005451529361 | AQ22: 9.248915907e-06 | AR22: 9.00227815e-05 | AW22: 9.248915907e-06 | AX22: 9.00227815e-05 | BA22: 0.1681579801 | BB22: 1.636737673 | BG22: 0.1681579801 | BH22: 1.636737673 | BI22: NOx control | BJ22: Selective Catalytic Reduction | BK22: 1994-03-01 | BL22: SO2 control | BM22: Dry FGD - Spray Dryer | BN22: 1994-03-01 | BO22: PM control | BP22: Fabric Filter, reverse air | BQ22: 1994-03-01
A23: 55749_PC1 | B23: coal | C23: 22 | E23: 55749 | F23: Hardin Generator Project | G23: MT | H23: PC1 | I23: PC1 | J23: Conventional Boiler | K23: Wall firing - unspecified | L23: 119 | M23: 1304 | N23: 10.95798319 | O23: bituminous | P23: bituminous | AC23: 1.043333333e-05 | AD23: 0.0001143282913 | AG23: 1.043333333e-05 | AH23: 0.0001143282913 | AI23: 0.0001455046175 | AJ23: 0.001594437153 | AM23: 5e-05 | AN23: 0.0005478991597 | AO23: 5e-05 | AP23: 0.0005478991597 | AQ23: 2.887345493e-05 | AR23: 0.0003163948339 | AU23: 5e-05 | AV23: 0.0005478991597 | AW23: 2.887345493e-05 | AX23: 0.0003163948339 | AY23: 0.09533333333 | AZ23: 1.044661064 | BE23: 0.104 | BF23: 1.139630252 | BG23: 0.09533333333 | BH23: 1.044661064 | BI23: NOx control | BJ23: Selective Catalytic Reduction | BK23: 2006-04-01 | BL23: Other control | BM23: Activated carbon injection | BO23: SO2 control | BP23: Dry FGD - Spray Dryer | BQ23: 2006-04-01 | BR23: PM control | BS23: Fabric Filter, pulse | BT23: 2006-04-01
A24: 2712_2 | B24: coal | C24: 23 | E24: 2712 | F24: Roxboro Steam Electric Plant | G24: NC | H24: Rox_Cfg_2c | I24: 2 | J24: Conventional Boiler | K24: Tangential firing | L24: 703 | M24: 6893 | N24: 9.80512091 | O24: bituminous | P24: bituminous | W24: 6.003333333e-05 | X24: 0.000588634092 | Y24: 6.003333333e-05 | Z24: 0.000588634092 | AM24: 5.65e-05 | AN24: 0.0005539893314 | AO24: 5.65e-05 | AP24: 0.0005539893314 | AU24: 2.117e-05 | AV24: 0.0002075744097 | AW24: 2.117e-05 | AX24: 0.0002075744097 | BE24: 0.042 | BF24: 0.4118150782 | BG24: 0.042 | BH24: 0.4118150782 | BI24: NOx control | BJ24: Selective Catalytic Reduction | BK24: 2005-05-01 | BL24: PM control | BM24: Electrostatic precipitator, cold side, w/o flue gas conditioning | BN24: 1974-05-01 | BO24: SO2 control | BP24: Wet FGD - Spray/Tray Type | BQ24: 2007-04-20
A25: 56224_BLR100 | B25: coal | C25: 24 | E25: 56224 | F25: TS Power Plant | G25: NV | H25: TSPower | I25: BLR100 | J25: Conventional Boiler | K25: Wall firing - opposed firing | L25: 242 | M25: 2112 | N25: 8.727272727 | O25: subbituminous | P25: subbituminous | Q25: 0.0006079281056 | R25: 0.003430634763 | AC25: 0.0001343333333 | AD25: 0.001172363636 | AG25: 0.0001343333333 | AH25: 0.001172363636 | AI25: 6.513892454e-05 | AJ25: 0.0005684851596 | AM25: 0.0004 | AN25: 0.003490909091 | AO25: 6.513892454e-05 | AP25: 0.0005684851596 | AQ25: 6.513892454e-05 | AR25: 0.0005684851596 | AU25: 1.501091703e-05 | AV25: 0.0001310043668 | AW25: 1.501091703e-05 | AX25: 0.0001310043668 | AY25: 0.0427 | AZ25: 0.3726545455 | BE25: 0.04166666667 | BF25: 0.3636363636 | BG25: 0.04166666667 | BH25: 0.3636363636 | BI25: NOx control | BJ25: Selective Catalytic Reduction | BK25: 2008-03-01 | BL25: Other control | BM25: Activated carbon injection | BN25: 2008-03-01 | BO25: SO2 control | BP25: Dry FGD - Spray Dryer | BQ25: 2008-03-01 | BR25: PM control | BS25: Fabric Filter, pulse | BT25: 2008-01-01
A26: 6076_3 | B26: coal | C26: 25 | E26: 6076 | F26: Colstrip | G26: MT | H26: Unit3 | I26: 3 | J26: Conventional Boiler | K26: Tangential firing | L26: 805 | M26: 7573 | N26: 9.407453416 | O26: subbituminous | P26: subbituminous | Q26: 0.01049013007 | R26: 0.005155184785 | AC26: 2.208520819e-05 | AD26: 0.0002077655672 | AG26: 2.208520819e-05 | AH26: 0.0002077655672 | AI26: 6.209402554e-05 | AJ26: 0.0005841466527 | AO26: 6.209402554e-05 | AP26: 0.0005841466527 | AQ26: 0.0001411520533 | AR26: 0.001327881366 | AW26: 0.0001411520533 | AX26: 0.001327881366 | BA26: 0.04522379137 | BB26: 0.4254407106 | BG26: 0.04522379137 | BH26: 0.4254407106 | BI26: Other control | BJ26: Activated carbon injection | BK26: 2009-12-01 | BL26: SO2 control | BM26: Wet FGD - Venturi Type | BN26: 1984-01-01 | BO26: PM control | BP26: PM scrubber - Venturi | BQ26: 1984-01-01
A27: 6041_3 | B27: coal | C27: 26 | E27: 6041 | F27: H L Spurlock Station | G27: KY | H27: Unit 03 | I27: 3 | J27: Fluidized bed firing | K27: Fluidized bed firing | L27: 300 | M27: 2500 | N27: 8.333333333 | O27: bituminous | P27: bituminous | S27: 0.0002755359074 | T27: 0.002296132561 | Y27: 0.0002755359074 | Z27: 0.002296132561 | AC27: 0.001166666667 | AD27: 0.009722222222 | AG27: 0.001166666667 | AH27: 0.009722222222 | AI27: 7.513254727e-05 | AJ27: 0.0006261045606 | AK27: 7.333333333e-05 | AL27: 0.0006111111111 | AO27: 7.333333333e-05 | AP27: 0.0006111111111 | AQ27: 5.740331404e-05 | AR27: 0.0004783609503 | AS27: 5.666666667e-05 | AT27: 0.0004722222222 | AW27: 5.666666667e-05 | AX27: 0.0004722222222 | AY27: 0.2807 | AZ27: 2.339166667 | BG27: 0.2807 | BH27: 2.339166667 | BI27: NOx control | BJ27: Selective Noncatalytic Reduction | BK27: 2005-03-01 | BL27: SO2 control | BM27: Dry FGD - Unspecified | BN27: 2005-03-01 | BO27: PM control | BP27: Fabric Filter, pulse | BQ27: 2005-03-01
A28: 4941_2 | B28: coal | C28: 27 | E28: 4941 | F28: Navajo Generating Station | G28: AZ | H28: 002 | I28: 2 | J28: Conventional Boiler | K28: Tangential firing | L28: 812 | M28: 7450 | N28: 9.174876847 | O28: bituminous | P28: bituminous | Q28: 0.000914960114 | R28: 0.007363286541 | S28: 0.0003143180072 | T28: 0.002883829007 | Y28: 0.0003143180072 | Z28: 0.002883829007 | AC28: 0.0008 | AD28: 0.007339901478 | AG28: 0.0008 | AH28: 0.007339901478 | AI28: 6.96501414e-05 | AJ28: 0.0006390314697 | AK28: 6.666666667e-05 | AL28: 0.0006116584565 | AO28: 6.666666667e-05 | AP28: 0.0006116584565 | AQ28: 5.238633454e-05 | AR28: 0.0004806381679 | AS28: 5e-05 | AT28: 0.0004587438424 | AW28: 5e-05 | AX28: 0.0004587438424 | BI28: PM control | BJ28: Electrostatic precipitator, hot side, w/o flue gas conditioning | BK28: 1975-04-01 | BL28: SO2 control | BM28: Wet FGD - Spray Type | BN28: 1998-04-01
A29: 2727_Unit 4 | B29: coal | C29: 28 | E29: 2727 | F29: Marshall | G29: NC | H29: U4 | I29: Unit 4 | J29: Conventional Boiler | K29: Tangential firing | L29: 700 | M29: 6029.8 | N29: 8.614 | O29: bituminous | P29: bituminous | Q29: 0.07353494846 | R29: 0.0088441172 | U29: 0.0001733333333 | V29: 0.001493093333 | Y29: 0.0001733333333 | Z29: 0.001493093333 | AC29: 1.995e-05 | AD29: 0.0001718493 | AG29: 1.995e-05 | AH29: 0.0001718493 | AI29: 0.0002834333693 | AJ29: 0.002441495044 | AM29: 7.541666667e-05 | AN29: 0.0006496391667 | AO29: 7.541666667e-05 | AP29: 0.0006496391667 | AQ29: 0.0001716856112 | AR29: 0.001478899855 | AU29: 5.71e-06 | AV29: 4.918594e-05 | AW29: 5.71e-06 | AX29: 4.918594e-05 | BA29: 0.0944912309 | BB29: 0.813947463 | BG29: 0.0944912309 | BH29: 0.813947463 | BI29: NOx control | BJ29: Selective Noncatalytic Reduction | BK29: 2006-12-01 | BL29: PM control | BM29: Electrostatic precipitator, cold side, w/ flue gas conditioning | BN29: 2006-05-01 | BO29: SO2 control | BP29: Wet FGD - Spray Type | BQ29: 2006-10-01
A30: 130_3 | B30: coal | C30: 29 | E30: 130 | F30: Cross | G30: SC | H30: C3 | I30: 3 | J30: Conventional Boiler | K30: Tangential firing | L30: 625 | M30: 6058 | N30: 9.6928 | O30: bituminous | P30: bituminous | Q30: 0.08169960826 | R30: 0.005416417379 | AC30: 1.137333333e-05 | AD30: 0.0001102394453 | AG30: 1.137333333e-05 | AH30: 0.0001102394453 | AI30: 6.893983214e-05 | AJ30: 0.000668220005 | AM30: 0.000276 | AN30: 0.0026752128 | AO30: 6.893983214e-05 | AP30: 0.000668220005 | AQ30: 6.701115795e-05 | AR30: 0.0006495257518 | AU30: 4.153333333e-05 | AV30: 0.0004025742933 | AW30: 4.153333333e-05 | AX30: 0.0004025742933 | AY30: 0.0743 | AZ30: 0.72017504 | BG30: 0.0743 | BH30: 0.72017504 | BI30: NOx control | BJ30: Selective Catalytic Reduction | BK30: 2006-08-01 | BL30: PM control | BM30: Electrostatic precipitator, cold side, w/o flue gas conditioning | BN30: 2006-08-01 | BO30: SO2 control | BP30: Wet FGD - Spray Type | BQ30: 2006-08-01
A31: 54035_BLR1 | B31: coal | C31: 30 | E31: 54035 | F31: Roanoke Valley I | G31: NC | H31: Boiler 1 | I31: BLR1 | J31: Conventional Boiler | K31: Wall firing - front firing | L31: 182 | M31: 1700 | N31: 9.340659341 | O31: bituminous | P31: bituminous | Q31: 0.06576804726 | R31: 0.007585224272 | AC31: 0.000288 | AD31: 0.00269010989 | AG31: 0.000288 | AH31: 0.00269010989 | AI31: 7.315672027e-05 | AJ31: 0.0006833320026 | AM31: 0.000563 | AN31: 0.005258791209 | AO31: 7.315672027e-05 | AP31: 0.0006833320026 | AQ31: 6.579104446e-05 | AR31: 0.000614531734 | AW31: 6.579104446e-05 | AX31: 0.000614531734 | BI31: SO2 control | BJ31: Dry FGD - Spray Dryer | BK31: 1994-05-01 | BL31: PM control | BM31: Fabric Filter, reverse air | BN31: 1994-05-01
A32: 4078_4 | B32: coal | C32: 31 | E32: 4078 | F32: Weston | G32: WI | H32: W4 | I32: 4 | J32: Conventional Boiler | K32: Wall firing - opposed firing | L32: 574.5 | M32: 5173.07 | N32: 9.004473455 | O32: subbituminous | P32: subbituminous | AC32: 0.0001723333333 | AD32: 0.001551770925 | AG32: 0.0001723333333 | AH32: 0.001551770925 | AM32: 7.666666667e-05 | AN32: 0.0006903429649 | AO32: 7.666666667e-05 | AP32: 0.0006903429649 | AU32: 3.1e-05 | AV32: 0.0002791386771 | AW32: 3.1e-05 | AX32: 0.0002791386771 | AY32: 0.06123333333 | AZ32: 0.5513739246 | BE32: 0.05 | BF32: 0.4502236728 | BG32: 0.05 | BH32: 0.4502236728 | BI32: NOx control | BJ32: Selective Catalytic Reduction | BK32: 2008-07-01 | BL32: Other control | BM32: Activated carbon injection | BN32: 2008-07-01 | BO32: SO2 control | BP32: Dry FGD - Spray Dryer | BQ32: 2008-07-01 | BR32: PM control | BS32: Fabric Filter, pulse | BT32: 2008-07-01
A33: 56068_1 | B33: coal | C33: 32 | E33: 56068 | F33: Elm Road Generating Station | G33: WI | H33: ERGS-B1 | I33: 1 | J33: Conventional Boiler | K33: Wall firing - unspecified | L33: 677 | M33: 6515 | N33: 9.623338257 | O33: bituminous | P33: bituminous | Q33: 0.09223524327 | R33: 0.003689756292 | AC33: 0.0001666666667 | AD33: 0.00160388971 | AG33: 0.0001666666667 | AH33: 0.00160388971 | AI33: 7.640077832e-05 | AJ33: 0.0007352305329 | AO33: 7.640077832e-05 | AP33: 0.0007352305329 | AQ33: 5.720582984e-05 | AR33: 0.0005505110508 | AW33: 5.720582984e-05 | AX33: 0.0005505110508 | BC33: 0.009 | BD33: 0.08661004431 | BG33: 0.009 | BH33: 0.08661004431 | BI33: NOx control | BJ33: Selective Catalytic Reduction | BK33: 2009-10-01 | BL33: PM control | BM33: Fabric Filter, pulse | BN33: 2009-10-01 | BO33: SO2 control | BP33: Wet FGD - Spray Type | BQ33: 2009-10-01 | BR33: Other control | BS33: Wet electrostatic precipitator | BT33: 2009-10-01
A34: 113_3 | B34: coal | C34: 33 | E34: 113 | F34: Cholla | G34: AZ | H34: 003 | I34: 3 | J34: Conventional Boiler | K34: Tangential firing | L34: 305 | M34: 2929 | N34: 9.603278689 | O34: bituminous | P34: bituminous | Q34: 0.001045102983 | R34: 0.005966016855 | AC34: 5.366666667e-05 | AD34: 0.0005153759563 | AG34: 5.366666667e-05 | AH34: 0.0005153759563 | AI34: 8.027415384e-05 | AJ34: 0.0007708950708 | AO34: 8.027415384e-05 | AP34: 0.0007708950708 | AQ34: 8.222385544e-05 | AR34: 0.0007896185986 | AW34: 8.222385544e-05 | AX34: 0.0007896185986 | BC34: 0.1379427481 | BD34: 1.324702653 | BE34: 0.113 | BF34: 1.085170492 | BG34: 0.113 | BH34: 1.085170492 | BI34: PM control | BJ34: Fabric Filter, unspecified | BK34: 2009-01-01 | BL34: SO2 control | BM34: Wet FGD - Unspecified | BN34: 2009-01-01
A35: 708_2 | B35: coal | C35: 34 | E35: 708 | F35: Hammond | G35: GA | H35: Unit 2 | I35: 2 | J35: Conventional Boiler | K35: Wall firing - front firing | L35: 115 | M35: 1138.032 | N35: 9.895930435 | O35: bituminous | P35: bituminous | Q35: 0.02266585746 | R35: 0.009729128968 | AC35: 8.938333333e-06 | AD35: 8.845312487e-05 | AG35: 8.938333333e-06 | AH35: 8.845312487e-05 | AI35: 7.876668138e-05 | AJ35: 0.0007794695995 | AO35: 7.876668138e-05 | AP35: 0.0007794695995 | AQ35: 2.165393304e-05 | AR35: 0.000214285815 | AW35: 2.165393304e-05 | AX35: 0.000214285815 | AY35: 0.02936666667 | AZ35: 0.2906104904 | BG35: 0.02936666667 | BH35: 0.2906104904 | BI35: PM control | BJ35: Electrostatic precipitator, cold side, w/ flue gas conditioning | BK35: 1969-04-01 | BL35: SO2 control | BM35: Wet FGD - Spray Type | BN35: 2008-05-01
A36: 708_3 | B36: coal | C36: 35 | E36: 708 | F36: Hammond | G36: GA | H36: Unit 3 | I36: 3 | J36: Conventional Boiler | K36: Wall firing - front firing | L36: 115 | M36: 1141.392 | N36: 9.925147826 | O36: bituminous | P36: bituminous | Q36: 0.02266585746 | R36: 0.009729128968 | AC36: 8.938333333e-06 | AD36: 8.871427965e-05 | AG36: 8.938333333e-06 | AH36: 8.871427965e-05 | AI36: 7.876668138e-05 | AJ36: 0.0007817709565 | AO36: 7.876668138e-05 | AP36: 0.0007817709565 | AQ36: 2.165393304e-05 | AR36: 0.0002149184864 | AW36: 2.165393304e-05 | AX36: 0.0002149184864 | AY36: 0.02936666667 | AZ36: 0.2914685078 | BG36: 0.02936666667 | BH36: 0.2914685078 | BI36: PM control | BJ36: Electrostatic precipitator, cold side, w/ flue gas conditioning | BK36: 1968-12-01 | BL36: SO2 control | BM36: Wet FGD - Spray Type | BN36: 2008-05-01
A37: 708_1 | B37: coal | C37: 36 | E37: 708 | F37: Hammond | G37: GA | H37: Unit 1 | I37: 1 | J37: Conventional Boiler | K37: Wall firing - front firing | L37: 115 | M37: 1158.752 | N37: 10.07610435 | O37: bituminous | P37: bituminous | Q37: 0.02266585746 | R37: 0.009729128968 | AC37: 8.938333333e-06 | AD37: 9.006357936e-05 | AG37: 8.938333333e-06 | AH37: 9.006357936e-05 | AI37: 7.876668138e-05 | AJ37: 0.0007936613007 | AO37: 7.876668138e-05 | AP37: 0.0007936613007 | AQ37: 2.165393304e-05 | AR37: 0.0002181872888 | AW37: 2.165393304e-05 | AX37: 0.0002181872888 | AY37: 0.02936666667 | AZ37: 0.2959015977 | BG37: 0.02936666667 | BH37: 0.2959015977 | BI37: PM control | BJ37: Electrostatic precipitator, cold side, w/ flue gas conditioning | BK37: 1971-02-01 | BL37: SO2 control | BM37: Wet FGD - Spray Type | BN37: 2008-05-01
A38: 2079_5A | B38: coal | C38: 37 | E38: 2079 | F38: Hawthorn | G38: MO | H38: 5A | I38: 5A | J38: Conventional Boiler | K38: Wall firing - opposed firing | L38: 594 | M38: 6600 | N38: 11.11111111 | O38: subbituminous, bituminous | P38: subbituminous, bituminous | Q38: 0.0008683503029 | R38: 0.006139249802 | AC38: 4.626666667e-05 | AD38: 0.0005140740741 | AG38: 4.626666667e-05 | AH38: 0.0005140740741 | AI38: 7.210846173e-05 | AJ38: 0.0008012051303 | AM38: 0.00027 | AN38: 0.003 | AO38: 7.210846173e-05 | AP38: 0.0008012051303 | AQ38: 7.38473911e-05 | AR38: 0.0008205265677 | AW38: 7.38473911e-05 | AX38: 0.0008205265677 | BA38: 0.1253539324 | BB38: 1.392821471 | BG38: 0.1253539324 | BH38: 1.392821471 | BI38: NOx control | BJ38: Selective Catalytic Reduction | BK38: 2001-05-01 | BL38: SO2 control | BM38: Dry FGD - Spray Dryer | BN38: 2001-05-01 | BO38: PM control | BP38: Fabric Filter, pulse | BQ38: 2001-05-01
A39: 963_34 | B39: coal | C39: 38 | E39: 963 | F39: Dallman | G39: IL | H39: 34 | I39: 34 | J39: Conventional Boiler | K39: Wall firing - opposed firing | L39: 229.4 | M39: 1924.9 | N39: 8.391020052 | O39: bituminous | P39: bituminous | Q39: 0.1559243657 | R39: 0.003410474557 | AC39: 0.0002446666667 | AD39: 0.002053002906 | AG39: 0.0002446666667 | AH39: 0.002053002906 | AK39: 0.0001003333333 | AL39: 0.0008418990119 | AM39: 9.7e-05 | AN39: 0.0008139289451 | AO39: 9.7e-05 | AP39: 0.0008139289451 | AS39: 6.7e-05 | AT39: 0.0005621983435 | AU39: 6.9e-05 | AV39: 0.0005789803836 | AW39: 6.7e-05 | AX39: 0.0005621983435 | AY39: 0.118 | AZ39: 0.9901403662 | BG39: 0.118 | BH39: 0.9901403662 | BI39: NOx control | BJ39: Selective Catalytic Reduction | BK39: 2009-05-01 | BL39: PM control | BM39: Fabric Filter, pulse | BN39: 2009-05-01 | BO39: SO2 control | BP39: Wet FGD - Packed Type | BQ39: 2009-05-01 | BR39: Other control | BS39: Wet electrostatic precipitator | BT39: 2009-05-01
A40: 708_4 | B40: coal | C40: 39 | E40: 708 | F40: Hammond | G40: GA | H40: Unit 4 | I40: 4 | J40: Conventional Boiler | K40: Wall firing - front firing | L40: 520 | M40: 5458.53 | N40: 10.49717308 | O40: bituminous | P40: bituminous | Q40: 0.02266585746 | R40: 0.009729128968 | AC40: 8.938333333e-06 | AD40: 9.382723202e-05 | AG40: 8.938333333e-06 | AH40: 9.382723202e-05 | AI40: 7.876668138e-05 | AJ40: 0.0008268274871 | AO40: 7.876668138e-05 | AP40: 0.0008268274871 | AQ40: 2.165393304e-05 | AR40: 0.0002273050829 | AW40: 2.165393304e-05 | AX40: 0.0002273050829 | AY40: 0.02936666667 | AZ40: 0.3082669827 | BG40: 0.02936666667 | BH40: 0.3082669827 | BI40: NOx control | BJ40: Selective Catalytic Reduction | BK40: 2002-05-01 | BL40: PM control | BM40: Electrostatic precipitator, cold side, w/ flue gas conditioning | BN40: 1970-12-01 | BO40: SO2 control | BP40: Wet FGD - Spray Type | BQ40: 2008-05-01
A41: 7097_BLR1 | B41: coal | C41: 40 | E41: 7097 | F41: J K Spruce | G41: TX | H41: 1 | I41: BLR1 | J41: Conventional Boiler | K41: Tangential firing | L41: 580 | M41: 6361 | N41: 10.96724138 | O41: bituminous | P41: bituminous | Q41: 0.002948717949 | R41: 0.003179487179 | AC41: 0.0003166666667 | AD41: 0.00347295977 | AG41: 0.0003166666667 | AH41: 0.00347295977 | AI41: 7.623690394e-05 | AJ41: 0.0008361085275 | AO41: 7.623690394e-05 | AP41: 0.0008361085275 | AQ41: 4.975720041e-05 | AR41: 0.0005456992272 | AU41: 0.0001533333333 | AV41: 0.001681643678 | AW41: 4.975720041e-05 | AX41: 0.0005456992272 | BI41: PM control | BJ41: Fabric Filter, reverse air | BK41: 1992-07-01 | BL41: SO2 control | BM41: Wet FGD - Spray Type | BN41: 1992-12-01
A42: 113_4 | B42: coal | C42: 41 | E42: 113 | F42: Cholla | G42: AZ | H42: 004 | I42: 4 | J42: Conventional Boiler | K42: Tangential firing | L42: 425 | M42: 4268 | N42: 10.04235294 | O42: bituminous | P42: bituminous | Q42: 0.001607946643 | R42: 0.004751149504 | AC42: 5.966666667e-05 | AD42: 0.0005991937255 | AG42: 5.966666667e-05 | AH42: 0.0005991937255 | AI42: 8.523910239e-05 | AJ42: 0.0008560011506 | AO42: 8.523910239e-05 | AP42: 0.0008560011506 | AQ42: 8.730224529e-05 | AR42: 0.0008767199598 | AW42: 8.730224529e-05 | AX42: 0.0008767199598 | BC42: 0.1505752607 | BD42: 1.512129912 | BE42: 0.1 | BF42: 1.004235294 | BG42: 0.1 | BH42: 1.004235294 | BI42: PM control | BJ42: Fabric Filter, unspecified | BK42: 2008-01-01 | BL42: SO2 control | BM42: Wet FGD - Packed Type | BN42: 2008-01-01
A43: 4941_3 | B43: coal | C43: 42 | E43: 4941 | F43: Navajo Generating Station | G43: AZ | H43: 003 | I43: 3 | J43: Conventional Boiler | K43: Tangential firing | L43: 812 | M43: 7450 | N43: 9.174876847 | O43: bituminous | P43: bituminous | Q43: 0.0008311170213 | R43: 0.005651595745 | S43: 0.0003473706629 | T43: 0.003187083052 | Y43: 0.0003473706629 | Z43: 0.003187083052 | AC43: 0.0008333333333 | AD43: 0.007645730706 | AG43: 0.0008333333333 | AH43: 0.007645730706 | AI43: 9.382809317e-05 | AJ43: 0.0008608611996 | AK43: 9.666666667e-05 | AL43: 0.0008869047619 | AO43: 9.382809317e-05 | AP43: 0.0008608611996 | AQ43: 5.789511048e-05 | AR43: 0.0005311805087 | AS43: 6e-05 | AT43: 0.0005504926108 | AW43: 5.789511048e-05 | AX43: 0.0005311805087 | BI43: PM control | BJ43: Electrostatic precipitator, hot side, w/o flue gas conditioning | BK43: 1976-05-01 | BL43: SO2 control | BM43: Wet FGD - Spray Type | BN43: 1997-04-01
A44: 10771_10771-01 | B44: coal | C44: 43 | E44: 10771 | F44: Hopewell | G44: VA | H44: 1 & 2 | I44: 10771-01 | J44: Conventional Boiler | K44: Stoker - spreader | L44: 34 | M44: 433 | N44: 12.73529412 | O44: bituminous | P44: bituminous | Q44: 0.1046666667 | R44: 0.003566666667 | AC44: 0.0008743333333 | AD44: 0.01099345588 | AG44: 0.0008743333333 | AH44: 0.01099345588 | AI44: 7.336682798e-05 | AJ44: 0.0009224799694 | AO44: 7.336682798e-05 | AP44: 0.0009224799694 | AQ44: 7.303778219e-05 | AR44: 0.0009183427026 | AW44: 7.303778219e-05 | AX44: 0.0009183427026 | BA44: 0.02315747737 | BB44: 0.2911712229 | BG44: 0.02315747737 | BH44: 0.2911712229 | BI44: NOx control | BJ44: Selective Noncatalytic Reduction | BK44: 1992-04-01 | BL44: NOx control | BM44: Selective Noncatalytic Reduction | BN44: 1992-04-01 | BO44: PM control | BP44: Multiple cyclone | BQ44: 1992-04-01 | BR44: PM control | BS44: Multiple cyclone | BT44: 1992-04-01 | BU44: SO2 control | BV44: Dry FGD - Spray Dryer | BW44: 1992-04-01 | BX44: SO2 control | BY44: Dry FGD - Spray Dryer | BZ44: 1992-04-01 | CA44: PM control | CB44: Fabric Filter, pulse | CC44: 1992-04-01 | CD44: PM control | CE44: Fabric Filter, pulse | CF44: 1992-04-01
A45: 10771_10771-02 | B45: coal | C45: 44 | E45: 10771 | F45: Hopewell | G45: VA | H45: 1 & 2 | I45: 10771-02 | J45: Conventional Boiler | K45: Stoker - underfeed | L45: 34 | M45: 422 | N45: 12.41176471 | O45: bituminous | P45: bituminous | Q45: 0.1046666667 | R45: 0.003566666667 | AC45: 0.0008743333333 | AD45: 0.01099345588 | AG45: 0.0008743333333 | AH45: 0.01099345588 | AI45: 7.336682798e-05 | AJ45: 0.0009224799694 | AO45: 7.336682798e-05 | AP45: 0.0009224799694 | AQ45: 7.303778219e-05 | AR45: 0.0009183427026 | AW45: 7.303778219e-05 | AX45: 0.0009183427026 | BA45: 0.02315747737 | BB45: 0.2911712229 | BG45: 0.02315747737 | BH45: 0.2911712229 | BI45: NOx control | BJ45: Selective Noncatalytic Reduction | BK45: 1992-04-01 | BL45: NOx control | BM45: Selective Noncatalytic Reduction | BN45: 1992-04-01 | BO45: PM control | BP45: Multiple cyclone | BQ45: 1992-04-01 | BR45: PM control | BS45: Multiple cyclone | BT45: 1992-04-01 | BU45: SO2 control | BV45: Dry FGD - Spray Dryer | BW45: 1992-04-01 | BX45: SO2 control | BY45: Dry FGD - Spray Dryer | BZ45: 1992-04-01 | CA45: PM control | CB45: Fabric Filter, pulse | CC45: 1992-04-01 | CD45: PM control | CE45: Fabric Filter, pulse | CF45: 1992-04-01
A46: 68029_BLR2 | B46: coal | C46: 45 | E46: 68029 | F46: AES Puerto Rico Cogeneration Facility | G46: PR | H46: Unit_2 | I46: BLR2 | J46: Fluidized bed firing | K46: Fluidized bed firing | L46: 255 | M46: 2461.4 | N46: 9.65254902 | O46: bituminous | P46: bituminous | Q46: 0.003780328555 | R46: 0.002618666782 | AC46: 0.00154069007 | AD46: 0.01487158642 | AG46: 0.00154069007 | AH46: 0.01487158642 | AI46: 9.596619042e-05 | AJ46: 0.0009263183573 | AO46: 9.596619042e-05 | AP46: 0.0009263183573 | AQ46: 9.845731861e-05 | AR46: 0.0009503640942 | AW46: 9.845731861e-05 | AX46: 0.0009503640942 | AY46: 0.00871 | AZ46: 0.08407370196 | BG46: 0.00871 | BH46: 0.08407370196 | BI46: NOx control | BJ46: Selective Noncatalytic Reduction | BL46: SO2 control | BM46: Dry FGD - Spray Dryer | BO46: PM control | BP46: Electrostatic precipitator, cold side, w/o flue gas conditioning
A47: 6170_2 | B47: coal | C47: 46 | E47: 6170 | F47: Pleasant Prairie | G47: WI | H47: PPPPB2 | I47: 2 | J47: Conventional Boiler | K47: Wall firing - opposed firing | L47: 643 | M47: 6449 | N47: 10.02954899 | O47: subbituminous | P47: subbituminous | Q47: 0.002991597599 | R47: 0.007230450531 | AC47: 0.00021 | AD47: 0.002106205288 | AG47: 0.00021 | AH47: 0.002106205288 | AI47: 9.442705757e-05 | AJ47: 0.0009470607998 | AO47: 9.442705757e-05 | AP47: 0.0009470607998 | AQ47: 7.626302169e-05 | AR47: 0.0007648837121 | AW47: 7.626302169e-05 | AX47: 0.0007648837121 | BI47: NOx control | BJ47: Selective Catalytic Reduction | BK47: 2003-04-01 | BL47: PM control | BM47: Electrostatic precipitator, cold side, w/o flue gas conditioning | BN47: 1985-05-01 | BO47: SO2 control | BP47: Wet FGD - Spray Type | BQ47: 2007-03-01
A48: 6170_1 | B48: coal | C48: 47 | E48: 6170 | F48: Pleasant Prairie | G48: WI | H48: PPPPB1 | I48: 1 | J48: Conventional Boiler | K48: Wall firing - opposed firing | L48: 655 | M48: 6449 | N48: 9.845801527 | O48: subbituminous | P48: subbituminous | Q48: 0.004002890653 | R48: 0.007470223133 | AC48: 0.0001953333333 | AD48: 0.001923213232 | AG48: 0.0001953333333 | AH48: 0.001923213232 | AI48: 9.655589308e-05 | AJ48: 0.0009506701595 | AO48: 9.655589308e-05 | AP48: 0.0009506701595 | AQ48: 5.954434994e-05 | AR48: 0.0005862618515 | AW48: 5.954434994e-05 | AX48: 0.0005862618515 | BI48: NOx control | BJ48: Selective Catalytic Reduction | BK48: 2006-11-01 | BL48: PM control | BM48: Electrostatic precipitator, cold side, w/o flue gas conditioning | BN48: 1980-06-01 | BO48: SO2 control | BP48: Wet FGD - Spray Type | BQ48: 2006-11-01
A49: 68029_BLR1 | B49: coal | C49: 48 | E49: 68029 | F49: AES Puerto Rico Cogeneration Facility | G49: PR | H49: Unit_1 | I49: BLR1 | J49: Fluidized bed firing | K49: Fluidized bed firing | L49: 255 | M49: 2461.4 | N49: 9.65254902 | O49: bituminous | P49: bituminous | Q49: 0.003592900153 | R49: 0.002864666412 | AC49: 0.001252173782 | AD49: 0.01208666882 | AG49: 0.001252173782 | AH49: 0.01208666882 | AI49: 0.0001018530765 | AJ49: 0.000983141814 | AO49: 0.0001018530765 | AP49: 0.000983141814 | AQ49: 0.0001025249298 | AR49: 0.0009896269105 | AW49: 0.0001025249298 | AX49: 0.0009896269105 | AY49: 0.009 | AZ49: 0.08687294118 | BG49: 0.009 | BH49: 0.08687294118 | BI49: NOx control | BJ49: Selective Noncatalytic Reduction | BL49: SO2 control | BM49: Dry FGD - Spray Dryer | BO49: PM control | BP49: Electrostatic precipitator, cold side, w/o flue gas conditioning
A50: 10774_1 | B50: coal | C50: 49 | E50: 10774 | F50: Southampton Power Station | G50: VA | H50: Unit 1 & 2 | I50: 1 | J50: Conventional Boiler | K50: Stoker - spreader | L50: 34 | M50: 442 | N50: 13 | O50: bituminous | P50: bituminous | Q50: 0.1013838384 | R50: 0.005300699301 | AC50: 0.00395485038 | AD50: 0.05170385277 | AG50: 0.00395485038 | AH50: 0.05170385277 | AI50: 7.763296516e-05 | AJ50: 0.001014936853 | AO50: 7.763296516e-05 | AP50: 0.001014936853 | AQ50: 7.497510261e-05 | AR50: 0.0009801892091 | AW50: 7.497510261e-05 | AX50: 0.0009801892091 | BA50: 0.02869488296 | BB50: 0.3751433964 | BG50: 0.02869488296 | BH50: 0.3751433964 | BI50: PM control | BJ50: Multiple cyclone | BK50: 1992-03-01 | BL50: PM control | BM50: Multiple cyclone | BN50: 1992-03-01 | BO50: SO2 control | BP50: Dry FGD - Spray Dryer | BQ50: 1992-03-01 | BR50: SO2 control | BS50: Dry FGD - Spray Dryer | BT50: 1992-03-01 | BU50: PM control | BV50: Fabric Filter, pulse | BW50: 1992-03-01 | BX50: PM control | BY50: Fabric Filter, pulse | BZ50: 1992-03-01
A51: 10774_2 | B51: coal | C51: 50 | E51: 10774 | F51: Southampton Power Station | G51: VA | H51: Unit 1 & 2 | I51: 2 | J51: Conventional Boiler | K51: Stoker - spreader | L51: 34 | M51: 447 | N51: 13.14705882 | O51: bituminous | P51: bituminous | Q51: 0.1013838384 | R51: 0.005300699301 | AC51: 0.00395485038 | AD51: 0.05170385277 | AG51: 0.00395485038 | AH51: 0.05170385277 | AI51: 7.763296516e-05 | AJ51: 0.001014936853 | AO51: 7.763296516e-05 | AP51: 0.001014936853 | AQ51: 7.497510261e-05 | AR51: 0.0009801892091 | AW51: 7.497510261e-05 | AX51: 0.0009801892091 | BA51: 0.02869488296 | BB51: 0.3751433964 | BG51: 0.02869488296 | BH51: 0.3751433964 | BI51: PM control | BJ51: Multiple cyclone | BK51: 1992-03-01 | BL51: PM control | BM51: Multiple cyclone | BN51: 1992-03-01 | BO51: SO2 control | BP51: Dry FGD - Spray Dryer | BQ51: 1992-03-01 | BR51: SO2 control | BS51: Dry FGD - Spray Dryer | BT51: 1992-03-01 | BU51: PM control | BV51: Fabric Filter, pulse | BW51: 1992-03-01 | BX51: PM control | BY51: Fabric Filter, pulse | BZ51: 1992-03-01
A52: 2451_Unit 3 | B52: coal | C52: 51 | E52: 2451 | F52: San Juan | G52: NM | H52: Unit 3 | I52: Unit 3 | J52: Conventional Boiler | K52: Wall firing - opposed firing | L52: 544 | M52: 5758 | N52: 10.58455882 | O52: subbituminous | P52: subbituminous | AC52: 1.470929002e-05 | AD52: 0.0001556913454 | AG52: 1.470929002e-05 | AH52: 0.0001556913454 | AI52: 9.597874659e-05 | AJ52: 0.001015892689 | AO52: 9.597874659e-05 | AP52: 0.001015892689 | AQ52: 0.0001111005285 | AR52: 0.00117595008 | AW52: 0.0001111005285 | AX52: 0.00117595008 | AY52: 0.0355483871 | AZ52: 0.3762639943 | BG52: 0.0355483871 | BH52: 0.3762639943 | BI52: Other control | BJ52: Activated carbon injection | BK52: 2008-04-01 | BL52: PM control | BM52: Fabric Filter, pulse | BN52: 2008-03-01 | BO52: SO2 control | BP52: Wet FGD - Spray Type | BQ52: 1998-05-01
A53: 6041_4 | B53: coal | C53: 52 | E53: 6041 | F53: H L Spurlock Station | G53: KY | H53: Unit 04 | I53: 4 | J53: Fluidized bed firing | K53: Fluidized bed firing | L53: 300 | M53: 2800 | N53: 9.333333333 | O53: bituminous | P53: bituminous | R53: 0.009167600363 | S53: 0.0002910939739 | T53: 0.002716877089 | Y53: 0.0002910939739 | Z53: 0.002716877089 | AC53: 0.0027 | AD53: 0.0252 | AG53: 0.0027 | AH53: 0.0252 | AI53: 0.0001302395936 | AJ53: 0.001215569541 | AK53: 0.0002 | AL53: 0.001866666667 | AM53: 0.0001184383333 | AN53: 0.001105424444 | AO53: 0.0001184383333 | AP53: 0.001105424444 | AQ53: 4.851566231e-05 | AR53: 0.0004528128482 | AS53: 0.0001 | AT53: 0.0009333333333 | AU53: 1.333333333e-05 | AV53: 0.0001244444444 | AW53: 1.333333333e-05 | AX53: 0.0001244444444 | AY53: 0.09776666667 | AZ53: 0.9124888889 | BE53: 0.09933333333 | BF53: 0.9271111111 | BG53: 0.09776666667 | BH53: 0.9124888889 | BI53: NOx control | BJ53: Selective Noncatalytic Reduction | BK53: 2009-04-01 | BL53: SO2 control | BM53: Dry FGD - Unspecified | BN53: 2009-04-01 | BO53: PM control | BP53: Fabric Filter, pulse | BQ53: 2009-04-01
A54: 1082_3 | B54: coal | C54: 53 | E54: 1082 | F54: Walter Scott Jr. Energy Center | G54: IA | H54: 3 | I54: 3 | J54: Conventional Boiler | K54: Wall firing - unspecified | L54: 765 | M54: 7700 | N54: 10.06535948 | P54: Subbituminous | AM54: 0.00011 | AN54: 0.001107189542 | AO54: 0.00011 | AP54: 0.001107189542 | AU54: 0.000142 | AV54: 0.001429281046 | AW54: 0.000142 | AX54: 0.001429281046 | BI54: SO2 control | BJ54: Dry FGD - Circulating Dry Scrubber | BK54: 2009-05-01 | BL54: PM control | BM54: Fabric Filter, pulse | BN54: 2009-05-01
A55: 2451_Unit 1 | B55: coal | C55: 54 | E55: 2451 | F55: San Juan | G55: NM | H55: Unit 1 | I55: Unit 1 | J55: Conventional Boiler | K55: Wall firing - front firing | L55: 370 | M55: 3707 | N55: 10.01891892 | O55: subbituminous | P55: subbituminous | AC55: 0.0002528924973 | AD55: 0.002533709426 | AG55: 0.0002528924973 | AH55: 0.002533709426 | AI55: 0.0001113526145 | AJ55: 0.001115632816 | AO55: 0.0001113526145 | AP55: 0.001115632816 | AQ55: 0.0002265853657 | AR55: 0.002270140407 | AW55: 0.0002265853657 | AX55: 0.002270140407 | AY55: 0.06547368421 | AZ55: 0.6559755334 | BG55: 0.06547368421 | BH55: 0.6559755334 | BI55: Other control | BJ55: Activated carbon injection | BK55: 2009-06-01 | BL55: PM control | BM55: Fabric Filter, pulse | BN55: 2008-10-01 | BO55: SO2 control | BP55: Wet FGD - Spray Type | BQ55: 1998-05-01
A56: 703_4 | B56: coal | C56: 55 | E56: 703 | F56: Bowen | G56: GA | H56: Unit 4 | I56: 4 | J56: Conventional Boiler | K56: Tangential firing | L56: 933 | M56: 8887.743 | N56: 9.525983923 | O56: bituminous | P56: bituminous | Q56: 0.1163628647 | R56: 0.004703959345 | AC56: 1.083333333e-05 | AD56: 0.0001031981592 | AG56: 1.083333333e-05 | AH56: 0.0001031981592 | AI56: 0.0001193914944 | AJ56: 0.001137321456 | AO56: 0.0001193914944 | AP56: 0.001137321456 | AQ56: 5.747389156e-05 | AR56: 0.000547495367 | AW56: 5.747389156e-05 | AX56: 0.000547495367 | AY56: 0.05393333333 | AZ56: 0.5137680662 | BG56: 0.05393333333 | BH56: 0.5137680662 | BI56: NOx control | BJ56: Selective Catalytic Reduction | BK56: 2003-05-01 | BL56: PM control | BM56: Electrostatic precipitator, cold side, w/ flue gas conditioning | BN56: 1975-11-01 | BO56: SO2 control | BP56: Wet FGD - Spray Type | BQ56: 2008-12-01
A57: 2451_Unit 4 | B57: coal | C57: 56 | E57: 2451 | F57: San Juan | G57: NM | H57: Unit 4 | I57: Unit 4 | J57: Conventional Boiler | K57: Wall firing - opposed firing | L57: 544 | M57: 5649 | N57: 10.38419118 | O57: subbituminous | P57: subbituminous | AC57: 2.09973497e-05 | AD57: 0.0002180404935 | AG57: 2.09973497e-05 | AH57: 0.0002180404935 | AI57: 0.0001178198174 | AJ57: 0.001223463508 | AO57: 0.0001178198174 | AP57: 0.001223463508 | AQ57: 0.0001128464821 | AR57: 0.001171819444 | AW57: 0.0001128464821 | AX57: 0.001171819444 | AY57: 0.05887096774 | AZ57: 0.6113273838 | BG57: 0.05887096774 | BH57: 0.6113273838 | BI57: Other control | BJ57: Activated carbon injection | BK57: 2008-04-01 | BL57: PM control | BM57: Fabric Filter, pulse | BN57: 2007-10-01 | BO57: SO2 control | BP57: Wet FGD - Spray Type | BQ57: 1998-04-01
A58: 2828_1 | B58: coal | C58: 57 | E58: 2828 | F58: Cardinal | G58: OH | H58: CD-U1 | I58: 1 | J58: Conventional Boiler | K58: Wall firing - opposed firing | L58: 615.2 | M58: 5275 | N58: 8.574447334 | O58: bituminous | P58: bituminous | Q58: 0.04309520887 | R58: 0.004261734388 | AC58: 0.0002463333333 | AD58: 0.002112172193 | AG58: 0.0002463333333 | AH58: 0.002112172193 | AI58: 0.0001429617046 | AJ58: 0.001225817607 | AO58: 0.0001429617046 | AP58: 0.001225817607 | AQ58: 8.617546536e-05 | AR58: 0.0007389069893 | AW58: 8.617546536e-05 | AX58: 0.0007389069893 | AY58: 0.23495 | AZ58: 2.014566401 | BG58: 0.23495 | BH58: 2.014566401 | BI58: NOx control | BJ58: Selective Catalytic Reduction | BK58: 2003-01-01 | BL58: Other control | BM58: Dry sorbent injection | BN58: 2008-03-01 | BO58: PM control | BP58: Electrostatic precipitator, cold side, w/o flue gas conditioning | BQ58: 1980-05-01 | BR58: SO2 control | BS58: Wet FGD - Jet Bubbling Reactor | BT58: 2008-03-01
A59: 2451_Unit 2 | B59: coal | C59: 58 | E59: 2451 | F59: San Juan | G59: NM | H59: Unit 2 | I59: Unit 2 | J59: Conventional Boiler | K59: Wall firing - front firing | L59: 370 | M59: 3688 | N59: 9.967567568 | O59: subbituminous | P59: subbituminous | AC59: 2.218534671e-05 | AD59: 0.0002211339424 | AG59: 2.218534671e-05 | AH59: 0.0002211339424 | AI59: 0.000124058511 | AJ59: 0.001236561591 | AO59: 0.000124058511 | AP59: 0.001236561591 | AQ59: 0.0002521726217 | AR59: 0.002513547646 | AW59: 0.0002521726217 | AX59: 0.002513547646 | AY59: 0.08328571429 | AZ59: 0.8301559846 | BG59: 0.08328571429 | BH59: 0.8301559846 | BI59: Other control | BJ59: Activated carbon injection | BK59: 2009-06-01 | BL59: PM control | BM59: Fabric Filter, pulse | BN59: 2009-04-01 | BO59: SO2 control | BP59: Wet FGD - Spray Type | BQ59: 1998-05-01
A60: 6180_1 | B60: coal | C60: 59 | E60: 6180 | F60: Oak Grove | G60: TX | H60: OG1 | I60: 1 | J60: Conventional Boiler | K60: Tangential firing | L60: 817 | M60: 8970 | N60: 10.97919217 | O60: lignite | P60: lignite | Q60: 0.01183853106 | R60: 0.008530856014 | AC60: 1.586666667e-05 | AD60: 0.0001742031824 | AG60: 1.586666667e-05 | AH60: 0.0001742031824 | AI60: 0.0001202586154 | AJ60: 0.001320342448 | AM60: 0.0002266666667 | AN60: 0.002488616891 | AO60: 0.0001202586154 | AP60: 0.001320342448 | AQ60: 9.347312343e-05 | AR60: 0.001026259385 | AU60: 0.00014 | AV60: 0.001537086903 | AW60: 9.347312343e-05 | AX60: 0.001026259385 | BA60: 0.05633464923 | BB60: 0.6185089395 | BE60: 0.054 | BF60: 0.592876377 | BG60: 0.054 | BH60: 0.592876377 | BI60: NOx control | BJ60: Selective Catalytic Reduction | BK60: 2009-08-01 | BL60: Other control | BM60: Activated carbon injection | BN60: 2009-08-01 | BO60: PM control | BP60: Fabric Filter, pulse | BQ60: 2009-08-01 | BR60: SO2 control | BS60: Wet FGD - Spray Type | BT60: 2009-08-01
A61: 525_2 | B61: coal | C61: 60 | E61: 525 | F61: Hayden | G61: CO | H61: Unit 2 | I61: 2 | J61: Conventional Boiler | K61: Tangential firing | L61: 285 | M61: 2712 | N61: 9.515789474 | O61: bituminous | P61: bituminous | Q61: 0.002343670701 | R61: 0.01011342444 | AC61: 1.706666667e-06 | AD61: 1.62402807e-05 | AG61: 1.706666667e-06 | AH61: 1.62402807e-05 | AI61: 0.0001425588126 | AJ61: 0.001356559648 | AO61: 0.0001425588126 | AP61: 0.001356559648 | AQ61: 6.233134137e-05 | AR61: 0.0005931319221 | AW61: 6.233134137e-05 | AX61: 0.0005931319221 | AY61: 0.136862069 | AZ61: 1.302350635 | BC61: 0.1214094527 | BD61: 1.155306792 | BG61: 0.1214094527 | BH61: 1.155306792 | BI61: SO2 control | BJ61: Dry FGD - Spray Dryer | BK61: 1999-06-01 | BL61: PM control | BM61: Fabric Filter, reverse air | BN61: 1999-06-01
A62: 703_2 | B62: coal | C62: 61 | E62: 703 | F62: Bowen | G62: GA | H62: Unit 2 | I62: 2 | J62: Conventional Boiler | K62: Tangential firing | L62: 755 | M62: 7284.11 | N62: 9.647827815 | O62: bituminous | P62: bituminous | Q62: 0.06963434561 | R62: 0.004487640556 | AC62: 1.073333333e-05 | AD62: 0.0001035533519 | AG62: 1.073333333e-05 | AH62: 0.0001035533519 | AI62: 0.0001556662768 | AJ62: 0.001501841436 | AO62: 0.0001556662768 | AP62: 0.001501841436 | AQ62: 2.998345464e-05 | AR62: 0.0002892752077 | AW62: 2.998345464e-05 | AX62: 0.0002892752077 | BI62: NOx control | BJ62: Selective Catalytic Reduction | BK62: 2001-06-01 | BL62: PM control | BM62: Electrostatic precipitator, cold side, w/ flue gas conditioning | BN62: 1981-01-01 | BO62: PM control | BP62: Electrostatic precipitator, cold side, w/ flue gas conditioning | BQ62: 1972-09-01 | BR62: SO2 control | BS62: Wet FGD - Spray Type | BT62: 2009-05-01
A63: 994_2 | B63: coal | C63: 62 | E63: 994 | F63: AES Petersburg | G63: IN | H63: 2ss | I63: 2 | J63: Conventional Boiler | K63: Tangential firing | L63: 445 | M63: 4144 | N63: 9.312359551 | O63: bituminous | P63: bituminous | Q63: 0.03157088931 | R63: 0.003157539301 | AC63: 2.113134742e-05 | AD63: 0.000196782705 | AG63: 2.113134742e-05 | AH63: 0.000196782705 | AI63: 0.0001624458336 | AJ63: 0.00151275401 | AO63: 0.0001624458336 | AP63: 0.00151275401 | AQ63: 0.0001155519552 | AR63: 0.001076061354 | AW63: 0.0001155519552 | AX63: 0.001076061354 | AY63: 0.09823333333 | AZ63: 0.9147841199 | BG63: 0.09823333333 | BH63: 0.9147841199 | BI63: NOx control | BJ63: Selective Catalytic Reduction | BK63: 2004-12-01 | BL63: PM control | BM63: Electrostatic precipitator, cold side, w/ flue gas conditioning | BN63: 1969-12-01 | BO63: SO2 control | BP63: Wet FGD - Spray Type | BQ63: 1996-12-01
A64: 994_1 | B64: coal | C64: 63 | E64: 994 | F64: AES Petersburg | G64: IN | H64: 1s | I64: 1 | J64: Conventional Boiler | K64: Tangential firing | L64: 255 | M64: 2200 | N64: 8.62745098 | O64: bituminous | P64: bituminous | Q64: 0.01892091461 | R64: 0.003304062121 | AC64: 2.908526404e-05 | AD64: 0.0002509316898 | AG64: 2.908526404e-05 | AH64: 0.0002509316898 | AI64: 0.0001757811938 | AJ64: 0.001516543632 | AO64: 0.0001757811938 | AP64: 0.001516543632 | AQ64: 0.0001691382598 | AR64: 0.001459232045 | AW64: 0.0001691382598 | AX64: 0.001459232045 | AY64: 0.04747058824 | AZ64: 0.409550173 | BG64: 0.04747058824 | BH64: 0.409550173 | BI64: PM control | BJ64: Electrostatic precipitator, cold side, w/ flue gas conditioning | BK64: 1967-12-01 | BL64: SO2 control | BM64: Wet FGD - Spray Type | BN64: 1996-12-01
A65: 2840_4 | B65: coal | C65: 64 | E65: 2840 | F65: Conesville | G65: OH | H65: CV-4 | I65: 4 | J65: Conventional Boiler | K65: Tangential firing | L65: 841.5 | M65: 7960 | N65: 9.459298871 | O65: bituminous | P65: bituminous | Q65: 0.04128790863 | R65: 0.004285864176 | AC65: 0.0002333333333 | AD65: 0.002207169737 | AG65: 0.0002333333333 | AH65: 0.002207169737 | AI65: 0.000163214282 | AJ65: 0.001543892674 | AO65: 0.000163214282 | AP65: 0.001543892674 | AQ65: 6.5254713e-05 | AR65: 0.000617263833 | AW65: 6.5254713e-05 | AX65: 0.000617263833 | AY65: 0.157 | AZ65: 1.485109923 | BG65: 0.157 | BH65: 1.485109923 | BI65: NOx control | BJ65: Selective Catalytic Reduction | BK65: 2009-01-01 | BL65: PM control | BM65: Electrostatic precipitator, cold side, w/o flue gas conditioning | BN65: 1973-06-01 | BO65: Other control | BP65: Dry sorbent injection | BQ65: 2009-06-01 | BR65: SO2 control | BS65: Wet FGD - Jet Bubbling Reactor | BT65: 2009-06-01
A66: =E66&"_"&I66 -> 3935_2 | B66: coal | C66: 65 | E66: 3935 | F66: John E. Amos | G66: WV | H66: AM-2 | I66: 2 | J66: Conventional Boiler | K66: Wall firing - opposed firing | L66: 816.3 | M66: 7020 | N66: 8.599779493 | O66: bituminous | P66: bituminous | Q66: 0.05365702953 | R66: 0.004856114299 | AC66: 0.000209 | AD66: 0.001797353914 | AG66: 0.000209 | AH66: 0.001797353914 | AI66: 0.0001827398673 | AJ66: 0.001571522564 | AO66: 0.0001827398673 | AP66: 0.001571522564 | AQ66: 8.478155324e-05 | AR66: 0.000729102663 | AW66: 8.478155324e-05 | AX66: 0.000729102663 | AY66: 0.04506666667 | AZ66: 0.3875633958 | BG66: 0.04506666667 | BH66: 0.3875633958 | BI66: NOx control | BJ66: Selective Catalytic Reduction | BL66: PM control | BM66: Electrostatic precipitator, cold side, w/o flue gas conditioning | BN66: 1977-12-01 | BO66: SO2 control | BP66: Wet FGD - Spray Type | BQ66: 2009-02-01
A67: 2917_9 | B67: coal | C67: 66 | E67: 2917 | F67: Hamilton | G67: OH | H67: Unit 9 | I67: 9 | J67: Conventional Boiler | K67: Tangential firing | L67: 50.6 | M67: 729 | N67: 14.40711462 | O67: bituminous | P67: bituminous | Q67: 0.05481108755 | R67: 0.005088866303 | AC67: 5.9e-05 | AD67: 0.0008500197628 | AG67: 5.9e-05 | AH67: 0.0008500197628 | AI67: 0.0001101914782 | AJ67: 0.001587541257 | AO67: 0.0001101914782 | AP67: 0.001587541257 | AQ67: 0.0001096328699 | AR67: 0.001579493324 | AW67: 0.0001096328699 | AX67: 0.001579493324 | BA67: 0.9356540746 | BB67: 13.4800755 | BG67: 0.9356540746 | BH67: 13.4800755 | BI67: PM control | BJ67: Electrostatic precipitator, hot side, w/o flue gas conditioning | BK67: 1974-06-01 | BL67: SO2 control | BM67: Dry FGD - Spray Dryer | BN67: 2001-06-01 | BO67: PM control | BP67: Single cyclone | BQ67: 1997-01-01 | BR67: PM control | BS67: Fabric Filter, pulse | BT67: 1997-01-01
A68: 2828_2 | B68: coal | C68: 67 | E68: 2828 | F68: Cardinal | G68: OH | H68: CD-U2 | I68: 2 | J68: Conventional Boiler | K68: Wall firing - opposed firing | L68: 615.2 | M68: 5275 | N68: 8.574447334 | O68: bituminous | P68: bituminous | Q68: 0.07367303188 | R68: 0.0071918514 | AC68: 0.0002366666667 | AD68: 0.002029285869 | AG68: 0.0002366666667 | AH68: 0.002029285869 | AI68: 0.0001853580367 | AJ68: 0.001589342724 | AO68: 0.0001853580367 | AP68: 0.001589342724 | AQ68: 8.157232815e-05 | AR68: 0.0006994376317 | AW68: 8.157232815e-05 | AX68: 0.0006994376317 | AY68: 0.1369 | AZ68: 1.17384184 | BG68: 0.1369 | BH68: 1.17384184 | BI68: NOx control | BJ68: Selective Catalytic Reduction | BK68: 2003-01-01 | BL68: Other control | BM68: Dry sorbent injection | BN68: 2007-12-01 | BO68: PM control | BP68: Electrostatic precipitator, cold side, w/o flue gas conditioning | BQ68: 1980-05-01 | BR68: SO2 control | BS68: Wet FGD - Jet Bubbling Reactor | BT68: 2007-12-01
A69: 60_1 | B69: coal | C69: 68 | E69: 60 | F69: Whelan Energy Center Unit 1 (WEC1) | G69: NE | H69: 1 | I69: 1 | J69: Conventional Boiler | K69: Tangential firing | L69: 83.6 | M69: 845.1 | N69: 10.10885167 | O69: subbituminous | P69: subbituminous | AC69: 0.00433 | AD69: 0.04377132775 | AG69: 0.00433 | AH69: 0.04377132775 | AI69: 0.0001624030167 | AJ69: 0.001641708007 | AO69: 0.0001624030167 | AP69: 0.001641708007 | AQ69: 0.000262606396 | AR69: 0.002654649106 | AW69: 0.000262606396 | AX69: 0.002654649106 | BA69: 0.7087612284 | BB69: 7.164762131 | BG69: 0.7087612284 | BH69: 7.164762131 | BI69: PM control | BJ69: Electrostatic precipitator, cold side, w/o flue gas conditioning
A70: 728_Y1BR | B70: coal | C70: 69 | E70: 728 | F70: Yates | G70: GA | H70: Y1BR | I70: Y1BR | J70: Conventional Boiler | K70: Tangential firing | L70: 107 | M70: 1094.742 | N70: 10.23123364 | O70: bituminous | P70: bituminous | Q70: 0.03784448909 | R70: 0.007291430831 | AC70: 0.000363 | AD70: 0.003713937813 | AG70: 0.000363 | AH70: 0.003713937813 | AI70: 0.000163060607 | AJ70: 0.001668311169 | AO70: 0.000163060607 | AP70: 0.001668311169 | AQ70: 0.0001276669333 | AR70: 0.001306190224 | AW70: 0.0001276669333 | AX70: 0.001306190224 | AY70: 0.0937 | AZ70: 0.9586665925 | BG70: 0.0937 | BH70: 0.9586665925 | BI70: PM control | BJ70: Electrostatic precipitator, cold side, w/o flue gas conditioning | BK70: 1971-05-01 | BL70: SO2 control | BM70: Wet FGD - Spray Type | BN70: 1992-10-01
A71: 55479_3 | B71: coal | C71: 70 | E71: 55479 | F71: Wygen 1 | G71: WY | H71: WYG1Cfg | I71: 3 | J71: Conventional Boiler | K71: Wall firing - front firing | L71: 91 | M71: 1053 | N71: 11.57142857 | O71: subbituminous | P71: subbituminous | Q71: 0.0008512811782 | R71: 0.00817229931 | AC71: 4.55e-05 | AD71: 0.0005265 | AG71: 4.55e-05 | AH71: 0.0005265 | AI71: 0.0001565819323 | AJ71: 0.001811876645 | AK71: 0.0001535 | AL71: 0.001776214286 | AO71: 0.0001535 | AP71: 0.001776214286 | AQ71: 0.000391279961 | AR71: 0.00452766812 | AS71: 0.000384 | AT71: 0.004443428571 | AW71: 0.000384 | AX71: 0.004443428571 | AY71: 0.1276666667 | AZ71: 1.477285714 | BG71: 0.1276666667 | BH71: 1.477285714 | BI71: NOx control | BJ71: Selective Catalytic Reduction | BK71: 2003-04-01 | BL71: SO2 control | BM71: Dry FGD - Spray Dryer | BN71: 2003-04-01 | BO71: PM control | BP71: Fabric Filter, pulse | BQ71: 2003-04-01
A72: 6139_1 | B72: coal | C72: 71 | E72: 6139 | F72: Welsh | G72: TX | H72: WE-1 | I72: 1 | J72: Conventional Boiler | K72: Wall firing - opposed firing | L72: 558 | M72: 5156 | N72: 9.240143369 | O72: subbituminous | P72: subbituminous | Q72: 0.00201312944 | R72: 0.005531587207 | AC72: 0.0002243333333 | AD72: 0.002072872162 | AG72: 0.0002243333333 | AH72: 0.002072872162 | AI72: 0.0001944468799 | AJ72: 0.001796717048 | AO72: 0.0001944468799 | AP72: 0.001796717048 | AQ72: 0.0001366098395 | AR72: 0.001262294502 | AW72: 0.0001366098395 | AX72: 0.001262294502 | AY72: 0.47975 | AZ72: 4.432958781 | BG72: 0.47975 | BH72: 4.432958781 | BI72: PM control | BJ72: Electrostatic precipitator, hot side, w/o flue gas conditioning | BK72: 1977-03-01
A73: 7504_2 | B73: coal | C73: 72 | E73: 7504 | F73: Neil Simpson II | G73: WY | H73: NS2Cfg | I73: 2 | J73: Conventional Boiler | K73: Wall firing - front firing | L73: 88 | M73: 1100 | N73: 12.5 | O73: subbituminous | P73: subbituminous | Q73: 0.0007844504489 | R73: 0.005491153142 | AC73: 5e-05 | AD73: 0.000625 | AG73: 5e-05 | AH73: 0.000625 | AI73: 0.0001474951188 | AJ73: 0.001843688985 | AK73: 0.0001476666667 | AL73: 0.001845833333 | AO73: 0.0001474951188 | AP73: 0.001843688985 | AQ73: 0.0003695264946 | AR73: 0.004619081182 | AS73: 0.0003696666667 | AT73: 0.004620833333 | AW73: 0.0003695264946 | AX73: 0.004619081182 | AY73: 0.0921 | AZ73: 1.15125 | BG73: 0.0921 | BH73: 1.15125 | BI73: SO2 control | BJ73: Dry FGD - Circulating Dry Scrubber | BK73: 1995-09-01 | BL73: PM control | BM73: Electrostatic precipitator, cold side, w/o flue gas conditioning | BN73: 1995-09-01
A74: 6264_1 | B74: coal | C74: 73 | E74: 6264 | F74: Mountaineer | G74: WV | H74: Mt-1 | I74: 1 | J74: Conventional Boiler | K74: Wall firing - opposed firing | L74: 1320 | M74: 11960 | N74: 9.060606061 | O74: bituminous | P74: bituminous | Q74: 0.06948459022 | R74: 0.005416046421 | AC74: 0.000237 | AD74: 0.002147363636 | AG74: 0.000237 | AH74: 0.002147363636 | AI74: 0.0002140479023 | AJ74: 0.001939403721 | AO74: 0.0002140479023 | AP74: 0.001939403721 | AQ74: 0.0002034817173 | AR74: 0.001843667681 | AW74: 0.0002034817173 | AX74: 0.001843667681 | AY74: 0.0314 | AZ74: 0.2845030303 | BG74: 0.0314 | BH74: 0.2845030303 | BI74: NOx control | BJ74: Selective Catalytic Reduction | BK74: 2002-01-01 | BL74: Other control | BM74: Dry sorbent injection | BN74: 2007-01-01 | BO74: PM control | BP74: Electrostatic precipitator, cold side, w/o flue gas conditioning | BQ74: 1980-09-01 | BR74: SO2 control | BS74: Wet FGD - Spray Type | BT74: 2007-01-01
A75: 508_4 | B75: coal | C75: 74 | E75: 508 | F75: Lamar Plant | G75: CO | H75: 001 | I75: 4 | J75: Fluidized bed firing | K75: Fluidized bed firing | L75: 44 | M75: 509.8 | N75: 11.58636364 | P75: subbituminous | AM75: 0.0001683770037 | AN75: 0.001950877193 | AO75: 0.0001683770037 | AP75: 0.001950877193 | AU75: 5.981017668e-05 | AV75: 0.0006929824561 | AW75: 5.981017668e-05 | AX75: 0.0006929824561 | BI75: NOx control | BJ75: Selective Noncatalytic Reduction | BL75: PM control | BM75: Fabric Filter, unspecified | BN75: 2009-05-01
A76: 477_5 | B76: coal | C76: 75 | E76: 477 | F76: Valmont | G76: CO | H76: Unit 5 | I76: 5 | J76: Conventional Boiler | K76: Tangential firing | L76: 196 | M76: 1845 | N76: 9.413265306 | O76: bituminous | P76: bituminous | Q76: 0.004112271195 | R76: 0.008114098119 | AC76: 1.976666667e-06 | AD76: 1.860688776e-05 | AG76: 1.976666667e-06 | AH76: 1.860688776e-05 | AI76: 0.0002111090725 | AJ76: 0.001987225708 | AO76: 0.0002111090725 | AP76: 0.001987225708 | AQ76: 7.246003009e-05 | AR76: 0.0006820854873 | AW76: 7.246003009e-05 | AX76: 0.0006820854873 | AY76: 0.1141153846 | AZ76: 1.074198391 | BC76: 0.1111608531 | BD76: 1.046386602 | BG76: 0.1111608531 | BH76: 1.046386602 | BI76: SO2 control | BJ76: Dry FGD - Spray Dryer | BK76: 2002-04-01 | BL76: PM control | BM76: Fabric Filter, reverse air | BN76: 1984-04-01
A77: 6664_101 | B77: coal | C77: 76 | E77: 6664 | F77: Louisa | G77: IA | H77: 101 | I77: 101 | J77: Conventional Boiler | K77: Wall firing - unspecified | L77: 805 | M77: 8624 | N77: 10.71304348 | O77: subbituminous | P77: subbituminous | Q77: 0.0006739679865 | R77: 0.00301600674 | AC77: 1.03e-05 | AD77: 0.0001103443478 | AG77: 1.03e-05 | AH77: 0.0001103443478 | AI77: 0.0001910393833 | AJ77: 0.002046613219 | AO77: 0.0001910393833 | AP77: 0.002046613219 | AQ77: 0.0001922301064 | AR77: 0.002059369488 | AW77: 0.0001922301064 | AX77: 0.002059369488 | AY77: 0.2683 | AZ77: 2.874309565 | BG77: 0.2683 | BH77: 2.874309565 | BI77: SO2 control | BJ77: Dry FGD - Circulating Dry Scrubber | BK77: 2007-12-01 | BL77: PM control | BM77: Fabric Filter, pulse | BN77: 2007-12-01
A78: 6052_2 | B78: coal | C78: 77 | E78: 6052 | F78: Wansley | G78: GA | H78: Unit 2 | I78: 2 | J78: Conventional Boiler | K78: Tangential firing | L78: 920 | M78: 8554.28 | N78: 9.298130435 | O78: bituminous | P78: bituminous | Q78: 0.112869661 | R78: 0.006320742533 | AC78: 0.0003146666667 | AD78: 0.00292581171 | AG78: 0.0003146666667 | AH78: 0.00292581171 | AI78: 0.0002205186156 | AJ78: 0.002050410851 | AO78: 0.0002205186156 | AP78: 0.002050410851 | AQ78: 6.675877456e-05 | AR78: 0.0006207317935 | AW78: 6.675877456e-05 | AX78: 0.0006207317935 | BI78: NOx control | BJ78: Selective Catalytic Reduction | BK78: 2003-05-01 | BL78: PM control | BM78: Electrostatic precipitator, cold side, w/ flue gas conditioning | BN78: 1978-04-01 | BO78: SO2 control | BP78: Wet FGD - Spray Type | BQ78: 2009-05-01
A79: 2706_2 | B79: coal | C79: 78 | E79: 2706 | F79: Asheville Steam Electric Plant | G79: NC | H79: Ash_Cfg_2 | I79: 2 | J79: Conventional Boiler | K79: Wall firing - front firing | L79: 204 | M79: 1902 | N79: 9.323529412 | O79: bituminous | P79: bituminous | AM79: 0.00022 | AN79: 0.002051176471 | AO79: 0.00022 | AP79: 0.002051176471 | AU79: 0.0001353333333 | AV79: 0.001261784314 | AW79: 0.0001353333333 | AX79: 0.001261784314 | BA79: 0.04638758921 | BB79: 0.4324960524 | BE79: 0.04441385631 | BF79: 0.4140938956 | BG79: 0.04441385631 | BH79: 0.4140938956 | BI79: NOx control | BJ79: Selective Catalytic Reduction | BK79: 2006-06-14 | BL79: PM control | BM79: Electrostatic precipitator, cold side, w/o flue gas conditioning | BN79: 1971-05-01 | BO79: SO2 control | BP79: Wet FGD - Spray/Tray Type | BQ79: 2006-05-15
A80: 525_1 | B80: coal | C80: 79 | E80: 525 | F80: Hayden | G80: CO | H80: Unit 1 | I80: 1 | J80: Conventional Boiler | K80: Wall firing - front firing | L80: 202 | M80: 1963 | N80: 9.717821782 | O80: bituminous | P80: bituminous | Q80: 0.001832702487 | R80: 0.01089283374 | AC80: 6.13e-06 | AD80: 5.957024752e-05 | AG80: 6.13e-06 | AH80: 5.957024752e-05 | AI80: 0.0002178334795 | AJ80: 0.002116866932 | AO80: 0.0002178334795 | AP80: 0.002116866932 | AQ80: 7.315004545e-05 | AR80: 0.000710859105 | AW80: 7.315004545e-05 | AX80: 0.000710859105 | AY80: 0.1189666667 | AZ80: 1.156096865 | BC80: 0.1202144032 | BD80: 1.168222146 | BG80: 0.1189666667 | BH80: 1.156096865 | BI80: SO2 control | BJ80: Dry FGD - Spray Dryer | BK80: 1998-12-01 | BL80: PM control | BM80: Fabric Filter, reverse air | BN80: 1998-12-01
A81: 6288_001 | B81: coal | C81: 80 | E81: 6288 | F81: Healy | G81: AK | H81: 1 | I81: 001 | J81: Conventional Boiler | K81: Wall firing - front firing | L81: 25 | M81: 347 | N81: 13.88 | O81: subbituminous | P81: subbituminous | Q81: 0.005125647829 | R81: 0.008574838976 | AC81: 4.466666667e-05 | AD81: 0.0006199733333 | AG81: 4.466666667e-05 | AH81: 0.0006199733333 | AI81: 0.0001540475568 | AJ81: 0.002138180089 | AO81: 0.0001540475568 | AP81: 0.002138180089 | AQ81: 0.002637684195 | AR81: 0.03661105662 | AW81: 0.002637684195 | AX81: 0.03661105662 | BA81: 0.3459544196 | BB81: 4.801847344 | BG81: 0.3459544196 | BH81: 4.801847344 | BI81: PM control | BJ81: Fabric Filter, pulse | BK81: 1980-01-01
A82: 1356_1 | B82: coal | C82: 81 | E82: 1356 | F82: Ghent | G82: KY | H82: GH1 | I82: 1 | J82: Conventional Boiler | K82: Tangential firing | L82: 520 | M82: 6286 | N82: 12.08846154 | O82: bituminous | P82: bituminous | Q82: 0.05052066512 | R82: 0.006038910324 | S82: 0.0003970262673 | T82: 0.004799436763 | U82: 0.000397 | V82: 0.004799119231 | Y82: 0.000397 | Z82: 0.004799119231 | AC82: 0.0011 | AD82: 0.01329730769 | AG82: 0.0011 | AH82: 0.01329730769 | AI82: 0.0001796054183 | AJ82: 0.002171153191 | AO82: 0.0001796054183 | AP82: 0.002171153191 | AQ82: 8.389971904e-05 | AR82: 0.001014218527 | AW82: 8.389971904e-05 | AX82: 0.001014218527 | AY82: 0.08443333333 | AZ82: 1.020669103 | BG82: 0.08443333333 | BH82: 1.020669103 | BI82: NOx control | BJ82: Selective Catalytic Reduction | BK82: 2004-05-01 | BL82: Other control | BM82: Other (specify): Sorbent injection for SO3 reduction | BN82: 2008-06-01 | BO82: PM control | BP82: Electrostatic precipitator, cold side, w/o flue gas conditioning | BQ82: 1973-12-01 | BR82: Other control | BS82: Other (specify): Sorbent injection for SO3 reduction | BT82: 2008-06-01 | BU82: SO2 control | BV82: Wet FGD - Spray Type | BW82: 1994-11-01
A83: 469_4 | B83: coal | C83: 82 | E83: 469 | F83: Cherokee | G83: CO | H83: Unit 4 | I83: 4 | J83: Conventional Boiler | K83: Tangential firing | L83: 383 | M83: 3520 | N83: 9.190600522 | O83: bituminous | P83: bituminous | Q83: 0.001246466053 | R83: 0.008138577715 | AC83: 4.033333333e-06 | AD83: 3.706875544e-05 | AG83: 4.033333333e-06 | AH83: 3.706875544e-05 | AI83: 0.000236840569 | AJ83: 0.002176707057 | AO83: 0.000236840569 | AP83: 0.002176707057 | AQ83: 0.000129642186 | AR83: 0.001191489543 | AW83: 0.000129642186 | AX83: 0.001191489543 | AY83: 0.1253666667 | AZ83: 1.152194952 | BC83: 0.1138715401 | BD83: 1.046547836 | BG83: 0.1138715401 | BH83: 1.046547836 | BI83: SO2 control | BJ83: Dry FGD - Spray Dryer | BK83: 2002-10-01 | BL83: PM control | BM83: Fabric Filter, reverse air | BN83: 1989-04-01
A84: 703_3 | B84: coal | C84: 83 | E84: 703 | F84: Bowen | G84: GA | H84: Unit 3 | I84: 3 | J84: Conventional Boiler | K84: Tangential firing | L84: 933 | M84: 8184.748 | N84: 8.772505895 | O84: bituminous | P84: bituminous | Q84: 0.08657274168 | R84: 0.005025466459 | AC84: 1.13e-05 | AD84: 9.912931661e-05 | AG84: 1.13e-05 | AH84: 9.912931661e-05 | AI84: 0.0002495483354 | AJ84: 0.002189164243 | AO84: 0.0002495483354 | AP84: 0.002189164243 | AQ84: 4.495533905e-05 | AR84: 0.0003943709768 | AW84: 4.495533905e-05 | AX84: 0.0003943709768 | AY84: 0.07193333333 | AZ84: 0.6310355907 | BG84: 0.07193333333 | BH84: 0.6310355907 | BI84: NOx control | BJ84: Selective Catalytic Reduction | BK84: 2003-05-01 | BL84: PM control | BM84: Electrostatic precipitator, cold side, w/ flue gas conditioning | BN84: 1974-12-01 | BO84: SO2 control | BP84: Wet FGD - Spray Type | BQ84: 2008-05-01
A85: 469_2 | B85: coal | C85: 84 | E85: 469 | F85: Cherokee | G85: CO | H85: Unit 2 | I85: 2 | J85: Conventional Boiler | K85: Vertical firing | L85: 114 | M85: 1392 | N85: 12.21052632 | O85: bituminous | P85: bituminous | Q85: 0.00109266958 | R85: 0.007597486047 | AC85: 3.663333333e-05 | AD85: 0.0004473122807 | AG85: 3.663333333e-05 | AH85: 0.0004473122807 | AI85: 0.0001863669035 | AJ85: 0.00227563798 | AO85: 0.0001863669035 | AP85: 0.00227563798 | AQ85: 0.0007159595759 | AR85: 0.008742243242 | AW85: 0.0007159595759 | AX85: 0.008742243242 | AY85: 0.5259259259 | AZ85: 6.421832359 | BC85: 0.4421813789 | BD85: 5.399267363 | BG85: 0.4421813789 | BH85: 5.399267363 | BI85: SO2 control | BJ85: Dry FGD - Sorbent Injection | BK85: 2002-12-01 | BL85: PM control | BM85: Fabric Filter, reverse air | BN85: 1985-05-01
A86: 6113_4 | B86: coal | C86: 85 | E86: 6113 | F86: Gibson | G86: IN | H86: 4 | I86: 4 | J86: Conventional Boiler | K86: Wall firing - opposed firing | L86: 661 | M86: 6265 | N86: 9.47806354 | O86: bituminous | P86: bituminous | Q86: 0.02890934816 | R86: 0.006769921337 | AC86: 4.436666667e-05 | AD86: 0.0004205100857 | AG86: 4.436666667e-05 | AH86: 0.0004205100857 | AI86: 0.0002605774769 | AJ86: 0.002469769883 | AM86: 0.0005469926335 | AN86: 0.005184430936 | AO86: 0.0002605774769 | AP86: 0.002469769883 | AQ86: 0.0001581122172 | AR86: 0.001498597641 | AU86: 5.614524222e-05 | AV86: 0.0005321481733 | AW86: 5.614524222e-05 | AX86: 0.0005321481733 | BA86: 0.1669071384 | BB86: 1.581956463 | BE86: 0.381 | BF86: 3.611142209 | BG86: 0.1669071384 | BH86: 1.581956463 | BI86: NOx control | BJ86: Selective Catalytic Reduction | BK86: 2003-04-01 | BL86: Other control | BM86: Other (specify): Soda Ash Injection for SO3 mitigation | BN86: 2004-06-01 | BO86: PM control | BP86: Electrostatic precipitator, cold side, w/o flue gas conditioning | BQ86: 1978-01-01 | BR86: SO2 control | BS86: Wet FGD - Tray Type | BT86: 1994-12-01
A87: 6639_G2 | B87: coal | C87: 86 | E87: 6639 | F87: R D Green | G87: KY | H87: 2 | I87: G2 | J87: Conventional Boiler | K87: Wall firing - opposed firing | L87: 239 | M87: 2726.6 | N87: 11.4083682 | O87: bituminous, Petroleum coke | P87: bituminous, Petroleum coke | Q87: 0.04171642981 | R87: 0.00492454114 | AC87: 1.88e-05 | AD87: 0.0002144773222 | AG87: 1.88e-05 | AH87: 0.0002144773222 | AI87: 0.000222674965 | AJ87: 0.00254035799 | AO87: 0.000222674965 | AP87: 0.00254035799 | AQ87: 0.0001181308962 | AR87: 0.00134768076 | AW87: 0.0001181308962 | AX87: 0.00134768076 | AY87: 0.08026666667 | AZ87: 0.9157116876 | BG87: 0.08026666667 | BH87: 0.9157116876 | BI87: PM control | BJ87: Electrostatic precipitator, cold side, w/o flue gas conditioning | BK87: 1981-01-01 | BL87: SO2 control | BM87: Wet FGD - Spray Type | BN87: 1981-01-01
A88: 130_1 | B88: coal | C88: 87 | E88: 130 | F88: Cross | G88: SC | H88: C1 | I88: 1 | J88: Conventional Boiler | K88: Wall firing - opposed firing | L88: 610 | M88: 6502 | N88: 10.65901639 | O88: bituminous | P88: bituminous | Q88: 0.0689729476 | R88: 0.009966120498 | AC88: 2.066666667e-05 | AD88: 0.0002202863388 | AG88: 2.066666667e-05 | AH88: 0.0002202863388 | AI88: 0.0002437461049 | AJ88: 0.002598093728 | AO88: 0.0002437461049 | AP88: 0.002598093728 | AQ88: 0.0001218581074 | AR88: 0.001298887564 | AW88: 0.0001218581074 | AX88: 0.001298887564 | BI88: NOx control | BJ88: Selective Catalytic Reduction | BK88: 2003-06-01 | BL88: PM control | BM88: Electrostatic precipitator, cold side, w/o flue gas conditioning | BN88: 1995-05-01 | BO88: SO2 control | BP88: Wet FGD - Spray Type | BQ88: 1995-05-01
A89: 2727_Unit 1 | B89: coal | C89: 88 | E89: 2727 | F89: Marshall | G89: NC | H89: U12007 | I89: Unit 1 | J89: Conventional Boiler | K89: Tangential firing | L89: 400 | M89: 3658.2 | N89: 9.1455 | O89: bituminous | P89: bituminous | Q89: 0.073401059 | R89: 0.007039136686 | U89: 0.0001766666667 | V89: 0.001615705 | Y89: 0.0001766666667 | Z89: 0.001615705 | AC89: 5.393333333e-05 | AD89: 0.0004932473 | AG89: 5.393333333e-05 | AH89: 0.0004932473 | AI89: 0.0002859039169 | AJ89: 0.002614734272 | AO89: 0.0002859039169 | AP89: 0.002614734272 | AQ89: 0.0001750812419 | AR89: 0.001601205498 | AW89: 0.0001750812419 | AX89: 0.001601205498 | BA89: 0.08292352522 | BB89: 0.7583770999 | BG89: 0.08292352522 | BH89: 0.7583770999 | BI89: NOx control | BJ89: Selective Noncatalytic Reduction | BK89: 2006-04-01 | BL89: PM control | BM89: Electrostatic precipitator, cold side, w/ flue gas conditioning | BN89: 1998-12-01 | BO89: SO2 control | BP89: Wet FGD - Spray Type | BQ89: 2007-05-01
A90: 2727_Unit 2 | B90: coal | C90: 89 | E90: 2727 | F90: Marshall | G90: NC | H90: U22007 | I90: Unit 2 | J90: Conventional Boiler | K90: Tangential firing | L90: 400 | M90: 3663.2 | N90: 9.158 | O90: bituminous | P90: bituminous | Q90: 0.073401059 | R90: 0.007039136686 | U90: 0.0001766666667 | V90: 0.001617913333 | Y90: 0.0001766666667 | Z90: 0.001617913333 | AC90: 5.393333333e-05 | AD90: 0.0004939214667 | AG90: 5.393333333e-05 | AH90: 0.0004939214667 | AI90: 0.0002859039169 | AJ90: 0.002618308071 | AO90: 0.0002859039169 | AP90: 0.002618308071 | AQ90: 0.0001750812419 | AR90: 0.001603394013 | AW90: 0.0001750812419 | AX90: 0.001603394013 | BA90: 0.08292352522 | BB90: 0.759413644 | BG90: 0.08292352522 | BH90: 0.759413644 | BI90: NOx control | BJ90: Selective Noncatalytic Reduction | BK90: 2007-05-01 | BL90: PM control | BM90: Electrostatic precipitator, cold side, w/ flue gas conditioning | BN90: 2002-01-01 | BO90: SO2 control | BP90: Wet FGD - Spray Type | BQ90: 2007-05-01
A91: 628_5 | B91: coal | C91: 90 | E91: 628 | F91: Crystal River Power Plant | G91: FL | H91: CryR_Cfg_5c | I91: 5 | J91: Conventional Boiler | K91: Wall firing - opposed firing | L91: 767 | M91: 7423 | N91: 9.677966102 | O91: bituminous | P91: bituminous | Q91: 0.07142163137 | R91: 0.004341985398 | AC91: 3.76e-05 | AD91: 0.0003638915254 | AG91: 3.76e-05 | AH91: 0.0003638915254 | AI91: 0.0002738438569 | AJ91: 0.002650251564 | AO91: 0.0002738438569 | AP91: 0.002650251564 | AQ91: 0.0002560579089 | AR91: 0.002478119762 | AW91: 0.0002560579089 | AX91: 0.002478119762 | BA91: 0.06522419233 | BB91: 0.6312375224 | BG91: 0.06522419233 | BH91: 0.6312375224 | BI91: NOx control | BJ91: Selective Catalytic Reduction | BK91: 2009-05-15 | BL91: PM control | BM91: Electrostatic precipitator, cold side, w/o flue gas conditioning | BN91: 1984-01-01 | BO91: SO2 control | BP91: Wet FGD - Spray/Tray Type | BQ91: 2009-11-30
A92: 469_1 | B92: coal | C92: 91 | E92: 469 | F92: Cherokee | G92: CO | H92: Unit 1 | I92: 1 | J92: Conventional Boiler | K92: Vertical firing | L92: 117 | M92: 1392 | N92: 11.8974359 | O92: bituminous | P92: bituminous | Q92: 0.0008290894125 | R92: 0.007023453539 | AC92: 3.103333333e-05 | AD92: 0.000369217094 | AG92: 3.103333333e-05 | AH92: 0.000369217094 | AI92: 0.0002253718662 | AJ92: 0.002681347331 | AO92: 0.0002253718662 | AP92: 0.002681347331 | AQ92: 0.0006393198046 | AR92: 0.007606266393 | AW92: 0.0006393198046 | AX92: 0.007606266393 | AY92: 0.5159615385 | AZ92: 6.138619329 | BC92: 0.48371149 | BD92: 5.754926445 | BG92: 0.48371149 | BH92: 5.754926445 | BI92: SO2 control | BJ92: Dry FGD - Sorbent Injection | BK92: 1998-02-01 | BL92: PM control | BM92: Fabric Filter, reverse air | BN92: 1989-09-01
A93: 2103_2 | B93: coal | C93: 92 | E93: 2103 | F93: Labadie | G93: MO | H93: 002 | I93: 2 | J93: Conventional Boiler | K93: Tangential firing | L93: 623 | M93: 6183 | N93: 9.924558587 | P93: Bituminous, Subbituminous | AM93: 0.0002730275 | AN93: 0.002709677419 | AO93: 0.0002730275 | AP93: 0.002709677419 | AU93: 0.0007540759523 | AV93: 0.007483870968 | AW93: 0.0007540759523 | AX93: 0.007483870968 | BI93: Other control | BJ93: Other (specify): FGC SO3 Injection | BK93: 1992-11-01 | BL93: PM control | BM93: Electrostatic precipitator, cold side, w/ flue gas conditioning | BN93: 1982-12-01
A94: 1382_H1 | B94: coal | C94: 93 | E94: 1382 | F94: HMP&L Station Two Henderson | G94: KY | H94: 1 | I94: H1 | J94: Conventional Boiler | K94: Wall firing - rear firing | L94: 166.1 | M94: 1799 | N94: 10.8308248 | O94: bituminous | P94: bituminous | Q94: 0.102660245 | R94: 0.007343237257 | AC94: 2.203333333e-05 | AD94: 0.0002386391732 | AG94: 2.203333333e-05 | AH94: 0.0002386391732 | AI94: 0.0002519679532 | AJ94: 0.002729020758 | AO94: 0.0002519679532 | AP94: 0.002729020758 | AQ94: 0.000267701796 | AR94: 0.002899431253 | AW94: 0.000267701796 | AX94: 0.002899431253 | AY94: 0.1753666667 | AZ94: 1.899365643 | BG94: 0.1753666667 | BH94: 1.899365643 | BI94: NOx control | BJ94: Selective Catalytic Reduction | BK94: 2003-10-01 | BL94: PM control | BM94: Electrostatic precipitator, cold side, w/o flue gas conditioning | BN94: 1973-06-01 | BO94: SO2 control | BP94: Wet FGD - Tray Type | BQ94: 1995-06-01
A95: 2706_1 | B95: coal | C95: 94 | E95: 2706 | F95: Asheville Steam Electric Plant | G95: NC | H95: Ash_Cfg_1d | I95: 1 | J95: Conventional Boiler | K95: Wall firing - front firing | L95: 207 | M95: 1914 | N95: 9.246376812 | O95: bituminous | P95: bituminous | Q95: 0.05823385631 | W95: 1.236666667e-05 | X95: 0.0001143468599 | Y95: 1.236666667e-05 | Z95: 0.0001143468599 | AC95: 0.000321 | AD95: 0.002968086957 | AG95: 0.000321 | AH95: 0.002968086957 | AI95: 0.006135606748 | AJ95: 0.05673213196 | AM95: 0.0002953333333 | AN95: 0.002730763285 | AO95: 0.0002953333333 | AP95: 0.002730763285 | AQ95: 6.257748609e-05 | AR95: 0.0005786150163 | AU95: 5.01e-05 | AV95: 0.0004632434783 | AW95: 5.01e-05 | AX95: 0.0004632434783 | BA95: 0.05166085529 | BB95: 0.4776757344 | BE95: 0.038 | BF95: 0.3513623188 | BG95: 0.038 | BH95: 0.3513623188 | BI95: NOx control | BJ95: Selective Catalytic Reduction | BK95: 2007-06-14 | BL95: PM control | BM95: Electrostatic precipitator, cold side, w/o flue gas conditioning | BN95: 2005-11-17 | BO95: SO2 control | BP95: Wet FGD - Spray/Tray Type | BQ95: 2005-11-17
A96: 3149_1 | B96: coal | C96: 95 | E96: 3149 | F96: PPL Montour | G96: PA | H96: U1 | I96: 1 | J96: Conventional Boiler | K96: Tangential firing | L96: 797 | M96: 7239 | N96: 9.08281054 | O96: bituminous | P96: bituminous | Q96: 0.0701318613 | AC96: 7.916666667e-05 | AD96: 0.0007190558344 | AG96: 7.916666667e-05 | AH96: 0.0007190558344 | AI96: 0.0003015022447 | AJ96: 0.002738487766 | AO96: 0.0003015022447 | AP96: 0.002738487766 | AQ96: 0.0003015022447 | AR96: 0.002738487766 | AW96: 0.0003015022447 | AX96: 0.002738487766 | BA96: 0.4580445383 | BB96: 4.16033176 | BG96: 0.4580445383 | BH96: 4.16033176 | BI96: PM control | BJ96: Electrostatic precipitator, cold side, w/o flue gas conditioning | BK96: 2001-05-01 | BL96: NOx control | BM96: Selective Catalytic Reduction | BN96: 2001-05-01 | BO96: SO2 control | BP96: Wet FGD - Tray Type | BQ96: 2008-05-01
A97: 3118_1 | B97: coal | C97: 96 | E97: 3118 | F97: Conemaugh | G97: PA | H97: CON-1 | I97: 1 | J97: Conventional Boiler | K97: Tangential firing | L97: 936 | M97: 8985 | N97: 9.599358974 | O97: bituminous | P97: bituminous | Q97: 0.05523756904 | R97: 0.004615843358 | AC97: 3.353333333e-06 | AD97: 3.218985043e-05 | AG97: 3.353333333e-06 | AH97: 3.218985043e-05 | AI97: 0.0002880136814 | AJ97: 0.002764746717 | AM97: 0.00033 | AN97: 0.003167788462 | AO97: 0.0002880136814 | AP97: 0.002764746717 | AQ97: 9.451008256e-05 | AR97: 0.0009072362092 | AU97: 0.00017 | AV97: 0.001631891026 | AW97: 9.451008256e-05 | AX97: 0.0009072362092 | BA97: 0.1391725837 | BB97: 1.335967591 | BG97: 0.1391725837 | BH97: 1.335967591 | BI97: PM control | BJ97: Electrostatic precipitator, cold side, w/ flue gas conditioning | BK97: 1970-05-01 | BL97: SO2 control | BM97: Wet FGD - Spray Type | BN97: 1995-01-01
A98: 6096_NC2 | B98: coal | C98: 97 | E98: 6096 | F98: Nebraska City | G98: NE | H98: NC2 | I98: NC2 | J98: Conventional Boiler | K98: Wall firing - front firing | L98: 682 | M98: 6920.254 | N98: 10.147 | O98: bituminous | P98: bituminous | R98: 0.003623814347 | AC98: 0.0008075 | AD98: 0.0081937025 | AG98: 0.0008075 | AH98: 0.0081937025 | AI98: 0.0002763990698 | AJ98: 0.002804621361 | AO98: 0.0002763990698 | AP98: 0.002804621361 | AQ98: 0.0001520714887 | AR98: 0.001543069396 | AW98: 0.0001520714887 | AX98: 0.001543069396 | AY98: 0.09236666667 | AZ98: 0.9372445667 | BG98: 0.09236666667 | BH98: 0.9372445667 | BI98: NOx control | BJ98: Selective Catalytic Reduction | BK98: 2009-05-01 | BL98: Other control | BM98: Activated carbon injection | BN98: 2009-05-01 | BO98: SO2 control | BP98: Dry FGD - Spray Dryer | BQ98: 2009-05-01 | BR98: PM control | BS98: Fabric Filter, pulse | BT98: 2009-05-01
A99: 2727_Unit 3 | B99: coal | C99: 98 | E99: 2727 | F99: Marshall | G99: NC | H99: U3 | I99: Unit 3 | J99: Conventional Boiler | K99: Tangential firing | L99: 700 | M99: 6103.1 | N99: 8.718714286 | O99: bituminous | P99: bituminous | Q99: 0.09539892359 | R99: 0.006579789032 | U99: 0.0001666666667 | V99: 0.001453119048 | Y99: 0.0001666666667 | Z99: 0.001453119048 | AC99: 2.386666667e-05 | AD99: 0.0002080866476 | AG99: 2.386666667e-05 | AH99: 0.0002080866476 | AI99: 0.0003263503585 | AJ99: 0.002845355533 | AO99: 0.0003263503585 | AP99: 0.002845355533 | AQ99: 0.0001720613553 | AR99: 0.001500153796 | AW99: 0.0001720613553 | AX99: 0.001500153796 | BA99: 0.1303742153 | BB99: 1.136695534 | BG99: 0.1303742153 | BH99: 1.136695534 | BI99: NOx control | BJ99: Selective Catalytic Reduction | BK99: 2008-12-01 | BL99: PM control | BM99: Electrostatic precipitator, cold side, w/ flue gas conditioning | BN99: 2006-12-01 | BO99: SO2 control | BP99: Wet FGD - Spray Type | BQ99: 2007-03-01
A100: 6052_1 | B100: coal | C100: 99 | E100: 6052 | F100: Wansley | G100: GA | H100: Unit 1 | I100: 1 | J100: Conventional Boiler | K100: Tangential firing | L100: 920 | M100: 8445.789 | N100: 9.180205435 | O100: bituminous | P100: bituminous | Q100: 0.1054108888 | R100: 0.006197090425 | AC100: 0.0003276666667 | AD100: 0.003008047314 | AG100: 0.0003276666667 | AH100: 0.003008047314 | AI100: 0.0003107373699 | AJ100: 0.002852632892 | AO100: 0.0003107373699 | AP100: 0.002852632892 | AQ100: 9.180994888e-05 | AR100: 0.0008428341917 | AW100: 9.180994888e-05 | AX100: 0.0008428341917 | BI100: NOx control | BJ100: Selective Catalytic Reduction | BK100: 2003-05-01 | BL100: PM control | BM100: Electrostatic precipitator, cold side, w/ flue gas conditioning | BN100: 1976-12-01 | BO100: SO2 control | BP100: Wet FGD - Spray Type | BQ100: 2008-12-01
A101: 8223_3 | B101: coal | C101: 100 | E101: 8223 | F101: Springerville | G101: AZ | H101: 3 | I101: 3 | J101: Conventional Boiler | K101: Wall firing - opposed firing | L101: 450 | M101: 4200 | N101: 9.333333333 | O101: subbituminous | P101: subbituminous | Q101: 0.0009946169459 | R101: 0.005220185915 | AC101: 0.001127666667 | AD101: 0.01052488889 | AG101: 0.001127666667 | AH101: 0.01052488889 | AK101: 0.000305976 | AL101: 0.002855776 | AO101: 0.000305976 | AP101: 0.002855776 | AS101: 0.0002073333333 | AT101: 0.001935111111 | AU101: 6.4e-05 | AV101: 0.0005973333333 | AW101: 6.4e-05 | AX101: 0.0005973333333 | AY101: 0.07436666667 | AZ101: 0.6940888889 | BE101: 0.099 | BF101: 0.924 | BG101: 0.07436666667 | BH101: 0.6940888889 | BI101: NOx control | BJ101: Selective Catalytic Reduction | BK101: 2006-08-01 | BL101: SO2 control | BM101: Dry FGD - Spray Dryer | BN101: 2006-08-01 | BO101: PM control | BP101: Fabric Filter, pulse | BQ101: 2006-08-01
A102: 3935_3 | B102: coal | C102: 101 | E102: 3935 | F102: John E. Amos | G102: WV | H102: AM-3 | I102: 3 | J102: Conventional Boiler | K102: Wall firing - opposed firing | L102: 1300 | M102: 11936 | N102: 9.181538462 | O102: bituminous | P102: bituminous | Q102: 0.06456462699 | R102: 0.005885456344 | AC102: 0.000234 | AD102: 0.00214848 | AG102: 0.000234 | AH102: 0.00214848 | AI102: 0.000312619175 | AJ102: 0.002870324979 | AO102: 0.000312619175 | AP102: 0.002870324979 | AQ102: 7.792612042e-05 | AR102: 0.0007154816718 | AW102: 7.792612042e-05 | AX102: 0.0007154816718 | AY102: 0.05214285714 | AZ102: 0.4787516484 | BG102: 0.05214285714 | BH102: 0.4787516484 | BI102: NOx control | BJ102: Selective Catalytic Reduction | BK102: 2001-05-01 | BL102: PM control | BM102: Electrostatic precipitator, cold side, w/o flue gas conditioning | BN102: 1973-10-01 | BO102: SO2 control | BP102: Wet FGD - Spray Type | BQ102: 2009-02-01
A103: 3954_3 | B103: coal | C103: 102 | E103: 3954 | F103: Mt. Storm | G103: WV | H103: Unit 3 | I103: 3 | J103: Conventional Boiler | K103: Tangential firing | L103: 559.8 | M103: 5923 | N103: 10.58056449 | O103: bituminous | P103: bituminous | Q103: 0.04447767145 | R103: 0.004664748994 | AC103: 0.0004813333333 | AD103: 0.005092778373 | AG103: 0.0004813333333 | AH103: 0.005092778373 | AI103: 0.0002848769996 | AJ103: 0.003014159466 | AO103: 0.0002848769996 | AP103: 0.003014159466 | AQ103: 0.000878281693 | AR103: 0.009292716091 | AW103: 0.000878281693 | AX103: 0.009292716091 | AY103: 0.09826666667 | AZ103: 1.039716804 | BG103: 0.09826666667 | BH103: 1.039716804 | BI103: NOx control | BJ103: Selective Catalytic Reduction | BK103: 2004-05-01 | BL103: PM control | BM103: Electrostatic precipitator, cold side, w/o flue gas conditioning | BN103: 1973-12-01 | BO103: SO2 control | BP103: Wet FGD - Spray Type | BQ103: 1995-01-01
A104: 3118_2 | B104: coal | C104: 103 | E104: 3118 | F104: Conemaugh | G104: PA | H104: CON-2 | I104: 2 | J104: Conventional Boiler | K104: Tangential firing | L104: 936 | M104: 8985 | N104: 9.599358974 | O104: bituminous | P104: bituminous | Q104: 0.04991102272 | R104: 0.004854154774 | AC104: 3.093333333e-06 | AD104: 2.969401709e-05 | AG104: 3.093333333e-06 | AH104: 2.969401709e-05 | AI104: 0.0003326608664 | AJ104: 0.003193331074 | AM104: 0.0004666666667 | AN104: 0.004479700855 | AO104: 0.0003326608664 | AP104: 0.003193331074 | AQ104: 8.913027503e-05 | AR104: 0.0008555935055 | AU104: 0.0004666666667 | AV104: 0.004479700855 | AW104: 8.913027503e-05 | AX104: 0.0008555935055 | BA104: 0.1345775387 | BB104: 1.291858104 | BG104: 0.1345775387 | BH104: 1.291858104 | BI104: PM control | BJ104: Electrostatic precipitator, cold side, w/ flue gas conditioning | BK104: 1971-05-01 | BL104: SO2 control | BM104: Wet FGD - Spray Type | BN104: 1995-11-01
A105: 2535_1 | B105: coal | C105: 104 | E105: 2535 | F105: AES Cayuga, LLC | G105: NY | H105: Unit_1 | I105: 1 | J105: Conventional Boiler | K105: Tangential firing | L105: 164 | M105: 1462 | N105: 8.914634146 | O105: bituminous | P105: bituminous | Q105: 0.04599041548 | R105: 0.003465392815 | AI105: 0.0003590074053 | AJ105: 0.003200419674 | AO105: 0.0003590074053 | AP105: 0.003200419674 | AQ105: 0.0001062651236 | AR105: 0.0009473146994 | AW105: 0.0001062651236 | AX105: 0.0009473146994 | AY105: 0.4585666667 | AZ105: 4.087954065 | BG105: 0.4585666667 | BH105: 4.087954065 | BI105: NOx control | BJ105: Selective Catalytic Reduction | BL105: PM control | BM105: Electrostatic precipitator, cold side, w/o flue gas conditioning | BO105: SO2 control | BP105: Wet FGD - Spray Type | BQ105: 1995-06-01
A106: 3149_2 | B106: coal | C106: 105 | E106: 3149 | F106: PPL Montour | G106: PA | H106: U2 | I106: 2 | J106: Conventional Boiler | K106: Tangential firing | L106: 792 | M106: 7239 | N106: 9.140151515 | O106: bituminous | P106: bituminous | Q106: 0.0814003396 | AC106: 7.64e-05 | AD106: 0.0006983075758 | AG106: 7.64e-05 | AH106: 0.0006983075758 | AI106: 0.0003565421576 | AJ106: 0.003258849342 | AO106: 0.0003565421576 | AP106: 0.003258849342 | AQ106: 0.0003565421576 | AR106: 0.003258849342 | AW106: 0.0003565421576 | AX106: 0.003258849342 | BA106: 0.2772170638 | BB106: 2.533805965 | BG106: 0.2772170638 | BH106: 2.533805965 | BI106: PM control | BJ106: Electrostatic precipitator, cold side, w/o flue gas conditioning | BK106: 2000-05-01 | BL106: NOx control | BM106: Selective Catalytic Reduction | BN106: 2000-05-01 | BO106: SO2 control | BP106: Wet FGD - Tray Type | BQ106: 2008-03-01
A107: 1382_H2 | B107: coal | C107: 106 | E107: 1382 | F107: HMP&L Station Two Henderson | G107: KY | H107: 2 | I107: H2 | J107: Conventional Boiler | K107: Wall firing - rear firing | L107: 173.1 | M107: 1866.2 | N107: 10.78105142 | O107: bituminous | P107: bituminous | Q107: 0.1404062574 | R107: 0.006978849981 | AC107: 2.03e-05 | AD107: 0.0002188553437 | AG107: 2.03e-05 | AH107: 0.0002188553437 | AI107: 0.00030516085 | AJ107: 0.003289954814 | AO107: 0.00030516085 | AP107: 0.003289954814 | AQ107: 0.0001949509069 | AR107: 0.002101775751 | AW107: 0.0001949509069 | AX107: 0.002101775751 | AY107: 0.2149 | AZ107: 2.316847949 | BG107: 0.2149 | BH107: 2.316847949 | BI107: NOx control | BJ107: Selective Catalytic Reduction | BK107: 2004-04-01 | BL107: PM control | BM107: Electrostatic precipitator, cold side, w/o flue gas conditioning | BN107: 1974-04-01 | BO107: SO2 control | BP107: Wet FGD - Tray Type | BQ107: 1995-06-01
A108: 2080_2 | B108: coal | C108: 107 | E108: 2080 | F108: Montrose | G108: MO | H108: 2 | I108: 2 | J108: Conventional Boiler | K108: Tangential firing | L108: 188 | M108: 2130 | N108: 11.32978723 | O108: coal - subbituminous | P108: subbituminous | AM108: 0.0003 | AN108: 0.00339893617 | AO108: 0.0003 | AP108: 0.00339893617 | AU108: 0.0002 | AV108: 0.002265957447 | AW108: 0.0002 | AX108: 0.002265957447 | BI108: Other control | BJ108: Other (specify): SO3 injection for Opacity control. | BK108: 1993-05-01 | BL108: PM control | BM108: Electrostatic precipitator, cold side, w/o flue gas conditioning | BN108: 1960-03-01
A109: 2080_1 | B109: coal | C109: 108 | E109: 2080 | F109: Montrose | G109: MO | H109: 1 | I109: 1 | J109: Conventional Boiler | K109: Tangential firing | L109: 188 | M109: 2140 | N109: 11.38297872 | O109: coal - subbituminous | P109: subbituminous | AM109: 0.0003 | AN109: 0.003414893617 | AO109: 0.0003 | AP109: 0.003414893617 | AU109: 0.0004 | AV109: 0.004553191489 | AW109: 0.0004 | AX109: 0.004553191489 | BI109: Other control | BJ109: Other (specify): SO3 injection for Opacity control. | BK109: 1993-05-01 | BL109: PM control | BM109: Electrostatic precipitator, cold side, w/o flue gas conditioning | BN109: 1958-06-01
A110: 465_3 | B110: coal | C110: 109 | E110: 465 | F110: Arapahoe | G110: CO | H110: Unit 3 | I110: 3 | J110: Conventional Boiler | K110: Vertical firing | L110: 48 | M110: 754.8 | N110: 15.725 | O110: subbituminous | P110: subbituminous | Q110: 0.001186093082 | R110: 0.005821390665 | AC110: 3.573333333e-06 | AD110: 5.619066667e-05 | AG110: 3.573333333e-06 | AH110: 5.619066667e-05 | AI110: 0.0002175316142 | AJ110: 0.003420684634 | AO110: 0.0002175316142 | AP110: 0.003420684634 | AQ110: 0.0005486780051 | AR110: 0.008627961631 | AW110: 0.0005486780051 | AX110: 0.008627961631 | AY110: 0.5006818182 | AZ110: 7.873221591 | BC110: 0.4134101891 | BD110: 6.500875224 | BG110: 0.4134101891 | BH110: 6.500875224 | BI110: SO2 control | BJ110: Dry FGD - Sorbent Injection | BK110: 2002-12-01 | BL110: PM control | BM110: Fabric Filter, reverse air | BN110: 1979-06-01
A111: 3399_1 | B111: coal | C111: 110 | E111: 3399 | F111: Cumberland | G111: TN | H111: 1 | I111: 1 | J111: Conventional Boiler | K111: Wall firing - opposed firing | L111: 1300 | M111: 14130 | N111: 10.86923077 | O111: bituminous | P111: bituminous | Q111: 0.1467916955 | R111: 0.006202943554 | AC111: 7.366666667e-05 | AD111: 0.0008007 | AG111: 7.366666667e-05 | AH111: 0.0008007 | AI111: 0.0003166649095 | AJ111: 0.003441903978 | AO111: 0.0003166649095 | AP111: 0.003441903978 | AQ111: 0.0001436228853 | AR111: 0.001561070284 | AW111: 0.0001436228853 | AX111: 0.001561070284 | BA111: 0.1326785566 | BB111: 1.442113849 | BG111: 0.1326785566 | BH111: 1.442113849 | BI111: NOx control | BJ111: Selective Catalytic Reduction | BK111: 2003-05-01 | BL111: Other control | BM111: Other (specify): Hydrated Lime for Opacity | BN111: 2006-11-01 | BO111: PM control | BP111: Electrostatic precipitator, cold side, w/o flue gas conditioning | BQ111: 1982-06-01 | BR111: SO2 control | BS111: Wet FGD - Spray Type | BT111: 1995-01-01
A112: 469_3 | B112: coal | C112: 111 | E112: 469 | F112: Cherokee | G112: CO | H112: Unit 3 | I112: 3 | J112: Conventional Boiler | K112: Wall firing - front firing | L112: 165 | M112: 1877 | N112: 11.37575758 | O112: bituminous | P112: bituminous | Q112: 0.0008961626153 | R112: 0.008462334167 | AC112: 1.906666667e-05 | AD112: 0.0002168977778 | AG112: 1.906666667e-05 | AH112: 0.0002168977778 | AI112: 0.0003054049201 | AJ112: 0.003474212334 | AO112: 0.0003054049201 | AP112: 0.003474212334 | AQ112: 0.0001482681501 | AR112: 0.001686662531 | AW112: 0.0001482681501 | AX112: 0.001686662531 | AY112: 0.1291 | AZ112: 1.468610303 | BC112: 0.1109695912 | BD112: 1.262363167 | BG112: 0.1109695912 | BH112: 1.262363167 | BI112: SO2 control | BJ112: Dry FGD - Spray Dryer | BK112: 2002-06-01 | BL112: PM control | BM112: Fabric Filter, reverse air | BN112: 1988-02-01
A113: 55076_AA-002 | B113: coal | C113: 112 | E113: 55076 | F113: Red Hills Generating Facility | G113: MS | H113: 002 | I113: AA-002 | J113: Fluidized bed firing | K113: Fluidized bed firing | L113: 250 | M113: 2382.3 | N113: 9.5292 | O113: lignite | P113: lignite | Q113: 0.03382290485 | R113: 0.005043653385 | AC113: 1.314291934e-05 | AD113: 0.0001252415069 | AG113: 1.314291934e-05 | AH113: 0.0001252415069 | AK113: 0.0003667543586 | AL113: 0.003494875634 | AM113: 0.0003866666667 | AN113: 0.003684624 | AO113: 0.0003667543586 | AP113: 0.003494875634 | AS113: 8.797470662e-06 | AT113: 8.383285743e-05 | AU113: 0.00015 | AV113: 0.00142938 | AW113: 8.797470662e-06 | AX113: 8.383285743e-05 | BA113: 0.124964237 | BB113: 1.190809208 | BG113: 0.124964237 | BH113: 1.190809208 | BI113: PM control | BJ113: Fabric Filter, unspecified | BK113: 2002-05-01
A114: 55076_AA-001 | B114: coal | C114: 113 | E114: 55076 | F114: Red Hills Generating Facility | G114: MS | H114: 001 | I114: AA-001 | J114: Fluidized bed firing | K114: Fluidized bed firing | L114: 250 | M114: 2401 | N114: 9.604 | O114: lignite | P114: lignite | Q114: 0.03382290485 | R114: 0.005043653385 | AC114: 1.314291934e-05 | AD114: 0.0001262245973 | AG114: 1.314291934e-05 | AH114: 0.0001262245973 | AK114: 0.0003667543586 | AL114: 0.00352230886 | AM114: 0.0003866666667 | AN114: 0.003713546667 | AO114: 0.0003667543586 | AP114: 0.00352230886 | AS114: 8.797470662e-06 | AT114: 8.449090824e-05 | AU114: 0.00015 | AV114: 0.0014406 | AW114: 8.797470662e-06 | AX114: 8.449090824e-05 | BA114: 0.124964237 | BB114: 1.200156533 | BG114: 0.124964237 | BH114: 1.200156533 | BI114: PM control | BJ114: Fabric Filter, unspecified | BK114: 2002-05-01
A115: 2080_3 | B115: coal | C115: 114 | E115: 2080 | F115: Montrose | G115: MO | H115: 3 | I115: 3 | J115: Conventional Boiler | K115: Tangential firing | L115: 188 | M115: 2250 | N115: 11.96808511 | O115: coal - subbituminous | P115: subbituminous | AM115: 0.0003 | AN115: 0.003590425532 | AO115: 0.0003 | AP115: 0.003590425532 | AU115: 0.0002 | AV115: 0.002393617021 | AW115: 0.0002 | AX115: 0.002393617021 | BI115: Other control | BJ115: Other (specify): SO3 injection for opacity control. | BK115: 1993-05-01 | BL115: PM control | BM115: Electrostatic precipitator, cold side, w/o flue gas conditioning | BN115: 1964-03-01
A116: 3399_2 | B116: coal | C116: 115 | E116: 3399 | F116: Cumberland | G116: TN | H116: 2 | I116: 2 | J116: Conventional Boiler | K116: Wall firing - opposed firing | L116: 1300 | M116: 14130 | N116: 10.86923077 | O116: bituminous | P116: bituminous | Q116: 0.1538951777 | R116: 0.007621047833 | AC116: 6.866666667e-05 | AD116: 0.0007463538462 | AG116: 6.866666667e-05 | AH116: 0.0007463538462 | AI116: 0.0003347070961 | AJ116: 0.003638008668 | AO116: 0.0003347070961 | AP116: 0.003638008668 | AQ116: 0.0001382299956 | AR116: 0.001502453721 | AW116: 0.0001382299956 | AX116: 0.001502453721 | BA116: 0.2086599878 | BB116: 2.26797356 | BG116: 0.2086599878 | BH116: 2.26797356 | BI116: NOx control | BJ116: Selective Catalytic Reduction | BK116: 2004-05-01 | BL116: Other control | BM116: Other (specify): Hydrated Lime for opacity | BN116: 2006-11-01 | BO116: PM control | BP116: Electrostatic precipitator, cold side, w/o flue gas conditioning | BQ116: 1982-06-01 | BR116: SO2 control | BS116: Wet FGD - Spray Type | BT116: 1995-01-01
A117: 3122_3 | B117: coal | C117: 116 | E117: 3122 | F117: Homer City Station | G117: PA | H117: HC3CONFIG | I117: 3 | J117: Conventional Boiler | K117: Wall firing - opposed firing | L117: 680 | M117: 6175 | N117: 9.080882353 | O117: bituminous | P117: bituminous | Q117: 0.1184458803 | R117: 0.005793605254 | AC117: 5.663333333e-05 | AD117: 0.0005142806373 | AG117: 5.663333333e-05 | AH117: 0.0005142806373 | AI117: 0.0004060827459 | AJ117: 0.003687589641 | AO117: 0.0004060827459 | AP117: 0.003687589641 | AQ117: 0.0003333252279 | AR117: 0.003026887179 | AW117: 0.0003333252279 | AX117: 0.003026887179 | AY117: 0.2258333333 | AZ117: 2.050765931 | BG117: 0.2258333333 | BH117: 2.050765931 | BI117: NOx control | BJ117: Selective Catalytic Reduction | BK117: 2001-06-01 | BL117: PM control | BM117: Electrostatic precipitator, cold side, w/ flue gas conditioning | BN117: 1977-12-01 | BO117: SO2 control | BP117: Wet FGD - Spray Type | BQ117: 2001-09-01
A118: 3140_2 | B118: coal | C118: 117 | E118: 3140 | F118: PPL Brunner Island | G118: PA | H118: U2 | I118: 2 | J118: Conventional Boiler | K118: Tangential firing | L118: 393 | M118: 3790 | N118: 9.643765903 | O118: bituminous | P118: bituminous | Q118: 0.07710763918 | AC118: 6.916666667e-05 | AD118: 0.0006670271416 | AG118: 6.916666667e-05 | AH118: 0.0006670271416 | AI118: 0.0003981377815 | AJ118: 0.003839547562 | AO118: 0.0003981377815 | AP118: 0.003839547562 | AQ118: 0.0004075352476 | AR118: 0.003930174525 | AW118: 0.0004075352476 | AX118: 0.003930174525 | BA118: 0.4027711528 | BB118: 3.88423071 | BG118: 0.4027711528 | BH118: 3.88423071 | BI118: PM control | BJ118: Electrostatic precipitator, cold side, w/o flue gas conditioning | BK118: 2009-10-01 | BL118: SO2 control | BM118: Wet FGD - Tray Type | BN118: 2009-11-01
A119: 1295_1 | B119: coal | C119: 118 | E119: 1295 | F119: Quindaro | G119: KS | H119: Unit 1 | I119: 1 | J119: Conventional Boiler | K119: Cyclone firing | L119: 77 | M119: 782 | N119: 10.15584416 | O119: coal - subbituminous | P119: subbituminous | W119: 8e-05 | X119: 0.0008124675325 | Y119: 8e-05 | Z119: 0.0008124675325 | AM119: 0.00038 | AN119: 0.003859220779 | AO119: 0.00038 | AP119: 0.003859220779 | AU119: 0.0005666666667 | AV119: 0.005754978355 | AW119: 0.0005666666667 | AX119: 0.005754978355 | BI119: PM control | BJ119: Electrostatic precipitator, cold side, w/o flue gas conditioning | BK119: 1991-11-01
A120: 2378_2 | B120: coal | C120: 119 | E120: 2378 | F120: BL England | G120: NJ | H120: 2 Coal w or w/o TDF | I120: 2 | J120: Conventional Boiler | K120: Cyclone firing | L120: 167.3 | M120: 1600 | N120: 9.563658099 | O120: bituminous | P120: bituminous | Q120: 0.0671824959 | S120: 0.0003570341462 | T120: 0.003414552504 | Y120: 0.0003570341462 | Z120: 0.003414552504 | AC120: 0.00095 | AD120: 0.009085475194 | AG120: 0.00095 | AH120: 0.009085475194 | AI120: 0.001011596748 | AJ120: 0.009674565428 | AK120: 0.001 | AL120: 0.009563658099 | AM120: 0.0004049490093 | AN120: 0.003872793873 | AO120: 0.0004049490093 | AP120: 0.003872793873 | AQ120: 5.950569103e-05 | AR120: 0.000569092084 | AS120: 0.0001 | AT120: 0.0009563658099 | AU120: 0.0001847166375 | AV120: 0.001766566767 | AW120: 5.950569103e-05 | AX120: 0.000569092084 | BE120: 0.3099322446 | BF120: 2.964086022 | BG120: 0.3099322446 | BH120: 2.964086022 | BI120: NOx control | BJ120: Selective Noncatalytic Reduction | BK120: 1998-06-01 | BL120: Other control | BM120: Activated carbon injection | BN120: 2007-12-01 | BO120: PM control | BP120: Electrostatic precipitator, cold side, w/o flue gas conditioning | BQ120: 1979-01-01 | BR120: SO2 control | BS120: Wet FGD - Spray Type | BT120: 1994-11-01
A121: 6064_N1 | B121: coal | C121: 120 | E121: 6064 | F121: Nearman Creek | G121: KS | H121: N1 | I121: N1 | J121: Conventional Boiler | K121: Wall firing - front firing | L121: 257.4 | M121: 2433 | N121: 9.452214452 | P121: Subbituminous | W121: 3e-05 | X121: 0.0002835664336 | Y121: 3e-05 | Z121: 0.0002835664336 | AM121: 0.00041 | AN121: 0.003875407925 | AO121: 0.00041 | AP121: 0.003875407925 | AU121: 0.0001466666667 | AV121: 0.001386324786 | AW121: 0.0001466666667 | AX121: 0.001386324786 | BI121: PM control | BJ121: Electrostatic precipitator, cold side, w/ flue gas conditioning | BK121: 1988-01-01
A122: 7213_2 | B122: coal | C122: 121 | E122: 7213 | F122: Clover | G122: VA | H122: Unit 2 | I122: 2 | J122: Conventional Boiler | K122: Tangential firing | L122: 434 | M122: 5041 | N122: 11.61520737 | O122: bituminous | P122: bituminous | Q122: 0.07371209609 | R122: 0.00428851031 | AC122: 0.001298337732 | AD122: 0.015080462 | AG122: 0.001298337732 | AH122: 0.015080462 | AI122: 0.0003376552514 | AJ122: 0.003921935766 | AO122: 0.0003376552514 | AP122: 0.003921935766 | AQ122: 0.000185422926 | AR122: 0.002153725738 | AW122: 0.000185422926 | AX122: 0.002153725738 | BA122: 0.07917451829 | BB122: 0.9196284486 | BG122: 0.07917451829 | BH122: 0.9196284486 | BI122: NOx control | BJ122: Selective Noncatalytic Reduction | BK122: 2003-03-01 | BL122: PM control | BM122: Fabric Filter, reverse air | BN122: 2003-05-01 | BO122: SO2 control | BP122: Wet FGD - Spray Type | BQ122: 2003-05-01
A123: 2403_U2 | B123: coal | C123: 122 | E123: 2403 | F123: PSEG Hudson Generating Station | G123: NJ | H123: HUDU2E2PT2OS1-Coal | I123: U2 | J123: Conventional Boiler | K123: Wall firing - opposed firing | L123: 659.7 | M123: 6600 | N123: 10.00454752 | O123: natural gas | P123: subbituminous | AM123: 0.0003936082536 | AN123: 0.003937872478 | AO123: 0.0003936082536 | AP123: 0.003937872478 | AU123: 9.276059442e-05 | AV123: 0.000928027775 | AW123: 9.276059442e-05 | AX123: 0.000928027775 | BE123: 0.1829861973 | BF123: 1.830694107 | BG123: 0.1829861973 | BH123: 1.830694107 | BI123: NOx control | BJ123: Selective Noncatalytic Reduction | BK123: 1999-03-01 | BL123: PM control | BM123: Electrostatic precipitator, cold side, w/ flue gas conditioning | BN123: 1968-12-01
A124: 2535_2 | B124: coal | C124: 123 | E124: 2535 | F124: AES Cayuga, LLC | G124: NY | H124: Unit_2 | I124: 2 | J124: Conventional Boiler | K124: Tangential firing | L124: 168 | M124: 1450 | N124: 8.630952381 | O124: bituminous | P124: bituminous | Q124: 0.04287717058 | R124: 0.003596879289 | AI124: 0.0004661365453 | AJ124: 0.004023202326 | AO124: 0.0004661365453 | AP124: 0.004023202326 | AQ124: 8.7624223e-05 | AR124: 0.0007562804962 | AW124: 8.7624223e-05 | AX124: 0.0007562804962 | AY124: 0.7280666667 | AZ124: 6.28390873 | BG124: 0.7280666667 | BH124: 6.28390873 | BI124: PM control | BJ124: Electrostatic precipitator, cold side, w/o flue gas conditioning | BL124: SO2 control | BM124: Wet FGD - Spray Type | BN124: 1995-01-01
A125: 3140_1 | B125: coal | C125: 124 | E125: 3140 | F125: PPL Brunner Island | G125: PA | H125: U1 | I125: 1 | J125: Conventional Boiler | K125: Tangential firing | L125: 330 | M125: 3345 | N125: 10.13636364 | O125: bituminous | P125: bituminous | Q125: 0.07710763918 | AC125: 6.916666667e-05 | AD125: 0.0007010984848 | AG125: 6.916666667e-05 | AH125: 0.0007010984848 | AI125: 0.0003981377815 | AJ125: 0.004035669331 | AO125: 0.0003981377815 | AP125: 0.004035669331 | AQ125: 0.0004075352476 | AR125: 0.004130925464 | AW125: 0.0004075352476 | AX125: 0.004130925464 | BA125: 0.4027711528 | BB125: 4.082634867 | BG125: 0.4027711528 | BH125: 4.082634867 | BI125: PM control | BJ125: Fabric Filter, pulse | BK125: 1965-01-01 | BL125: SO2 control | BM125: Wet FGD - Tray Type | BN125: 2009-11-01
A126: 7213_1 | B126: coal | C126: 125 | E126: 7213 | F126: Clover | G126: VA | H126: Unit 1 | I126: 1 | J126: Conventional Boiler | K126: Tangential firing | L126: 431 | M126: 4923 | N126: 11.42227378 | O126: bituminous | P126: bituminous | Q126: 0.1287569727 | R126: 0.004305870025 | AC126: 0.0003576666667 | AD126: 0.004085366589 | AG126: 0.0003576666667 | AH126: 0.004085366589 | AI126: 0.0003730707695 | AJ126: 0.00426131647 | AO126: 0.0003730707695 | AP126: 0.00426131647 | AQ126: 0.0001715301999 | AR126: 0.001959264905 | AW126: 0.0001715301999 | AX126: 0.001959264905 | BA126: 0.04384165778 | BB126: 0.5007714182 | BG126: 0.04384165778 | BH126: 0.5007714182 | BI126: PM control | BJ126: Fabric Filter, reverse air | BK126: 2003-05-01 | BL126: SO2 control | BM126: Wet FGD - Spray Type | BN126: 2003-05-01
A127: 6017_2 | B127: coal | C127: 126 | E127: 6017 | F127: Newton | G127: IL | H127: 002 | I127: 2 | J127: Conventional Boiler | K127: Tangential firing | L127: 620 | M127: 5500 | N127: 8.870967742 | O127: subbituminous | P127: subbituminous | Q127: 0.001299382213 | R127: 0.006008989123 | AC127: 8.01e-05 | AD127: 0.0007105645161 | AG127: 8.01e-05 | AH127: 0.0007105645161 | AI127: 0.0004870622867 | AJ127: 0.004320713834 | AO127: 0.0004870622867 | AP127: 0.004320713834 | AQ127: 0.003376938261 | AR127: 0.02995671038 | AW127: 0.003376938261 | AX127: 0.02995671038 | BI127: Other control | BJ127: Other (specify): Flue gas conditioning | BK127: 2001-04-01 | BL127: Other control | BM127: Activated carbon injection | BO127: PM control | BP127: Electrostatic precipitator, cold side, w/ flue gas conditioning
A128: 6204_3 | B128: coal | C128: 127 | E128: 6204 | F128: Laramie River Station | G128: WY | H128: 3 | I128: 3 | J128: Conventional Boiler | K128: Wall firing - opposed firing | L128: 610 | M128: 6600 | N128: 10.81967213 | O128: coal - subbituminous | P128: subbituminous | AM128: 0.0004107744108 | AN128: 0.004444444444 | AO128: 0.0004107744108 | AP128: 0.004444444444 | AU128: 1.13265003e-05 | AV128: 0.0001225490196 | AW128: 1.13265003e-05 | AX128: 0.0001225490196 | BI128: SO2 control | BJ128: Dry FGD - Spray Dryer | BK128: 1982-11-01 | BL128: PM control | BM128: Electrostatic precipitator, cold side, w/o flue gas conditioning | BN128: 1982-11-01
A129: 3954_1 | B129: coal | C129: 128 | E129: 3954 | F129: Mt. Storm | G129: WV | H129: Unit 1&2 | I129: 1 | J129: Conventional Boiler | K129: Tangential firing | L129: 552.8 | M129: 6446 | N129: 11.66063676 | O129: bituminous | P129: bituminous | Q129: 0.08459188678 | R129: 0.004881157333 | AC129: 0.000238 | AD129: 0.002834876883 | AG129: 0.000238 | AH129: 0.002834876883 | AI129: 0.000420005691 | AJ129: 0.005002791698 | AO129: 0.000420005691 | AP129: 0.005002791698 | AQ129: 0.0003534299126 | AR129: 0.004209791129 | AW129: 0.0003534299126 | AX129: 0.004209791129 | BA129: 0.1011359996 | BB129: 1.204655912 | BG129: 0.1011359996 | BH129: 1.204655912 | BI129: NOx control | BJ129: Selective Catalytic Reduction | BK129: 2003-05-01 | BL129: NOx control | BM129: Selective Catalytic Reduction | BN129: 2003-05-01 | BO129: PM control | BP129: Electrostatic precipitator, cold side, w/o flue gas conditioning | BQ129: 1966-07-01 | BR129: PM control | BS129: Electrostatic precipitator, cold side, w/o flue gas conditioning | BT129: 1965-09-01 | BU129: SO2 control | BV129: Wet FGD - Spray Type | BW129: 2002-03-01 | BX129: SO2 control | BY129: Wet FGD - Spray Type | BZ129: 2002-03-01
A130: =E130&"_"&I130 -> 3954_2 | B130: coal | C130: 129 | E130: 3954 | F130: Mt. Storm | G130: WV | H130: Unit 1&2 | I130: 2 | J130: Conventional Boiler | K130: Tangential firing | L130: 555.9 | M130: 6760 | N130: 12.16046051 | O130: bituminous | P130: bituminous | Q130: 0.08459188678 | R130: 0.004881157333 | AC130: 0.000238 | AD130: 0.002834876883 | AG130: 0.000238 | AH130: 0.002834876883 | AI130: 0.000420005691 | AJ130: 0.005002791698 | AO130: 0.000420005691 | AP130: 0.005002791698 | AQ130: 0.0003534299126 | AR130: 0.004209791129 | AW130: 0.0003534299126 | AX130: 0.004209791129 | BA130: 0.1011359996 | BB130: 1.204655912 | BG130: 0.1011359996 | BH130: 1.204655912 | BI130: NOx control | BJ130: Selective Catalytic Reduction | BK130: 2003-05-01 | BL130: NOx control | BM130: Selective Catalytic Reduction | BN130: 2003-05-01 | BO130: PM control | BP130: Electrostatic precipitator, cold side, w/o flue gas conditioning | BQ130: 1966-07-01 | BR130: PM control | BS130: Electrostatic precipitator, cold side, w/o flue gas conditioning | BT130: 1965-09-01 | BU130: SO2 control | BV130: Wet FGD - Spray Type | BW130: 2002-03-01 | BX130: SO2 control | BY130: Wet FGD - Spray Type | BZ130: 2002-03-01
A131: 3944_1 | B131: coal | C131: 130 | E131: 3944 | F131: Harrison Power Station | G131: WV | H131: Boiler1 | I131: 1 | J131: Conventional Boiler | K131: Wall firing - unspecified | L131: 693 | M131: 5779 | N131: 8.339105339 | O131: bituminous | P131: bituminous | Q131: 0.03897642136 | R131: 0.008559145815 | W131: 0.2 | X131: 1.667821068 | Y131: 0.2 | Z131: 1.667821068 | AC131: 2.491933333e-05 | AD131: 0.0002078049456 | AG131: 2.491933333e-05 | AH131: 0.0002078049456 | AI131: 0.000601566685 | AJ131: 0.005016527955 | AM131: 0.9 | AN131: 7.505194805 | AO131: 0.000601566685 | AP131: 0.005016527955 | AQ131: 6.582055818e-05 | AR131: 0.0005488845682 | AW131: 6.582055818e-05 | AX131: 0.0005488845682 | BA131: 0.1782925631 | BB131: 1.486800465 | BG131: 0.1782925631 | BH131: 1.486800465 | BI131: NOx control | BJ131: Selective Catalytic Reduction | BK131: 2002-05-01 | BL131: PM control | BM131: Electrostatic precipitator, cold side, unspecified | BN131: 1974-12-01 | BO131: SO2 control | BP131: Wet FGD - Spray Type | BQ131: 1994-11-01
A132: 2324_3 | B132: coal | C132: 131 | E132: 2324 | F132: Reid Gardner | G132: NV | H132: 3 | I132: 3 | J132: Conventional Boiler | K132: Wall firing - front firing | L132: 111 | M132: 1237 | N132: 11.14414414 | O132: coal - bituminous, other non-fossil fuel (specify) | P132: bituminous | AM132: 0.0004523333333 | AN132: 0.005040867868 | AO132: 0.0004523333333 | AP132: 0.005040867868 | BE132: 0.02926666667 | BF132: 0.326151952 | BG132: 0.02926666667 | BH132: 0.326151952 | BI132: PM control | BJ132: Fabric Filter, pulse | BK132: 2009-02-01 | BL132: SO2 control | BM132: Wet FGD - Venturi Type | BN132: 1976-07-01
A133: 3161_2 | B133: coal | C133: 132 | E133: 3161 | F133: Eddystone Generating Station | G133: PA | H133: Unit 2 | I133: 2 | J133: Conventional Boiler | K133: Tangential firing | L133: 339 | M133: 2808 | N133: 8.283185841 | O133: bituminous | P133: bituminous | Q133: 0.04880894217 | R133: 0.00361447244 | AC133: 0.0017493 | AD133: 0.01448977699 | AG133: 0.0017493 | AH133: 0.01448977699 | AI133: 0.0006087104947 | AJ133: 0.005042062151 | AO133: 0.0006087104947 | AP133: 0.005042062151 | AQ133: 0.0002041774909 | AR133: 0.001691240102 | AW133: 0.0002041774909 | AX133: 0.001691240102 | AY133: 0.3802 | AZ133: 3.149267257 | BG133: 0.3802 | BH133: 3.149267257 | BI133: NOx control | BJ133: Selective Noncatalytic Reduction | BK133: 2003-06-01 | BL133: PM control | BM133: Multiple cyclone | BN133: 1960-11-01 | BO133: PM control | BP133: Electrostatic precipitator, hot side, w/o flue gas conditioning | BQ133: 1960-11-01 | BR133: PM control | BS133: PM scrubber - Venturi | BT133: 1982-12-01 | BU133: SO2 control | BV133: Wet FGD - Spray Type | BW133: 1982-12-01
A134: 6018_2 | B134: coal | C134: 133 | E134: 6018 | F134: East Bend Station | G134: KY | H134: 2 | I134: 2 | J134: Conventional Boiler | K134: Wall firing - front firing | L134: 650.7246377 | M134: 6313 | N134: 9.701492205 | O134: bituminous | P134: bituminous | Q134: 0.08479331385 | R134: 0.006139315017 | U134: 0.00018 | V134: 0.001746268597 | Y134: 0.00018 | Z134: 0.001746268597 | AC134: 2.603333333e-05 | AD134: 0.0002525621804 | AG134: 2.603333333e-05 | AH134: 0.0002525621804 | AI134: 0.0005284555437 | AJ134: 0.005126807338 | AO134: 0.0005284555437 | AP134: 0.005126807338 | AQ134: 0.0001750544085 | AR134: 0.00169828898 | AW134: 0.0001750544085 | AX134: 0.00169828898 | BA134: 0.06085586976 | BB134: 0.5903927461 | BG134: 0.06085586976 | BH134: 0.5903927461 | BI134: Other control | BJ134: Dry sorbent injection | BK134: 2005-01-01 | BL134: PM control | BM134: Electrostatic precipitator, hot side, w/ flue gas conditioning | BN134: 1981-01-01 | BO134: NOx control | BP134: Selective Catalytic Reduction | BQ134: 2002-01-01 | BR134: SO2 control | BS134: Wet FGD - Spray Type | BT134: 1981-01-01
A135: 3944_3 | B135: coal | C135: 134 | E135: 3944 | F135: Harrison Power Station | G135: WV | H135: Boiler3 | I135: 3 | J135: Conventional Boiler | K135: Wall firing - unspecified | L135: 692 | M135: 5876 | N135: 8.49132948 | O135: bituminous | P135: bituminous | Q135: 0.01557510795 | R135: 0.006597568188 | AC135: 7.44e-07 | AD135: 6.317549133e-06 | AG135: 7.44e-07 | AH135: 6.317549133e-06 | AI135: 0.0006205830404 | AJ135: 0.005269575065 | AO135: 0.0006205830404 | AP135: 0.005269575065 | AQ135: 0.0001265688801 | AR135: 0.001074738063 | AW135: 0.0001265688801 | AX135: 0.001074738063 | BA135: 0.2052348934 | BB135: 1.7427171 | BG135: 0.2052348934 | BH135: 1.7427171 | BI135: NOx control | BJ135: Selective Catalytic Reduction | BK135: 2003-05-01 | BL135: PM control | BM135: Electrostatic precipitator, cold side, unspecified | BN135: 1972-12-01 | BO135: SO2 control | BP135: Wet FGD - Spray Type | BQ135: 1994-11-01
A136: 56319_0001 | B136: coal | C136: 135 | E136: 56319 | F136: Wygen 2 | G136: WY | H136: WYG2Cfg | I136: 0001 | J136: Conventional Boiler | K136: Wall firing - front firing | L136: 96 | M136: 1300 | N136: 13.54166667 | O136: subbituminous | P136: subbituminous | Q136: 0.0008499065103 | R136: 0.001818799932 | AC136: 8.72e-05 | AD136: 0.001180833333 | AG136: 8.72e-05 | AH136: 0.001180833333 | AI136: 0.0004000006508 | AJ136: 0.00541667548 | AK136: 0.0003923333333 | AL136: 0.005312847222 | AO136: 0.0003923333333 | AP136: 0.005312847222 | AQ136: 0.0004000006508 | AR136: 0.00541667548 | AS136: 0.0004086666667 | AT136: 0.005534027778 | AW136: 0.0004000006508 | AX136: 0.00541667548 | AY136: 0.048 | AZ136: 0.65 | BG136: 0.048 | BH136: 0.65 | BI136: NOx control | BJ136: Selective Catalytic Reduction | BK136: 2008-01-01 | BL136: SO2 control | BM136: Dry FGD - Spray Dryer | BN136: 2008-01-01 | BO136: PM control | BP136: Fabric Filter, pulse | BQ136: 2008-01-01
A137: 995_7 | B137: coal | C137: 136 | E137: 995 | F137: Bailly | G137: IN | H137: 7 | I137: 7 | J137: Conventional Boiler | K137: Cyclone firing | L137: 176 | M137: 1638 | N137: 9.306818182 | O137: bituminous | P137: bituminous | Q137: 0.1319141629 | R137: 0.004913992581 | AC137: 3.736666667e-05 | AD137: 0.0003477647727 | AG137: 3.736666667e-05 | AH137: 0.0003477647727 | AI137: 0.0005751972699 | AJ137: 0.005353256409 | AO137: 0.0005751972699 | AP137: 0.005353256409 | AQ137: 0.0001179882449 | AR137: 0.001098095143 | AW137: 0.0001179882449 | AX137: 0.001098095143 | BA137: 0.1143250466 | BB137: 1.064002422 | BG137: 0.1143250466 | BH137: 1.064002422 | BI137: NOx control | BJ137: Selective Catalytic Reduction | BK137: 2008-03-01 | BL137: PM control | BM137: Electrostatic precipitator, cold side, w/o flue gas conditioning | BN137: 1980-06-01 | BO137: SO2 control | BP137: Wet FGD - Packed Type | BQ137: 1992-06-01
A138: 8219_1 | B138: coal | C138: 137 | E138: 8219 | F138: Ray D Nixon | G138: CO | H138: Unit 1 | I138: 1 | J138: Conventional Boiler | K138: Wall firing - front firing | L138: 225 | M138: 2095 | N138: 9.311111111 | O138: subbituminous | P138: subbituminous | AM138: 0.0005845 | AN138: 0.005442344444 | AO138: 0.0005845 | AP138: 0.005442344444 | AU138: 0.0003633333333 | AV138: 0.003383037037 | AW138: 0.0003633333333 | AX138: 0.003383037037 | BE138: 0.3906666667 | BF138: 3.637540741 | BG138: 0.3906666667 | BH138: 3.637540741 | BI138: PM control | BJ138: Fabric Filter, reverse air | BK138: 1980-04-01
A139: 995_8 | B139: coal | C139: 138 | E139: 995 | F139: Bailly | G139: IN | H139: 8 | I139: 8 | J139: Conventional Boiler | K139: Cyclone firing | L139: 352 | M139: 3374 | N139: 9.585227273 | O139: bituminous | P139: bituminous | Q139: 0.1319141629 | R139: 0.004913992581 | AC139: 3.736666667e-05 | AD139: 0.0003581679924 | AG139: 3.736666667e-05 | AH139: 0.0003581679924 | AI139: 0.0005751972699 | AJ139: 0.005513396558 | AO139: 0.0005751972699 | AP139: 0.005513396558 | AQ139: 0.0001179882449 | AR139: 0.001130944143 | AW139: 0.0001179882449 | AX139: 0.001130944143 | BA139: 0.1143250466 | BB139: 1.095831554 | BG139: 0.1143250466 | BH139: 1.095831554 | BI139: NOx control | BJ139: Selective Catalytic Reduction | BK139: 2006-06-01 | BL139: PM control | BM139: Electrostatic precipitator, cold side, w/o flue gas conditioning | BN139: 1981-02-01 | BO139: SO2 control | BP139: Wet FGD - Packed Type | BQ139: 1992-06-01
A140: 6016_1 | B140: coal | C140: 139 | E140: 6016 | F140: Duck Creek | G140: IL | H140: 001 | I140: 1 | J140: Conventional Boiler | K140: Wall firing - unspecified | L140: 400 | M140: 4500 | N140: 11.25 | O140: subbituminous | P140: subbituminous | Q140: 0.02197724682 | R140: 0.004700714698 | AC140: 7.633333333e-05 | AD140: 0.00085875 | AG140: 7.633333333e-05 | AH140: 0.00085875 | AI140: 0.0005014054864 | AJ140: 0.005640811722 | AM140: 0.00114 | AN140: 0.012825 | AO140: 0.0005014054864 | AP140: 0.005640811722 | AQ140: 0.0004519669179 | AR140: 0.005084627827 | AU140: 9.74e-06 | AV140: 0.000109575 | AW140: 9.74e-06 | AX140: 0.000109575 | BE140: 0.0133 | BF140: 0.149625 | BG140: 0.0133 | BH140: 0.149625 | BI140: NOx control | BJ140: Selective Catalytic Reduction | BK140: 2003-06-01 | BL140: PM control | BM140: Electrostatic precipitator, cold side, unspecified | BN140: 2009-03-01 | BO140: SO2 control | BP140: Wet FGD - Venturi Type | BQ140: 2009-03-01
A141: 1893_3 | B141: coal | C141: 140 | E141: 1893 | F141: Boswell Energy Center | G141: MN | H141: BEC3 | I141: 3 | J141: Conventional Boiler | K141: Tangential firing | L141: 371.3 | M141: 4115 | N141: 11.08268247 | O141: subbituminous | P141: subbituminous | Q141: 0.0039193729 | R141: 0.003247480403 | AI141: 0.0005126674494 | AJ141: 0.005681730553 | AO141: 0.0005126674494 | AP141: 0.005681730553 | AQ141: 0.03794455777 | AR141: 0.4205274851 | AW141: 0.03794455777 | AX141: 0.4205274851 | AY141: 0.01166666667 | AZ141: 0.1292979621 | BG141: 0.01166666667 | BH141: 0.1292979621 | BI141: NOx control | BJ141: Selective Catalytic Reduction | BL141: SO2 control | BM141: Wet FGD - Spray Type | BN141: 2009-01-01 | BO141: Other control | BP141: Activated carbon injection | BR141: PM control | BS141: Fabric Filter, unspecified | BT141: 2009-01-01
A142: 3944_2 | B142: coal | C142: 141 | E142: 3944 | F142: Harrison Power Station | G142: WV | H142: Boiler2 | I142: 2 | J142: Conventional Boiler | K142: Wall firing - unspecified | L142: 692 | M142: 6042 | N142: 8.731213873 | O142: bituminous | P142: bituminous | Q142: 0.034283821 | R142: 0.009760985032 | AC142: 0.0001183333333 | AD142: 0.001033193642 | AG142: 0.0001183333333 | AH142: 0.001033193642 | AI142: 0.0006568123017 | AJ142: 0.00573476868 | AO142: 0.0006568123017 | AP142: 0.00573476868 | AQ142: 0.0001298338751 | AR142: 0.001133607332 | AW142: 0.0001298338751 | AX142: 0.001133607332 | BA142: 0.07007815732 | BB142: 0.6118673793 | BG142: 0.07007815732 | BH142: 0.6118673793 | BI142: NOx control | BJ142: Selective Catalytic Reduction | BK142: 2003-05-01 | BL142: PM control | BM142: Electrostatic precipitator, cold side, unspecified | BN142: 1973-12-01 | BO142: SO2 control | BP142: Wet FGD - Spray Type | BQ142: 1994-11-01
A143: 3098_4 | B143: coal | C143: 142 | E143: 3098 | F143: Elrama Power Plant | G143: PA | H143: ELR4-2 | I143: 4 | J143: Conventional Boiler | K143: Wall firing - front firing | L143: 185 | M143: 1921 | N143: 10.38378378 | O143: bituminous | P143: bituminous | Q143: 0.03467766811 | R143: 0.001286925699 | AC143: 0.0002643333333 | AD143: 0.00274478018 | AG143: 0.0002643333333 | AH143: 0.00274478018 | AI143: 0.00055303927 | AJ143: 0.005742640204 | AO143: 0.00055303927 | AP143: 0.005742640204 | AQ143: 9.997401045e-05 | AR143: 0.001038108509 | AW143: 9.997401045e-05 | AX143: 0.001038108509 | BI143: NOx control | BJ143: Selective Noncatalytic Reduction | BK143: 2001-07-01 | BL143: PM control | BM143: Multiple cyclone | BN143: 1960-11-01 | BO143: PM control | BP143: Electrostatic precipitator, cold side, w/o flue gas conditioning | BQ143: 1960-11-01 | BR143: SO2 control | BS143: Wet FGD - Venturi Type | BT143: 1975-06-01
A144: 3098_3 | B144: coal | C144: 143 | E144: 3098 | F144: Elrama Power Plant | G144: PA | H144: ELR3-2 | I144: 3 | J144: Conventional Boiler | K144: Vertical firing | L144: 125 | M144: 1303 | N144: 10.424 | O144: bituminous | P144: bituminous | Q144: 0.03467766811 | R144: 0.001286925699 | AC144: 0.0002643333333 | AD144: 0.002755410667 | AG144: 0.0002643333333 | AH144: 0.002755410667 | AI144: 0.00055303927 | AJ144: 0.005764881351 | AO144: 0.00055303927 | AP144: 0.005764881351 | AQ144: 9.997401045e-05 | AR144: 0.001042129085 | AW144: 9.997401045e-05 | AX144: 0.001042129085 | BI144: NOx control | BJ144: Selective Noncatalytic Reduction | BK144: 2001-07-01 | BL144: PM control | BM144: Multiple cyclone | BN144: 1954-11-01 | BO144: PM control | BP144: Electrostatic precipitator, cold side, w/o flue gas conditioning | BQ144: 1954-11-01 | BR144: SO2 control | BS144: Wet FGD - Venturi Type | BT144: 1975-06-01
A145: 8042_Unit 1 | B145: coal | C145: 144 | E145: 8042 | F145: Belews Creek Steam Station | G145: NC | H145: 1-2008 | I145: Unit 1 | J145: Conventional Boiler | K145: Wall firing - opposed firing | L145: 1185.8 | M145: 10800 | N145: 9.107775342 | O145: bituminous | P145: bituminous | Q145: 0.08641016035 | R145: 0.005133249401 | AC145: 2.566666667e-06 | AD145: 2.337662338e-05 | AG145: 2.566666667e-06 | AH145: 2.337662338e-05 | AI145: 0.0006335419776 | AJ145: 0.005770158001 | AO145: 0.0006335419776 | AP145: 0.005770158001 | AQ145: 0.0008066834301 | AR145: 0.007347091453 | AW145: 0.0008066834301 | AX145: 0.007347091453 | BA145: 0.04835983047 | BB145: 0.4404504715 | BG145: 0.04835983047 | BH145: 0.4404504715 | BI145: NOx control | BJ145: Selective Catalytic Reduction | BK145: 2003-06-01 | BL145: PM control | BM145: Electrostatic precipitator, cold side, w/ flue gas conditioning | BN145: 1973-01-01 | BO145: SO2 control | BP145: Wet FGD - Spray Type | BQ145: 2008-01-01
A146: 52007_BLR1 | B146: coal | C146: 145 | E146: 52007 | F146: Mecklenburg Power Station | G146: VA | H146: Unit 1 & 2 | I146: BLR1 | J146: Conventional Boiler | K146: Wall firing - front firing | L146: 76 | M146: 916 | N146: 12.05263158 | O146: bituminous | P146: bituminous | Q146: 0.1471480762 | R146: 0.008124121116 | AC146: 0.0001987333333 | AD146: 0.002397874561 | AG146: 0.0001987333333 | AH146: 0.002397874561 | AI146: 0.0004858859469 | AJ146: 0.005862597543 | AO146: 0.0004858859469 | AP146: 0.005862597543 | AQ146: 6.009849933e-05 | AR146: 0.0007251358406 | AS146: 0.0001224666667 | AT146: 0.001477657018 | AW146: 6.009849933e-05 | AX146: 0.0007251358406 | BA146: 0.08312822464 | BB146: 1.003007658 | BG146: 0.08312822464 | BH146: 1.003007658 | BI146: SO2 control | BJ146: Dry FGD - Spray Dryer | BK146: 1992-11-01 | BL146: SO2 control | BM146: Dry FGD - Spray Dryer | BN146: 1992-11-01 | BO146: PM control | BP146: Fabric Filter, pulse | BQ146: 1992-11-01 | BR146: PM control | BS146: Fabric Filter, pulse | BT146: 1992-11-01
A147: 52007_BLR2 | B147: coal | C147: 146 | E147: 52007 | F147: Mecklenburg Power Station | G147: VA | H147: Unit 1 & 2 | I147: BLR2 | J147: Conventional Boiler | K147: Wall firing - front firing | L147: 76 | M147: 918 | N147: 12.07894737 | O147: bituminous | P147: bituminous | Q147: 0.1471480762 | R147: 0.008124121116 | AC147: 0.0001987333333 | AD147: 0.002397874561 | AG147: 0.0001987333333 | AH147: 0.002397874561 | AI147: 0.0004858859469 | AJ147: 0.005862597543 | AO147: 0.0004858859469 | AP147: 0.005862597543 | AQ147: 6.009849933e-05 | AR147: 0.0007251358406 | AS147: 0.0001224666667 | AT147: 0.001477657018 | AW147: 6.009849933e-05 | AX147: 0.0007251358406 | BA147: 0.08312822464 | BB147: 1.003007658 | BG147: 0.08312822464 | BH147: 1.003007658 | BI147: SO2 control | BJ147: Dry FGD - Spray Dryer | BK147: 1992-11-01 | BL147: SO2 control | BM147: Dry FGD - Spray Dryer | BN147: 1992-11-01 | BO147: PM control | BP147: Fabric Filter, pulse | BQ147: 1992-11-01 | BR147: PM control | BS147: Fabric Filter, pulse | BT147: 1992-11-01
A148: 1356_3 | B148: coal | C148: 147 | E148: 1356 | F148: Ghent | G148: KY | H148: GH3 | I148: 3 | J148: Conventional Boiler | K148: Wall firing - opposed firing | L148: 525 | M148: 5868 | N148: 11.17714286 | O148: bituminous | P148: bituminous | Q148: 0.0967744051 | R148: 0.006928059176 | S148: 0.0005659605016 | T148: 0.006325821378 | U148: 0.000593 | V148: 0.006628045714 | Y148: 0.0005659605016 | Z148: 0.006325821378 | AC148: 0.0009 | AD148: 0.01005942857 | AG148: 0.0009 | AH148: 0.01005942857 | AI148: 0.0005265547194 | AJ148: 0.005885377321 | AO148: 0.0005265547194 | AP148: 0.005885377321 | AQ148: 0.0001462064886 | AR148: 0.00163417081 | AW148: 0.0001462064886 | AX148: 0.00163417081 | AY148: 0.2178333333 | AZ148: 2.434754286 | BG148: 0.2178333333 | BH148: 2.434754286 | BI148: Other control | BJ148: Other (specify): Sorbent injection for SO3 reduction | BK148: 2008-06-01 | BL148: PM control | BM148: Electrostatic precipitator, hot side, w/o flue gas conditioning | BN148: 1981-05-01 | BO148: NOx control | BP148: Selective Catalytic Reduction | BQ148: 2004-05-01 | BR148: Other control | BS148: Other (specify): Sorbent injection for SO3 reduction | BT148: 2008-06-01 | BU148: SO2 control | BV148: Wet FGD - Spray Type | BW148: 2007-05-01
A149: 874_5 | B149: coal | C149: 148 | E149: 874 | F149: Joliet 9 | G149: IL | H149: JOL5 CONFIG | I149: 5 | J149: Conventional Boiler | K149: Cyclone firing | L149: 326 | M149: 3572.378 | N149: 10.95821472 | O149: subbituminous | P149: subbituminous | Q149: 0.001196088114 | R149: 0.005813008456 | AC149: 0.0002166666667 | AD149: 0.002374279857 | AG149: 0.0002166666667 | AH149: 0.002374279857 | AI149: 0.0005412945777 | AJ149: 0.005931622211 | AO149: 0.0005412945777 | AP149: 0.005931622211 | AQ149: 0.0004738296755 | AR149: 0.005192327326 | AW149: 0.0004738296755 | AX149: 0.005192327326 | AY149: 0.4335 | AZ149: 4.750386083 | BG149: 0.4335 | BH149: 4.750386083 | BI149: Other control | BJ149: Activated carbon injection | BK149: 2009-07-01 | BL149: PM control | BM149: Electrostatic precipitator, cold side, w/o flue gas conditioning | BN149: 1966-03-01
A150: 887_1 | B150: coal | C150: 149 | E150: 887 | F150: Joppa Steam | G150: IL | H150: 1 | I150: 1 | J150: Conventional Boiler | K150: Tangential firing | L150: 183.3 | M150: 1800 | N150: 9.819967267 | O150: subbituminous | P150: subbituminous | Q150: 0.001731286936 | R150: 0.005054885691 | AC150: 7.466666667e-05 | AD150: 0.0007332242226 | AG150: 7.466666667e-05 | AH150: 0.0007332242226 | AI150: 0.0006411812111 | AJ150: 0.006296378505 | AO150: 0.0006411812111 | AP150: 0.006296378505 | AQ150: 0.0005756697486 | AR150: 0.005653058087 | AW150: 0.0005756697486 | AX150: 0.005653058087 | AY150: 0.5832 | AZ150: 5.72700491 | BG150: 0.5832 | BH150: 5.72700491 | BI150: Other control | BJ150: Activated carbon injection | BK150: 2009-07-01 | BL150: PM control | BM150: Electrostatic precipitator, cold side, w/ flue gas conditioning | BN150: 1971-01-01
A151: 3295_URQ3 | B151: coal | C151: 150 | E151: 3295 | F151: Urquhart | G151: SC | H151: URQ003 | I151: URQ3 | J151: Conventional Boiler | K151: Tangential firing | L151: 103 | M151: 1048 | N151: 10.17475728 | O151: bituminous | P151: bituminous | Q151: 0.01429232041 | R151: 0.01176756308 | AC151: 7.79e-06 | AD151: 7.926135922e-05 | AG151: 7.79e-06 | AH151: 7.926135922e-05 | AK151: 0.000639 | AL151: 0.006501669903 | AO151: 0.000639 | AP151: 0.006501669903 | AS151: 0.0001783333333 | AT151: 0.001814498382 | AW151: 0.0001783333333 | AX151: 0.001814498382 | BI151: PM control | BJ151: Electrostatic precipitator, cold side, unspecified | BK151: 1969-11-01
A152: 3098_1 | B152: coal | C152: 151 | E152: 3098 | F152: Elrama Power Plant | G152: PA | H152: ELR1-2 | I152: 1 | J152: Conventional Boiler | K152: Vertical firing | L152: 100 | M152: 1254 | N152: 12.54 | O152: bituminous | P152: bituminous | Q152: 0.03467766811 | R152: 0.001286925699 | AC152: 0.0002643333333 | AD152: 0.00331474 | AG152: 0.0002643333333 | AH152: 0.00331474 | AI152: 0.00055303927 | AJ152: 0.006935112446 | AO152: 0.00055303927 | AP152: 0.006935112446 | AQ152: 9.997401045e-05 | AR152: 0.001253674091 | AW152: 9.997401045e-05 | AX152: 0.001253674091 | BI152: NOx control | BJ152: Selective Noncatalytic Reduction | BK152: 2001-07-01 | BL152: PM control | BM152: Multiple cyclone | BN152: 1952-06-01 | BO152: PM control | BP152: Electrostatic precipitator, cold side, w/o flue gas conditioning | BQ152: 1952-06-01 | BR152: SO2 control | BS152: Wet FGD - Venturi Type | BT152: 1975-06-01
A153: 3098_2 | B153: coal | C153: 152 | E153: 3098 | F153: Elrama Power Plant | G153: PA | H153: ELR2-2 | I153: 2 | J153: Conventional Boiler | K153: Vertical firing | L153: 100 | M153: 1254 | N153: 12.54 | O153: bituminous | P153: bituminous | Q153: 0.03467766811 | R153: 0.001286925699 | AC153: 0.0002643333333 | AD153: 0.00331474 | AG153: 0.0002643333333 | AH153: 0.00331474 | AI153: 0.00055303927 | AJ153: 0.006935112446 | AO153: 0.00055303927 | AP153: 0.006935112446 | AQ153: 9.997401045e-05 | AR153: 0.001253674091 | AW153: 9.997401045e-05 | AX153: 0.001253674091 | BI153: NOx control | BJ153: Selective Noncatalytic Reduction | BK153: 2001-07-01 | BL153: PM control | BM153: Multiple cyclone | BN153: 1953-03-01 | BO153: PM control | BP153: Electrostatic precipitator, cold side, w/o flue gas conditioning | BQ153: 1953-03-01 | BR153: SO2 control | BS153: Wet FGD - Venturi Type | BT153: 1975-06-01
A154: 6019_1 | B154: coal | C154: 153 | E154: 6019 | F154: W H Zimmer | G154: OH | H154: 1 | I154: 1 | J154: Conventional Boiler | K154: Wall firing - opposed firing | L154: 1408 | M154: 12656 | N154: 8.988636364 | O154: bituminous, bituminous, bituminous | P154: bituminous, bituminous, bituminous | Q154: 0.08777114616 | R154: 0.006676885179 | AC154: 2.18e-05 | AD154: 0.0001959522727 | AG154: 2.18e-05 | AH154: 0.0001959522727 | AI154: 0.0008778416086 | AJ154: 0.007890599005 | AO154: 0.0008778416086 | AP154: 0.007890599005 | AQ154: 0.0001586400901 | AR154: 0.001425958082 | AW154: 0.0001586400901 | AX154: 0.001425958082 | BA154: 0.4049006739 | BB154: 3.639504921 | BG154: 0.4049006739 | BH154: 3.639504921 | BI154: Other control | BJ154: Other (specify): Magnesium Hydroxide Injection | BL154: NOx control | BM154: Selective Catalytic Reduction | BN154: 2004-01-01 | BO154: Other control | BP154: Dry sorbent injection | BQ154: 2004-05-01 | BR154: PM control | BS154: Electrostatic precipitator, cold side, w/o flue gas conditioning | BT154: 1991-03-01 | BU154: SO2 control | BV154: Wet FGD - Spray Type | BW154: 2004-06-01
A155: 1356_4 | B155: coal | C155: 154 | E155: 1356 | F155: Ghent | G155: KY | H155: GH4 | I155: 4 | J155: Conventional Boiler | K155: Wall firing - opposed firing | L155: 525 | M155: 5967 | N155: 11.36571429 | O155: bituminous | P155: bituminous | Q155: 0.1256396667 | R155: 0.006115368524 | S155: 0.0005913375023 | T155: 0.006720973098 | U155: 0.0006003333333 | V155: 0.006823217143 | Y155: 0.0005913375023 | Z155: 0.006720973098 | AC155: 0.0009333333333 | AD155: 0.010608 | AG155: 0.0009333333333 | AH155: 0.010608 | AI155: 0.0006966455206 | AJ155: 0.007917873945 | AO155: 0.0006966455206 | AP155: 0.007917873945 | AQ155: 0.0001688964829 | AR155: 0.001919629169 | AW155: 0.0001688964829 | AX155: 0.001919629169 | AY155: 0.0991 | AZ155: 1.126342286 | BG155: 0.0991 | BH155: 1.126342286 | BI155: Other control | BJ155: Other (specify): Sorbent injection for SO3 reduction | BK155: 2008-06-01 | BL155: PM control | BM155: Electrostatic precipitator, hot side, w/o flue gas conditioning | BN155: 1984-06-01 | BO155: NOx control | BP155: Selective Catalytic Reduction | BQ155: 2004-05-01 | BR155: Other control | BS155: Other (specify): Sorbent injection for SO3 reduction | BT155: 2008-06-01 | BU155: SO2 control | BV155: Wet FGD - Spray Type | BW155: 2008-06-01
A156: 1241_2 | B156: coal | C156: 155 | E156: 1241 | F156: La Cygne | G156: KS | H156: 2 | I156: 2 | J156: Conventional Boiler | K156: Wall firing - opposed firing | L156: 685 | M156: 7700 | N156: 11.24087591 | O156: subbituminous | P156: subbituminous | Q156: 0.001473962769 | R156: 0.005312045469 | AC156: 4.106666667e-05 | AD156: 0.0004616253041 | AG156: 4.106666667e-05 | AH156: 0.0004616253041 | AI156: 0.0007310445521 | AJ156: 0.008217581096 | AM156: 0.0009 | AN156: 0.01011678832 | AO156: 0.0007310445521 | AP156: 0.008217581096 | AQ156: 0.0007974672413 | AR156: 0.008964230304 | AU156: 0.0004024427953 | AV156: 0.004523809524 | AW156: 0.0004024427953 | AX156: 0.004523809524 | BA156: 0.6876753983 | BB156: 7.73007382 | BG156: 0.6876753983 | BH156: 7.73007382 | BI156: PM control | BJ156: Electrostatic precipitator, cold side, w/o flue gas conditioning | BK156: 1977-03-01
A157: 2161_4 | B157: coal | C157: 156 | E157: 2161 | F157: James River Power Station | G157: MO | H157: Unit_4_JRPS | I157: 4 | J157: Conventional Boiler | K157: Wall firing - front firing | L157: 60 | M157: 600 | N157: 10 | O157: subbituminous | P157: subbituminous | Q157: 0.0008605360289 | R157: 0.003986617536 | AC157: 0.0009333333333 | AD157: 0.009333333333 | AG157: 0.0009333333333 | AH157: 0.009333333333 | AK157: 0.0008333333333 | AL157: 0.008333333333 | AO157: 0.0008333333333 | AP157: 0.008333333333 | AS157: 0.0019 | AT157: 0.019 | AW157: 0.0019 | AX157: 0.019 | AY157: 0.5961 | AZ157: 5.961 | BG157: 0.5961 | BH157: 5.961 | BI157: NOx control | BJ157: Selective Noncatalytic Reduction | BK157: 2007-05-01 | BL157: PM control | BM157: Electrostatic precipitator, cold side, w/o flue gas conditioning | BN157: 1976-08-01
A158: 2718_ES-3 | B158: coal | C158: 157 | E158: 2718 | F158: G G Allen | G158: NC | H158: 3-2009 | I158: ES-3 | J158: Conventional Boiler | K158: Tangential firing | L158: 281.5 | M158: 2228 | N158: 7.914742451 | O158: bituminous | P158: bituminous | Q158: 0.08188976219 | R158: 0.005594031196 | AC158: 3.891666667e-05 | AD158: 0.0003080153937 | AG158: 3.891666667e-05 | AH158: 0.0003080153937 | AI158: 0.001059092689 | AJ158: 0.008382445864 | AO158: 0.001059092689 | AP158: 0.008382445864 | AQ158: 0.000484884305 | AR158: 0.003837734392 | AW158: 0.000484884305 | AX158: 0.003837734392 | BA158: 0.09706152941 | BB158: 0.7682170072 | BG158: 0.09706152941 | BH158: 0.7682170072 | BI158: NOx control | BJ158: Selective Noncatalytic Reduction | BK158: 2005-05-01 | BL158: PM control | BM158: Electrostatic precipitator, cold side, w/ flue gas conditioning | BN158: 2002-06-01 | BO158: SO2 control | BP158: Wet FGD - Spray Type | BQ158: 2009-05-01
A159: 1943_002 | B159: coal | C159: 158 | E159: 1943 | F159: Hoot Lake | G159: MN | H159: 2 | I159: 002 | J159: Conventional Boiler | K159: Tangential firing | L159: 60.7 | M159: 747.2 | N159: 12.30971993 | O159: subbituminous | P159: subbituminous | Q159: 0.002241200622 | R159: 0.003756151671 | AC159: 0.0006667631828 | AD159: 0.008207668042 | AG159: 0.0006667631828 | AH159: 0.008207668042 | AI159: 0.0006882941371 | AJ159: 0.00847270806 | AO159: 0.0006882941371 | AP159: 0.00847270806 | AQ159: 0.0003671527588 | AR159: 0.004519547634 | AW159: 0.0003671527588 | AX159: 0.004519547634 | AY159: 0.5727666667 | AZ159: 7.050597254 | BG159: 0.5727666667 | BH159: 7.050597254 | BI159: PM control | BJ159: Electrostatic precipitator, cold side, w/o flue gas conditioning | BK159: 1972-06-01
A160: 2718_ES-4 | B160: coal | C160: 159 | E160: 2718 | F160: G G Allen | G160: NC | H160: 4-2009 | I160: ES-4 | J160: Conventional Boiler | K160: Tangential firing | L160: 297.3 | M160: 2380 | N160: 8.005381769 | O160: bituminous | P160: bituminous | Q160: 0.08188976219 | R160: 0.005594031196 | AC160: 3.891666667e-05 | AD160: 0.0003115427739 | AG160: 3.891666667e-05 | AH160: 0.0003115427739 | AI160: 0.001059092689 | AJ160: 0.008478441303 | AO160: 0.001059092689 | AP160: 0.008478441303 | AQ160: 0.000484884305 | AR160: 0.003881683975 | AW160: 0.000484884305 | AX160: 0.003881683975 | BA160: 0.09706152941 | BB160: 0.777014598 | BG160: 0.09706152941 | BH160: 0.777014598 | BI160: NOx control | BJ160: Selective Noncatalytic Reduction | BK160: 2006-06-01 | BL160: PM control | BM160: Electrostatic precipitator, cold side, w/ flue gas conditioning | BN160: 1999-02-01 | BO160: SO2 control | BP160: Wet FGD - Spray Type | BQ160: 2009-04-01
A161: 3181_33 | B161: coal | C161: 160 | E161: 3181 | F161: Mitchell Power Station | G161: PA | H161: 033 | I161: 33 | J161: Conventional Boiler | K161: Tangential firing | L161: 289 | M161: 2563 | N161: 8.868512111 | O161: coal - bituminous | P161: bituminous | W161: 0.0001048598869 | X161: 0.0009299511767 | Y161: 0.0001048598869 | Z161: 0.0009299511767 | AM161: 0.000972030395 | AN161: 0.00862046333 | AO161: 0.000972030395 | AP161: 0.00862046333 | AU161: 7.355296409e-05 | AV161: 0.0006523053528 | AW161: 7.355296409e-05 | AX161: 0.0006523053528 | BI161: PM control | BJ161: Electrostatic precipitator, cold side, unspecified | BK161: 1971-01-01 | BL161: SO2 control | BM161: Wet FGD - Spray Type | BN161: 1983-01-01
A162: 1295_2 | B162: coal | C162: 161 | E162: 1295 | F162: Quindaro | G162: KS | H162: Unit 2 | I162: 2 | J162: Conventional Boiler | K162: Wall firing - front firing | L162: 119.8 | M162: 1394 | N162: 11.6360601 | O162: bituminous | P162: bituminous | W162: 0.0001033333333 | X162: 0.001202392877 | Y162: 0.0001033333333 | Z162: 0.001202392877 | AM162: 0.0007633333333 | AN162: 0.008882192543 | AO162: 0.0007633333333 | AP162: 0.008882192543 | AU162: 0.001870597014 | AV162: 0.02176637928 | AW162: 0.001870597014 | AX162: 0.02176637928 | BI162: PM control | BJ162: Electrostatic precipitator, cold side, w/o flue gas conditioning | BK162: 1986-05-01
A163: 54304_1A | B163: coal | C163: 162 | E163: 54304 | F163: Birchwood Power Facility | G163: VA | H163: 1A | I163: 1A | J163: Conventional Boiler | K163: Tangential firing | L163: 222 | M163: 2300 | N163: 10.36036036 | O163: bituminous | P163: bituminous | Q163: 0.03008252544 | R163: 0.001657295778 | AC163: 1e-05 | AD163: 0.0001036036036 | AG163: 1e-05 | AH163: 0.0001036036036 | AK163: 0.0008666666667 | AL163: 0.008978978979 | AO163: 0.0008666666667 | AP163: 0.008978978979 | AS163: 6.333333333e-05 | AT163: 0.0006561561562 | AW163: 6.333333333e-05 | AX163: 0.0006561561562 | BI163: NOx control | BJ163: Selective Catalytic Reduction | BK163: 1996-10-01 | BL163: SO2 control | BM163: Dry FGD - Spray Dryer | BN163: 1996-10-01 | BO163: PM control | BP163: Fabric Filter, reverse air | BQ163: 1996-10-01
A164: 6147_2 | B164: coal | C164: 163 | E164: 6147 | F164: Monticello | G164: TX | H164: 2 | I164: 2 | J164: Conventional Boiler | K164: Tangential firing | L164: 583 | M164: 7000 | N164: 12.00686106 | O164: lignite | P164: lignite | AC164: 2.006666667e-05 | AD164: 0.0002409376787 | AG164: 2.006666667e-05 | AH164: 0.0002409376787 | AI164: 0.0007488569564 | AJ164: 0.008991421432 | AO164: 0.0007488569564 | AP164: 0.008991421432 | AQ164: 0.002629452668 | AR164: 0.03157147285 | AW164: 0.002629452668 | AX164: 0.03157147285 | BA164: 0.8161104586 | BB164: 9.798924889 | BG164: 0.8161104586 | BH164: 9.798924889 | BI164: NOx control | BJ164: Selective Noncatalytic Reduction | BK164: 2008-11-01 | BL164: Other control | BM164: Activated carbon injection | BN164: 2009-02-01 | BO164: PM control | BP164: Fabric Filter, shake and deflate | BQ164: 1975-12-01 | BR164: PM control | BS164: Electrostatic precipitator, cold side, w/ flue gas conditioning | BT164: 1975-12-01
A165: 2554_4 | B165: coal | C165: 164 | E165: 2554 | F165: Dunkirk Generating Plant | G165: NY | H165: 4 | I165: 4 | J165: Conventional Boiler | K165: Tangential firing | L165: 195 | M165: 1836 | N165: 9.415384615 | O165: subbituminous | P165: subbituminous | AC165: 1e-05 | AD165: 9.415384615e-05 | AG165: 1e-05 | AH165: 9.415384615e-05 | AI165: 0.0009669566551 | AJ165: 0.009104268814 | AO165: 0.0009669566551 | AP165: 0.009104268814 | AQ165: 0.0007607509117 | AR165: 0.007162762431 | AW165: 0.0007607509117 | AX165: 0.007162762431 | BA165: 0.4071358662 | BB165: 3.833340771 | BG165: 0.4071358662 | BH165: 3.833340771 | BI165: NOx control | BJ165: Selective Noncatalytic Reduction | BL165: Other control | BM165: Dry sorbent injection | BO165: PM control | BP165: Fabric Filter, unspecified | BQ165: 2009-05-01
A166: 564_2 | B166: coal | C166: 165 | E166: 564 | F166: Stanton Energy Center | G166: FL | H166: 2 coal | I166: 2 | J166: Conventional Boiler | K166: Wall firing - opposed firing | L166: 468 | M166: 4286 | N166: 9.158119658 | O166: coal - bituminous | P166: bituminous | AC166: 0.000323 | AD166: 0.00295807265 | AG166: 0.000323 | AH166: 0.00295807265 | AI166: 0.001049483035 | AJ166: 0.009611291211 | AO166: 0.001049483035 | AP166: 0.009611291211 | AQ166: 8.47241555e-05 | AR166: 0.000775913954 | AW166: 8.47241555e-05 | AX166: 0.000775913954 | BI166: NOx control | BJ166: Selective Catalytic Reduction | BK166: 1996-06-01 | BL166: PM control | BM166: Electrostatic precipitator, cold side, w/o flue gas conditioning | BN166: 1996-06-01 | BO166: SO2 control | BP166: Wet FGD - Spray Type | BQ166: 1996-06-01
A167: 883_8 | B167: coal | C167: 166 | E167: 883 | F167: Waukegan | G167: IL | H167: WK8CONFIG | I167: 8 | J167: Conventional Boiler | K167: Tangential firing | L167: 383 | M167: 3960.892 | N167: 10.34175457 | O167: subbituminous | P167: subbituminous | Q167: 0.0008351651566 | R167: 0.003868384581 | AC167: 0.00018 | AD167: 0.001861515822 | AG167: 0.00018 | AH167: 0.001861515822 | AI167: 0.0009409659044 | AJ167: 0.009731238441 | AO167: 0.0009409659044 | AP167: 0.009731238441 | AQ167: 0.0004136741545 | AR167: 0.004278116577 | AW167: 0.0004136741545 | AX167: 0.004278116577 | AY167: 0.5669 | AZ167: 5.862740665 | BG167: 0.5669 | BH167: 5.862740665 | BI167: Other control | BJ167: Activated carbon injection | BK167: 2008-07-01 | BL167: PM control | BM167: Electrostatic precipitator, cold side, w/o flue gas conditioning | BN167: 1962-07-01
A168: 2718_ES-2 | B168: coal | C168: 167 | E168: 2718 | F168: G G Allen | G168: NC | H168: 2-2009 | I168: ES-2 | J168: Conventional Boiler | K168: Tangential firing | L168: 177 | M168: 1509 | N168: 8.525423729 | O168: bituminous | P168: bituminous | Q168: 0.0802022888 | R168: 0.007092164444 | AC168: 6.376e-06 | AD168: 5.435810169e-05 | AG168: 6.376e-06 | AH168: 5.435810169e-05 | AI168: 0.001142729067 | AJ168: 0.009742249504 | AO168: 0.001142729067 | AP168: 0.009742249504 | AQ168: 0.0004178508948 | AR168: 0.003562355934 | AW168: 0.0004178508948 | AX168: 0.003562355934 | BA168: 0.1192451495 | BB168: 1.016615427 | BG168: 0.1192451495 | BH168: 1.016615427 | BI168: NOx control | BJ168: Selective Noncatalytic Reduction | BK168: 2007-04-01 | BL168: PM control | BM168: Electrostatic precipitator, cold side, w/o flue gas conditioning | BN168: 1988-10-01 | BO168: SO2 control | BP168: Wet FGD - Spray Type | BQ168: 2009-02-01
A169: 2554_1 | B169: coal | C169: 168 | E169: 2554 | F169: Dunkirk Generating Plant | G169: NY | H169: 1 | I169: 1 | J169: Conventional Boiler | K169: Tangential firing | L169: 85 | M169: 922.2 | N169: 10.84941176 | O169: subbituminous | P169: subbituminous | AC169: 1e-05 | AD169: 0.0001084941176 | AG169: 1e-05 | AH169: 0.0001084941176 | AI169: 0.0009134454811 | AJ169: 0.009910346149 | AO169: 0.0009134454811 | AP169: 0.009910346149 | AQ169: 0.001255124654 | AR169: 0.01361736419 | AW169: 0.001255124654 | AX169: 0.01361736419 | BA169: 0.4082574506 | BB169: 4.429353188 | BG169: 0.4082574506 | BH169: 4.429353188 | BI169: NOx control | BJ169: Selective Noncatalytic Reduction | BL169: Other control | BM169: Dry sorbent injection | BO169: PM control | BP169: Fabric Filter, unspecified | BQ169: 2009-12-01
A170: 3788_4 | B170: coal | C170: 169 | E170: 3788 | F170: Potomac River | G170: VA | H170: 4 | I170: 4 | J170: Conventional Boiler | K170: Tangential firing | L170: 108 | M170: 961 | N170: 8.898148148 | O170: coal - bituminous | P170: bituminous | AM170: 0.00113 | AN170: 0.01005490741 | AO170: 0.00113 | AP170: 0.01005490741 | AU170: 0.000981 | AV170: 0.008729083333 | AW170: 0.000981 | AX170: 0.008729083333 | BE170: 0.27 | BF170: 2.4025 | BG170: 0.27 | BH170: 2.4025 | BI170: SO2 control | BJ170: Dry FGD - Sorbent Injection | BK170: 2006-05-01 | BL170: PM control | BM170: Electrostatic precipitator, hot side, w/o flue gas conditioning | BN170: 1978-10-01 | BO170: PM control | BP170: Electrostatic precipitator, cold side, w/o flue gas conditioning | BQ170: 1956-02-01
A171: 2718_ES-5 | B171: coal | C171: 170 | E171: 2718 | F171: G G Allen | G171: NC | H171: 5-2009 | I171: ES-5 | J171: Conventional Boiler | K171: Tangential firing | L171: 285.3 | M171: 2705 | N171: 9.481247809 | O171: bituminous | P171: bituminous | Q171: 0.0802022888 | R171: 0.007092164444 | AC171: 6.376e-06 | AD171: 6.045243603e-05 | AG171: 6.376e-06 | AH171: 6.045243603e-05 | AI171: 0.001142729067 | AJ171: 0.01083449746 | AO171: 0.001142729067 | AP171: 0.01083449746 | AQ171: 0.0004178508948 | AR171: 0.003961747881 | AW171: 0.0004178508948 | AX171: 0.003961747881 | BA171: 0.1192451495 | BB171: 1.130592812 | BG171: 0.1192451495 | BH171: 1.130592812 | BI171: NOx control | BJ171: Selective Noncatalytic Reduction | BK171: 2008-05-01 | BL171: PM control | BM171: Electrostatic precipitator, cold side, w/ flue gas conditioning | BN171: 2000-06-01 | BO171: SO2 control | BP171: Wet FGD - Spray Type | BQ171: 2009-03-01
A172: 1374_1374 | B172: coal | C172: 171 | E172: 1374 | F172: Elmer Smith Station | G172: KY | H172: Unit001 | I172: 1374 | J172: Conventional Boiler | K172: Cyclone firing | L172: 153 | M172: 1370 | N172: 8.954248366 | O172: bituminous, petroleum coke | P172: bituminous, petroleum coke | Q172: 0.008322743334 | R172: 0.006957448109 | U172: 0.00128 | V172: 0.01061723285 | Y172: 0.00128 | Z172: 0.01061723285 | AC172: 2.1e-05 | AD172: 0.0001741889764 | AG172: 2.1e-05 | AH172: 0.0001741889764 | AI172: 0.001336865825 | AJ172: 0.01108891856 | AO172: 0.001336865825 | AP172: 0.01108891856 | AQ172: 0.0002212239981 | AR172: 0.001834989608 | AW172: 0.0002212239981 | AX172: 0.001834989608 | AY172: 0.6790727978 | AZ172: 5.632714073 | BG172: 0.6790727978 | BH172: 5.632714073 | BI172: NOx control | BJ172: Selective Catalytic Reduction | BK172: 2004-05-01 | BL172: PM control | BM172: Electrostatic precipitator, cold side, w/o flue gas conditioning | BN172: 1993-12-01 | BO172: SO2 control | BP172: Wet FGD - Spray Type | BQ172: 1995-01-01
A173: 1374_1374-2 | B173: coal | C173: 172 | E173: 1374 | F173: Elmer Smith Station | G173: KY | H173: Unit001 | I173: 1374-2 | J173: Conventional Boiler | K173: Tangential firing | L173: 291.5 | M173: 2317 | N173: 7.948542024 | O173: bituminous, petroleum coke | P173: bituminous, petroleum coke | Q173: 0.008322743334 | R173: 0.006957448109 | U173: 0.00128 | V173: 0.01061723285 | Y173: 0.00128 | Z173: 0.01061723285 | AC173: 2.1e-05 | AD173: 0.0001741889764 | AG173: 2.1e-05 | AH173: 0.0001741889764 | AI173: 0.001336865825 | AJ173: 0.01108891856 | AO173: 0.001336865825 | AP173: 0.01108891856 | AQ173: 0.0002212239981 | AR173: 0.001834989608 | AW173: 0.0002212239981 | AX173: 0.001834989608 | AY173: 0.6790727978 | AZ173: 5.632714073 | BG173: 0.6790727978 | BH173: 5.632714073 | BI173: NOx control | BJ173: Selective Catalytic Reduction | BK173: 2004-05-01 | BL173: PM control | BM173: Electrostatic precipitator, cold side, w/o flue gas conditioning | BN173: 1993-12-01 | BO173: SO2 control | BP173: Wet FGD - Spray Type | BQ173: 1995-01-01
A174: 2718_ES-1 | B174: coal | C174: 173 | E174: 2718 | F174: G G Allen | G174: NC | H174: 1-2009 | I174: ES-1 | J174: Conventional Boiler | K174: Tangential firing | L174: 176.2 | M174: 1738 | N174: 9.863791146 | O174: bituminous | P174: bituminous | Q174: 0.0802022888 | R174: 0.007092164444 | AC174: 6.376e-06 | AD174: 6.289153235e-05 | AG174: 6.376e-06 | AH174: 6.289153235e-05 | AI174: 0.001142729067 | AJ174: 0.01127164085 | AO174: 0.001142729067 | AP174: 0.01127164085 | AQ174: 0.0004178508948 | AR174: 0.004121593957 | AW174: 0.0004178508948 | AX174: 0.004121593957 | BA174: 0.1192451495 | BB174: 1.17620925 | BG174: 0.1192451495 | BH174: 1.17620925 | BI174: NOx control | BJ174: Selective Noncatalytic Reduction | BK174: 2004-05-01 | BL174: PM control | BM174: Electrostatic precipitator, cold side, w/o flue gas conditioning | BN174: 1988-10-01 | BO174: SO2 control | BP174: Wet FGD - Spray Type | BQ174: 2009-02-01
A175: 4072_8 | B175: coal | C175: 174 | E175: 4072 | F175: Pulliam | G175: WI | H175: 8 | I175: 8 | J175: Conventional Boiler | K175: Wall firing - rear firing | L175: 137.9 | M175: 1510 | N175: 10.94996374 | O175: subbituminous | P175: subbituminous | Q175: 0.002072619886 | R175: 0.005969119821 | AC175: 0.0002313333333 | AD175: 0.002533091612 | AG175: 0.0002313333333 | AH175: 0.002533091612 | AK175: 0.001182 | AL175: 0.01294285714 | AO175: 0.001182 | AP175: 0.01294285714 | AS175: 0.00197 | AT175: 0.02157142857 | AW175: 0.00197 | AX175: 0.02157142857 | AY175: 0.6070666667 | AZ175: 6.647357989 | BG175: 0.6070666667 | BH175: 6.647357989 | BI175: Other control | BJ175: Activated carbon injection | BL175: PM control | BM175: Electrostatic precipitator, cold side, w/ flue gas conditioning | BN175: 1964-12-01
A176: 10849_BLR1 | B176: coal | C176: 175 | E176: 10849 | F176: Silver Bay Power | G176: MN | H176: GEN1 | I176: BLR1 | J176: Conventional Boiler | K176: Wall firing - front firing | L176: 45 | M176: 371.9118719 | N176: 8.264708264 | O176: subbituminous | P176: subbituminous | Q176: 0.009230769231 | R176: 0.004273504274 | AC176: 2.851879819e-05 | AD176: 0.0002356995471 | AG176: 2.851879819e-05 | AH176: 0.0002356995471 | AK176: 0.001663302344 | AL176: 0.01374670862 | AO176: 0.001663302344 | AP176: 0.01374670862 | AS176: 0.0007506823767 | AT176: 0.006204170842 | AW176: 0.0007506823767 | AX176: 0.006204170842 | AY176: 0.4413333333 | AZ176: 3.647491247 | BE176: 0.3366666667 | BF176: 2.782451782 | BG176: 0.3366666667 | BH176: 2.782451782 | BI176: PM control | BJ176: Fabric Filter, reverse air | BK176: 1980-01-01
A177: 861_1 | B177: coal | C177: 176 | E177: 861 | F177: Coffeen | G177: IL | H177: 001 | I177: 1 | J177: Conventional Boiler | K177: Cyclone firing | L177: 360 | M177: 3282 | N177: 9.116666667 | O177: subbituminous | P177: subbituminous | Q177: 0.02160565691 | AC177: 0.0001123333333 | AD177: 0.001024105556 | AG177: 0.0001123333333 | AH177: 0.001024105556 | AI177: 0.001517904234 | AJ177: 0.01383822693 | AO177: 0.001517904234 | AP177: 0.01383822693 | AQ177: 0.000675357018 | AR177: 0.006157004814 | AW177: 0.000675357018 | AX177: 0.006157004814 | AY177: 0.008466666667 | AZ177: 0.07718777778 | BG177: 0.008466666667 | BH177: 0.07718777778 | BI177: NOx control | BJ177: Selective Catalytic Reduction | BK177: 2003-04-01 | BL177: PM control | BM177: Electrostatic precipitator, cold side, w/ flue gas conditioning | BN177: 1973-01-01 | BO177: SO2 control | BP177: Wet FGD - Unspecified | BQ177: 2009-11-01
A178: 3403_2 | B178: coal | C178: 177 | E178: 3403 | F178: Gallatin | G178: TN | H178: 2 | I178: 2 | J178: Conventional Boiler | K178: Tangential firing | L178: 300 | M178: 2750 | N178: 9.166666667 | O178: subbituminous | P178: subbituminous | Q178: 0.009125963936 | R178: 0.007794478531 | AC178: 2.833333333e-06 | AD178: 2.597222222e-05 | AG178: 2.833333333e-06 | AH178: 2.597222222e-05 | AI178: 0.001558213747 | AJ178: 0.01428362601 | AO178: 0.001558213747 | AP178: 0.01428362601 | AQ178: 0.0009089645315 | AR178: 0.008332174872 | AW178: 0.0009089645315 | AX178: 0.008332174872 | BA178: 0.5952410626 | BB178: 5.456376407 | BG178: 0.5952410626 | BH178: 5.456376407 | BI178: PM control | BJ178: Electrostatic precipitator, cold side, w/o flue gas conditioning | BK178: 1978-09-01
A179: 492_7 | B179: coal | C179: 178 | E179: 492 | F179: Martin Drake | G179: CO | H179: Unit 7 - Coal | I179: 7 | J179: Conventional Boiler | K179: Wall firing - front firing | L179: 141 | M179: 1475 | N179: 10.46099291 | O179: subbituminous, bituminous | P179: subbituminous, bituminous | AM179: 0.001466666667 | AN179: 0.0153427896 | AO179: 0.001466666667 | AP179: 0.0153427896 | AU179: 0.00875 | AV179: 0.09153368794 | AW179: 0.00875 | AX179: 0.09153368794 | BI179: PM control | BJ179: Fabric Filter, reverse air | BK179: 1993-11-01
A180: 10673_BLR B | B180: coal | C180: 179 | E180: 10673 | F180: AES Hawaii | G180: HI | H180: 002 | I180: BLR B | J180: Fluidized bed firing | K180: Fluidized bed firing | L180: 101.5 | M180: 944.2 | N180: 9.302463054 | O180: bituminous | P180: bituminous | Q180: 0.004650152592 | R180: 0.004277989393 | AC180: 0.002159246129 | AD180: 0.02008630734 | AG180: 0.002159246129 | AH180: 0.02008630734 | AI180: 0.00182748423 | AJ180: 0.01700010453 | AO180: 0.00182748423 | AP180: 0.01700010453 | AQ180: 7.89539683e-05 | AR180: 0.0007344663731 | AW180: 7.89539683e-05 | AX180: 0.0007344663731 | AY180: 0.2250333333 | AZ180: 2.093364269 | BG180: 0.2250333333 | BH180: 2.093364269 | BI180: NOx control | BJ180: Selective Noncatalytic Reduction | BL180: PM control | BM180: Fabric Filter, unspecified
A181: 3788_1 | B181: coal | C181: 180 | E181: 3788 | F181: Potomac River | G181: VA | H181: 1 | I181: 1 | J181: Conventional Boiler | K181: Tangential firing | L181: 93 | M181: 970 | N181: 10.43010753 | O181: coal - bituminous | P181: bituminous | AM181: 0.00181 | AN181: 0.01887849462 | AO181: 0.00181 | AP181: 0.01887849462 | AU181: 0.000436 | AV181: 0.004547526882 | AW181: 0.000436 | AX181: 0.004547526882 | BI181: SO2 control | BJ181: Dry FGD - Sorbent Injection | BK181: 2006-05-01 | BL181: PM control | BM181: Electrostatic precipitator, hot side, w/o flue gas conditioning | BN181: 1978-10-01 | BO181: PM control | BP181: Electrostatic precipitator, cold side, w/o flue gas conditioning | BQ181: 1949-10-01
A182: 568_BHB3 | B182: coal | C182: 181 | E182: 568 | F182: Bridgeport Station | G182: CT | H182: BHSEMU3OS2-Coal | I182: BHB3 | J182: Conventional Boiler | K182: Tangential firing | L182: 403 | M182: 4100 | N182: 10.17369727 | O182: subbituminous | P182: subbituminous | Q182: 0.008143514108 | R182: 0.0008143514108 | AC182: 3.903333333e-05 | AD182: 0.0003971133168 | AG182: 3.903333333e-05 | AH182: 0.0003971133168 | AI182: 0.00189933229 | AJ182: 0.01932323174 | AO182: 0.00189933229 | AP182: 0.01932323174 | AQ182: 0.0002108637469 | AR182: 0.002145263926 | AW182: 0.0002108637469 | AX182: 0.002145263926 | BA182: 0.180655837 | BB182: 1.837937796 | BG182: 0.180655837 | BH182: 1.837937796 | BI182: PM control | BJ182: Electrostatic precipitator, cold side, w/o flue gas conditioning | BK182: 1968-08-01 | BL182: Other control | BM182: Activated carbon injection | BN182: 2008-07-01 | BO182: PM control | BP182: Fabric Filter, pulse | BQ182: 2008-01-01
A183: 6098_001 | B183: coal | C183: 182 | E183: 6098 | F183: Big Stone | G183: SD | H183: 001 | I183: 001 | J183: Conventional Boiler | K183: Cyclone firing | L183: 495 | M183: 5309 | N183: 10.72525253 | O183: subbituminous | P183: subbituminous | AM183: 0.001833333333 | AN183: 0.01966296296 | AO183: 0.001833333333 | AP183: 0.01966296296 | AU183: 0.00057 | AV183: 0.006113393939 | AW183: 0.00057 | AX183: 0.006113393939 | BI183: PM control | BJ183: Fabric Filter, pulse | BK183: 2007-12-01
A184: 492_5 | B184: coal | C184: 183 | E184: 492 | F184: Martin Drake | G184: CO | H184: Unit 5 - Coal | I184: 5 | J184: Conventional Boiler | K184: Wall firing - front firing | L184: 55 | M184: 570 | N184: 10.36363636 | O184: subbituminous | P184: subbituminous | AM184: 0.00203 | AN184: 0.02103818182 | AO184: 0.00203 | AP184: 0.02103818182 | AU184: 0.00314 | AV184: 0.03254181818 | AW184: 0.00314 | AX184: 0.03254181818 | BI184: PM control | BJ184: Fabric Filter, reverse air | BK184: 1998-05-01
A185: 54081_1A | B185: coal | C185: 184 | E185: 54081 | F185: Spruance Genco, LLC | G185: VA | H185: GEN1 | I185: 1A | J185: Conventional Boiler | K185: Stoker - underfeed | L185: 28.7 | M185: 375 | N185: 13.06620209 | O185: bituminous | P185: bituminous | Q185: 0.09644363661 | R185: 0.00441299754 | AC185: 3.043537706e-05 | AD185: 0.0003976747874 | AG185: 3.043537706e-05 | AH185: 0.0003976747874 | AI185: 0.001774338206 | AJ185: 0.02318386158 | AO185: 0.001774338206 | AP185: 0.02318386158 | AQ185: 4.658419845e-05 | AR185: 0.0006086785512 | AW185: 4.658419845e-05 | AX185: 0.0006086785512 | BA185: 0.05156335829 | BB185: 0.6737372599 | BG185: 0.05156335829 | BH185: 0.6737372599 | BI185: SO2 control | BJ185: Dry FGD - Spray Dryer | BK185: 1992-05-01 | BL185: SO2 control | BM185: Dry FGD - Spray Dryer | BN185: 1992-05-01 | BO185: PM control | BP185: Fabric Filter, pulse | BQ185: 1992-05-01 | BR185: PM control | BS185: Fabric Filter, pulse | BT185: 1992-05-01
A186: 54081_1B | B186: coal | C186: 185 | E186: 54081 | F186: Spruance Genco, LLC | G186: VA | H186: GEN1 | I186: 1B | J186: Conventional Boiler | K186: Stoker - underfeed | L186: 28.7 | M186: 375 | N186: 13.06620209 | O186: bituminous | P186: bituminous | Q186: 0.09644363661 | R186: 0.00441299754 | AC186: 3.043537706e-05 | AD186: 0.0003976747874 | AG186: 3.043537706e-05 | AH186: 0.0003976747874 | AI186: 0.001774338206 | AJ186: 0.02318386158 | AO186: 0.001774338206 | AP186: 0.02318386158 | AQ186: 4.658419845e-05 | AR186: 0.0006086785512 | AW186: 4.658419845e-05 | AX186: 0.0006086785512 | BA186: 0.05156335829 | BB186: 0.6737372599 | BG186: 0.05156335829 | BH186: 0.6737372599 | BI186: SO2 control | BJ186: Dry FGD - Spray Dryer | BK186: 1992-05-01 | BL186: SO2 control | BM186: Dry FGD - Spray Dryer | BN186: 1992-05-01 | BO186: PM control | BP186: Fabric Filter, pulse | BQ186: 1992-05-01 | BR186: PM control | BS186: Fabric Filter, pulse | BT186: 1992-05-01
A187: 1626_1 | B187: coal | C187: 186 | E187: 1626 | F187: Salem Harbor | G187: MA | H187: Unit 1 | I187: 1 | J187: Conventional Boiler | K187: Wall firing - front firing | L187: 81.419 | M187: 981 | N187: 12.04878468 | O187: bituminous | P187: bituminous | Q187: 0.001676923077 | R187: 0.002953846154 | AC187: 0.005592868147 | AD187: 0.06738726405 | AG187: 0.005592868147 | AH187: 0.06738726405 | AI187: 0.002039590701 | AJ187: 0.02457458919 | AO187: 0.002039590701 | AP187: 0.02457458919 | AQ187: 0.001964116791 | AR187: 0.02366522031 | AW187: 0.001964116791 | AX187: 0.02366522031 | BA187: 0.7623786045 | BB187: 9.185735652 | BG187: 0.7623786045 | BH187: 9.185735652 | BI187: NOx control | BJ187: Selective Noncatalytic Reduction | BK187: 1993-08-01 | BL187: PM control | BM187: Electrostatic precipitator, cold side, w/o flue gas conditioning | BN187: 1984-07-01
A188: 1393_6 | B188: coal | C188: 187 | E188: 1393 | F188: RS Nelson | G188: LA | H188: 001 | I188: 6 | J188: Conventional Boiler | K188: Tangential firing | L188: 580 | M188: 5761 | N188: 9.932758621 | O188: bituminous | P188: bituminous | Q188: 0.001038705573 | R188: 0.005079751796 | AC188: 0.0001286666667 | AD188: 0.001278014943 | AG188: 0.0001286666667 | AH188: 0.001278014943 | AK188: 0.00258 | AL188: 0.02562651724 | AO188: 0.00258 | AP188: 0.02562651724 | AS188: 0.001049666667 | AT188: 0.01042608563 | AW188: 0.001049666667 | AX188: 0.01042608563 | BA188: 0.6405624633 | BB188: 6.36255233 | BG188: 0.6405624633 | BH188: 6.36255233 | BI188: PM control | BJ188: Electrostatic precipitator, unspecified | BK188: 1982-05-01
A189: 3845_BD21 | B189: coal | C189: 188 | E189: 3845 | F189: TransAlta Centralia Generation | G189: WA | H189: BW21CONFIG | I189: BD21 | J189: Conventional Boiler | K189: Tangential firing | L189: 603 | M189: 7743 | N189: 12.84079602 | O189: subbituminous | P189: subbituminous | Q189: 0.00491693724 | R189: 0.008516725805 | AC189: 2.01e-05 | AD189: 0.0002581 | AG189: 2.01e-05 | AH189: 0.0002581 | AI189: 0.002121789834 | AJ189: 0.02724547045 | AO189: 0.002121789834 | AP189: 0.02724547045 | AQ189: 0.002176588886 | AR189: 0.02794913391 | AW189: 0.002176588886 | AX189: 0.02794913391 | AY189: 0.05706666667 | AZ189: 0.7327814262 | BE189: 0.0213 | BF189: 0.2735089552 | BG189: 0.0213 | BH189: 0.2735089552 | BI189: PM control | BJ189: Electrostatic precipitator, hot side, w/o flue gas conditioning | BK189: 1972-01-01 | BL189: SO2 control | BM189: Wet FGD - Spray Type | BN189: 2002-06-01
A190: 10673_BLR A | B190: coal | C190: 189 | E190: 10673 | F190: AES Hawaii | G190: HI | H190: 001 | I190: BLR A | J190: Fluidized bed firing | K190: Fluidized bed firing | L190: 101.5 | M190: 1021.4 | N190: 10.06305419 | O190: bituminous | P190: bituminous | Q190: 0.005514046507 | R190: 0.005188146802 | AC190: 0.001947216145 | AD190: 0.01959494158 | AG190: 0.001947216145 | AH190: 0.01959494158 | AI190: 0.002894744215 | AJ190: 0.02912996789 | AO190: 0.002894744215 | AP190: 0.02912996789 | AQ190: 6.211126443e-05 | AR190: 0.0006250290196 | AW190: 6.211126443e-05 | AX190: 0.0006250290196 | AY190: 0.2233333333 | AZ190: 2.247415435 | BG190: 0.2233333333 | BH190: 2.247415435 | BI190: NOx control | BJ190: Selective Noncatalytic Reduction | BL190: PM control | BM190: Fabric Filter, unspecified
A191: 3845_BD22 | B191: coal | C191: 190 | E191: 3845 | F191: TransAlta Centralia Generation | G191: WA | H191: BW22CONFIG | I191: BD22 | J191: Conventional Boiler | K191: Tangential firing | L191: 567 | M191: 7743 | N191: 13.65608466 | O191: subbituminous | P191: subbituminous | Q191: 0.003769570025 | R191: 0.005397929755 | AC191: 2.183333333e-05 | AD191: 0.0002981578483 | AG191: 2.183333333e-05 | AH191: 0.0002981578483 | AI191: 0.002294578485 | AJ191: 0.03133495804 | AO191: 0.002294578485 | AP191: 0.03133495804 | AQ191: 0.002294578485 | AR191: 0.03133495804 | AW191: 0.002294578485 | AX191: 0.03133495804 | AY191: 0.0525 | AZ191: 0.7169444444 | BE191: 0.02333333333 | BF191: 0.3186419753 | BG191: 0.02333333333 | BH191: 0.3186419753 | BI191: PM control | BJ191: Electrostatic precipitator, hot side, w/o flue gas conditioning | BK191: 1971-12-01 | BL191: SO2 control | BM191: Wet FGD - Spray Type | BN191: 2001-10-01
A192: 645_1 | B192: coal | C192: 191 | E192: 645 | F192: Big Bend | G192: FL | H192: BB01_pre-SCR | I192: 1 | J192: Conventional Boiler | K192: Wall firing - opposed firing | L192: 410 | M192: 4037 | N192: 9.846341463 | O192: bituminous | P192: bituminous | Q192: 0.145482389 | R192: 0.005206738132 | AC192: 0.03006185479 | AD192: 0.2959992873 | AG192: 0.03006185479 | AH192: 0.2959992873 | AI192: 0.003789013583 | AJ192: 0.03730792155 | AO192: 0.003789013583 | AP192: 0.03730792155 | AQ192: 8.980537012e-05 | AR192: 0.0008842543395 | AW192: 8.980537012e-05 | AX192: 0.0008842543395 | BE192: 0.08290114343 | BF192: 0.8162729659 | BG192: 0.08290114343 | BH192: 0.8162729659 | BI192: PM control | BJ192: Electrostatic precipitator, hot side, w/o flue gas conditioning | BK192: 1970-10-01 | BL192: SO2 control | BM192: Wet FGD - Packed Type | BN192: 1999-12-01
A193: 8223_4 | B193: coal | C193: 192 | E193: 8223 | F193: Springerville | G193: AZ | H193: 4 | I193: 4 | J193: Conventional Boiler | K193: Wall firing - opposed firing | L193: 450 | M193: 4200 | N193: 9.333333333 | O193: bituminous | P193: bituminous | Q193: 0.0008964578973 | R193: 0.004946523684 | AC193: 0.0005956666667 | AD193: 0.005559555556 | AG193: 0.0005956666667 | AH193: 0.005559555556 | AK193: 0.004646166667 | AL193: 0.04336422222 | AO193: 0.004646166667 | AP193: 0.04336422222 | AS193: 0.000252 | AT193: 0.002352 | AU193: 0.0001 | AV193: 0.0009333333333 | AW193: 0.0001 | AX193: 0.0009333333333 | AY193: 0.06923333333 | AZ193: 0.6461777778 | BG193: 0.06923333333 | BH193: 0.6461777778 | BI193: NOx control | BJ193: Selective Catalytic Reduction | BK193: 2009-12-01 | BL193: SO2 control | BM193: Dry FGD - Spray Dryer | BN193: 2009-12-01 | BO193: PM control | BP193: Fabric Filter, pulse | BQ193: 2009-12-01
A194: =E194&"_"&I194 -> 10671_1A | B194: coal | C194: 193 | E194: 10671 | F194: AES Shady Point,LLC | G194: OK | H194: Unit 1 | I194: 1A | J194: Fluidized bed firing | K194: Fluidized bed firing | L194: 80 | M194: 1110.435036 | N194: 13.88043795 | O194: bituminous, subbituminous | P194: bituminous, subbituminous | Q194: 0.008453801338 | R194: 0.006032783628 | AC194: 0.001903529857 | AD194: 0.02642182806 | AG194: 0.001903529857 | AH194: 0.02642182806 | AI194: 0.003264992964 | AJ194: 0.04531953224 | AO194: 0.003264992964 | AP194: 0.04531953224 | AQ194: 0.0002034633274 | AR194: 0.002824160091 | AW194: 0.0002034633274 | AX194: 0.002824160091 | AY194: 0.3483333333 | AZ194: 4.835019219 | BG194: 0.3483333333 | BH194: 4.835019219 | BI194: PM control | BJ194: Fabric Filter, pulse | BK194: 1991-01-01
A195: 10671_1b | B195: coal | C195: 194 | E195: 10671 | F195: AES Shady Point,LLC | G195: OK | H195: Unit 1 | I195: 1b | J195: Fluidized bed firing | K195: Fluidized bed firing | L195: 80 | M195: 1110.435036 | N195: 13.88043795 | O195: bituminous, subbituminous | P195: bituminous, subbituminous | Q195: 0.008453801338 | R195: 0.006032783628 | AC195: 0.001903529857 | AD195: 0.02642182806 | AG195: 0.001903529857 | AH195: 0.02642182806 | AI195: 0.003264992964 | AJ195: 0.04531953224 | AO195: 0.003264992964 | AP195: 0.04531953224 | AQ195: 0.0002034633274 | AR195: 0.002824160091 | AW195: 0.0002034633274 | AX195: 0.002824160091 | AY195: 0.3483333333 | AZ195: 4.835019219 | BG195: 0.3483333333 | BH195: 4.835019219 | BI195: PM control | BJ195: Fabric Filter, pulse | BK195: 1991-01-01
A196: 10671_2a | B196: coal | C196: 195 | E196: 10671 | F196: AES Shady Point,LLC | G196: OK | H196: Unit 2 | I196: 2a | J196: Fluidized bed firing | K196: Fluidized bed firing | L196: 80 | M196: 1110.435036 | N196: 13.88043795 | O196: bituminous, subbituminous | P196: bituminous, subbituminous | Q196: 0.008453801338 | R196: 0.006032783628 | AC196: 0.001903529857 | AD196: 0.02642182806 | AG196: 0.001903529857 | AH196: 0.02642182806 | AI196: 0.003264992964 | AJ196: 0.04531953224 | AO196: 0.003264992964 | AP196: 0.04531953224 | AQ196: 0.0002034633274 | AR196: 0.002824160091 | AW196: 0.0002034633274 | AX196: 0.002824160091 | AY196: 0.3483333333 | AZ196: 4.835019219 | BG196: 0.3483333333 | BH196: 4.835019219 | BI196: PM control | BJ196: Fabric Filter, pulse | BK196: 1991-01-01
A197: 10671_2b | B197: coal | C197: 196 | E197: 10671 | F197: AES Shady Point,LLC | G197: OK | H197: Unit 2 | I197: 2b | J197: Fluidized bed firing | K197: Fluidized bed firing | L197: 80 | M197: 1110.435036 | N197: 13.88043795 | O197: bituminous, subbituminous | P197: bituminous, subbituminous | Q197: 0.008453801338 | R197: 0.006032783628 | AC197: 0.001903529857 | AD197: 0.02642182806 | AG197: 0.001903529857 | AH197: 0.02642182806 | AI197: 0.003264992964 | AJ197: 0.04531953224 | AO197: 0.003264992964 | AP197: 0.04531953224 | AQ197: 0.0002034633274 | AR197: 0.002824160091 | AW197: 0.0002034633274 | AX197: 0.002824160091 | AY197: 0.3483333333 | AZ197: 4.835019219 | BG197: 0.3483333333 | BH197: 4.835019219 | BI197: PM control | BJ197: Fabric Filter, pulse | BK197: 1991-01-01
A198: 645_2 | B198: coal | C198: 197 | E198: 645 | F198: Big Bend | G198: FL | H198: BB02_SCR | I198: 2 | J198: Conventional Boiler | K198: Wall firing - opposed firing | L198: 410 | M198: 3996 | N198: 9.746341463 | O198: bituminous | P198: bituminous | Q198: 0.1379211719 | R198: 0.005561739238 | AA198: 3.580576867e-05 | AB198: 0.0003489752478 | AG198: 3.580576867e-05 | AH198: 0.0003489752478 | AI198: 0.006338783982 | AJ198: 0.06177995315 | AO198: 0.006338783982 | AP198: 0.06177995315 | AQ198: 9.170194332e-05 | AR198: 0.0008937584524 | AW198: 9.170194332e-05 | AX198: 0.0008937584524 | BI198: NOx control | BJ198: Selective Catalytic Reduction | BK198: 2009-05-01 | BL198: PM control | BM198: Electrostatic precipitator, hot side, w/o flue gas conditioning | BN198: 1973-04-01 | BO198: SO2 control | BP198: Wet FGD - Packed Type | BQ198: 1999-12-01
A199: 2324_1 | B199: coal | C199: 198 | E199: 2324 | F199: Reid Gardner | G199: NV | H199: 1 | I199: 1 | J199: Conventional Boiler | K199: Wall firing - front firing | L199: 111 | M199: 1215 | N199: 10.94594595 | O199: bituminous | P199: bituminous | Q199: 0.02389710893 | R199: 0.008176863946 | AC199: 0.000713 | AD199: 0.007804459459 | AG199: 0.000713 | AH199: 0.007804459459 | AI199: 0.005713059922 | AJ199: 0.0625348451 | AO199: 0.005713059922 | AP199: 0.0625348451 | AQ199: 0.000527849254 | AR199: 0.005777809402 | AW199: 0.000527849254 | AX199: 0.005777809402 | BA199: 0.06214711852 | BB199: 0.680259 | BE199: 0.055 | BF199: 0.602027027 | BG199: 0.055 | BH199: 0.602027027 | BI199: PM control | BJ199: Fabric Filter, pulse | BK199: 2008-12-01 | BL199: SO2 control | BM199: Wet FGD - Venturi Type | BN199: 1976-07-01
A200: 1040_2 | B200: coal | C200: 199 | E200: 1040 | F200: Whitewater Valley | G200: IN | H200: 002 | I200: 2 | J200: Conventional Boiler | K200: Tangential firing | L200: 69 | M200: 730 | N200: 10.57971014 | O200: bituminous | P200: bituminous | Q200: 0.01684125131 | R200: 0.004245173907 | AC200: 2.623333333e-05 | AD200: 0.0002775410628 | AG200: 2.623333333e-05 | AH200: 0.0002775410628 | AI200: 0.007262196722 | AJ200: 0.07683193633 | AO200: 0.007262196722 | AP200: 0.07683193633 | AQ200: 0.004695870657 | AR200: 0.04968095043 | AW200: 0.004695870657 | AX200: 0.04968095043 | BA200: 3.548030606 | BB200: 37.53713539 | BG200: 3.548030606 | BH200: 37.53713539 | BI200: NOx control | BJ200: Selective Noncatalytic Reduction | BK200: 2003-09-01 | BL200: PM control | BM200: Electrostatic precipitator, unspecified | BN200: 1973-05-16 | BO200: PM control | BP200: Fabric Filter, unspecified | BQ200: 2009-01-06
... 142 more rows

Sheet HCl_Variability
A1: facility_name | B1: facility_id | C1: boiler_id | D1: configuration_id | E1: compound | F1: Final_EF | G1: Final_EF_Units | H1: Final_Output_EF | I1: Final_Output_EF_Units | J1: From | K1: Report_id | L1: HCl_Min_lb_per_MWh_Rank | M1: New Souce MACT Floor Test_ID | N1: New Source MACT Floor QA Calc | O1: New Source Floor Agreement of QA Calc
A2: =VLOOKUP(B2&"_"&C2,HCl_Min_Tests!A:BV,6,FALSE) -> Logan Generating Plant | B2: 10043 | C2: B01 | D2: Unit1 | E2: Hydrogen Chloride | F2: 1.287282744e-05 | G2: lb/MMBtu | H2: 0.000112697157 | I2: lb/MW | J2: ERT | L2: 1 | M2: 1_HCl_T1 | N2: 0.0001193739087 | O2: =N2/H2 -> 1.059245076
A3: =VLOOKUP(B3&"_"&C3,HCl_Min_Tests!A:BV,6,FALSE) -> Logan Generating Plant | B3: 10043 | C3: B01 | D3: Unit1 | E3: Hydrogen Chloride | F3: 7.807615681e-05 | G3: lb/MMBtu | H3: 0.00068352978 | I3: lb/MW | J3: Part II | K3: 2009 Annual Stack Test 3 | L3: 1 | M3: 1_HCl_T6 | N3: 0.0006838783299 | O3: 1.000509927
A4: =VLOOKUP(B4&"_"&C4,HCl_Min_Tests!A:BV,6,FALSE) -> Logan Generating Plant | B4: 10043 | C4: B01 | D4: Unit1 | E4: Hydrogen Chloride | F4: 7.868907198e-05 | G4: lb/MMBtu | H4: 0.0006888956405 | I4: lb/MW | J4: Part II | K4: 2006 Annual Stack Test 2 | L4: 1 | M4: 1_HCl_T3 | N4: 0.0006892469267 | O4: 1.000509927
A5: =VLOOKUP(B5&"_"&C5,HCl_Min_Tests!A:BV,6,FALSE) -> Logan Generating Plant | B5: 10043 | C5: B01 | D5: Unit1 | E5: Hydrogen Chloride | F5: 0.0001184019569 | G5: lb/MMBtu | H5: 0.001036568229 | I5: lb/MW | J5: Part II | K5: 2005 Annual Stack Test 6 | L5: 1 | M5: 1_HCl_T2 | N5: 0.001036799187 | O5: 1.00022281
A6: =VLOOKUP(B6&"_"&C6,HCl_Min_Tests!A:BV,6,FALSE) -> Logan Generating Plant | B6: 10043 | C6: B01 | D6: Unit1 | E6: Hydrogen Chloride | F6: 0.0001874804691 | G6: lb/MMBtu | H6: 0.001641326738 | I6: lb/MW | J6: Part II | K6: 2007 Annual Stack Test 3 | L6: 1 | M6: 1_HCl_T4 | N6: 0.001642163694 | O6: 1.000509927
A7: =VLOOKUP(B7&"_"&C7,HCl_Min_Tests!A:BV,6,FALSE) -> Logan Generating Plant | B7: 10043 | C7: B01 | D7: Unit1 | E7: Hydrogen Chloride | F7: 0.0004124043302 | G7: lb/MMBtu | H7: 0.003610457438 | I7: lb/MW | J7: Part II | K7: 2008 Annual Stack Test 3 | L7: 1 | M7: 1_HCl_T5 | N7: 0.003612298506 | O7: 1.000509927
A8: =VLOOKUP(B8&"_"&C8,HCl_Min_Tests!A:BV,6,FALSE) -> Seward | B8: 3130 | C8: 1 | D8: SEW-1 | E8: Hydrogen Chloride | F8: 1.926666667e-05 | G8: lb/MMBtu | H8: 0.0002041937322 | I8: lb/MW | J8: Part II | K8: SE111 | L8: 2
A9: =VLOOKUP(B9&"_"&C9,HCl_Min_Tests!A:BV,6,FALSE) -> Seward | B9: 3130 | C9: 1 | D9: SEW-1 | E9: Hydrogen Chloride | F9: 0.0001474192393 | G9: lb/MMBtu | H9: 0.001562391938 | I9: lb/MW | J9: ERT | L9: 2
A10: =VLOOKUP(B10&"_"&C10,HCl_Min_Tests!A:BV,6,FALSE) -> Seward | B10: 3130 | C10: 2 | D10: SEW-1 | E10: Hydrogen Chloride | F10: 1.926666667e-05 | G10: lb/MMBtu | H10: 0.0002041937322 | I10: lb/MW | J10: Part II | K10: SE111 | L10: 3
A11: =VLOOKUP(B11&"_"&C11,HCl_Min_Tests!A:BV,6,FALSE) -> Seward | B11: 3130 | C11: 2 | D11: SEW-1 | E11: Hydrogen Chloride | F11: 0.0001474192393 | G11: lb/MMBtu | H11: 0.001562391938 | I11: lb/MW | J11: ERT | L11: 3
A12: =VLOOKUP(B12&"_"&C12,HCl_Min_Tests!A:BV,6,FALSE) -> Spruance Genco, LLC | B12: 54081 | C12: 3A | D12: GEN3 | E12: Hydrogen Chloride | F12: 1.611755686e-05 | G12: lb/MMBtu | H12: 0.0002105952552 | I12: lb/MW | J12: ERT | L12: 4
A13: =VLOOKUP(B13&"_"&C13,HCl_Min_Tests!A:BV,6,FALSE) -> Spruance Genco, LLC | B13: 54081 | C13: 3B | D13: GEN3 | E13: Hydrogen Chloride | F13: 1.611755686e-05 | G13: lb/MMBtu | H13: 0.0002105952552 | I13: lb/MW | J13: ERT | L13: 5
A14: =VLOOKUP(B14&"_"&C14,HCl_Min_Tests!A:BV,6,FALSE) -> Spruance Genco, LLC | B14: 54081 | C14: 2A | D14: GEN2 | E14: Hydrogen Chloride | F14: 1.693299655e-05 | G14: lb/MMBtu | H14: 0.0002212499549 | I14: lb/MW | J14: ERT | L14: 6
A15: =VLOOKUP(B15&"_"&C15,HCl_Min_Tests!A:BV,6,FALSE) -> Spruance Genco, LLC | B15: 54081 | C15: 2B | D15: GEN2 | E15: Hydrogen Chloride | F15: 1.693299655e-05 | G15: lb/MMBtu | H15: 0.0002212499549 | I15: lb/MW | J15: ERT | L15: 7
A16: =VLOOKUP(B16&"_"&C16,HCl_Min_Tests!A:BV,6,FALSE) -> Sandow Station | B16: 52071 | C16: 5A | D16: 5A | E16: Hydrogen Chloride | F16: 2.118590364e-05 | G16: lb/MMBtu | H16: 0.0002221012034 | I16: lb/MW | J16: Part II | K16: 2-Source Emissions Survey, Stacks | L16: 8
A17: =VLOOKUP(B17&"_"&C17,HCl_Min_Tests!A:BV,6,FALSE) -> Sandow Station | B17: 52071 | C17: 5A | D17: 5A | E17: Hydrogen Chloride | F17: 9.243541696e-05 | G17: lb/MMBtu | H17: 0.0009690413819 | I17: lb/MW | J17: ERT | L17: 8
A18: =VLOOKUP(B18&"_"&C18,HCl_Min_Tests!A:BV,6,FALSE) -> HOLCOMB | B18: 108 | C18: SGU1 | D18: SGU1 | E18: Hydrogen Chloride | F18: 2.6e-05 | G18: lb/MMBtu | H18: 0.0002276847545 | I18: lb/MW | J18: Part II | K18: M093106 | L18: 9
A19: =VLOOKUP(B19&"_"&C19,HCl_Min_Tests!A:BV,6,FALSE) -> Hatfield's Ferry Power Station | B19: 3179 | C19: 1 | D19: 001 | E19: Hydrogen Chloride | F19: 2.47e-05 | G19: lb/MMBtu | H19: 0.0002386271186 | I19: lb/MW | J19: Part II | K19: HCL-HF-11/09-1 | L19: 10
A20: =VLOOKUP(B20&"_"&C20,HCl_Min_Tests!A:BV,6,FALSE) -> Hatfield's Ferry Power Station | B20: 3179 | C20: 1 | D20: 001 | E20: Hydrogen Chloride | F20: 0.0001312962964 | G20: lb/MMBtu | H20: 0.001268455745 | I20: lb/MW | J20: ERT | L20: 10
A21: =VLOOKUP(B21&"_"&C21,HCl_Min_Tests!A:BV,6,FALSE) -> Sandow Station | B21: 52071 | C21: 5B | D21: 5B | E21: Hydrogen Chloride | F21: 2.552381247e-05 | G21: lb/MMBtu | H21: 0.0002675774213 | I21: lb/MW | J21: Part II | K21: 2-Source Emissions Survey, Stacks | L21: 11
A22: =VLOOKUP(B22&"_"&C22,HCl_Min_Tests!A:BV,6,FALSE) -> Sandow Station | B22: 52071 | C22: 5B | D22: 5B | E22: Hydrogen Chloride | F22: 3.018452875e-05 | G22: lb/MMBtu | H22: 0.0003164377727 | I22: lb/MW | J22: ERT | L22: 11
A23: =VLOOKUP(B23&"_"&C23,HCl_Min_Tests!A:BV,6,FALSE) -> Rawhide | B23: 6761 | C23: 101 | D23: Rawhide101 | E23: Hydrogen Chloride | F23: 3.608101074e-05 | G23: lb/MMBtu | H23: 0.0003312355084 | I23: lb/MW | J23: Part II | K23: Nov 2009 PM, HCL & HF Testing | L23: 12
A24: =VLOOKUP(B24&"_"&C24,HCl_Min_Tests!A:BV,6,FALSE) -> Rawhide | B24: 6761 | C24: 101 | D24: Rawhide101 | E24: Hydrogen Chloride | F24: 6e-05 | G24: lb/MMBtu | H24: 0.0005508196721 | I24: lb/MW | J24: Part II | K24: Feb 2006 PM, HCL, and HF Testing | L24: 12
A25: =VLOOKUP(B25&"_"&C25,HCl_Min_Tests!A:BV,6,FALSE) -> Rawhide | B25: 6761 | C25: 101 | D25: Rawhide101 | E25: Hydrogen Chloride | F25: 0.00016 | G25: lb/MMBtu | H25: 0.001468852459 | I25: lb/MW | J25: Part II | K25: Oct 2006 PM, HCL & HF Testing | L25: 12
A26: =VLOOKUP(B26&"_"&C26,HCl_Min_Tests!A:BV,6,FALSE) -> Rawhide | B26: 6761 | C26: 101 | D26: Rawhide101 | E26: Hydrogen Chloride | F26: 0.00032 | G26: lb/MMBtu | H26: 0.002937704918 | I26: lb/MW | J26: Part II | K26: Nov 2007 PM, HCL & HF Testing | L26: 12
A27: =VLOOKUP(B27&"_"&C27,HCl_Min_Tests!A:BV,6,FALSE) -> Rawhide | B27: 6761 | C27: 101 | D27: Rawhide101 | E27: Hydrogen Chloride | F27: 0.0003335388845 | G27: lb/MMBtu | H27: 0.003061996316 | I27: lb/MW | J27: ERT | L27: 12
A28: =VLOOKUP(B28&"_"&C28,HCl_Min_Tests!A:BV,6,FALSE) -> Rawhide | B28: 6761 | C28: 101 | D28: Rawhide101 | E28: Hydrogen Chloride | F28: 0.000351 | G28: lb/MMBtu | H28: 0.003222295082 | I28: lb/MW | J28: Part II | K28: Dec 2008 PM, HCL & HF Testing | L28: 12
A29: =VLOOKUP(B29&"_"&C29,HCl_Min_Tests!A:BV,6,FALSE) -> INDIANTOWN COGENERATION L.P. | B29: 50976 | C29: AABO1 | D29: 001 | E29: Hydrogen Chloride | F29: 3.576646636e-05 | G29: lb/MMBtu | H29: 0.0003390383598 | I29: lb/MW | J29: ERT | L29: 13
A30: =VLOOKUP(B30&"_"&C30,HCl_Min_Tests!A:BV,6,FALSE) -> Walter Scott Jr. Energy Center | B30: 1082 | C30: 4 | D30: 4 | E30: Hydrogen Chloride | F30: 3.8e-05 | G30: lb/MMBtu | H30: 0.0003431176471 | I30: lb/MW | J30: Part II | K30: 5/2007 HCL | L30: 14
A31: =VLOOKUP(B31&"_"&C31,HCl_Min_Tests!A:BV,6,FALSE) -> Walter Scott Jr. Energy Center | B31: 1082 | C31: 4 | D31: 4 | E31: Hydrogen Chloride | F31: 5.9e-05 | G31: lb/MMBtu | H31: 0.0005327352941 | I31: lb/MW | J31: Part II | K31: 8/2007 HCL | L31: 14
A32: =VLOOKUP(B32&"_"&C32,HCl_Min_Tests!A:BV,6,FALSE) -> Walter Scott Jr. Energy Center | B32: 1082 | C32: 4 | D32: 4 | E32: Hydrogen Chloride | F32: 7.372351989e-05 | G32: lb/MMBtu | H32: 0.0006656800179 | I32: lb/MW | J32: ERT | L32: 14
A33: =VLOOKUP(B33&"_"&C33,HCl_Min_Tests!A:BV,6,FALSE) -> Roanoke Valley II | B33: 54755 | C33: BLR2 | D33: Boiler 2 | E33: Hydrogen Chloride | F33: 3.217480824e-05 | G33: lb/MMBtu | H33: 0.0003603578522 | I33: lb/MW | J33: ERT | L33: 15
A34: =VLOOKUP(B34&"_"&C34,HCl_Min_Tests!A:BV,6,FALSE) -> Roanoke Valley II | B34: 54755 | C34: BLR2 | D34: Boiler 2 | E34: Hydrogen Chloride | F34: 0.000492 | G34: lb/MMBtu | H34: 0.0055104 | I34: lb/MW | J34: Part II | K34: 2008 HCl Test | L34: 15
A35: =VLOOKUP(B35&"_"&C35,HCl_Min_Tests!A:BV,6,FALSE) -> Chambers Cogeneration LP | B35: 10566 | C35: Boil 1 | D35: Boil 1 | E35: Hydrogen Chloride | F35: 4.239954028e-05 | G35: lb/MMBtu | H35: 0.0004126888587 | I35: lb/MW | J35: ERT | L35: 16
A36: =VLOOKUP(B36&"_"&C36,HCl_Min_Tests!A:BV,6,FALSE) -> Cross | B36: 130 | C36: 4 | D36: C4 | E36: Hydrogen Chloride | F36: 4.096666667e-05 | G36: lb/MMBtu | H36: 0.00044558624 | I36: lb/MW | J36: Part II | K36: C4TVIC2008 | L36: 17
A37: =VLOOKUP(B37&"_"&C37,HCl_Min_Tests!A:BV,6,FALSE) -> Cross | B37: 130 | C37: 4 | D37: C4 | E37: Hydrogen Chloride | F37: 0.0002289708131 | G37: lb/MMBtu | H37: 0.00249046974 | I37: lb/MW | J37: ERT | L37: 17
A38: =VLOOKUP(B38&"_"&C38,HCl_Min_Tests!A:BV,6,FALSE) -> Navajo Generating Station | B38: 4941 | C38: 1 | D38: 001 | E38: Hydrogen Chloride | F38: 5e-05 | G38: lb/MMBtu | H38: 0.0004587438424 | I38: lb/MW | J38: ETTS | L38: 18
A39: =VLOOKUP(B39&"_"&C39,HCl_Min_Tests!A:BV,6,FALSE) -> Navajo Generating Station | B39: 4941 | C39: 1 | D39: 001 | E39: Hydrogen Chloride | F39: 6.480937102e-05 | G39: lb/MMBtu | H39: 0.0005946179977 | I39: lb/MW | J39: ERT | L39: 18
A40: =VLOOKUP(B40&"_"&C40,HCl_Min_Tests!A:BV,6,FALSE) -> Spruance Genco, LLC | B40: 54081 | C40: 4A | D40: GEN4 | E40: Hydrogen Chloride | F40: 3.842044378e-05 | G40: lb/MMBtu | H40: 0.0005020092829 | I40: lb/MW | J40: ERT | L40: 19
A41: =VLOOKUP(B41&"_"&C41,HCl_Min_Tests!A:BV,6,FALSE) -> Spruance Genco, LLC | B41: 54081 | C41: 4B | D41: GEN4 | E41: Hydrogen Chloride | F41: 3.842044378e-05 | G41: lb/MMBtu | H41: 0.0005020092829 | I41: lb/MW | J41: ERT | L41: 20
A42: =VLOOKUP(B42&"_"&C42,HCl_Min_Tests!A:BV,6,FALSE) -> Chambers Cogeneration LP | B42: 10566 | C42: Boil 2 | D42: Boil 2 | E42: Hydrogen Chloride | F42: 5.600886329e-05 | G42: lb/MMBtu | H42: 0.0005451529361 | I42: lb/MW | J42: ERT | L42: 21
A43: =VLOOKUP(B43&"_"&C43,HCl_Min_Tests!A:BV,6,FALSE) -> Hardin Generator Project | B43: 55749 | C43: PC1 | D43: PC1 | E43: Hydrogen Chloride | F43: 5e-05 | G43: lb/MMBtu | H43: 0.0005478991597 | I43: lb/MW | J43: Part II | K43: 1 | L43: 22
A44: =VLOOKUP(B44&"_"&C44,HCl_Min_Tests!A:BV,6,FALSE) -> Hardin Generator Project | B44: 55749 | C44: PC1 | D44: PC1 | E44: Hydrogen Chloride | F44: 0.0001455046175 | G44: lb/MMBtu | H44: 0.001594437153 | I44: lb/MW | J44: ERT | L44: 22
A45: =VLOOKUP(B45&"_"&C45,HCl_Min_Tests!A:BV,6,FALSE) -> Roxboro Steam Electric Plant | B45: 2712 | C45: 2 | D45: Rox_Cfg_2c | E45: Hydrogen Chloride | F45: 5.65e-05 | G45: lb/MMBtu | H45: 0.0005539893314 | I45: lb/MW | J45: Part II | K45: Rox_Blr_2_Test_7g | L45: 23
A46: =VLOOKUP(B46&"_"&C46,HCl_Min_Tests!A:BV,6,FALSE) -> TS Power Plant | B46: 56224 | C46: BLR100 | D46: TSPower | E46: Hydrogen Chloride | F46: 6.513892454e-05 | G46: lb/MMBtu | H46: 0.0005684851596 | I46: lb/MW | J46: ERT | L46: 24
A47: =VLOOKUP(B47&"_"&C47,HCl_Min_Tests!A:BV,6,FALSE) -> TS Power Plant | B47: 56224 | C47: BLR100 | D47: TSPower | E47: Hydrogen Chloride | F47: 0.0004 | G47: lb/MMBtu | H47: 0.003490909091 | I47: lb/MW | J47: Part II | K47: TRC 04/2008 | L47: 24
A48: =VLOOKUP(B48&"_"&C48,HCl_Min_Tests!A:BV,6,FALSE) -> TS Power Plant | B48: 56224 | C48: BLR100 | D48: TSPower | E48: Hydrogen Chloride | F48: 0.001052 | G48: lb/MMBtu | H48: 0.009181090909 | I48: lb/MW | J48: Part II | K48: Optimal 07/2009 | L48: 24
A49: =VLOOKUP(B49&"_"&C49,HCl_Min_Tests!A:BV,6,FALSE) -> Colstrip | B49: 6076 | C49: 3 | D49: Unit3 | E49: Hydrogen Chloride | F49: 6.209402554e-05 | G49: lb/MMBtu | H49: 0.0005841466527 | I49: lb/MW | J49: ERT | L49: 25
A50: =VLOOKUP(B50&"_"&C50,HCl_Min_Tests!A:BV,6,FALSE) -> H L Spurlock Station | B50: 6041 | C50: 3 | D50: Unit 03 | E50: Hydrogen Chloride | F50: 7.333333333e-05 | G50: lb/MMBtu | H50: 0.0006111111111 | I50: lb/MW | J50: ETTS | L50: 26
A51: =VLOOKUP(B51&"_"&C51,HCl_Min_Tests!A:BV,6,FALSE) -> H L Spurlock Station | B51: 6041 | C51: 3 | D51: Unit 03 | E51: Hydrogen Chloride | F51: 7.513254727e-05 | G51: lb/MMBtu | H51: 0.0006261045606 | I51: lb/MW | J51: ERT | L51: 26
A52: =VLOOKUP(B52&"_"&C52,HCl_Min_Tests!A:BV,6,FALSE) -> Navajo Generating Station | B52: 4941 | C52: 2 | D52: 002 | E52: Hydrogen Chloride | F52: 6.666666667e-05 | G52: lb/MMBtu | H52: 0.0006116584565 | I52: lb/MW | J52: ETTS | L52: 27
A53: =VLOOKUP(B53&"_"&C53,HCl_Min_Tests!A:BV,6,FALSE) -> Navajo Generating Station | B53: 4941 | C53: 2 | D53: 002 | E53: Hydrogen Chloride | F53: 6.96501414e-05 | G53: lb/MMBtu | H53: 0.0006390314697 | I53: lb/MW | J53: ERT | L53: 27
A54: =VLOOKUP(B54&"_"&C54,HCl_Min_Tests!A:BV,6,FALSE) -> Marshall | B54: 2727 | C54: Unit 4 | D54: U4 | E54: Hydrogen Chloride | F54: 7.541666667e-05 | G54: lb/MMBtu | H54: 0.0006496391667 | I54: lb/MW | J54: Part II | K54: U4HCLHF032907 | L54: 28
A55: =VLOOKUP(B55&"_"&C55,HCl_Min_Tests!A:BV,6,FALSE) -> Marshall | B55: 2727 | C55: Unit 4 | D55: U4 | E55: Hydrogen Chloride | F55: 7.93e-05 | G55: lb/MMBtu | H55: 0.0006830902 | I55: lb/MW | J55: Part II | K55: U4HCLHF033007 | L55: 28
A56: =VLOOKUP(B56&"_"&C56,HCl_Min_Tests!A:BV,6,FALSE) -> Marshall | B56: 2727 | C56: Unit 4 | D56: U4 | E56: Hydrogen Chloride | F56: 9.296666667e-05 | G56: lb/MMBtu | H56: 0.0008008148667 | I56: lb/MW | J56: Part II | K56: U4HCLHF032807 | L56: 28
A57: =VLOOKUP(B57&"_"&C57,HCl_Min_Tests!A:BV,6,FALSE) -> Marshall | B57: 2727 | C57: Unit 4 | D57: U4 | E57: Hydrogen Chloride | F57: 0.0002834333693 | G57: lb/MMBtu | H57: 0.002441495044 | I57: lb/MW | J57: ERT | L57: 28
A58: =VLOOKUP(B58&"_"&C58,HCl_Min_Tests!A:BV,6,FALSE) -> Cross | B58: 130 | C58: 3 | D58: C3 | E58: Hydrogen Chloride | F58: 6.893983214e-05 | G58: lb/MMBtu | H58: 0.000668220005 | I58: lb/MW | J58: ERT | L58: 29
A59: =VLOOKUP(B59&"_"&C59,HCl_Min_Tests!A:BV,6,FALSE) -> Cross | B59: 130 | C59: 3 | D59: C3 | E59: Hydrogen Chloride | F59: 0.000276 | G59: lb/MMBtu | H59: 0.0026752128 | I59: lb/MW | J59: Part II | K59: C3TVM292007 | L59: 29
A60: =VLOOKUP(B60&"_"&C60,HCl_Min_Tests!A:BV,6,FALSE) -> Roanoke Valley I | B60: 54035 | C60: BLR1 | D60: Boiler 1 | E60: Hydrogen Chloride | F60: 7.315672027e-05 | G60: lb/MMBtu | H60: 0.0006833320026 | I60: lb/MW | J60: ERT | L60: 30
A61: =VLOOKUP(B61&"_"&C61,HCl_Min_Tests!A:BV,6,FALSE) -> Roanoke Valley I | B61: 54035 | C61: BLR1 | D61: Boiler 1 | E61: Hydrogen Chloride | F61: 0.000563 | G61: lb/MMBtu | H61: 0.005258791209 | I61: lb/MW | J61: Part II | K61: 2008 HCL Test | L61: 30
A62: =VLOOKUP(B62&"_"&C62,HCl_Min_Tests!A:BV,6,FALSE) -> Weston | B62: 4078 | C62: 4 | D62: W4 | E62: Hydrogen Chloride | F62: 7.666666667e-05 | G62: lb/MMBtu | H62: 0.0006903429649 | I62: lb/MW | J62: Part II | K62: W4 HCl 2008 | L62: 31
A63: =VLOOKUP(B63&"_"&C63,HCl_Min_Tests!A:BV,6,FALSE) -> Elm Road Generating Station | B63: 56068 | C63: 1 | D63: ERGS-B1 | E63: Hydrogen Chloride | F63: 7.640077832e-05 | G63: lb/MMBtu | H63: 0.0007352305329 | I63: lb/MW | J63: ERT | L63: 32
A64: =VLOOKUP(B64&"_"&C64,HCl_Min_Tests!A:BV,6,FALSE) -> Cholla | B64: 113 | C64: 3 | D64: 003 | E64: Hydrogen Chloride | F64: 8.027415384e-05 | G64: lb/MMBtu | H64: 0.0007708950708 | I64: lb/MW | J64: ERT | L64: 33
A65: =VLOOKUP(B65&"_"&C65,HCl_Min_Tests!A:BV,6,FALSE) -> Hammond | B65: 708 | C65: 2 | D65: Unit 2 | E65: Hydrogen Chloride | F65: 7.876668138e-05 | G65: lb/MMBtu | H65: 0.0007794695995 | I65: lb/MW | J65: ERT | L65: 34
A66: =VLOOKUP(B66&"_"&C66,HCl_Min_Tests!A:BV,6,FALSE) -> Hammond | B66: 708 | C66: 3 | D66: Unit 3 | E66: Hydrogen Chloride | F66: 7.876668138e-05 | G66: lb/MMBtu | H66: 0.0007817709565 | I66: lb/MW | J66: ERT | L66: 35
A67: =VLOOKUP(B67&"_"&C67,HCl_Min_Tests!A:BV,6,FALSE) -> Hammond | B67: 708 | C67: 1 | D67: Unit 1 | E67: Hydrogen Chloride | F67: 7.876668138e-05 | G67: lb/MMBtu | H67: 0.0007936613007 | I67: lb/MW | J67: ERT | L67: 36
A68: =VLOOKUP(B68&"_"&C68,HCl_Min_Tests!A:BV,6,FALSE) -> Hawthorn | B68: 2079 | C68: 5A | D68: 5A | E68: Hydrogen Chloride | F68: 7.210846173e-05 | G68: lb/MMBtu | H68: 0.0008012051303 | I68: lb/MW | J68: ERT | L68: 37
A69: =VLOOKUP(B69&"_"&C69,HCl_Min_Tests!A:BV,6,FALSE) -> Hawthorn | B69: 2079 | C69: 5A | D69: 5A | E69: Hydrogen Chloride | F69: 0.00027 | G69: lb/MMBtu | H69: 0.003 | I69: lb/MW | J69: Part II | K69: AcidGasTest2006 | L69: 37
A70: =VLOOKUP(B70&"_"&C70,HCl_Min_Tests!A:BV,6,FALSE) -> Hawthorn | B70: 2079 | C70: 5A | D70: 5A | E70: Hydrogen Chloride | F70: 0.00035 | G70: lb/MMBtu | H70: 0.003888888889 | I70: lb/MW | J70: Part II | K70: AcidGasTest2005 | L70: 37
A71: =VLOOKUP(B71&"_"&C71,HCl_Min_Tests!A:BV,6,FALSE) -> Dallman | B71: 963 | C71: 34 | D71: 34 | E71: Hydrogen Chloride | F71: 9.7e-05 | G71: lb/MMBtu | H71: 0.0008139289451 | I71: lb/MW | J71: Part II | K71: Dallman 34 Test 2 | L71: 38
A72: =VLOOKUP(B72&"_"&C72,HCl_Min_Tests!A:BV,6,FALSE) -> Dallman | B72: 963 | C72: 34 | D72: 34 | E72: Hydrogen Chloride | F72: 0.0001003333333 | G72: lb/MMBtu | H72: 0.0008418990119 | I72: lb/MW | J72: ETTS | L72: 38
A73: =VLOOKUP(B73&"_"&C73,HCl_Min_Tests!A:BV,6,FALSE) -> Dallman | B73: 963 | C73: 34 | D73: 34 | E73: Hydrogen Chloride | F73: 0.00086 | G73: lb/MMBtu | H73: 0.007216277245 | I73: lb/MW | J73: Part II | K73: Dallman 34 Test 1 | L73: 38
A74: =VLOOKUP(B74&"_"&C74,HCl_Min_Tests!A:BV,6,FALSE) -> Hammond | B74: 708 | C74: 4 | D74: Unit 4 | E74: Hydrogen Chloride | F74: 7.876668138e-05 | G74: lb/MMBtu | H74: 0.0008268274871 | I74: lb/MW | J74: ERT | L74: 39
A75: =VLOOKUP(B75&"_"&C75,HCl_Min_Tests!A:BV,6,FALSE) -> J K Spruce | B75: 7097 | C75: BLR1 | D75: 1 | E75: Hydrogen Chloride | F75: 7.623690394e-05 | G75: lb/MMBtu | H75: 0.0008361085275 | I75: lb/MW | J75: ERT | L75: 40
A76: =VLOOKUP(B76&"_"&C76,HCl_Min_Tests!A:BV,6,FALSE) -> Cholla | B76: 113 | C76: 4 | D76: 004 | E76: Hydrogen Chloride | F76: 8.523910239e-05 | G76: lb/MMBtu | H76: 0.0008560011506 | I76: lb/MW | J76: ERT | L76: 41
A77: =VLOOKUP(B77&"_"&C77,HCl_Min_Tests!A:BV,6,FALSE) -> Navajo Generating Station | B77: 4941 | C77: 3 | D77: 003 | E77: Hydrogen Chloride | F77: 9.382809317e-05 | G77: lb/MMBtu | H77: 0.0008608611996 | I77: lb/MW | J77: ERT | L77: 42
A78: =VLOOKUP(B78&"_"&C78,HCl_Min_Tests!A:BV,6,FALSE) -> Navajo Generating Station | B78: 4941 | C78: 3 | D78: 003 | E78: Hydrogen Chloride | F78: 9.666666667e-05 | G78: lb/MMBtu | H78: 0.0008869047619 | I78: lb/MW | J78: ETTS | L78: 42
A79: =VLOOKUP(B79&"_"&C79,HCl_Min_Tests!A:BV,6,FALSE) -> Hopewell | B79: 10771 | C79: 10771-01 | D79: 1 & 2 | E79: Hydrogen Chloride | F79: 7.336682798e-05 | G79: lb/MMBtu | H79: 0.0009224799694 | I79: lb/MW | J79: ERT | L79: 43
A80: =VLOOKUP(B80&"_"&C80,HCl_Min_Tests!A:BV,6,FALSE) -> Hopewell | B80: 10771 | C80: 10771-02 | D80: 1 & 2 | E80: Hydrogen Chloride | F80: 7.336682798e-05 | G80: lb/MMBtu | H80: 0.0009224799694 | I80: lb/MW | J80: ERT | L80: 44
A81: =VLOOKUP(B81&"_"&C81,HCl_Min_Tests!A:BV,6,FALSE) -> AES Puerto Rico Cogeneration Facility | B81: 68029 | C81: BLR2 | D81: Unit_2 | E81: Hydrogen Chloride | F81: 9.596619042e-05 | G81: lb/MMBtu | H81: 0.0009263183573 | I81: lb/MW | J81: ERT | L81: 45
A82: =VLOOKUP(B82&"_"&C82,HCl_Min_Tests!A:BV,6,FALSE) -> Pleasant Prairie | B82: 6170 | C82: 2 | D82: PPPPB2 | E82: Hydrogen Chloride | F82: 9.442705757e-05 | G82: lb/MMBtu | H82: 0.0009470607998 | I82: lb/MW | J82: ERT | L82: 46
A83: =VLOOKUP(B83&"_"&C83,HCl_Min_Tests!A:BV,6,FALSE) -> Pleasant Prairie | B83: 6170 | C83: 1 | D83: PPPPB1 | E83: Hydrogen Chloride | F83: 9.655589308e-05 | G83: lb/MMBtu | H83: 0.0009506701595 | I83: lb/MW | J83: ERT | L83: 47
A84: =VLOOKUP(B84&"_"&C84,HCl_Min_Tests!A:BV,6,FALSE) -> AES Puerto Rico Cogeneration Facility | B84: 68029 | C84: BLR1 | D84: Unit_1 | E84: Hydrogen Chloride | F84: 0.0001018530765 | G84: lb/MMBtu | H84: 0.000983141814 | I84: lb/MW | J84: ERT | L84: 48
A85: =VLOOKUP(B85&"_"&C85,HCl_Min_Tests!A:BV,6,FALSE) -> Southampton Power Station | B85: 10774 | C85: 1 | D85: Unit 1 & 2 | E85: Hydrogen Chloride | F85: 7.763296516e-05 | G85: lb/MMBtu | H85: 0.001014936853 | I85: lb/MW | J85: ERT | L85: 49
A86: =VLOOKUP(B86&"_"&C86,HCl_Min_Tests!A:BV,6,FALSE) -> Southampton Power Station | B86: 10774 | C86: 2 | D86: Unit 1 & 2 | E86: Hydrogen Chloride | F86: 7.763296516e-05 | G86: lb/MMBtu | H86: 0.001014936853 | I86: lb/MW | J86: ERT | L86: 50
A87: =VLOOKUP(B87&"_"&C87,HCl_Min_Tests!A:BV,6,FALSE) -> San Juan | B87: 2451 | C87: Unit 3 | D87: Unit 3 | E87: Hydrogen Chloride | F87: 9.597874659e-05 | G87: lb/MMBtu | H87: 0.001015892689 | I87: lb/MW | J87: ERT | L87: 51
A88: =VLOOKUP(B88&"_"&C88,HCl_Min_Tests!A:BV,6,FALSE) -> H L Spurlock Station | B88: 6041 | C88: 4 | D88: Unit 04 | E88: Hydrogen Chloride | F88: 0.0001184383333 | G88: lb/MMBtu | H88: 0.001105424444 | I88: lb/MW | J88: Part II | K88: HCL_HF_09/29-30/09 | L88: 52
A89: =VLOOKUP(B89&"_"&C89,HCl_Min_Tests!A:BV,6,FALSE) -> H L Spurlock Station | B89: 6041 | C89: 4 | D89: Unit 04 | E89: Hydrogen Chloride | F89: 0.0001302395936 | G89: lb/MMBtu | H89: 0.001215569541 | I89: lb/MW | J89: ERT | L89: 52
A90: =VLOOKUP(B90&"_"&C90,HCl_Min_Tests!A:BV,6,FALSE) -> H L Spurlock Station | B90: 6041 | C90: 4 | D90: Unit 04 | E90: Hydrogen Chloride | F90: 0.0002 | G90: lb/MMBtu | H90: 0.001866666667 | I90: lb/MW | J90: ETTS | L90: 52
A91: =VLOOKUP(B91&"_"&C91,HCl_Min_Tests!A:BV,6,FALSE) -> H L Spurlock Station | B91: 6041 | C91: 4 | D91: Unit 04 | E91: Hydrogen Chloride | F91: 0.00113 | G91: lb/MMBtu | H91: 0.01054666667 | I91: lb/MW | J91: Part II | K91: Compliance_HCL_HF_05/28/09 | L91: 52
A92: =VLOOKUP(B92&"_"&C92,HCl_Min_Tests!A:BV,6,FALSE) -> Walter Scott Jr. Energy Center | B92: 1082 | C92: 3 | D92: 3 | E92: Hydrogen Chloride | F92: 0.00011 | G92: lb/MMBtu | H92: 0.001107189542 | I92: lb/MW | J92: Part II | K92: 6/2009 HCL | L92: 53
A93: =VLOOKUP(B93&"_"&C93,HCl_Min_Tests!A:BV,6,FALSE) -> San Juan | B93: 2451 | C93: Unit 1 | D93: Unit 1 | E93: Hydrogen Chloride | F93: 0.0001113526145 | G93: lb/MMBtu | H93: 0.001115632816 | I93: lb/MW | J93: ERT | L93: 54
A94: =VLOOKUP(B94&"_"&C94,HCl_Min_Tests!A:BV,6,FALSE) -> Bowen | B94: 703 | C94: 4 | D94: Unit 4 | E94: Hydrogen Chloride | F94: 0.0001193914944 | G94: lb/MMBtu | H94: 0.001137321456 | I94: lb/MW | J94: ERT | L94: 55
A95: =VLOOKUP(B95&"_"&C95,HCl_Min_Tests!A:BV,6,FALSE) -> San Juan | B95: 2451 | C95: Unit 4 | D95: Unit 4 | E95: Hydrogen Chloride | F95: 0.0001178198174 | G95: lb/MMBtu | H95: 0.001223463508 | I95: lb/MW | J95: ERT | L95: 56
A96: =VLOOKUP(B96&"_"&C96,HCl_Min_Tests!A:BV,6,FALSE) -> Cardinal | B96: 2828 | C96: 1 | D96: CD-U1 | E96: Hydrogen Chloride | F96: 0.0001429617046 | G96: lb/MMBtu | H96: 0.001225817607 | I96: lb/MW | J96: ERT | L96: 57
A97: =VLOOKUP(B97&"_"&C97,HCl_Min_Tests!A:BV,6,FALSE) -> San Juan | B97: 2451 | C97: Unit 2 | D97: Unit 2 | E97: Hydrogen Chloride | F97: 0.000124058511 | G97: lb/MMBtu | H97: 0.001236561591 | I97: lb/MW | J97: ERT | L97: 58
A98: =VLOOKUP(B98&"_"&C98,HCl_Min_Tests!A:BV,6,FALSE) -> Oak Grove | B98: 6180 | C98: 1 | D98: OG1 | E98: Hydrogen Chloride | F98: 0.0001202586154 | G98: lb/MMBtu | H98: 0.001320342448 | I98: lb/MW | J98: ERT | L98: 59
A99: =VLOOKUP(B99&"_"&C99,HCl_Min_Tests!A:BV,6,FALSE) -> Oak Grove | B99: 6180 | C99: 1 | D99: OG1 | E99: Hydrogen Chloride | F99: 0.0002266666667 | G99: lb/MMBtu | H99: 0.002488616891 | I99: lb/MW | J99: Part II | K99: 1-Compliance Test Report | L99: 59
A100: =VLOOKUP(B100&"_"&C100,HCl_Min_Tests!A:BV,6,FALSE) -> Hayden | B100: 525 | C100: 2 | D100: Unit 2 | E100: Hydrogen Chloride | F100: 0.0001425588126 | G100: lb/MMBtu | H100: 0.001356559648 | I100: lb/MW | J100: ERT | L100: 60
A101: =VLOOKUP(B101&"_"&C101,HCl_Min_Tests!A:BV,6,FALSE) -> Bowen | B101: 703 | C101: 2 | D101: Unit 2 | E101: Hydrogen Chloride | F101: 0.0001556662768 | G101: lb/MMBtu | H101: 0.001501841436 | I101: lb/MW | J101: ERT | L101: 61
A102: =VLOOKUP(B102&"_"&C102,HCl_Min_Tests!A:BV,6,FALSE) -> AES Petersburg | B102: 994 | C102: 2 | D102: 2ss | E102: Hydrogen Chloride | F102: 0.0001624458336 | G102: lb/MMBtu | H102: 0.00151275401 | I102: lb/MW | J102: ERT | L102: 62
A103: =VLOOKUP(B103&"_"&C103,HCl_Min_Tests!A:BV,6,FALSE) -> AES Petersburg | B103: 994 | C103: 1 | D103: 1s | E103: Hydrogen Chloride | F103: 0.0001757811938 | G103: lb/MMBtu | H103: 0.001516543632 | I103: lb/MW | J103: ERT | L103: 63
A104: =VLOOKUP(B104&"_"&C104,HCl_Min_Tests!A:BV,6,FALSE) -> Conesville | B104: 2840 | C104: 4 | D104: CV-4 | E104: Hydrogen Chloride | F104: 0.000163214282 | G104: lb/MMBtu | H104: 0.001543892674 | I104: lb/MW | J104: ERT | L104: 64
A105: =VLOOKUP(B105&"_"&C105,HCl_Min_Tests!A:BV,6,FALSE) -> John E. Amos | B105: 3935 | C105: 2 | D105: AM-2 | E105: Hydrogen Chloride | F105: 0.0001827398673 | G105: lb/MMBtu | H105: 0.001571522564 | I105: lb/MW | J105: ERT | L105: 65
A106: =VLOOKUP(B106&"_"&C106,HCl_Min_Tests!A:BV,6,FALSE) -> Hamilton | B106: 2917 | C106: 9 | D106: Unit 9 | E106: Hydrogen Chloride | F106: 0.0001101914782 | G106: lb/MMBtu | H106: 0.001587541257 | I106: lb/MW | J106: ERT | L106: 66
A107: =VLOOKUP(B107&"_"&C107,HCl_Min_Tests!A:BV,6,FALSE) -> Cardinal | B107: 2828 | C107: 2 | D107: CD-U2 | E107: Hydrogen Chloride | F107: 0.0001853580367 | G107: lb/MMBtu | H107: 0.001589342724 | I107: lb/MW | J107: ERT | L107: 67
A108: =VLOOKUP(B108&"_"&C108,HCl_Min_Tests!A:BV,6,FALSE) -> Whelan Energy Center Unit 1 (WEC1) | B108: 60 | C108: 1 | D108: 1 | E108: Hydrogen Chloride | F108: 0.0001624030167 | G108: lb/MMBtu | H108: 0.001641708007 | I108: lb/MW | J108: ERT | L108: 68
A109: =VLOOKUP(B109&"_"&C109,HCl_Min_Tests!A:BV,6,FALSE) -> Yates | B109: 728 | C109: Y1BR | D109: Y1BR | E109: Hydrogen Chloride | F109: 0.000163060607 | G109: lb/MMBtu | H109: 0.001668311169 | I109: lb/MW | J109: ERT | L109: 69
A110: =VLOOKUP(B110&"_"&C110,HCl_Min_Tests!A:BV,6,FALSE) -> Wygen 1 | B110: 55479 | C110: 3 | D110: WYG1Cfg | E110: Hydrogen Chloride | F110: 0.0001535 | G110: lb/MMBtu | H110: 0.001776214286 | I110: lb/MW | J110: ETTS | L110: 70
A111: =VLOOKUP(B111&"_"&C111,HCl_Min_Tests!A:BV,6,FALSE) -> Wygen 1 | B111: 55479 | C111: 3 | D111: WYG1Cfg | E111: Hydrogen Chloride | F111: 0.0001565819323 | G111: lb/MMBtu | H111: 0.001811876645 | I111: lb/MW | J111: ERT | L111: 70
A112: =VLOOKUP(B112&"_"&C112,HCl_Min_Tests!A:BV,6,FALSE) -> Welsh | B112: 6139 | C112: 1 | D112: WE-1 | E112: Hydrogen Chloride | F112: 0.0001944468799 | G112: lb/MMBtu | H112: 0.001796717048 | I112: lb/MW | J112: ERT | L112: 71
A113: =VLOOKUP(B113&"_"&C113,HCl_Min_Tests!A:BV,6,FALSE) -> Neil Simpson II | B113: 7504 | C113: 2 | D113: NS2Cfg | E113: Hydrogen Chloride | F113: 0.0001474951188 | G113: lb/MMBtu | H113: 0.001843688985 | I113: lb/MW | J113: ERT | L113: 72
A114: =VLOOKUP(B114&"_"&C114,HCl_Min_Tests!A:BV,6,FALSE) -> Neil Simpson II | B114: 7504 | C114: 2 | D114: NS2Cfg | E114: Hydrogen Chloride | F114: 0.0001476666667 | G114: lb/MMBtu | H114: 0.001845833333 | I114: lb/MW | J114: ETTS | L114: 72
A115: =VLOOKUP(B115&"_"&C115,HCl_Min_Tests!A:BV,6,FALSE) -> Mountaineer | B115: 6264 | C115: 1 | D115: Mt-1 | E115: Hydrogen Chloride | F115: 0.0002140479023 | G115: lb/MMBtu | H115: 0.001939403721 | I115: lb/MW | J115: ERT | L115: 73
A116: =VLOOKUP(B116&"_"&C116,HCl_Min_Tests!A:BV,6,FALSE) -> Lamar Plant | B116: 508 | C116: 4 | D116: 001 | E116: Hydrogen Chloride | F116: 0.0001683770037 | G116: lb/MMBtu | H116: 0.001950877193 | I116: lb/MW | J116: Part II | K116: 2 | L116: 74
A117: =VLOOKUP(B117&"_"&C117,HCl_Min_Tests!A:BV,6,FALSE) -> Valmont | B117: 477 | C117: 5 | D117: Unit 5 | E117: Hydrogen Chloride | F117: 0.0002111090725 | G117: lb/MMBtu | H117: 0.001987225708 | I117: lb/MW | J117: ERT | L117: 75
A118: =VLOOKUP(B118&"_"&C118,HCl_Min_Tests!A:BV,6,FALSE) -> Louisa | B118: 6664 | C118: 101 | D118: 101 | E118: Hydrogen Chloride | F118: 0.0001910393833 | G118: lb/MMBtu | H118: 0.002046613219 | I118: lb/MW | J118: ERT | L118: 76
A119: =VLOOKUP(B119&"_"&C119,HCl_Min_Tests!A:BV,6,FALSE) -> Wansley | B119: 6052 | C119: 2 | D119: Unit 2 | E119: Hydrogen Chloride | F119: 0.0002205186156 | G119: lb/MMBtu | H119: 0.002050410851 | I119: lb/MW | J119: ERT | L119: 77
A120: =VLOOKUP(B120&"_"&C120,HCl_Min_Tests!A:BV,6,FALSE) -> Asheville Steam Electric Plant | B120: 2706 | C120: 2 | D120: Ash_Cfg_2 | E120: Hydrogen Chloride | F120: 0.00022 | G120: lb/MMBtu | H120: 0.002051176471 | I120: lb/MW | J120: Part II | K120: Ash_Blr_2_Test_7l | L120: 78
A121: =VLOOKUP(B121&"_"&C121,HCl_Min_Tests!A:BV,6,FALSE) -> Hayden | B121: 525 | C121: 1 | D121: Unit 1 | E121: Hydrogen Chloride | F121: 0.0002178334795 | G121: lb/MMBtu | H121: 0.002116866932 | I121: lb/MW | J121: ERT | L121: 79
A122: =VLOOKUP(B122&"_"&C122,HCl_Min_Tests!A:BV,6,FALSE) -> Healy | B122: 6288 | C122: 001 | D122: 1 | E122: Hydrogen Chloride | F122: 0.0001540475568 | G122: lb/MMBtu | H122: 0.002138180089 | I122: lb/MW | J122: ERT | L122: 80
A123: =VLOOKUP(B123&"_"&C123,HCl_Min_Tests!A:BV,6,FALSE) -> Ghent | B123: 1356 | C123: 1 | D123: GH1 | E123: Hydrogen Chloride | F123: 0.0001796054183 | G123: lb/MMBtu | H123: 0.002171153191 | I123: lb/MW | J123: ERT | L123: 81
A124: =VLOOKUP(B124&"_"&C124,HCl_Min_Tests!A:BV,6,FALSE) -> Cherokee | B124: 469 | C124: 4 | D124: Unit 4 | E124: Hydrogen Chloride | F124: 0.000236840569 | G124: lb/MMBtu | H124: 0.002176707057 | I124: lb/MW | J124: ERT | L124: 82
A125: =VLOOKUP(B125&"_"&C125,HCl_Min_Tests!A:BV,6,FALSE) -> Bowen | B125: 703 | C125: 3 | D125: Unit 3 | E125: Hydrogen Chloride | F125: 0.0002495483354 | G125: lb/MMBtu | H125: 0.002189164243 | I125: lb/MW | J125: ERT | L125: 83
A126: =VLOOKUP(B126&"_"&C126,HCl_Min_Tests!A:BV,6,FALSE) -> Cherokee | B126: 469 | C126: 2 | D126: Unit 2 | E126: Hydrogen Chloride | F126: 0.0001863669035 | G126: lb/MMBtu | H126: 0.00227563798 | I126: lb/MW | J126: ERT | L126: 84
A127: =VLOOKUP(B127&"_"&C127,HCl_Min_Tests!A:BV,6,FALSE) -> Gibson | B127: 6113 | C127: 4 | D127: 4 | E127: Hydrogen Chloride | F127: 0.0002605774769 | G127: lb/MMBtu | H127: 0.002469769883 | I127: lb/MW | J127: ERT | L127: 85
A128: =VLOOKUP(B128&"_"&C128,HCl_Min_Tests!A:BV,6,FALSE) -> Gibson | B128: 6113 | C128: 4 | D128: 4 | E128: Hydrogen Chloride | F128: 0.0005469926335 | G128: lb/MMBtu | H128: 0.005184430936 | I128: lb/MW | J128: Part II | K128: U4010406 | L128: 85
A129: =VLOOKUP(B129&"_"&C129,HCl_Min_Tests!A:BV,6,FALSE) -> R D Green | B129: 6639 | C129: G2 | D129: 2 | E129: Hydrogen Chloride | F129: 0.000222674965 | G129: lb/MMBtu | H129: 0.00254035799 | I129: lb/MW | J129: ERT | L129: 86
A130: =VLOOKUP(B130&"_"&C130,HCl_Min_Tests!A:BV,6,FALSE) -> Cross | B130: 130 | C130: 1 | D130: C1 | E130: Hydrogen Chloride | F130: 0.0002437461049 | G130: lb/MMBtu | H130: 0.002598093728 | I130: lb/MW | J130: ERT | L130: 87
A131: =VLOOKUP(B131&"_"&C131,HCl_Min_Tests!A:BV,6,FALSE) -> Marshall | B131: 2727 | C131: Unit 1 | D131: U12007 | E131: Hydrogen Chloride | F131: 0.0002859039169 | G131: lb/MMBtu | H131: 0.002614734272 | I131: lb/MW | J131: ERT | L131: 88
A132: =VLOOKUP(B132&"_"&C132,HCl_Min_Tests!A:BV,6,FALSE) -> Marshall | B132: 2727 | C132: Unit 2 | D132: U22007 | E132: Hydrogen Chloride | F132: 0.0002859039169 | G132: lb/MMBtu | H132: 0.002618308071 | I132: lb/MW | J132: ERT | L132: 89
A133: =VLOOKUP(B133&"_"&C133,HCl_Min_Tests!A:BV,6,FALSE) -> Crystal River Power Plant | B133: 628 | C133: 5 | D133: CryR_Cfg_5c | E133: Hydrogen Chloride | F133: 0.0002738438569 | G133: lb/MMBtu | H133: 0.002650251564 | I133: lb/MW | J133: ERT | L133: 90
A134: =VLOOKUP(B134&"_"&C134,HCl_Min_Tests!A:BV,6,FALSE) -> Cherokee | B134: 469 | C134: 1 | D134: Unit 1 | E134: Hydrogen Chloride | F134: 0.0002253718662 | G134: lb/MMBtu | H134: 0.002681347331 | I134: lb/MW | J134: ERT | L134: 91
A135: =VLOOKUP(B135&"_"&C135,HCl_Min_Tests!A:BV,6,FALSE) -> Labadie | B135: 2103 | C135: 2 | D135: 002 | E135: Hydrogen Chloride | F135: 0.0002730275 | G135: lb/MMBtu | H135: 0.002709677419 | I135: lb/MW | J135: Part II | K135: 1 | L135: 92
A136: =VLOOKUP(B136&"_"&C136,HCl_Min_Tests!A:BV,6,FALSE) -> HMP&L Station Two Henderson | B136: 1382 | C136: H1 | D136: 1 | E136: Hydrogen Chloride | F136: 0.0002519679532 | G136: lb/MMBtu | H136: 0.002729020758 | I136: lb/MW | J136: ERT | L136: 93
A137: =VLOOKUP(B137&"_"&C137,HCl_Min_Tests!A:BV,6,FALSE) -> Asheville Steam Electric Plant | B137: 2706 | C137: 1 | D137: Ash_Cfg_1d | E137: Hydrogen Chloride | F137: 0.0002953333333 | G137: lb/MMBtu | H137: 0.002730763285 | I137: lb/MW | J137: Part II | K137: Ash_Blr_1_Test_8r | L137: 94
A138: =VLOOKUP(B138&"_"&C138,HCl_Min_Tests!A:BV,6,FALSE) -> Asheville Steam Electric Plant | B138: 2706 | C138: 1 | D138: Ash_Cfg_1d | E138: Hydrogen Chloride | F138: 0.006135606748 | G138: lb/MMBtu | H138: 0.05673213196 | I138: lb/MW | J138: ERT | L138: 94
A139: =VLOOKUP(B139&"_"&C139,HCl_Min_Tests!A:BV,6,FALSE) -> PPL Montour | B139: 3149 | C139: 1 | D139: U1 | E139: Hydrogen Chloride | F139: 0.0003015022447 | G139: lb/MMBtu | H139: 0.002738487766 | I139: lb/MW | J139: ERT | L139: 95
A140: =VLOOKUP(B140&"_"&C140,HCl_Min_Tests!A:BV,6,FALSE) -> Conemaugh | B140: 3118 | C140: 1 | D140: CON-1 | E140: Hydrogen Chloride | F140: 0.0002880136814 | G140: lb/MMBtu | H140: 0.002764746717 | I140: lb/MW | J140: ERT | L140: 96
A141: =VLOOKUP(B141&"_"&C141,HCl_Min_Tests!A:BV,6,FALSE) -> Conemaugh | B141: 3118 | C141: 1 | D141: CON-1 | E141: Hydrogen Chloride | F141: 0.00033 | G141: lb/MMBtu | H141: 0.003167788462 | I141: lb/MW | J141: Part II | K141: c-1900-2 | L141: 96
A142: =VLOOKUP(B142&"_"&C142,HCl_Min_Tests!A:BV,6,FALSE) -> Nebraska City | B142: 6096 | C142: NC2 | D142: NC2 | E142: Hydrogen Chloride | F142: 0.0002763990698 | G142: lb/MMBtu | H142: 0.002804621361 | I142: lb/MW | J142: ERT | L142: 97
A143: =VLOOKUP(B143&"_"&C143,HCl_Min_Tests!A:BV,6,FALSE) -> Marshall | B143: 2727 | C143: Unit 3 | D143: U3 | E143: Hydrogen Chloride | F143: 0.0003263503585 | G143: lb/MMBtu | H143: 0.002845355533 | I143: lb/MW | J143: ERT | L143: 98
A144: =VLOOKUP(B144&"_"&C144,HCl_Min_Tests!A:BV,6,FALSE) -> Wansley | B144: 6052 | C144: 1 | D144: Unit 1 | E144: Hydrogen Chloride | F144: 0.0003107373699 | G144: lb/MMBtu | H144: 0.002852632892 | I144: lb/MW | J144: ERT | L144: 99
A145: =VLOOKUP(B145&"_"&C145,HCl_Min_Tests!A:BV,6,FALSE) -> Springerville | B145: 8223 | C145: 3 | D145: 3 | E145: Hydrogen Chloride | F145: 0.000305976 | G145: lb/MMBtu | H145: 0.002855776 | I145: lb/MW | J145: ETTS | L145: 100
A146: =VLOOKUP(B146&"_"&C146,HCl_Min_Tests!A:BV,6,FALSE) -> John E. Amos | B146: 3935 | C146: 3 | D146: AM-3 | E146: Hydrogen Chloride | F146: 0.000312619175 | G146: lb/MMBtu | H146: 0.002870324979 | I146: lb/MW | J146: ERT | L146: 101
A147: =VLOOKUP(B147&"_"&C147,HCl_Min_Tests!A:BV,6,FALSE) -> Mt. Storm | B147: 3954 | C147: 3 | D147: Unit 3 | E147: Hydrogen Chloride | F147: 0.0002848769996 | G147: lb/MMBtu | H147: 0.003014159466 | I147: lb/MW | J147: ERT | L147: 102
A148: =VLOOKUP(B148&"_"&C148,HCl_Min_Tests!A:BV,6,FALSE) -> Conemaugh | B148: 3118 | C148: 2 | D148: CON-2 | E148: Hydrogen Chloride | F148: 0.0003326608664 | G148: lb/MMBtu | H148: 0.003193331074 | I148: lb/MW | J148: ERT | L148: 103
A149: =VLOOKUP(B149&"_"&C149,HCl_Min_Tests!A:BV,6,FALSE) -> Conemaugh | B149: 3118 | C149: 2 | D149: CON-2 | E149: Hydrogen Chloride | F149: 0.0004666666667 | G149: lb/MMBtu | H149: 0.004479700855 | I149: lb/MW | J149: Part II | K149: C-193-2 | L149: 103
A150: =VLOOKUP(B150&"_"&C150,HCl_Min_Tests!A:BV,6,FALSE) -> AES Cayuga, LLC | B150: 2535 | C150: 1 | D150: Unit_1 | E150: Hydrogen Chloride | F150: 0.0003590074053 | G150: lb/MMBtu | H150: 0.003200419674 | I150: lb/MW | J150: ERT | L150: 104
A151: =VLOOKUP(B151&"_"&C151,HCl_Min_Tests!A:BV,6,FALSE) -> PPL Montour | B151: 3149 | C151: 2 | D151: U2 | E151: Hydrogen Chloride | F151: 0.0003565421576 | G151: lb/MMBtu | H151: 0.003258849342 | I151: lb/MW | J151: ERT | L151: 105
A152: =VLOOKUP(B152&"_"&C152,HCl_Min_Tests!A:BV,6,FALSE) -> HMP&L Station Two Henderson | B152: 1382 | C152: H2 | D152: 2 | E152: Hydrogen Chloride | F152: 0.00030516085 | G152: lb/MMBtu | H152: 0.003289954814 | I152: lb/MW | J152: ERT | L152: 106
A153: =VLOOKUP(B153&"_"&C153,HCl_Min_Tests!A:BV,6,FALSE) -> Montrose | B153: 2080 | C153: 2 | D153: 2 | E153: Hydrogen Chloride | F153: 0.0003 | G153: lb/MMBtu | H153: 0.00339893617 | I153: lb/MW | J153: Part II | K153: M2-3Oct2006 | L153: 107
A154: =VLOOKUP(B154&"_"&C154,HCl_Min_Tests!A:BV,6,FALSE) -> Montrose | B154: 2080 | C154: 2 | D154: 2 | E154: Hydrogen Chloride | F154: 0.0036 | G154: lb/MMBtu | H154: 0.04078723404 | I154: lb/MW | J154: Part II | K154: Mon2-3Oct-Nov2005 | L154: 107
A155: =VLOOKUP(B155&"_"&C155,HCl_Min_Tests!A:BV,6,FALSE) -> Montrose | B155: 2080 | C155: 1 | D155: 1 | E155: Hydrogen Chloride | F155: 0.0003 | G155: lb/MMBtu | H155: 0.003414893617 | I155: lb/MW | J155: Part II | K155: M1Oct2006 | L155: 108
A156: =VLOOKUP(B156&"_"&C156,HCl_Min_Tests!A:BV,6,FALSE) -> Montrose | B156: 2080 | C156: 1 | D156: 1 | E156: Hydrogen Chloride | F156: 0.001 | G156: lb/MMBtu | H156: 0.01138297872 | I156: lb/MW | J156: Part II | K156: M1OctNov-2005 | L156: 108
A157: =VLOOKUP(B157&"_"&C157,HCl_Min_Tests!A:BV,6,FALSE) -> Arapahoe | B157: 465 | C157: 3 | D157: Unit 3 | E157: Hydrogen Chloride | F157: 0.0002175316142 | G157: lb/MMBtu | H157: 0.003420684634 | I157: lb/MW | J157: ERT | L157: 109
A158: =VLOOKUP(B158&"_"&C158,HCl_Min_Tests!A:BV,6,FALSE) -> Cumberland | B158: 3399 | C158: 1 | D158: 1 | E158: Hydrogen Chloride | F158: 0.0003166649095 | G158: lb/MMBtu | H158: 0.003441903978 | I158: lb/MW | J158: ERT | L158: 110
A159: =VLOOKUP(B159&"_"&C159,HCl_Min_Tests!A:BV,6,FALSE) -> Cherokee | B159: 469 | C159: 3 | D159: Unit 3 | E159: Hydrogen Chloride | F159: 0.0003054049201 | G159: lb/MMBtu | H159: 0.003474212334 | I159: lb/MW | J159: ERT | L159: 111
A160: =VLOOKUP(B160&"_"&C160,HCl_Min_Tests!A:BV,6,FALSE) -> Red Hills Generating Facility | B160: 55076 | C160: AA-002 | D160: 002 | E160: Hydrogen Chloride | F160: 0.0003667543586 | G160: lb/MMBtu | H160: 0.003494875634 | I160: lb/MW | J160: ETTS | L160: 112
A161: =VLOOKUP(B161&"_"&C161,HCl_Min_Tests!A:BV,6,FALSE) -> Red Hills Generating Facility | B161: 55076 | C161: AA-002 | D161: 002 | E161: Hydrogen Chloride | F161: 0.0003866666667 | G161: lb/MMBtu | H161: 0.003684624 | I161: lb/MW | J161: Part II | K161: 10-05 | L161: 112
A162: =VLOOKUP(B162&"_"&C162,HCl_Min_Tests!A:BV,6,FALSE) -> Red Hills Generating Facility | B162: 55076 | C162: AA-001 | D162: 001 | E162: Hydrogen Chloride | F162: 0.0003667543586 | G162: lb/MMBtu | H162: 0.00352230886 | I162: lb/MW | J162: ETTS | L162: 113
A163: =VLOOKUP(B163&"_"&C163,HCl_Min_Tests!A:BV,6,FALSE) -> Red Hills Generating Facility | B163: 55076 | C163: AA-001 | D163: 001 | E163: Hydrogen Chloride | F163: 0.0003866666667 | G163: lb/MMBtu | H163: 0.003713546667 | I163: lb/MW | J163: Part II | K163: 10-05 | L163: 113
A164: =VLOOKUP(B164&"_"&C164,HCl_Min_Tests!A:BV,6,FALSE) -> Montrose | B164: 2080 | C164: 3 | D164: 3 | E164: Hydrogen Chloride | F164: 0.0003 | G164: lb/MMBtu | H164: 0.003590425532 | I164: lb/MW | J164: Part II | K164: M2-3Oct2006 | L164: 114
A165: =VLOOKUP(B165&"_"&C165,HCl_Min_Tests!A:BV,6,FALSE) -> Montrose | B165: 2080 | C165: 3 | D165: 3 | E165: Hydrogen Chloride | F165: 0.0036 | G165: lb/MMBtu | H165: 0.04308510638 | I165: lb/MW | J165: Part II | K165: Mon2-3Oct-Nov2005 | L165: 114
A166: =VLOOKUP(B166&"_"&C166,HCl_Min_Tests!A:BV,6,FALSE) -> Cumberland | B166: 3399 | C166: 2 | D166: 2 | E166: Hydrogen Chloride | F166: 0.0003347070961 | G166: lb/MMBtu | H166: 0.003638008668 | I166: lb/MW | J166: ERT | L166: 115
A167: =VLOOKUP(B167&"_"&C167,HCl_Min_Tests!A:BV,6,FALSE) -> Homer City Station | B167: 3122 | C167: 3 | D167: HC3CONFIG | E167: Hydrogen Chloride | F167: 0.0004060827459 | G167: lb/MMBtu | H167: 0.003687589641 | I167: lb/MW | J167: ERT | L167: 116
A168: =VLOOKUP(B168&"_"&C168,HCl_Min_Tests!A:BV,6,FALSE) -> PPL Brunner Island | B168: 3140 | C168: 2 | D168: U2 | E168: Hydrogen Chloride | F168: 0.0003981377815 | G168: lb/MMBtu | H168: 0.003839547562 | I168: lb/MW | J168: ERT | L168: 117
A169: =VLOOKUP(B169&"_"&C169,HCl_Min_Tests!A:BV,6,FALSE) -> Quindaro | B169: 1295 | C169: 1 | D169: Unit 1 | E169: Hydrogen Chloride | F169: 0.00038 | G169: lb/MMBtu | H169: 0.003859220779 | I169: lb/MW | J169: Part II | K169: HCl/HF Emissions Test Report (July 2009) | L169: 118
A170: =VLOOKUP(B170&"_"&C170,HCl_Min_Tests!A:BV,6,FALSE) -> BL England | B170: 2378 | C170: 2 | D170: 2 Coal w or w/o TDF | E170: Hydrogen Chloride | F170: 0.0004049490093 | G170: lb/MMBtu | H170: 0.003872793873 | I170: lb/MW | J170: Part II | K170: CAM 238-026 | L170: 119
A171: =VLOOKUP(B171&"_"&C171,HCl_Min_Tests!A:BV,6,FALSE) -> BL England | B171: 2378 | C171: 2 | D171: 2 Coal w or w/o TDF | E171: Hydrogen Chloride | F171: 0.0005310944472 | G171: lb/MMBtu | H171: 0.005079205712 | I171: lb/MW | J171: Part II | K171: CAM 238-015 | L171: 119
A172: =VLOOKUP(B172&"_"&C172,HCl_Min_Tests!A:BV,6,FALSE) -> BL England | B172: 2378 | C172: 2 | D172: 2 Coal w or w/o TDF | E172: Hydrogen Chloride | F172: 0.001 | G172: lb/MMBtu | H172: 0.009563658099 | I172: lb/MW | J172: ETTS | L172: 119
A173: =VLOOKUP(B173&"_"&C173,HCl_Min_Tests!A:BV,6,FALSE) -> BL England | B173: 2378 | C173: 2 | D173: 2 Coal w or w/o TDF | E173: Hydrogen Chloride | F173: 0.001011596748 | G173: lb/MMBtu | H173: 0.009674565428 | I173: lb/MW | J173: ERT | L173: 119
A174: =VLOOKUP(B174&"_"&C174,HCl_Min_Tests!A:BV,6,FALSE) -> Nearman Creek | B174: 6064 | C174: N1 | D174: N1 | E174: Hydrogen Chloride | F174: 0.00041 | G174: lb/MMBtu | H174: 0.003875407925 | I174: lb/MW | J174: Part II | K174: HCl/HF Emission Test Report | L174: 120
A175: =VLOOKUP(B175&"_"&C175,HCl_Min_Tests!A:BV,6,FALSE) -> Clover | B175: 7213 | C175: 2 | D175: Unit 2 | E175: Hydrogen Chloride | F175: 0.0003376552514 | G175: lb/MMBtu | H175: 0.003921935766 | I175: lb/MW | J175: ERT | L175: 121
A176: =VLOOKUP(B176&"_"&C176,HCl_Min_Tests!A:BV,6,FALSE) -> PSEG Hudson Generating Station | B176: 2403 | C176: U2 | D176: HUDU2E2PT2OS1-Coal | E176: Hydrogen Chloride | F176: 0.0003936082536 | G176: lb/MMBtu | H176: 0.003937872478 | I176: lb/MW | J176: Part II | K176: EG08009 | L176: 122
A177: =VLOOKUP(B177&"_"&C177,HCl_Min_Tests!A:BV,6,FALSE) -> PSEG Hudson Generating Station | B177: 2403 | C177: U2 | D177: HUDU2E2PT2OS1-Coal | E177: Hydrogen Chloride | F177: 0.0004586510964 | G177: lb/MMBtu | H177: 0.00458859669 | I177: lb/MW | J177: Part II | K177: EG07044 | L177: 122
A178: =VLOOKUP(B178&"_"&C178,HCl_Min_Tests!A:BV,6,FALSE) -> PSEG Hudson Generating Station | B178: 2403 | C178: U2 | D178: HUDU2E2PT2OS1-Coal | E178: Hydrogen Chloride | F178: 0.002163633104 | G178: lb/MMBtu | H178: 0.02164617021 | I178: lb/MW | J178: Part II | K178: HUD2 2009 5YR ST CoNg | L178: 122
A179: =VLOOKUP(B179&"_"&C179,HCl_Min_Tests!A:BV,6,FALSE) -> PSEG Hudson Generating Station | B179: 2403 | C179: U2 | D179: HUDU2E2PT2OS1-Coal | E179: Hydrogen Chloride | F179: 0.06184176307 | G179: lb/MMBtu | H179: 0.6186988575 | I179: lb/MW | J179: Part II | K179: EG06031A | L179: 122
A180: =VLOOKUP(B180&"_"&C180,HCl_Min_Tests!A:BV,6,FALSE) -> AES Cayuga, LLC | B180: 2535 | C180: 2 | D180: Unit_2 | E180: Hydrogen Chloride | F180: 0.0004661365453 | G180: lb/MMBtu | H180: 0.004023202326 | I180: lb/MW | J180: ERT | L180: 123
A181: =VLOOKUP(B181&"_"&C181,HCl_Min_Tests!A:BV,6,FALSE) -> PPL Brunner Island | B181: 3140 | C181: 1 | D181: U1 | E181: Hydrogen Chloride | F181: 0.0003981377815 | G181: lb/MMBtu | H181: 0.004035669331 | I181: lb/MW | J181: ERT | L181: 124
A182: =VLOOKUP(B182&"_"&C182,HCl_Min_Tests!A:BV,6,FALSE) -> Clover | B182: 7213 | C182: 1 | D182: Unit 1 | E182: Hydrogen Chloride | F182: 0.0003730707695 | G182: lb/MMBtu | H182: 0.00426131647 | I182: lb/MW | J182: ERT | L182: 125
A183: =VLOOKUP(B183&"_"&C183,HCl_Min_Tests!A:BV,6,FALSE) -> Newton | B183: 6017 | C183: 2 | D183: 002 | E183: Hydrogen Chloride | F183: 0.0004870622867 | G183: lb/MMBtu | H183: 0.004320713834 | I183: lb/MW | J183: ERT | L183: 126
A184: =VLOOKUP(B184&"_"&C184,HCl_Min_Tests!A:BV,6,FALSE) -> Laramie River Station | B184: 6204 | C184: 3 | D184: 3 | E184: Hydrogen Chloride | F184: 0.0004107744108 | G184: lb/MMBtu | H184: 0.004444444444 | I184: lb/MW | J184: Part II | K184: Acid Emissions Study | L184: 127
A185: =VLOOKUP(B185&"_"&C185,HCl_Min_Tests!A:BV,6,FALSE) -> Mt. Storm | B185: 3954 | C185: 1 | D185: Unit 1&2 | E185: Hydrogen Chloride | F185: 0.000420005691 | G185: lb/MMBtu | H185: 0.005002791698 | I185: lb/MW | J185: ERT | L185: 128
A186: =VLOOKUP(B186&"_"&C186,HCl_Min_Tests!A:BV,6,FALSE) -> Mt. Storm | B186: 3954 | C186: 2 | D186: Unit 1&2 | E186: Hydrogen Chloride | F186: 0.000420005691 | G186: lb/MMBtu | H186: 0.005002791698 | I186: lb/MW | J186: ERT | L186: 129
A187: =VLOOKUP(B187&"_"&C187,HCl_Min_Tests!A:BV,6,FALSE) -> Harrison Power Station | B187: 3944 | C187: 1 | D187: Boiler1 | E187: Hydrogen Chloride | F187: 0.000601566685 | G187: lb/MMBtu | H187: 0.005016527955 | I187: lb/MW | J187: ERT | L187: 130
A188: =VLOOKUP(B188&"_"&C188,HCl_Min_Tests!A:BV,6,FALSE) -> Harrison Power Station | B188: 3944 | C188: 1 | D188: Boiler1 | E188: Hydrogen Chloride | F188: 0.9 | G188: lb/MMBtu | H188: 7.505194805 | I188: lb/MW | J188: Part II | K188: 9 | L188: 130
A189: =VLOOKUP(B189&"_"&C189,HCl_Min_Tests!A:BV,6,FALSE) -> Reid Gardner | B189: 2324 | C189: 3 | D189: 3 | E189: Hydrogen Chloride | F189: 0.0004523333333 | G189: lb/MMBtu | H189: 0.005040867868 | I189: lb/MW | J189: Part II | K189: U3_2009_BIOMASS | L189: 131
A190: =VLOOKUP(B190&"_"&C190,HCl_Min_Tests!A:BV,6,FALSE) -> Eddystone Generating Station | B190: 3161 | C190: 2 | D190: Unit 2 | E190: Hydrogen Chloride | F190: 0.0006087104947 | G190: lb/MMBtu | H190: 0.005042062151 | I190: lb/MW | J190: ERT | L190: 132
A191: =VLOOKUP(B191&"_"&C191,HCl_Min_Tests!A:BV,6,FALSE) -> East Bend Station | B191: 6018 | C191: 2 | D191: 2 | E191: Hydrogen Chloride | F191: 0.0005284555437 | G191: lb/MMBtu | H191: 0.005126807338 | I191: lb/MW | J191: ERT | L191: 133
A192: =VLOOKUP(B192&"_"&C192,HCl_Min_Tests!A:BV,6,FALSE) -> Harrison Power Station | B192: 3944 | C192: 3 | D192: Boiler3 | E192: Hydrogen Chloride | F192: 0.0006205830404 | G192: lb/MMBtu | H192: 0.005269575065 | I192: lb/MW | J192: ERT | L192: 134
A193: =VLOOKUP(B193&"_"&C193,HCl_Min_Tests!A:BV,6,FALSE) -> Wygen 2 | B193: 56319 | C193: 0001 | D193: WYG2Cfg | E193: Hydrogen Chloride | F193: 0.0003923333333 | G193: lb/MMBtu | H193: 0.005312847222 | I193: lb/MW | J193: ETTS | L193: 135
A194: =VLOOKUP(B194&"_"&C194,HCl_Min_Tests!A:BV,6,FALSE) -> Wygen 2 | B194: 56319 | C194: 0001 | D194: WYG2Cfg | E194: Hydrogen Chloride | F194: 0.0004000006508 | G194: lb/MMBtu | H194: 0.00541667548 | I194: lb/MW | J194: ERT | L194: 135
A195: =VLOOKUP(B195&"_"&C195,HCl_Min_Tests!A:BV,6,FALSE) -> Bailly | B195: 995 | C195: 7 | D195: 7 | E195: Hydrogen Chloride | F195: 0.0005751972699 | G195: lb/MMBtu | H195: 0.005353256409 | I195: lb/MW | J195: ERT | L195: 136
A196: =VLOOKUP(B196&"_"&C196,HCl_Min_Tests!A:BV,6,FALSE) -> Ray D Nixon | B196: 8219 | C196: 1 | D196: Unit 1 | E196: Hydrogen Chloride | F196: 0.0005845 | G196: lb/MMBtu | H196: 0.005442344444 | I196: lb/MW | J196: Part II | K196: Airtech 2341 | L196: 137
A197: =VLOOKUP(B197&"_"&C197,HCl_Min_Tests!A:BV,6,FALSE) -> Ray D Nixon | B197: 8219 | C197: 1 | D197: Unit 1 | E197: Hydrogen Chloride | F197: 0.00097 | G197: lb/MMBtu | H197: 0.009031777778 | I197: lb/MW | J197: Part II | K197: APT CSU5148 | L197: 137
A198: =VLOOKUP(B198&"_"&C198,HCl_Min_Tests!A:BV,6,FALSE) -> Bailly | B198: 995 | C198: 8 | D198: 8 | E198: Hydrogen Chloride | F198: 0.0005751972699 | G198: lb/MMBtu | H198: 0.005513396558 | I198: lb/MW | J198: ERT | L198: 138
A199: =VLOOKUP(B199&"_"&C199,HCl_Min_Tests!A:BV,6,FALSE) -> Duck Creek | B199: 6016 | C199: 1 | D199: 001 | E199: Hydrogen Chloride | F199: 0.0005014054864 | G199: lb/MMBtu | H199: 0.005640811722 | I199: lb/MW | J199: ERT | L199: 139
A200: =VLOOKUP(B200&"_"&C200,HCl_Min_Tests!A:BV,6,FALSE) -> Duck Creek | B200: 6016 | C200: 1 | D200: 001 | E200: Hydrogen Chloride | F200: 0.00114 | G200: lb/MMBtu | H200: 0.012825 | I200: lb/MW | J200: Part II | K200: 3 | L200: 139
... 145 more rows

Sheet Lognormal Template
B1: Emissions (lb/MW)
A2: ='UPL Pooled Template '!A1 -> HCl | B2: 10043 Logan Unit1 | M2: Outliers Removed
A3: 1 | B3: ='UPL Normal'!B5 -> 0.0001187390574
A4: 2 | B4: 0.00068352978
A5: 3 | B5: 0.0006888956405
A6: 4 | B6: 0.001036568229
A7: 5 | B7: 0.001641326738
A8: 6 | B8: 0.003610457438
A9: 7
A10: 8
A11: 9
A12: 10
A13: 11
A14: 12
A15: 13
A16: 14
A17: 15
A18: 16
A19: 17
A20: 18
A21: 19
A22: 20
A23: 21
A24: 22
A25: 23
A26: 24
A27: 25
A28: 26
A29: 27
A30: 28
A31: 29
A32: 30
A33: 31
A34: 32
A35: 33
A36: 34
A37: 35
A38: Use for small sample sets that are Lognormal.
A40: Testing Normality | B40: Raw Data | C40: Log Data
A41: Sample Size | B41: =COUNT(B3:L37) -> 6 | C41: =COUNT(B51:L85) -> 6
A42: Kurtosis | B42: =KURT(B3:L37) -> 2.930881717 | C42: =KURT(B51:L85) -> 1.681480405
A43: SE Kurtosis | B43: =SQRT((B41^2-1)/((B41-3)*(B41+5))) -> 1.029857301 | C43: =SQRT((C41^2-1)/((C41-3)*(C41+5))) -> 1.029857301
A44: Result Kurtosis | B44: =IF(ABS(B42/B43)>NORMSINV(1-0.05/2),"non normal","normal") -> non normal | C44: =IF(ABS(C42/C43)>NORMSINV(1-0.05/2),"non normal","normal") -> normal
A45: Skewness | B45: =SKEW(B3:L37) -> 1.629077093 | C45: =SKEW(B51:L85) -> -0.8085340045
A46: SE Skewness | B46: =SQRT((6*B41*(B41-1))/((B41-2)*(B41+1)*(B41+3))) -> 0.8451542547 | C46: =SQRT((6*C41*(C41-1))/((C41-2)*(C41+1)*(C41+3))) -> 0.8451542547
A47: Result Skewness | B47: =IF(ABS(B45/B46)>NORMSINV(1-0.05/2),"non normal","normal") -> normal | C47: =IF(ABS(C45/C46)>NORMSINV(1-0.05/2),"non normal","normal") -> normal
B49: 1. Take LN( ) of Raw Data
A50: Averages
A51: 1 | B51: =IF(B3>0,LN(B3),"") -> -9.038582268 | C51: =IF(C3>0,LN(C3),"") -> 
A52: 2 | B52: =IF(B4>0,LN(B4),"") -> -7.288240333
A53: 3 | B53: -7.280420764
A54: 4 | B54: -6.871839802
A55: 5 | B55: -6.412250377
A56: 6 | B56: -5.623920801
A57: 7
A58: 8
A59: 9
A60: 10
A61: 11
A62: 12
A63: 13
A64: 14
A65: 15
A66: 16
A67: 17
A68: 18 | B68: =IF(B20>0,LN(B20),"") -> 
A69: 19
A70: 20
A71: 21
A72: 22
A73: 23
A74: 24
A75: 25
A76: 26
A77: 27
A78: 28
A79: 29
A80: 30
A81: 31
A82: 32
A83: 33
A84: 34 | B84: =IF(B36>0,LN(B36),"") -> 
A85: 35
A87: 2. Calculate sample size, n= | C87: =COUNT(B51:L85) -> 6
A89: Average of Raw Data | C89: =AVERAGE(B3:L37) -> 0.001296586147
A92: 3. Calculate | D92: =AVERAGE(B51:L85) -> -7.085875724
E102: =VAR(B51:L85) -> 1.305751347
A103: 4. Calculate
A108: 5. m | C108: ='UPL Normal'!C78 -> 1
A110: 6. Calculate
A114: a- Numerator first term | F114: =EXP(4*E102)+2*EXP(3*E102)+3*EXP(2*E102)-3 -> 323.8737976
A117: b- denominator first term | F117: =C108*(EXP(E102)-1)^2 -> 7.238579689
C121: =F114/F117+3*(1-1/C108) -> 44.74272737
A124: 7. Calculate
F125: =SQRT(EXP(E102)-1)*(EXP(E102)+2)/SQRT(C108) -> 9.333849225
A128: 8. Go to tab distribution for 99 percentile "lognormal distribution 99%"
A130: 9. substitue the values of | E130: in cell D7 and F7 respectively
A133: 10. In column AE indentify the value that is the smallest value that is larger than 0.99, note what row number this is. | J133: =VLOOKUP("x",'lognormal distribution 99 %'!AF:AL,2,FALSE) -> 94 | K133: is the Row number in Column AE with the first value > 0.99.
A136: 11. In column B, go down to the row number from Step 10. above, and copy the z value. | J136: =INDIRECT("'lognormal distribution 99 %'!B" & J133) -> 3.585 | K136: z value from "lognormal distribution 99%"
A138: 12. calculate the UPL using the formula
A146: a- Calculate | D146: =EXP(D92+E102/2) -> 0.001607620649
A149: b- Calculate | D149: =EXP(2*D92+E102) -> 2.584444153e-06
A153: c- Calculate | D153: =EXP(E102)-1 -> 2.690460869
A157: d-calculate | E157: =(E102)/C87+(E102^2)/(2*(C87-1)) -> 0.3881238826
A161: e- Calculate | H161: =SQRT(C108*D149*D153+C108^2*D149*E157) -> 0.002820714512
A165: f- Calculate UPL | D165: =D146+(J136/C108)*H161 -> 0.01171988218 | E165: lb/MW | F165: =D165*1000 -> 11.71988218 | G165: lb/GW
C169: 3xRDL value used at promulgation | D169: 0.0004 | E169: lb/MWh
C172: compare UPL to 3xRDL | D172: =IF(D169<D165,D165,D169) -> 0.01171988218

Sheet lognormal distribution 99 %
P2: distribution of Z
N3: Normal
N4: distribution
A5: ∆z | B5: z | V5: Absolute values
AD6: Cumulative | AE6: normalization
A7: 0.101 | D7: ='Lognormal Template'!C121 -> 44.74272737 | F7: ='Lognormal Template'!F125 -> 9.333849225
B9: -5 | C9: =f(a) | G9: =(1-($F$7/6)*(3*B9-B9^3)+(($D$7-3)*(3-6*B9^2+B9^4))/24) -> 661.2554177 | N9: =NORMDIST(B9,0,1,FALSE) -> 1.486719515e-06 | P9: =G9*N9 -> 0.0009831013337 | V9: =ABS(P9) -> 0.0009831013337 | Y9: =($A$7/2)*V9 -> 4.964661735e-05 | AD9: =Y9 -> 4.964661735e-05 | AE9: =AD9/SUM($Y$9:$Y$108) -> 9.004446237e-06 | AF9: =IF(AE9>0.99,"x","") ->  | AG9: 9
A10: 1 | B10: =$B$9+A10*$A$7 -> -4.899 | G10: 597.5572391 | N10: 2.450939756e-06 | P10: 0.001464576794 | V10: 0.001464576794 | Y10: =($A$7)*V10 -> 0.0001479222562 | AD10: =Y10+AD9 -> 0.0001975688735 | AE10: 3.583322278e-05 | AF10: =IF(AE10>0.99,"x","") ->  | AG10: 10
A11: 2 | B11: -4.798 | G11: 538.2899109 | N11: 3.999502685e-06 | P11: 0.002152891944 | V11: 0.002152891944 | Y11: 0.0002174420864 | AD11: 0.0004150109599 | AE11: 7.527086588e-05 | AG11: 11
A12: 3 | B12: -4.697 | G12: 483.2545277 | N12: 6.460246822e-06 | P12: 0.003121943526 | V12: 0.003121943526 | Y12: 0.0003153162962 | AD12: 0.0007303272561 | AE12: 0.0001324600318 | AG12: 12
A13: 4 | B13: -4.596 | G13: 432.2565275 | N13: 1.032908833e-05 | P13: 0.004464815854 | V13: 0.004464815854 | Y13: 0.0004509464013 | AD13: 0.001181273657 | AE13: 0.0002142485371 | AG13: 13
A14: 5 | B14: -4.495 | G14: 385.1056924 | N14: 1.634724734e-05 | P14: 0.006295418006 | V14: 0.006295418006 | Y14: 0.0006358372186 | AD14: 0.001817110876 | AE14: 0.0003295708361 | AG14: 14
A15: 6 | B15: -4.394 | G15: 341.6161482 | N15: 2.560926051e-05 | P15: 0.008748536933 | V15: 0.008748536933 | Y15: 0.0008836022303 | AD15: 0.002700713106 | AE15: 0.0004898304711 | AG15: 15
A16: 7 | B16: -4.293 | G16: 301.6063643 | N16: 3.971176632e-05 | P16: 0.01197732146 | V16: 0.01197732146 | Y16: 0.001209709468 | AD16: 0.003910422574 | AE16: 0.0007092364336 | AG16: 16
A17: 8 | B17: -4.192 | G17: 264.899154 | N17: 6.095525222e-05 | P17: 0.01614699474 | V17: 0.01614699474 | Y17: 0.001630846469 | AD17: 0.005541269043 | AE17: 0.001005024347 | AG17: 17
A18: 9 | B18: -4.091 | G18: 231.3216744 | N18: 9.261318561e-05 | P18: 0.02142343717 | V18: 0.02142343717 | Y18: 0.002163767154 | AD18: 0.007705036197 | AE18: 0.001397468506 | AG18: 18
A19: 10 | B19: -3.99 | G19: 200.7054263 | N19: 0.0001392849765 | P19: 0.02795525057 | V19: 0.02795525057 | Y19: 0.002823480308 | AD19: 0.0105285165 | AE19: 0.001909565362 | AG19: 19
A20: 11 | B20: -3.889 | G20: 172.8862542 | N20: 0.0002073506921 | P20: 0.03584808446 | V20: 0.03584808446 | Y20: 0.003620656531 | AD20: 0.01414917304 | AE20: 0.002566246699 | AG20: 20
A21: 12 | B21: -3.788 | G21: 147.7043465 | N21: 0.0003055459036 | P21: 0.04513045801 | V21: 0.04513045801 | Y21: 0.004558176259 | AD21: 0.01870734929 | AE21: 0.003392966731 | AG21: 21
A22: 13 | B22: -3.687 | G22: 125.0042352 | N22: 0.0004456739027 | P22: 0.05571112537 | V22: 0.05571112537 | Y22: 0.005626823662 | AD22: 0.02433417296 | AE22: 0.004413508187 | AG22: 22
A23: 14 | B23: -3.586 | G23: 104.6347964 | N23: 0.0006434691113 | P23: 0.06732925942 | V23: 0.06732925942 | Y23: 0.006800255201 | AD23: 0.03113442816 | AE23: 0.005646875848 | AG23: 23
A24: 15 | B24: -3.485 | G24: 86.44924946 | N24: 0.0009196190652 | P24: 0.07950037798 | V24: 0.07950037798 | Y24: 0.008029538176 | AD24: 0.03916396633 | AE24: 0.007103199535 | AG24: 24
A25: 16 | B25: -3.384 | G25: 70.30515795 | N25: 0.001300942167 | P25: 0.09146294454 | V25: 0.09146294454 | Y25: 0.009237757398 | AD25: 0.04840172373 | AE25: 0.008778658897 | AG25: 25
A26: 17 | B26: -3.283 | G26: 56.06442899 | N26: 0.001821703852 | P26: 0.1021327863 | V26: 0.1021327863 | Y26: 0.01031541141 | AD26: 0.05871713515 | AE26: 0.01064957322 | AG26: 26
A27: 18 | B27: -3.182 | G27: 43.5933135 | N27: 0.00252503455 | P27: 0.1100746227 | V27: 0.1100746227 | Y27: 0.0111175369 | AD27: 0.06983467204 | AE27: 0.01266596968 | AG27: 27
A28: 19 | B28: -3.081 | G28: 32.76240617 | N28: 0.003464388873 | P28: 0.1135017154 | V28: 0.1135017154 | Y28: 0.01146367325 | AD28: 0.08129834529 | AE28: 0.01474514516 | AG28: 28
A29: 20 | B29: -2.98 | G29: 23.44664546 | N29: 0.004704957527 | P29: 0.110315471 | V29: 0.110315471 | Y29: 0.01114186257 | AD29: 0.09244020787 | AE29: 0.01676595358 | AG29: 29
A30: 21 | B30: -2.879 | G30: 15.52531359 | N30: 0.006324912786 | P30: 0.09819625443 | V30: 0.09819625443 | Y30: 0.009917821698 | AD30: 0.1023580296 | AE30: 0.01856475674 | AG30: 30
A31: 22 | B31: -2.778 | G31: 8.882036551 | N31: 0.008416337402 | P31: 0.07475421643 | V31: 0.07475421643 | Y31: 0.007550175859 | AD31: 0.1099082054 | AE31: 0.01993413811 | AG31: 31
A32: 23 | B32: -2.677 | G32: 3.404784092 | N32: 0.0110856585 | P32: 0.03774427371 | V32: 0.03774427371 | Y32: 0.003812171644 | AD32: 0.1137203771 | AE32: 0.02062555469 | AG32: 32
A33: 24 | B33: -2.576 | G33: -1.014130269 | N33: 0.01445338648 | P33: -0.01465761672 | V33: 0.01465761672 | Y33: 0.001480419289 | AD33: 0.1152007964 | AE33: 0.02089405951 | AG33: 33
A34: 25 | B34: -2.475 | G34: -4.478049251 | N34: 0.01865294879 | P34: -0.08352882336 | V34: 0.08352882336 | Y34: 0.00843641116 | AD34: 0.1236372075 | AE34: 0.02242417807 | AG34: 34
A35: 26 | B35: -2.374 | G35: -7.085971807 | N35: 0.02382841428 | P35: -0.1688474718 | V35: 0.1688474718 | Y35: 0.01705359465 | AD35: 0.1406908022 | AE35: 0.02551720201 | AG35: 35
A36: 27 | B36: -2.273 | G36: -8.932553125 | N36: 0.03013093081 | P36: -0.2691461402 | V36: 0.2691461402 | Y36: 0.02718376016 | AD36: 0.1678745623 | AE36: 0.03044754208 | AG36: 36
A37: 28 | B37: -2.172 | G37: -10.10810463 | N37: 0.03771374986 | P37: -0.3812145296 | V37: 0.3812145296 | Y37: 0.03850266749 | AD37: 0.2063772298 | AE37: 0.03743080132 | AG37: 37
A38: 29 | B38: -2.071 | G38: -10.69859398 | N38: 0.04672578931 | P38: -0.4999002481 | V38: 0.4999002481 | Y38: 0.05048992506 | AD38: 0.2568671549 | AE38: 0.04658819895 | AG38: 38
A39: 30 | B39: -1.97 | G39: -10.78564507 | N39: 0.05730378892 | P39: -0.6180583282 | V39: 0.6180583282 | Y39: 0.06242389115 | AD39: 0.319291046 | AE39: 0.05791006943 | AG39: 39
A40: 31 | B40: -1.869 | G40: -10.44653802 | N40: 0.06956323853 | P40: -0.7266950161 | V40: 0.7266950161 | Y40: 0.07339619662 | AD40: 0.3926872426 | AE40: 0.07122199564 | AG40: 40
A41: 32 | B41: -1.768 | G41: -9.754209203 | N41: 0.08358839927 | P41: -0.8153387335 | V41: 0.8153387335 | Y41: 0.08234921208 | AD41: 0.4750364547 | AE41: 0.08615773734 | AG41: 41
A42: 33 | B42: -1.667 | G42: -8.777251216 | N42: 0.09942188354 | P42: -0.8726508482 | V42: 0.8726508482 | Y42: 0.08813773567 | AD42: 0.5631741904 | AE42: 0.1021433481 | AG42: 42
A43: 34 | B43: -1.566 | G43: -7.579912891 | N43: 0.1170543955 | P43: -0.8872621216 | V43: 0.8872621216 | Y43: 0.08961347428 | AD43: 0.6527876647 | AE43: 0.1183966148 | AG43: 43
A44: 35 | B44: -1.465 | G44: -6.222099298 | N44: 0.1364153459 | P44: -0.848789828 | V44: 0.848789828 | Y44: 0.08572777263 | AD44: 0.7385154373 | AE44: 0.1339451287 | AG44: 44
A45: 36 | B45: -1.364 | G45: -4.75937174 | N45: 0.1573651256 | P45: -0.7489591314 | V45: 0.7489591314 | Y45: 0.07564487227 | AD45: 0.8141603096 | AE45: 0.147664899 | AG45: 45
A46: 37 | B46: -1.263 | G46: -3.242947756 | N46: 0.1796898386 | P46: -0.5827247588 | V46: 0.5827247588 | Y46: 0.05885520064 | AD46: 0.8730155102 | AE46: 0.1583395133 | AG46: 46
A47: 38 | B47: -1.162 | G47: -1.719701119 | N47: 0.2030992439 | P47: -0.3492699971 | V47: 0.3492699971 | Y47: 0.03527626971 | AD47: 0.9082917799 | AE47: 0.1647375982 | AG47: 47
A48: 39 | B48: -1.061 | G48: -0.2321618403 | N48: 0.2272285288 | P48: -0.05275379342 | V48: 0.05275379342 | Y48: 0.005328133135 | AD48: 0.9136199131 | AE48: 0.1657039659 | AG48: 48
A49: 40 | B49: -0.96 | G49: 1.181483838 | N49: 0.2516443411 | P49: 0.2973137219 | V49: 0.2973137219 | Y49: 0.03002868591 | AD49: 0.943648599 | AE49: 0.1711502924 | AG49: 49
A50: 41 | B50: -0.859 | G50: 2.487393436 | N50: 0.2758552429 | P50: 0.6861605203 | V50: 0.6861605203 | Y50: 0.06930221255 | AD50: 1.012950812 | AE50: 0.1837196895 | AG50: 50
A51: 42 | B51: -0.758 | G51: 3.656068239 | N51: 0.2993264386 | P51: 1.094357885 | V51: 1.094357885 | Y51: 0.1105301464 | AD51: 1.123480958 | AE51: 0.2037666295 | AG51: 51
A52: 43 | B52: -0.657 | G52: 4.662353299 | N52: 0.3214982967 | P52: 1.498938645 | V52: 1.498938645 | Y52: 0.1513928031 | AD52: 1.274873761 | AE52: 0.2312248619 | AG52: 52
A53: 44 | B53: -0.556 | G53: 5.485437432 | N53: 0.341807853 | P53: 1.874965591 | V53: 1.874965591 | Y53: 0.1893715247 | AD53: 1.464245286 | AE53: 0.265571325 | AG53: 53
A54: 45 | B54: -0.455 | G54: 6.108853218 | N54: 0.3597121923 | P54: 2.197428983 | V54: 2.197428983 | Y54: 0.2219403273 | AD54: 1.686185613 | AE54: 0.3058248177 | AG54: 54
A55: 46 | B55: -0.354 | G55: 6.520477002 | N55: 0.3747123803 | P55: 2.443303458 | V55: 2.443303458 | Y55: 0.2467736492 | AD55: 1.932959262 | AE55: 0.3505823495 | AG55: 55
A56: 47 | B56: -0.253 | G56: 6.712528895 | N56: 0.3863764857 | P56: 2.593563325 | V56: 2.593563325 | Y56: 0.2619498958 | AD56: 2.194909158 | AE56: 0.3980924092 | AG56: 56
A57: 48 | B57: -0.152 | G57: 6.681572774 | N57: 0.3943602161 | P57: 2.634946483 | V57: 2.634946483 | Y57: 0.2661295948 | AD57: 2.461038753 | AE57: 0.4463605442 | AG57: 57
A58: 49 | B58: -0.051 | G58: 6.428516277 | N58: 0.3984237932 | P58: 2.56127384 | V58: 2.56127384 | Y58: 0.2586886578 | AD58: 2.719727411 | AE58: 0.4932791106 | AG58: 58
A59: 50 | B59: 0.05 | G59: 5.958610812 | N59: 0.3984439141 | P59: 2.374172214 | V59: 2.374172214 | Y59: 0.2397913937 | AD59: 2.959518804 | AE59: 0.5367702652 | AG59: 59
A60: 51 | B60: 0.151 | G60: 5.281451547 | N60: 0.3944199662 | P60: 2.083109941 | V60: 2.083109941 | Y60: 0.210394104 | AD60: 3.169912908 | AE60: 0.5749296102 | AG60: 60
A61: 52 | B61: 0.252 | G61: 4.41097742 | N61: 0.3864740581 | P61: 1.704728344 | V61: 1.704728344 | Y61: 0.1721775627 | AD61: 3.342090471 | AE61: 0.6061575909 | AG61: 61
A62: 53 | B62: 0.353 | G62: 3.365471129 | N62: 0.3748448645 | P62: 1.261529569 | V62: 1.261529569 | Y62: 0.1274144865 | AD62: 3.469504958 | AE62: 0.629266857 | AG62: 62
A63: 54 | B63: 0.454 | G63: 2.16755914 | N63: 0.3598757186 | P63: 0.7800519032 | V63: 0.7800519032 | Y63: 0.07878524222 | AD63: 3.5482902 | AE63: 0.6435561987 | AG63: 63
A64: 55 | B64: 0.555 | G64: 0.8442116837 | N64: 0.34199778 | P64: 0.2887185217 | V64: 0.2887185217 | Y64: 0.02916057069 | AD64: 3.577450771 | AE64: 0.6488450744 | AG64: 64
A65: 56 | B65: 0.656 | G65: -0.5732572453 | N65: 0.3217094297 | P65: -0.1844222614 | V65: 0.1844222614 | Y65: 0.0186266484 | AD65: 3.596077419 | AE65: 0.6522234044 | AG65: 65
A66: 57 | B66: 0.757 | G66: -2.049189887 | N66: 0.2995532643 | P66: -0.6138415197 | V66: 0.6138415197 | Y66: 0.06199799349 | AD66: 3.658075412 | AE66: 0.6634680295 | AG66: 66
A67: 58 | B67: 0.858 | G67: -3.543584716 | N67: 0.2760921663 | P67: -0.9783559805 | V67: 0.9783559805 | Y67: 0.09881395403 | AD67: 3.756889366 | AE67: 0.6813899944 | AG67: 67
A68: 59 | B68: 0.959 | G68: -5.012096442 | N68: 0.2518859097 | P68: -1.262476472 | V68: 1.262476472 | Y68: 0.1275101237 | AD68: 3.88439949 | AE68: 0.7045166064 | AG68: 68
A69: 60 | B69: 1.06 | G69: -6.40603601 | N69: 0.2274696325 | P69: -1.457178657 | V69: 1.457178657 | Y69: 0.1471750443 | AD69: 4.031574534 | AE69: 0.7312098605 | AG69: 69
A70: 61 | B70: 1.161 | G70: -7.672370602 | N70: 0.2033352807 | P70: -1.56006363 | V70: 1.56006363 | Y70: 0.1575664266 | AD70: 4.189140961 | AE70: 0.7597878079 | AG70: 70
A71: 62 | B71: 1.262 | G71: -8.75372363 | N71: 0.1799168403 | P71: -1.574942296 | V71: 1.574942296 | Y71: 0.1590691719 | AD71: 4.348210133 | AE71: 0.7886383093 | AG71: 71
A72: 63 | B72: 1.363 | G72: -9.588374747 | N72: 0.1575798393 | P72: -1.510934551 | V72: 1.510934551 | Y72: 0.1526043897 | AD72: 4.500814523 | AE72: 0.8163162881 | AG72: 72
A73: 64 | B73: 1.464 | G73: =(1-($F$7/6)*(3*B73-B73^3)+(($D$7-3)*(3-6*B73^2+B73^4))/24) -> -10.11025984 | N73: =NORMDIST(B73,0,1,FALSE) -> 0.1366152725 | P73: =G73*N73 -> -1.381215903 | V73: =ABS(P73) -> 1.381215903 | Y73: 0.1395028062 | AD73: 4.640317329 | AE73: =AD73/SUM($Y$9:$Y$108) -> 0.8416180224 | AG73: 73
A74: 65 | B74: =$B$9+A74*$A$7 -> 1.565 | G74: -10.24897102 | N74: 0.1172377877 | P74: -1.201566689 | V74: 1.201566689 | Y74: =($A$7)*V74 -> 0.1213582356 | AD74: =Y74+AD73 -> 4.761675565 | AE74: 0.8636288615 | AF74: =IF(AE74>0.99,"x","") ->  | AG74: 74
A75: 66 | B75: 1.666 | G75: -9.929756653 | N75: 0.09958770824 | P75: -0.9888817085 | V75: 0.9888817085 | Y75: 0.09987705256 | AD75: 4.861552617 | AE75: 0.8817436415 | AG75: 75
A76: 67 | B76: 1.767 | G76: -9.073521325 | N76: 0.08373627241 | P76: -0.7597828534 | V76: 0.7597828534 | Y76: 0.07673806819 | AD76: 4.938290685 | AE76: 0.8956616856 | AG76: 76
A77: 68 | B77: 1.868 | G77: -7.596825861 | N77: 0.06969333895 | P77: -0.5294481597 | V77: 0.5294481597 | Y77: 0.05347426413 | AD77: 4.991764949 | AE77: 0.9053603551 | AG77: 77
A78: 69 | B78: 1.969 | G78: -5.411887323 | N78: 0.05741675994 | P78: -0.3107330352 | V78: 0.3107330352 | Y78: 0.03138403656 | AD78: 5.023148986 | AE78: 0.9110525027 | AG78: 78
A79: 70 | B79: 2.07 | G79: -2.426579005 | N79: 0.04682263528 | P79: -0.1136188237 | V79: 0.1136188237 | Y79: 0.0114755012 | AD79: 5.034624487 | AE79: 0.9131338234 | AG79: 79
A80: 71 | B80: 2.171 | G80: 1.455569561 | N80: 0.03779573425 | P80: 0.05501432032 | V80: 0.05501432032 | Y80: 0.005556446352 | AD80: 5.040180934 | AE80: 0.9141416005 | AG80: 80
A81: 72 | B81: 2.272 | G81: 6.33537261 | N81: 0.03019948121 | P81: 0.1913249661 | V81: 0.1913249661 | Y81: 0.01932382158 | AD81: 5.059504755 | AE81: 0.9176463772 | AG81: 81
A82: 73 | B82: 2.373 | G82: 12.31798814 | N82: 0.02388503819 | P82: 0.2942156172 | V82: 0.2942156172 | Y82: 0.02971577734 | AD82: 5.089220532 | AE82: 0.9230359513 | AG82: 82
A83: 74 | B83: 2.474 | G83: 19.51291792 | N83: 0.01869916267 | P83: 0.3648752263 | V83: 0.3648752263 | Y83: 0.03685239786 | AD83: 5.12607293 | AE83: 0.9297198998 | AG83: 83
A84: 75 | B84: 2.575 | G84: 28.03400747 | N84: 0.01449065916 | P84: 0.4062312471 | V84: 0.4062312471 | Y84: 0.04102935596 | AD84: 5.167102286 | AE84: 0.9371614265 | AG84: 84
A85: 76 | B85: 2.676 | G85: 37.9994461 | N85: 0.01111536901 | P85: 0.4223778654 | V85: 0.4223778654 | Y85: 0.0426601644 | AD85: 5.209762451 | AE85: 0.9448987343 | AG85: 85
A86: 77 | B86: 2.777 | G86: 49.53176685 | N86: 0.008439746274 | P86: 0.4180355447 | V86: 0.4180355447 | Y86: 0.04222159001 | AD86: 5.251984041 | AE86: 0.9525564974 | AG86: 86
A87: 78 | B87: 2.878 | G87: 62.75784655 | N87: 0.006343145276 | P87: 0.3980821379 | V87: 0.3980821379 | Y87: 0.04020629593 | AD87: 5.292190337 | AE87: 0.9598487451 | AG87: 87
A88: 79 | B88: 2.979 | G88: 77.8089058 | N88: 0.004718996853 | P88: 0.3671799816 | V88: 0.3671799816 | Y88: 0.03708517814 | AD88: 5.329275515 | AE88: 0.9665749132 | AG88: 88
A89: 80 | B89: 3.08 | G89: 94.82050894 | N89: 0.003475077378 | P89: 0.3295086056 | V89: 0.3295086056 | Y89: 0.03328036916 | AD89: 5.362555884 | AE89: 0.9726110001 | AG89: 89
A90: 81 | B90: 3.181 | G90: 113.9325641 | N90: 0.00253308074 | P90: 0.2886003838 | V90: 0.2886003838 | Y90: 0.02914863876 | AD90: 5.391704523 | AE90: 0.9778977117 | AG90: 90
A91: 82 | B91: 3.282 | G91: 135.2893232 | N91: 0.00182769342 | P91: 0.2472674058 | V91: 0.2472674058 | Y91: 0.02497400798 | AD91: 5.416678531 | AE91: 0.9824272673 | AG91: 91
A92: 83 | B92: 3.383 | G92: 159.0393818 | N92: 0.00130535136 | P92: 0.2076022732 | V92: 0.2076022732 | Y92: 0.0209678296 | AD92: 5.43764636 | AE92: 0.9862302191 | AG92: 92
A93: 84 | B93: 3.484 | G93: 185.3356793 | N93: 0.0009228290672 | P93: 0.1710331521 | V93: 0.1710331521 | Y93: 0.01727434836 | AD93: 5.454920709 | AE93: 0.9893632813 | AG93: 93
A94: 85 | B94: 3.585 | G94: 214.335499 | N94: 0.0006457804109 | P94: 0.1384136666 | V94: 0.1384136666 | Y94: 0.01397978033 | AD94: 5.468900489 | AE94: 0.9918988051 | AF94: x | AG94: 94
A95: 86 | B95: 3.686 | G95: 246.2004678 | N95: 0.0004473199117 | P95: 0.1101303715 | V95: 0.1101303715 | Y95: 0.01112316752 | AD95: 5.480023656 | AE95: 0.9939162228 | AF95: x | AG95: 95
A96: 87 | B96: 3.787 | G96: 281.0965564 | N96: 0.0003067053531 | P96: 0.08621381858 | V96: 0.08621381858 | Y96: 0.008707595676 | AD96: 5.488731252 | AE96: 0.9954955263 | AF96: x | AG96: 96
A97: 88 | B97: 3.888 | G97: 319.1940792 | N97: 0.000208158545 | P97: 0.06644297509 | V97: 0.06644297509 | Y97: 0.006710740485 | AD97: 5.495441993 | AE97: 0.9967126586 | AF97: x | AG97: 97
A98: 89 | B98: 3.989 | G98: 360.6676946 | N98: 0.0001398417638 | P98: 0.05043640655 | V98: 0.05043640655 | Y98: 0.005094077062 | AD98: 5.50053607 | AE98: 0.9976365754 | AF98: x | AG98: 98
A99: 90 | B99: 4.09 | G99: 405.6964044 | N99: 9.299279572e-05 | P99: 0.03772684286 | V99: 0.03772684286 | Y99: 0.003810411129 | AD99: 5.504346481 | AE99: 0.9983276727 | AF99: x | AG99: 99
A100: 91 | B100: 4.191 | G100: 454.4635546 | N100: 6.121128236e-05 | P100: 0.02781829696 | V100: 0.02781829696 | Y100: 0.002809647993 | AD100: 5.507156129 | AE100: 0.9988372608 | AF100: x | AG100: 100
A101: 92 | B101: 4.292 | G101: 507.1568345 | N101: 3.988259546e-05 | P101: 0.02022673087 | V101: 0.02022673087 | Y101: 0.002042899817 | AD101: 5.509199029 | AE101: 0.9992077831 | AF101: x | AG101: 101
A102: 93 | B102: 4.393 | G102: 563.9682775 | N102: 2.572202232e-05 | P102: 0.01450640463 | V102: 0.01450640463 | Y102: 0.001465146867 | AD102: 5.510664175 | AE102: 0.999473518 | AF102: x | AG102: 102
A103: 94 | B103: 4.494 | G103: 625.0942608 | N103: 1.64208854e-05 | P103: 0.01026460122 | V103: 0.01026460122 | Y103: 0.001036724723 | AD103: 5.5117009 | AE103: 0.9996615496 | AF103: x | AG103: 103
A104: 95 | B104: 4.595 | G104: 690.735505 | N104: 1.037666489e-05 | P104: 0.007167530864 | V104: 0.007167530864 | Y104: 0.0007239206173 | AD104: 5.512424821 | AE104: 0.9997928476 | AF104: x | AG104: 104
A105: 96 | B105: 4.696 | G105: 761.0970748 | N105: 6.49065873e-06 | P105: 0.004940021373 | V105: 0.004940021373 | Y105: 0.0004989421586 | AD105: 5.512923763 | AE105: =AD105/SUM($Y$9:$Y$108) -> 0.9998833412 | AF105: x | AG105: 105
A106: 97 | B106: =$B$9+A106*$A$7 -> 4.797 | G106: 836.3883785 | N106: 4.0187364e-06 | P106: 0.003361224421 | V106: 0.003361224421 | Y106: 0.0003394836665 | AD106: 5.513263247 | AE106: =AD106/SUM($Y$9:$Y$108) -> 0.9999449136 | AF106: x | AG106: 106
A107: 98 | B107: =$B$9+A107*$A$7 -> 4.898 | G107: 916.8231684 | N107: 2.462975138e-06 | P107: 0.002258112669 | V107: 0.002258112669 | Y107: 0.0002280693796 | AD107: 5.513491316 | AE107: =AD107/SUM($Y$9:$Y$108) -> 0.9999862787 | AF107: x | AG107: 107
A108: 99 | B108: =$B$9+A108*$A$7 -> 4.999 | G108: 1002.61954 | N108: 1.49417098e-06 | P108: 0.001498085021 | V108: 0.001498085021 | Y108: =($A$7/2)*V108 -> 7.565329357e-05 | AD108: 5.513566969 | AE108: =AD108/SUM($Y$9:$Y$108) -> 1 | AF108: x | AG108: 108
AD110: =SUM($AD$9:$AD$108) -> 267.7686862

Sheet HCl_QA_Calcs
I1: Anthracite | N1: fPM | O1: 30B | Q1: μg/dscm | R1: No | T1: μg/dscm | U1: =1/453592370 -> 2.204622622e-09 | V1: lbs/μg | W1: 0.02831684659 | AA1: cm/cf | AG1: lb/hr | AJ1: lb/MMBtu | AQ1: Round to | AU1: From | AW1: original database export===>
I2: Bituminous | N2: Se | O2: M5 | Q2: lb/dscf | R2: Yes | T2: ppm | U2: =U1/1000 -> 2.204622622e-12 | V2: lb/mg | AG2: lb/MMBtu | AQ2: Same | AU2: Min | AW2: original database export===>
I3: Lignite | N3: Pb | O3: M5B | Q3: ppmvd | V3: lb/scf | AQ3: Sig Figs | AU3: Test | AW3: original database export===>
I4: Oil | N4: Hg | O4: M29 | Q4: ppmvd @ 3% O2 | V4: (lb/dscf)/ppmvd | AQ4: as Submitted | AU4: Sheet | AW4: original database export===>
I5: Pet Coke | N5: HCl | O5: OTM27 | Q5: ppmvd @ 7% O2 | AQ5: prior to | AW5: original database export===>
I6: Subbituminous | N6: SO2 | O6: 26A | AQ6: Calc % Diff. | AW6: original database export===>
O7: M6C | AW7: original database export===>
AW8: original database export===>
A9: RTI | G9: As Submitted | U9: RTI-QA | AC9: As Submitted | AL9: RTI-QA | AT9: Final for UPL | AV9: Final for UPL | AW9: original database export===>
A10: Comments | C10: Use Run in UPL Calc? | D10: Grade | E10: Key | F10: Facility_Name | G10: Facility_ID | H10: Boiler_ID | I10: Fuel1 Used | J10: Fuel1 Fraction | K10: Fuel2 Used | L10: Fuel2 Fraction | M10: "Fuel Used/Fraction" Data Source | N10: Pollutant | O10: Reference Method | P10: Concentration | Q10: Concentration UOM | R10: Non-Detect? | S10: MDL | T10: MDL UOM | U10: HAP Conversion Value to lbs | V10: HAP Conversion UOM | W10: Reserved | X10: Reserve | Y10: Reserve | Z10: Reserve | AA10: Volume Conversion UOM | AB10: Submitted F Factor | AC10: Bws (percent) | AD10: %O2d | AE10: %CO2d | AF10: Emission Rate Value | AG10: Emission Rate UOM | AH10: Emission Rate MDL | AI10: Emission Factor Value | AJ10: Emission Factor UOM | AK10: Emission Factor MDL | AL10: Fd | AM10: Fw | AN10: Fc | AO10: Calculated conc lb/dscf | AP10: 19-1 lb/MMBtu | AQ10: %diff 19-1 | AR10: 19-6 lb/MMBtu | AS10: %diff 19-6 | AT10: lb/MMBtu Value Used for UPL Calcs | AU10: Unit Heat Rate (MMBtu/MWh) | AV10: lb/MWh Value Used in UPL Calcs | AW10: original database export===> | AX10: Key | AY10: RTI Calculated QA lb/MMBtu | AZ10: Run Grade | BA10: Submitted Value | BB10: Submitted Value UOM | BC10: Use ? | BD10: Comment | BE10: facility_id | BF10: configuration_id | BG10: report_id | BH10: sampling_port_id | BI10: order | BJ10: pollutant_id | BK10: pollutant_name | BL10: run_id | BM10: start_datetime | BN10: end_datetime | BO10: unit_load | BP10: fuel_flow_rate | BQ10: fuel_heating_value | BR10: fg_moisture_content | BS10: fg_oxygen_content | BT10: fg_CO2_content | BU10: fg_temperature | BV10: test_method | BW10: conc | BX10: conc_units | BY10: conc_ND | BZ10: conc_MDL | CA10: conc2 | CB10: conc2_units | CC10: emission_rate | CD10: emission_rate_units | CE10: emission_rate_ND | CF10: emission_rate_MDL | CG10: Calculated conc lb/dscf | CH10: 19-1 lb/MMBtu | CI10: %diff | CJ10: 19-6 lb/MMBtu | CK10: %diff | CL10: emission_factor | CM10: emission_factor_units | CN10: emission_factor_ND | CO10: emission_factor_MDL | CP10: run_pollutant_comment | CQ10: Fuel1 | CR10: Fuel1%Btu | CS10: Fuel2 | CT10: Fuel2%Btu | CU10: QA Comment | CV10: Questions for EPA | CW10: Average of Test Runs
A11: BDL | C11: Yes | D11: E | E11: 1_HCl_T2_R1 | F11: Logan | G11: 10043 | H11: B01 | I11: Bituminous | J11: 1 | M11: Part II Submittal | N11: HCl | O11: 26A | Q11: ppmvd | R11: Yes | S11: =BZ11 -> 0.04 | T11: ppm | U11: =$D$88 -> 9.447955042e-08 | V11: (lb/dscf)/ppmvd | AC11: =BR11 -> 10.6 | AD11: =BS11 -> 6.5 | AE11: =BT11 -> 12.9 | AG11: lb/hr | AH11: =CF11 -> 0.1 | AL11: =VLOOKUP(I11,$A$98:$L$106,3,FALSE) -> 9780 | AM11: =VLOOKUP(I11,$A$98:$L$106,4,FALSE) -> 10640 | AN11: =VLOOKUP(I11,$A$98:$L$106,5,FALSE) -> 1800 | AO11: =S11*U11 -> 3.779182017e-09 | AP11: =IF(AD11<>"",AO11*AL11*20.9/(20.9-AD11),"no O2 data for run") -> 5.364391407e-05 | AR11: =IF(AE11<>"",AO11*AN11*100/AE11,"no CO2 data for run") -> 5.273277233e-05 | AT11: =AP11 -> 5.364391407e-05 | AU11: 8.75465453 | AV11: =AT11*AU11 -> 0.0004696339353 | AW11: original database export===> | AX11: 1_HCl_T2_R1 | AY11: 5.364391407e-05 | AZ11: E | BA11: 0.04 | BB11: parts per million by volume (dry) (ppmvd) | BC11: Yes | BD11: BDL | BE11: 10043 | BF11: Unit1 | BG11: 2005 Annual Stack Test 6 | BH11: Flue 1 | BI11: 5 | BJ11: 7 | BK11: Hydrogen Chloride (HCl) | BL11: 1 | BM11: 2005-05-19 | BN11: 2005-05-19 | BR11: 10.6 | BS11: 6.5 | BT11: 12.9 | BU11: 186 | BV11: EPA 26A | BX11: parts per million by volume (dry) (ppmvd) | BY11: TRUE | BZ11: 0.04 | CD11: pound per hour (lb/hr) | CE11: TRUE | CF11: 0.1 | CN11: FALSE | CP11: < the limit of detection | CQ11: coal - bituminous | CR11: 100 | CW11: =AVERAGE(AV11:AV13) -> 0.001036799187
A12: BDL | C12: Yes | D12: E | E12: 1_HCl_T2_R2 | F12: Logan | G12: 10043 | H12: B01 | I12: Bituminous | J12: 1 | M12: Part II Submittal | N12: HCl | O12: 26A | Q12: ppmvd | R12: Yes | S12: =BZ12 -> 0.08 | T12: ppm | U12: 9.447955042e-08 | V12: (lb/dscf)/ppmvd | AC12: =BR12 -> 11.3 | AD12: =BS12 -> 5.7 | AE12: =BT12 -> 13.7 | AG12: lb/hr | AH12: =CF12 -> 0.3 | AL12: =VLOOKUP(I12,$A$98:$L$106,3,FALSE) -> 9780 | AM12: =VLOOKUP(I12,$A$98:$L$106,4,FALSE) -> 10640 | AN12: =VLOOKUP(I12,$A$98:$L$106,5,FALSE) -> 1800 | AO12: =S12*U12 -> 7.558364034e-09 | AP12: 0.0001016411003 | AR12: 9.930697271e-05 | AT12: =AP12 -> 0.0001016411003 | AU12: 8.75465453 | AV12: 0.0008898327196 | AW12: original database export===> | AX12: 1_HCl_T2_R2 | AY12: 0.0001016411003 | AZ12: E | BA12: 0.08 | BB12: parts per million by volume (dry) (ppmvd) | BC12: Yes | BD12: BDL | BE12: 10043 | BF12: Unit1 | BG12: 2005 Annual Stack Test 6 | BH12: Flue 1 | BI12: 5 | BJ12: 7 | BK12: Hydrogen Chloride (HCl) | BL12: 2 | BM12: 2005-05-19 | BN12: 2005-05-19 | BR12: 11.3 | BS12: 5.7 | BT12: 13.7 | BU12: 185 | BV12: EPA 26A | BX12: parts per million by volume (dry) (ppmvd) | BY12: TRUE | BZ12: 0.08 | CD12: pound per hour (lb/hr) | CE12: TRUE | CF12: 0.3 | CN12: TRUE | CQ12: coal - bituminous | CR12: 100
A13: The 16 ppm entry in the Part II data base appears to be an error. However the facility provided both a ppm value (16 ppmvd @ 7% O2) and an emission rate of 0.0002 lb/MMBtu for this run. The reported lb/MMBtu emission rate corresponds to a 1.6 ppm at 7% O2. | C13: Yes (Use reported lb/MMBtu value) | D13: E | E13: 1_HCl_T2_R3 | F13: Logan | G13: 10043 | H13: B01 | I13: Bituminous | J13: 1 | M13: Part II Submittal | N13: HCl | O13: 26A | P13: 16 | Q13: ppmvd @ 7% O2 | R13: No | U13: 9.447955042e-08 | V13: (lb/dscf)/ppmvd | AC13: 11.4 | AD13: 5.5 | AE13: 13.7 | AF13: =CL13 -> 0.0002 | AG13: lb/MMBtu | AL13: 9780 | AM13: 10640 | AN13: 1800 | AO13: =P13*U13 -> 1.511672807e-06 | AP13: =IF(AD13<>"",AO13*AL13*20.9/(20.9-7),"no O2 data for run") -> 0.02222942051 | AR13: 0.01986139454 | AT13: =AF13 -> 0.0002 | AU13: 8.75465453 | AV13: 0.001750930906 | AW13: original database export===> | AX13: 1_HCl_T2_R3 | AY13: 0.02006421721 | AZ13: E | BA13: 16 | BB13: parts per million by volume (dry) (ppmvd @ 7% O2) | BC13: ? | BD13: extremely high run; should this be excluded? | BE13: 10043 | BF13: Unit1 | BG13: 2005 Annual Stack Test 6 | BH13: Flue 1 | BI13: 5 | BJ13: 7 | BK13: Hydrogen Chloride (HCl) | BL13: 3 | BM13: 2005-05-19 | BN13: 2005-05-19 | BR13: 11.4 | BS13: 5.5 | BT13: 13.7 | BU13: 168.8 | BV13: EPA 26A | BW13: 16 | BX13: parts per million by volume (dry) (ppmvd @ 7% O2) | BY13: FALSE | CC13: 0.5 | CD13: pound per hour (lb/hr) | CE13: FALSE | CL13: 0.0002 | CM13: pound per million British Thermal Unit (lb/MMBtu) | CN13: FALSE | CQ13: coal - bituminous | CR13: 100
A14: BDL | C14: Yes | D14: E | E14: 1_HCl_T3_R1 | F14: Logan | G14: 10043 | H14: B01 | I14: Bituminous | J14: 1 | M14: Part II Submittal | N14: HCl | O14: 26A | R14: Yes | S14: 0.06 | T14: ppm@7%O2 | U14: 9.447955042e-08 | V14: (lb/dscf)/ppmvd | AC14: 10.5 | AD14: 10 | AE14: 10 | AG14: lb/hr | AH14: =CF14 -> 1.47 | AL14: 9780 | AM14: 10640 | AN14: 1800 | AO14: 5.668773025e-09 | AP14: =IF(AD14<>"",AO14*AL14*20.9/(20.9-7),"no O2 data for run") -> 8.33603269e-05 | AR14: 0.0001020379145 | AT14: 8.33603269e-05 | AU14: 8.75465453 | AV14: 0.0007297908636 | AW14: original database export===> | AX14: 1_HCl_T3_R1 | AY14: 8.33603269e-05 | AZ14: E | BA14: 0.06 | BB14: parts per million by volume (dry) (ppmvd @ 7% O2) | BC14: Yes | BD14: BDL | BE14: 10043 | BF14: Unit1 | BG14: 2006 Annual Stack Test 2 | BH14: Flue 1 | BI14: 5 | BJ14: 7 | BK14: Hydrogen Chloride (HCl) | BL14: 1 | BM14: 2006-06-15 | BN14: 2006-06-15 | BR14: 10.5 | BS14: 10 | BT14: 10 | BU14: 189 | BV14: EPA 26A | BX14: parts per million by volume (dry) (ppmvd @ 7% O2) | BY14: TRUE | BZ14: 0.06 | CD14: pound per hour (lb/hr) | CE14: TRUE | CF14: 1.47 | CN14: TRUE | CP14: < limit of detection | CQ14: coal - bituminous | CR14: 100 | CW14: =AVERAGE(AV14:AV16) -> 0.0006892469267
A15: BDL | C15: Yes | D15: E | E15: 1_HCl_T3_R2 | F15: Logan | G15: 10043 | H15: B01 | I15: Bituminous | J15: 1 | M15: Part II Submittal | N15: HCl | O15: 26A | R15: Yes | S15: 0.06 | T15: ppm@7%O2 | U15: 9.447955042e-08 | V15: (lb/dscf)/ppmvd | AC15: 10.7 | AD15: 5 | AE15: 13.9 | AG15: lb/hr | AH15: 1.67 | AL15: 9780 | AM15: 10640 | AN15: 1800 | AO15: 5.668773025e-09 | AP15: =IF(AD15<>"",AO15*AL15*20.9/(20.9-7),"no O2 data for run") -> 8.33603269e-05 | AR15: 7.340857155e-05 | AT15: 8.33603269e-05 | AU15: 8.75465453 | AV15: 0.0007297908636 | AW15: original database export===> | AX15: 1_HCl_T3_R2 | AY15: 8.33603269e-05 | AZ15: E | BA15: 0.06 | BB15: parts per million by volume (dry) (ppmvd @ 7% O2) | BC15: Yes | BD15: BDL | BE15: 10043 | BF15: Unit1 | BG15: 2006 Annual Stack Test 2 | BH15: Flue 1 | BI15: 5 | BJ15: 7 | BK15: Hydrogen Chloride (HCl) | BL15: 2 | BM15: 2006-06-15 | BN15: 2006-06-15 | BR15: 10.7 | BS15: 5 | BT15: 13.9 | BU15: 189 | BV15: EPA 26A | BX15: parts per million by volume (dry) (ppmvd @ 7% O2) | BY15: TRUE | BZ15: 0.06 | CD15: pound per hour (lb/hr) | CE15: TRUE | CF15: 1.67 | CN15: TRUE | CP15: < Limit of detection | CQ15: coal - bituminous | CR15: 100
A16: BDL | C16: Yes | D16: E | E16: 1_HCl_T3_R3 | F16: Logan | G16: 10043 | H16: B01 | I16: Bituminous | J16: 1 | M16: Part II Submittal | N16: HCl | O16: 26A | R16: Yes | S16: 0.05 | T16: ppm@7%O2 | U16: 9.447955042e-08 | V16: (lb/dscf)/ppmvd | AC16: 10.7 | AD16: 6.9 | AE16: 12.2 | AG16: lb/hr | AH16: 1.35 | AL16: 9780 | AM16: 10640 | AN16: 1800 | AO16: 4.723977521e-09 | AP16: =IF(AD16<>"",AO16*AL16*20.9/(20.9-7),"no O2 data for run") -> 6.946693908e-05 | AR16: 6.9698029e-05 | AT16: 6.946693908e-05 | AU16: 8.75465453 | AV16: 0.000608159053 | AW16: original database export===> | AX16: 1_HCl_T3_R3 | AY16: 6.946693908e-05 | AZ16: E | BA16: 0.05 | BB16: parts per million by volume (dry) (ppmvd @ 7% O2) | BC16: Yes | BD16: BDL | BE16: 10043 | BF16: Unit1 | BG16: 2006 Annual Stack Test 2 | BH16: Flue 1 | BI16: 5 | BJ16: 7 | BK16: Hydrogen Chloride (HCl) | BL16: 3 | BM16: 2006-06-16 | BN16: 2006-06-16 | BR16: 10.7 | BS16: 6.9 | BT16: 12.2 | BU16: 186 | BV16: EPA 26A | BX16: parts per million by volume (dry) (ppmvd @ 7% O2) | BY16: TRUE | BZ16: 0.05 | CD16: pound per hour (lb/hr) | CE16: TRUE | CF16: 1.35 | CN16: TRUE | CP16: < limit of detection | CQ16: coal - bituminous | CR16: 100
A17: BDL | C17: Yes | D17: E | E17: 1_HCl_T4_R1 | F17: Logan | G17: 10043 | H17: B01 | I17: Bituminous | J17: 1 | M17: Part II Submittal | N17: HCl | O17: 26A | R17: Yes | S17: 0.15 | T17: ppm | U17: 9.447955042e-08 | V17: (lb/dscf)/ppmvd | AC17: 11.9 | AD17: 5.8 | AE17: 12.1 | AG17: lb/hr | AH17: 0.46 | AL17: 9780 | AM17: 10640 | AN17: 1800 | AO17: 1.417193256e-08 | AP17: 0.0001918391629 | AR17: 0.0002108221373 | AT17: =AP17 -> 0.0001918391629 | AU17: 8.75465453 | AV17: 0.001679485597 | AW17: original database export===> | AX17: 1_HCl_T4_R1 | AY17: 0.0001918391629 | AZ17: E | BA17: 0.15 | BB17: parts per million by volume (dry) (ppmvd) | BC17: Yes | BD17: BDL | BE17: 10043 | BF17: Unit1 | BG17: 2007 Annual Stack Test 3 | BH17: Flue 1 | BI17: 5 | BJ17: 7 | BK17: Hydrogen Chloride (HCl) | BL17: 1 | BM17: 2007-07-12 | BN17: 2007-07-12 | BR17: 11.9 | BS17: 5.8 | BT17: 12.1 | BU17: 185 | BV17: EPA 26A | BX17: parts per million by volume (dry) (ppmvd) | BY17: TRUE | BZ17: 0.15 | CD17: pound per hour (lb/hr) | CE17: TRUE | CF17: 0.46 | CN17: TRUE | CP17: < limit of detection | CQ17: coal - bituminous | CR17: 100 | CW17: =AVERAGE(AV17:AV19) -> 0.001642163694
A18: BDL | C18: Yes | D18: E | E18: 1_HCl_T4_R2 | F18: Logan | G18: 10043 | H18: B01 | I18: Bituminous | J18: 1 | M18: Part II Submittal | N18: HCl | O18: 26A | R18: Yes | S18: 0.15 | T18: ppm | U18: 9.447955042e-08 | V18: (lb/dscf)/ppmvd | AC18: 11.9 | AD18: 5.8 | AE18: 12.1 | AG18: lb/hr | AH18: 0.43 | AL18: 9780 | AM18: 10640 | AN18: 1800 | AO18: 1.417193256e-08 | AP18: 0.0001918391629 | AR18: 0.0002108221373 | AT18: =AP18 -> 0.0001918391629 | AU18: 8.75465453 | AV18: 0.001679485597 | AW18: original database export===> | AX18: 1_HCl_T4_R2 | AY18: 0.0001918391629 | AZ18: E | BA18: 0.15 | BB18: parts per million by volume (dry) (ppmvd) | BC18: Yes | BD18: BDL | BE18: 10043 | BF18: Unit1 | BG18: 2007 Annual Stack Test 3 | BH18: Flue 1 | BI18: 5 | BJ18: 7 | BK18: Hydrogen Chloride (HCl) | BL18: 2 | BM18: 2007-07-12 | BN18: 2007-07-12 | BR18: 11.9 | BS18: 5.8 | BT18: 12.1 | BU18: 185 | BV18: EPA 26A | BX18: parts per million by volume (dry) (ppmvd) | BY18: TRUE | BZ18: 0.15 | CD18: pound per hour (lb/hr) | CE18: TRUE | CF18: 0.43 | CN18: TRUE | CP18: < limit of detection | CQ18: coal - bituminous | CR18: 100
A19: BDL | C19: Yes | D19: E | E19: 1_HCl_T4_R3 | F19: Logan | G19: 10043 | H19: B01 | I19: Bituminous | J19: 1 | M19: Part II Submittal | N19: HCl | O19: 26A | R19: Yes | S19: 0.14 | T19: ppm | U19: 9.447955042e-08 | V19: (lb/dscf)/ppmvd | AC19: 11.1 | AD19: 5.8 | AE19: 12.1 | AG19: lb/hr | AH19: 0.41 | AL19: 9780 | AM19: 10640 | AN19: 1800 | AO19: 1.322713706e-08 | AP19: 0.0001790498854 | AR19: 0.0001967673282 | AT19: 0.0001790498854 | AU19: 8.75465453 | AV19: 0.00156751989 | AW19: original database export===> | AX19: 1_HCl_T4_R3 | AY19: 0.0001790498854 | AZ19: E | BA19: 0.14 | BB19: parts per million by volume (dry) (ppmvd) | BC19: Yes | BD19: BDL | BE19: 10043 | BF19: Unit1 | BG19: 2007 Annual Stack Test 3 | BH19: Flue 1 | BI19: 5 | BJ19: 7 | BK19: Hydrogen Chloride (HCl) | BL19: 3 | BM19: 2007-07-12 | BN19: 2007-07-12 | BR19: 11.1 | BS19: 5.8 | BT19: 12.1 | BU19: 184 | BV19: EPA 26A | BX19: parts per million by volume (dry) (ppmvd) | BY19: TRUE | BZ19: 0.14 | CD19: pound per hour (lb/hr) | CE19: TRUE | CF19: 0.41 | CN19: TRUE | CP19: < limit of detection | CQ19: coal - bituminous | CR19: 100
A20: BDL | C20: Yes | D20: E | E20: 1_HCl_T5_R1 | F20: Logan | G20: 10043 | H20: B01 | I20: Bituminous | J20: 1 | M20: Part II Submittal | N20: HCl | O20: 26A | R20: Yes | S20: 0.32 | T20: ppm | U20: 9.447955042e-08 | V20: (lb/dscf)/ppmvd | AC20: 10.9 | AD20: 6 | AE20: 13.2 | AG20: lb/hr | AH20: 1.01 | AL20: 9780 | AM20: 10640 | AN20: 1800 | AO20: 3.023345613e-08 | AP20: 0.0004147502618 | AR20: 0.0004122744018 | AT20: =AP20 -> 0.0004147502618 | AU20: 8.75465453 | AV20: 0.003630995258 | AW20: original database export===> | AX20: 1_HCl_T5_R1 | AY20: 0.0004147502618 | AZ20: E | BA20: 0.32 | BB20: parts per million by volume (dry) (ppmvd) | BC20: Yes | BD20: BDL | BE20: 10043 | BF20: Unit1 | BG20: 2008 Annual Stack Test 3 | BH20: Flue 1 | BI20: 5 | BJ20: 7 | BK20: Hydrogen Chloride (HCl) | BL20: 1 | BM20: 2008-06-27 | BN20: 2008-06-27 | BR20: 10.9 | BS20: 6 | BT20: 13.2 | BU20: 188 | BV20: EPA 26A | BX20: parts per million by volume (dry) (ppmvd) | BY20: TRUE | BZ20: 0.32 | CD20: pound per hour (lb/hr) | CE20: TRUE | CF20: 1.01 | CN20: TRUE | CP20: < limit of detection | CQ20: coal - bituminous | CR20: 100 | CW20: =AVERAGE(AV20:AV22) -> 0.003612298506
A21: BDL | C21: Yes | D21: E | E21: 1_HCl_T5_R2 | F21: Logan | G21: 10043 | H21: B01 | I21: Bituminous | J21: 1 | M21: Part II Submittal | N21: HCl | O21: 26A | R21: Yes | S21: 0.32 | T21: ppm | U21: 9.447955042e-08 | V21: (lb/dscf)/ppmvd | AC21: 11.5 | AD21: 5.7 | AE21: 13.5 | AG21: lb/hr | AH21: 0.99 | AL21: 9780 | AM21: 10640 | AN21: 1800 | AO21: 3.023345613e-08 | AP21: 0.0004065644014 | AR21: 0.0004031127485 | AT21: =AP21 -> 0.0004065644014 | AU21: 8.75465453 | AV21: 0.003559330878 | AW21: original database export===> | AX21: 1_HCl_T5_R2 | AY21: 0.0004065644014 | AZ21: E | BA21: 0.32 | BB21: parts per million by volume (dry) (ppmvd) | BC21: Yes | BD21: BDL | BE21: 10043 | BF21: Unit1 | BG21: 2008 Annual Stack Test 3 | BH21: Flue 1 | BI21: 5 | BJ21: 7 | BK21: Hydrogen Chloride (HCl) | BL21: 2 | BM21: 2008-06-27 | BN21: 2008-06-27 | BR21: 11.5 | BS21: 5.7 | BT21: 13.5 | BU21: 188 | BV21: EPA 26A | BX21: parts per million by volume (dry) (ppmvd) | BY21: TRUE | BZ21: 0.32 | CD21: pound per hour (lb/hr) | CE21: TRUE | CF21: 0.99 | CN21: TRUE | CP21: < limit of detection | CQ21: coal - bituminous | CR21: 100
A22: BDL | C22: Yes | D22: E | E22: 1_HCl_T5_R3 | F22: Logan | G22: 10043 | H22: B01 | I22: Bituminous | J22: 1 | M22: Part II Submittal | N22: HCl | O22: 26A | R22: Yes | S22: 0.33 | T22: ppm | U22: 9.447955042e-08 | V22: (lb/dscf)/ppmvd | AC22: 11.6 | AD22: 5.6 | AE22: 13.7 | AG22: lb/hr | AH22: 1.02 | AL22: 9780 | AM22: 10640 | AN22: 1800 | AO22: 3.117825164e-08 | AP22: 0.0004165292151 | AR22: 0.0004096412624 | AT22: 0.0004165292151 | AU22: 8.75465453 | AV22: 0.00364656938 | AW22: original database export===> | AX22: 1_HCl_T5_R3 | AY22: 0.0004165292151 | AZ22: E | BA22: 0.33 | BB22: parts per million by volume (dry) (ppmvd) | BC22: Yes | BD22: BDL | BE22: 10043 | BF22: Unit1 | BG22: 2008 Annual Stack Test 3 | BH22: Flue 1 | BI22: 5 | BJ22: 7 | BK22: Hydrogen Chloride (HCl) | BL22: 3 | BM22: 2008-06-27 | BN22: 2008-06-27 | BR22: 11.6 | BS22: 5.6 | BT22: 13.7 | BU22: 188 | BV22: EPA 26A | BX22: parts per million by volume (dry) (ppmvd) | BY22: TRUE | BZ22: 0.33 | CD22: pound per hour (lb/hr) | CE22: TRUE | CF22: 1.02 | CN22: TRUE | CP22: < limit of detection | CQ22: coal - bituminous | CR22: 100
A23: BDL | C23: Yes | D23: E | E23: 1_HCl_T6_R1 | F23: Logan | G23: 10043 | H23: B01 | I23: Bituminous | J23: 1 | M23: Part II Submittal | N23: HCl | O23: 26A | R23: Yes | S23: 0.06 | T23: ppm | U23: 9.447955042e-08 | V23: (lb/dscf)/ppmvd | AC23: 12.1 | AD23: 6.1 | AE23: 13.6 | AG23: lb/hr | AH23: 0.17 | AL23: 9780 | AM23: 10640 | AN23: 1800 | AO23: 5.668773025e-09 | AP23: 7.829111783e-05 | AR23: 7.502787828e-05 | AT23: =AP23 -> 7.829111783e-05 | AU23: 8.75465453 | AV23: 0.0006854116894 | AW23: original database export===> | AX23: 1_HCl_T6_R1 | AY23: 7.829111783e-05 | AZ23: E | BA23: 0.06 | BB23: parts per million by volume (dry) (ppmvd) | BC23: Yes | BD23: BDL | BE23: 10043 | BF23: Unit1 | BG23: 2009 Annual Stack Test 3 | BH23: Flue 1 | BI23: 5 | BJ23: 7 | BK23: Hydrogen Chloride (HCl) | BL23: 1 | BM23: 2009-06-24 | BN23: 2009-06-24 | BR23: 12.1 | BS23: 6.1 | BT23: 13.6 | BU23: 190 | BV23: EPA 26A | BX23: parts per million by volume (dry) (ppmvd) | BY23: TRUE | BZ23: 0.06 | CD23: pound per hour (lb/hr) | CE23: TRUE | CF23: 0.17 | CN23: TRUE | CP23: < limit of detection | CQ23: coal - bituminous | CR23: 100 | CW23: =AVERAGE(AV23:AV25) -> 0.0006838783299
A24: BDL | C24: Yes | D24: E | E24: 1_HCl_T6_R2 | F24: Logan | G24: 10043 | H24: B01 | I24: Bituminous | J24: 1 | M24: Part II Submittal | N24: HCl | O24: 26A | R24: Yes | S24: 0.06 | T24: ppm | U24: 9.447955042e-08 | V24: (lb/dscf)/ppmvd | AC24: 12.1 | AD24: 6.1 | AE24: 13.5 | AG24: lb/hr | AH24: 0.17 | AL24: 9780 | AM24: 10640 | AN24: 1800 | AO24: 5.668773025e-09 | AP24: 7.829111783e-05 | AR24: 7.558364034e-05 | AT24: =AP24 -> 7.829111783e-05 | AU24: 8.75465453 | AV24: 0.0006854116894 | AW24: original database export===> | AX24: 1_HCl_T6_R2 | AY24: 7.829111783e-05 | AZ24: E | BA24: 0.06 | BB24: parts per million by volume (dry) (ppmvd) | BC24: Yes | BD24: BDL | BE24: 10043 | BF24: Unit1 | BG24: 2009 Annual Stack Test 3 | BH24: Flue 1 | BI24: 5 | BJ24: 7 | BK24: Hydrogen Chloride (HCl) | BL24: 2 | BM24: 2009-06-24 | BN24: 2009-06-24 | BR24: 12.1 | BS24: 6.1 | BT24: 13.5 | BU24: 190 | BV24: EPA 26A | BX24: parts per million by volume (dry) (ppmvd) | BY24: TRUE | BZ24: 0.06 | CD24: pound per hour (lb/hr) | CE24: TRUE | CF24: 0.17 | CN24: TRUE | CP24: < less than the limit of detection | CQ24: coal - bituminous | CR24: 100
A25: BDL | C25: Yes | D25: E | E25: 1_HCl_T6_R3 | F25: Logan | G25: 10043 | H25: B01 | I25: Bituminous | J25: 1 | M25: Part II Submittal | N25: HCl | O25: 26A | R25: Yes | S25: 0.06 | T25: ppm | U25: 9.447955042e-08 | V25: (lb/dscf)/ppmvd | AC25: 12.6 | AD25: 6 | AE25: 13.6 | AG25: lb/hr | AH25: 0.17 | AL25: 9780 | AM25: 10640 | AN25: 1800 | AO25: 5.668773025e-09 | AP25: 7.776567409e-05 | AR25: 7.502787828e-05 | AT25: 7.776567409e-05 | AU25: 8.75465453 | AV25: 0.000680811611 | AW25: original database export===> | AX25: 1_HCl_T6_R3 | AY25: 7.776567409e-05 | AZ25: E | BA25: 0.06 | BB25: parts per million by volume (dry) (ppmvd) | BC25: Yes | BD25: BDL | BE25: 10043 | BF25: Unit1 | BG25: 2009 Annual Stack Test 3 | BH25: Flue 1 | BI25: 5 | BJ25: 7 | BK25: Hydrogen Chloride (HCl) | BL25: 3 | BM25: 2009-06-24 | BN25: 2009-06-24 | BR25: 12.6 | BS25: 6 | BT25: 13.6 | BU25: 189 | BV25: EPA 26A | BX25: parts per million by volume (dry) (ppmvd) | BY25: TRUE | BZ25: 0.06 | CD25: pound per hour (lb/hr) | CE25: TRUE | CF25: 0.17 | CN25: TRUE | CP25: < limit of detection | CQ25: coal - bituminous | CR25: 100
F26: Logan | H26: B01 | U26: 9.447955042e-08 | V26: (lb/dscf)/ppmvd | AO26: 0 | AU26: 8.75465453 | AW26: original database export===> | AX26: Key | AY26: RTI Calculated QA lb/MMBtu | AZ26: Run Grade | BA26: Submitted Value | BB26: Submitted Value UOM | BC26: Use ? | BD26: Comment | BE26: facility_id | BF26: configuration_id | BG26: submittal_id | BH26: Compound | BI26: RunDate | BJ26: Method | BK26: RunNumber | BL26: RunStartTime | BM26: RunEndTime | BN26: NetTravPts | BO26: Mass_TOOL | BP26: mass | BQ26: units | BR26: Vmstd | BS26: Cd | BT26: Vwstd | BU26: PercH20 | BV26: PercCO2 | BW26: PercO2 | BX26: Fd | BY26: 19-1 | BZ26: 19-5 | CA26: Fc | CB26: 19-6 | CC26: 19-9 | CD26: Fw | CE26: FuelType | CF26: lb/mmBtuO2 | CG26: CountOfComments | CH26: AvgOfStackTemp | CI26: AvgOfDryGasInlet | CJ26: AvgOfDryGasOutlet | CK26: AvgOfOrificePresDesired | CL26: AvgOfOrificePresActual | CM26: AvgOfProbeTemp | CN26: AvgOfFilterTemp | CO26: AvgOfImpingTemp | CP26: CountOfNotes | CQ26: M29 Isokinetic (+/- 10%) | CR26: OTM27 includes all fractions? | CS26: QA Comment | CT26: Questions for EPA
F27: Logan | H27: B01 | U27: 9.447955042e-08 | V27: (lb/dscf)/ppmvd | AO27: 0 | AU27: 8.75465453 | AW27: original database export===> | BR27: DSCF | BS27: lb/dscf
A28: F-factor in ERT submittal is inconsistent with fuel analyses. During QA of submission, revised reported f-Factor to be consistent with runs 2 and 3 and consistent with the submitted fuel analysis for run 1. | C28: Yes | D28: A | E28: 1_HCl_T1_R1 | F28: Logan | G28: 10043 | H28: B01 | I28: Bituminous | J28: 1 | M28: ERT | N28: HCl | O28: 26A | P28: ND | Q28: ppmvd | R28: Yes | S28: 0.01 | T28: ppmvd | U28: 9.447955042e-08 | V28: (lb/dscf)/ppmvd | AB28: =BX28 -> 7885 | AC28: =BU28 -> 13.06 | AD28: =BW28 -> 5.09 | AE28: =BV28 -> 13.8 | AF28: ND | AG28: lb/hr | AH28: 0.03 | AI28: ND | AJ28: lb/MMBtu | AK28: 1e-05 | AL28: =AL29 -> 9533 | AM28: 10640 | AN28: 1800 | AO28: 9.447955042e-10 | AP28: =IF(AD28<>"",AO28*AL28*20.9/(20.9-AD28),"no O2 data for run") -> 1.190643724e-05 | AQ28: =(AP28-AK28)/AP28 -> 0.1601181953 | AT28: =AP28 -> 1.190643724e-05 | AU28: 8.75465453 | AV28: =AT28*AU28 -> 0.0001042367448 | AW28: original database export===> | AX28: HCl_T1_R1 | AY28: 9.94886146e-06 | AZ28: A | BA28: 9.957810329e-06 | BB28: lb/mmBtuO2 | BC28: Yes | BE28: 10043 | BF28: Unit1 | BG28: 1266 | BH28: Hydrogen Chloride | BI28: 2010-04-08 | BJ28: Method 26A | BK28: 1 | BM28: 11:25 | BN28: 12 | BO28: 0.05 | BP28: 0.05 | BQ28: mg | BR28: 115.387 | BS28: 9.544589823e-10 | BT28: 17.34 | BU28: 13.06 | BV28: 13.8 | BW28: 5.09 | BX28: 7885 | BY28: 9.94886146e-06 | BZ28: 8.649540153e-06 | CA28: 1800 | CB28: 1.244946499e-07 | CC28: 1.082356486e-05 | CD28: 10640 | CE28: Override | CF28: 9.957810329e-06 | CG28: 0 | CH28: 178.4166667 | CI28: 84.66666667 | CJ28: 84.66666667 | CK28: 1.5125 | CL28: 1.5125 | CM28: 178.4166667 | CN28: 254.8333333 | CO28: 60.83333333 | CP28: 0 | CW28: =AVERAGE(AV28:AV30) -> 0.0001193739087
A29: BDL | C29: Yes | D29: A | E29: 1_HCl_T1_R2 | F29: Logan | G29: 10043 | H29: B01 | I29: Bituminous | J29: 1 | M29: ERT | N29: HCl | O29: 26A | P29: ND | Q29: ppmvd | R29: Yes | S29: 0.01 | T29: ppmvd | U29: 9.447955042e-08 | V29: (lb/dscf)/ppmvd | AB29: =BX29 -> 9533 | AC29: =BU29 -> 12.73 | AD29: =BW29 -> 5.23 | AE29: =BV29 -> 14.05 | AF29: ND | AG29: lb/hr | AH29: 0.04 | AI29: ND | AJ29: lb/MMBtu | AK29: 1.5e-05 | AL29: =AB29 -> 9533 | AM29: 10640 | AN29: 1800 | AO29: 9.447955042e-10 | AP29: =IF(AD29<>"",AO29*AL29*20.9/(20.9-AD29),"no O2 data for run") -> 1.201281256e-05 | AQ29: =(AP29-AK29)/AP29 -> -0.2486667818 | AT29: =AK29 -> 1.5e-05 | AU29: 8.75465453 | AV29: =AT29*AU29 -> 0.000131319818 | AW29: original database export===> | AX29: HCl_T1_R2 | AY29: 1.455008129e-05 | AZ29: A | BA29: 1.45631689e-05 | BB29: lb/mmBtuO2 | BC29: Yes | BE29: 10043 | BF29: Unit1 | BG29: 1266 | BH29: Hydrogen Chloride | BI29: 2010-04-08 | BJ29: Method 26A | BK29: 2 | BM29: 15:16 | BN29: 12 | BO29: 0.06 | BP29: 0.06 | BQ29: mg | BR29: 115.488 | BS29: 1.144349113e-09 | BT29: 16.85 | BU29: 12.73 | BV29: 14.05 | BW29: 5.23 | BX29: 9533 | BY29: 1.455008129e-05 | BZ29: 1.269785595e-05 | CA29: 1800 | CB29: 1.466070037e-07 | CC29: 1.279439322e-05 | CD29: 10640 | CE29: Override | CF29: 1.45631689e-05 | CG29: 0 | CH29: 179.4166667 | CI29: 85 | CJ29: 85 | CK29: 1.475 | CL29: 1.475 | CM29: 179.4166667 | CN29: 258.75 | CO29: 55.33333333 | CP29: 0
A30: BDL | C30: Yes | D30: A | E30: 1_HCl_T1_R3 | F30: Logan | G30: 10043 | H30: B01 | I30: Bituminous | J30: 1 | M30: ERT | N30: HCl | O30: 26A | P30: ND | Q30: ppmvd | R30: Yes | S30: 0.01 | T30: ppmvd | U30: 9.447955042e-08 | V30: (lb/dscf)/ppmvd | AB30: 9537 | AC30: 12.50 | AD30: 5.13 | AE30: 14.11 | AF30: ND | AG30: lb/hr | AH30: 0.04 | AI30: ND | AJ30: lb/MMBtu | AK30: 1.4e-05 | AL30: =AB30 -> 9537 | AM30: 10640 | AN30: 1800 | AO30: 9.447955042e-10 | AP30: =IF(AD30<>"",AO30*AL30*20.9/(20.9-AD30),"no O2 data for run") -> 1.194164602e-05 | AQ30: -0.1723676935 | AT30: =AK30 -> 1.4e-05 | AU30: 8.75465453 | AV30: 0.0001225651634 | AW30: original database export===> | AX30: HCl_T1_R3 | AY30: 1.408483396e-05 | AZ30: A | BA30: 1.409750308e-05 | BB30: lb/mmBtuO2 | BC30: Yes | BE30: 10043 | BF30: Unit1 | BG30: 1266 | BH30: Hydrogen Chloride | BI30: 2010-04-08 | BJ30: Method 26A | BK30: 3 | BM30: 19:17 | BN30: 12 | BO30: 0.06 | BP30: 0.06 | BQ30: mg | BR30: 118.596 | BS30: 1.114359593e-09 | BT30: 16.95 | BU30: 12.50 | BV30: 14.11 | BW30: 5.13 | BX30: 9537 | BY30: 1.408483396e-05 | BZ30: 1.232422971e-05 | CA30: 1800 | CB30: 1.421578503e-07 | CC30: 1.24388119e-05 | CD30: 10640 | CE30: Override | CF30: 1.409750308e-05 | CG30: 0 | CH30: 181.1666667 | CI30: 86.75 | CJ30: 86.75 | CK30: 1.5125 | CL30: 1.5125 | CM30: 181.1666667 | CN30: 257.6666667 | CO30: 55.83333333 | CP30: 0
AW31: original database export===>
BY34: =BY28*AU28 -> 8.709884505e-05
BY35: =BY29*AU29 -> 0.0001273809351
BY36: 0.0001233078554
AX56: 1_HCl_T6_R1
AX57: 1_HCl_T6_R2
AX58: 1_HCl_T6_R3
A87: Conversions
C88: ppm HCl= | D88: 9.447955042e-08 | E88: lb/scf
A89: 1 | C89: ppm SO2= | D89: 1.66e-07 | E89: lb/scf
A90: 1 | C90: ppm Hg= | D90: =D89*A95/A96 -> 5.197930066e-07 | E90: lb/scf
A91: 1000 | C91: mg= | D91: 1 | E91: g
A92: 1000000 | C92: ug= | D92: 1 | E92: g
A93: 454 | C93: g= | D93: 1 | E93: lb
A94: 1 | C94: m^3= | D94: 35.3145 | E94: ft^3
A95: 200.59 | C95: Hg molecular weight
A96: 64.06 | C96: SO2 molecular weight
A98: Table 19-2 | C98: Fd | D98: Fw | E98: Fc
A99: Fuel Type | C99: dscf/MMBtu | D99: wscf/MMBtu | E99: scf/MMBtu
A100: Coal
A101: Anthracite | C101: 10100 | D101: 10540 | E101: 1970
A102: Bituminous | C102: 9780 | D102: 10640 | E102: 1800
A103: Lignite | C103: 9860 | D103: 11950 | E103: 1910
A104: Oil | C104: 9190 | D104: 10320 | E104: 1420
A105: Subbituminous | C105: 9820 | E105: 1840
A107: QA Calcs
A108: RTI | H108: As Submitted | V108: RTI-QA | AD108: Using Available Representative Diluent Per Comment | AM108: RTI-QA | AU108: Final for UPL | AW108: Final for UPL | AX108: original database export===>
A109: Comments | D109: Use Run in UPL Calc? | E109: Grade | F109: Key | H109: Facility_ID | I109: Boiler_ID | J109: Fuel1 Used | K109: Fuel1 Fraction | L109: Fuel2 Used | M109: Fuel2 Fraction | N109: "Fuel Used/Fraction" Data Source | O109: Pollutant | P109: Reference Method | Q109: Concentration | R109: Concentration UOM | S109: Non-Detect? | T109: MDL | V109: Mass Conversion Value to lbs | W109: Mass Conversion UOM | X109: Volume Conversion Value to cubic feet | Y109: Reserve | Z109: Reserve | AA109: Reserve | AC109: Volume Conversion UOM | AD109: Bws (percent) | AE109: %O2d | AF109: %CO2d | AG109: Emission Rate Value | AH109: Emission Rate UOM | AI109: Emission Rate MDL | AJ109: Emission Factor Value | AK109: Emission Factor UOM | AL109: Emission Factor MDL | AM109: Fd | AN109: Fw | AO109: Fc | AP109: Calculated conc lb/dscf | AQ109: 19-1 lb/MMBtu | AR109: %diff 19-1 | AS109: 19-6 lb/MMBtu | AT109: %diff 19-6 | AU109: lb/MMBtu Value Used for UPL Calcs | AV109: Unit Heat Rate (MMBtu/MWh) | AW109: lb/MWh Value Used in UPL Calcs | AX109: original database export===>
A197: 1 | B197: 2 | C197: 3 | D197: 4 | E197: 5 | F197: 6 | G197: 7 | H197: 8 | I197: 9 | J197: 10 | K197: 11 | L197: 12 | M197: 13 | N197: 14 | O197: 15 | P197: 16 | Q197: 17 | R197: 18 | S197: 19 | T197: 20 | U197: 21 | V197: 22 | W197: 23 | X197: 24 | Y197: 25 | Z197: 26 | AA197: 27 | AB197: 28 | AC197: 29 | AD197: 30 | AE197: 31 | AF197: 32 | AG197: 33 | AH197: 34 | AI197: 35 | AJ197: 36 | AK197: 37 | AL197: 38 | AM197: 39 | AN197: 40 | AO197: 41 | AP197: 42 | AQ197: 43 | AR197: 44 | AS197: 45 | AT197: 46 | AU197: 47
B199: Column Source==> | C199: 44 | D199: 44 | E199: 44 | F199: 44 | G199: 44 | H199: 44 | I199: 44 | J199: 44 | K199: 44 | L199: 44
B200: Test Avgs for UPL | C200: R1 | D200: R2 | E200: R3 | F200: R4 | G200: R5 | H200: R6 | I200: R7 | J200: R8 | K200: R9 | L200: R10
A201: Test_IDs | B201: lb/MW | C201: lb/MW | D201: lb/MW | E201: lb/MW | F201: lb/MW | G201: lb/MW | H201: lb/MW | I201: lb/MW | J201: lb/MW | K201: lb/MW | L201: lb/MW | M201: Test_IDs
A202: 1_HCl_T1 | B202: =AVERAGE(C202:E202) -> 0.0001193739087 | C202: =IFERROR(VLOOKUP($A202&"_"&C$200,$E:DD,C$199,FALSE),"") -> 0.0001042367448 | D202: =IFERROR(VLOOKUP($A202&"_"&D$200,$E:AV,D$199,FALSE),"") -> 0.000131319818 | E202: =IFERROR(VLOOKUP($A202&"_"&E$200,$E$11:$AW$100,E$199,FALSE),"") -> 0.0001225651634 | M202: =A202 -> 1_HCl_T1
A203: 1_HCl_T6 | B203: 0.0006838783299 | C203: =IFERROR(VLOOKUP($A203&"_"&C$200,$E:DD,C$199,FALSE),"") -> 0.0006854116894 | D203: =IFERROR(VLOOKUP($A203&"_"&D$200,$E:AV,D$199,FALSE),"") -> 0.0006854116894 | E203: 0.000680811611 | F203: =IFERROR(VLOOKUP($A203&"_"&F$200,$E:AX,F$199,FALSE),"") ->  | G203: =IFERROR(VLOOKUP($A203&"_"&G$200,$E:AY,G$199,FALSE),"") ->  | H203: =IFERROR(VLOOKUP($A203&"_"&H$200,$E:AZ,H$199,FALSE),"") ->  | I203: =IFERROR(VLOOKUP($A203&"_"&I$200,$E:BA,I$199,FALSE),"") ->  | J203: =IFERROR(VLOOKUP($A203&"_"&J$200,$E:BB,J$199,FALSE),"") ->  | K203: =IFERROR(VLOOKUP($A203&"_"&K$200,$E:BC,K$199,FALSE),"") ->  | M203: 1_HCl_T6
A204: 1_HCl_T3 | B204: 0.0006892469267 | C204: =IFERROR(VLOOKUP($A204&"_"&C$200,$E:DD,C$199,FALSE),"") -> 0.0007297908636 | D204: =IFERROR(VLOOKUP($A204&"_"&D$200,$E:AV,D$199,FALSE),"") -> 0.0007297908636 | E204: 0.000608159053 | F204: =IFERROR(VLOOKUP($A204&"_"&F$200,$E:AX,F$199,FALSE),"") ->  | G204: =IFERROR(VLOOKUP($A204&"_"&G$200,$E:AY,G$199,FALSE),"") ->  | H204: =IFERROR(VLOOKUP($A204&"_"&H$200,$E:AZ,H$199,FALSE),"") ->  | I204: =IFERROR(VLOOKUP($A204&"_"&I$200,$E:BA,I$199,FALSE),"") ->  | J204: =IFERROR(VLOOKUP($A204&"_"&J$200,$E:BB,J$199,FALSE),"") ->  | K204: =IFERROR(VLOOKUP($A204&"_"&K$200,$E:BC,K$199,FALSE),"") ->  | M204: 1_HCl_T3
A205: 1_HCl_T2 | B205: 0.001036799187 | C205: =IFERROR(VLOOKUP($A205&"_"&C$200,$E:DD,C$199,FALSE),"") -> 0.0004696339353 | D205: =IFERROR(VLOOKUP($A205&"_"&D$200,$E:AV,D$199,FALSE),"") -> 0.0008898327196 | E205: 0.001750930906 | F205: =IFERROR(VLOOKUP($A205&"_"&F$200,$E:AX,F$199,FALSE),"") ->  | G205: =IFERROR(VLOOKUP($A205&"_"&G$200,$E:AY,G$199,FALSE),"") ->  | H205: =IFERROR(VLOOKUP($A205&"_"&H$200,$E:AZ,H$199,FALSE),"") ->  | I205: =IFERROR(VLOOKUP($A205&"_"&I$200,$E:BA,I$199,FALSE),"") ->  | J205: =IFERROR(VLOOKUP($A205&"_"&J$200,$E:BB,J$199,FALSE),"") ->  | K205: =IFERROR(VLOOKUP($A205&"_"&K$200,$E:BC,K$199,FALSE),"") ->  | M205: 1_HCl_T2
A206: 1_HCl_T4 | B206: 0.001642163694 | C206: =IFERROR(VLOOKUP($A206&"_"&C$200,$E:DD,C$199,FALSE),"") -> 0.001679485597 | D206: =IFERROR(VLOOKUP($A206&"_"&D$200,$E:AV,D$199,FALSE),"") -> 0.001679485597 | E206: 0.00156751989 | F206: =IFERROR(VLOOKUP($A206&"_"&F$200,$E:AX,F$199,FALSE),"") ->  | G206: =IFERROR(VLOOKUP($A206&"_"&G$200,$E:AY,G$199,FALSE),"") ->  | H206: =IFERROR(VLOOKUP($A206&"_"&H$200,$E:AZ,H$199,FALSE),"") ->  | I206: =IFERROR(VLOOKUP($A206&"_"&I$200,$E:BA,I$199,FALSE),"") ->  | J206: =IFERROR(VLOOKUP($A206&"_"&J$200,$E:BB,J$199,FALSE),"") ->  | K206: =IFERROR(VLOOKUP($A206&"_"&K$200,$E:BC,K$199,FALSE),"") ->  | M206: 1_HCl_T4
A207: 1_HCl_T5 | B207: 0.003612298506 | C207: =IFERROR(VLOOKUP($A207&"_"&C$200,$E:DD,C$199,FALSE),"") -> 0.003630995258 | D207: =IFERROR(VLOOKUP($A207&"_"&D$200,$E:AV,D$199,FALSE),"") -> 0.003559330878 | E207: 0.00364656938 | F207: =IFERROR(VLOOKUP($A207&"_"&F$200,$E:AX,F$199,FALSE),"") ->  | G207: =IFERROR(VLOOKUP($A207&"_"&G$200,$E:AY,G$199,FALSE),"") ->  | H207: =IFERROR(VLOOKUP($A207&"_"&H$200,$E:AZ,H$199,FALSE),"") ->  | I207: =IFERROR(VLOOKUP($A207&"_"&I$200,$E:BA,I$199,FALSE),"") ->  | J207: =IFERROR(VLOOKUP($A207&"_"&J$200,$E:BB,J$199,FALSE),"") ->  | K207: =IFERROR(VLOOKUP($A207&"_"&K$200,$E:BC,K$199,FALSE),"") ->  | M207: 1_HCl_T5

Sheet UPL Normal
A1: Emissions (lb/MW) | B1: HCl
B2: 10043
A3: ORIS/Facility/Unit | B3: Logan
A4: Averages | B4: Unit1
A5: 1 | B5: 0.0001187390574
A6: 2 | B6: 0.0006838783299
A7: 3 | B7: 0.0006892469267
A8: 4 | B8: 0.001036799187
A9: 5 | B9: 0.001642163694
A10: 6 | B10: 0.003612298506
A11: 7
A12: 8
A13: 9
A14: 10
A15: 11
A16: 12
A17: 13
A18: 14
A19: 15
A20: 16
A21: 17
A22: 18
A23: 19
A24: 20
A25: 21
A26: 22
A27: 23
A28: 24
A29: 25
A30: 26
A31: 27
A32: 28
A33: 29
A34: 30
A35: 31
A36: 32
A37: 33
A38: 34
A39: 35
A41: ni = number test Averages = | B41: =COUNT(B5:B39) -> 6
A45: Total Number of sources = | C45: =COUNTA(B2:Q2) -> 1
A48: n =Total # test Averages = | C48: =SUM(B41:B41) -> 6
C53: =C48-1 -> 5
A58: This step is for QC only:
A60: means | B60: =AVERAGE(B5:B39) -> 0.001297187617
C67: =AVERAGE(B5:B39) -> 0.001297187617
A68: UPL Mean =
A72: Pooled Variance = | C72: =VAR(B5:H39) -> 1.536206046e-06
A78: m= number future Averages = | C78: 1
A81: Term1 | C81: =1/C48+1/C78 -> 1.166666667
A85: Term2 | C85: =C72*C81 -> 1.792240387e-06
A91: Squared root Term2 | C91: =SQRT(C85) -> 0.001338745826
A94: NOTE: the pvalue for the t-statistic is calculated as: 2*alpha, where 1-alpha is desired confidence, so if 99% confidence is desired then alpha=0.01 and 2*alpha=2*(0.01)
A97: t-statistic | B97: = quantile t-distribution with df degrees of freedom at .99 confidence level = | C97: =TINV(2*0.01,C53) -> 3.364929999
A100: UPL POOLED VARIANCE = | C100: =C67+C97*C91 -> 0.005801973608 | D100: =IFERROR(IF(FIND("MM",A$1,1)>0,"lb/MMBtu","lb/MW"),"lb/MW") -> lb/MW | E100: =C100*1000 -> 5.801973608 | F100: lb/GWhr
B104: Normal UPL | C104: ='UPL Pooled Template '!F107 -> 0.005801973605 | D104: lb/MW
B105: Lognormal UPL | C105: ='Lognormal Template'!D165 -> 0.01171988218 | D105: lb/MW
B107: Final UPL | C107: =C105 -> 0.01171988218 | D107: lb/MW

Sheet UPL Pooled Template
A1: ='UPL Normal'!B1 -> HCl | B1: Emissions (lb/MW)
A2: Averages | B2: 10043 Logan Unit1
A3: 1 | B3: 0.0001187390574
A4: 2 | B4: ='UPL Normal'!B6 -> 0.0006838783299
A5: 3 | B5: ='UPL Normal'!B7 -> 0.0006892469267
A6: 4 | B6: ='UPL Normal'!B8 -> 0.001036799187
A7: 5 | B7: ='UPL Normal'!B9 -> 0.001642163694
A8: 6 | B8: ='UPL Normal'!B10 -> 0.003612298506
A9: 7
A10: 8
A11: 9
A12: 10
A13: 11
A14: 12
A15: 13
A16: 14
A17: 15
A18: 16
A19: 17
A20: 18
A21: 19
A22: 20
A23: 21
A24: 22
A25: 23
A26: 24
A27: 25
A28: 26
A29: 27
A30: 28
A31: 29
A32: 30
A33: 31
A34: 32
A35: 33
A36: 34
A37: 35
A38: Use for large sample sets and small sample sets that are Normal.
A40: Testing Normality | B40: Raw Data
A41: Sample Size | B41: =COUNT(B3:L37) -> 6
A42: Kurtosis | B42: =KURT(B3:L37) -> 2.931026326
A43: SE Kurtosis | B43: =SQRT((B41^2-1)/((B41-3)*(B41+5))) -> 1.029857301
A44: Result Kurtosis | B44: =IF(ABS(B42/B43)>NORMSINV(1-0.05/2),"non normal","normal") -> non normal
A45: Skewness | B45: =SKEW(B3:L37) -> 1.629149859
A46: SE Skewness | B46: =SQRT((6*B41*(B41-1))/((B41-2)*(B41+1)*(B41+3))) -> 0.8451542547
A47: Result Skewness | B47: =IF(ABS(B45/B46)>NORMSINV(1-0.05/2),"non normal","normal") -> normal
A50: ni = number test Averages = | B50: =COUNT(B3:B37) -> 6 | C50: 0 | D50: 0 | E50: 0 | F50: 0 | G50: 0 | H50: 0 | I50: 0 | J50: 0 | K50: 0 | L50: 0
A52: Total Number of sources = | B52: =COUNTA(B2:L2) -> 1
A55: n =Total # test Averages = | B55: =SUM(B50:L50) -> 6
B60: =B55-1 -> 5
A65: This step is for QC only:
A67: means | B67: =AVERAGE(B3:B37) -> 0.001297187617
B74: =AVERAGE(B3:L37) -> 0.001297187617
A75: Mean =
A79: Pooled Variance = | D79: =VAR(B3:L37) -> 1.536206046e-06
A85: m= number future Averages = | B85: ='UPL Normal'!C78 -> 1
A88: Term1 | B88: =1/B55+1/B85 -> 1.166666667
A92: Term2 | B92: =D79*B88 -> 1.792240387e-06
A98: Squared root Term2 | C98: =SQRT(B92) -> 0.001338745826
A101: NOTE: the pvalue for the t-statistic is calculated as: 2*alpha, where 1-alpha is desired confidence, so if 99% confidence is desired then alpha=0.01 and 2*alpha=2*(0.01)
A104: t-statistic | B104: = quantile t-distribution with df degrees of freedom at .99 confidence level = | H104: =TINV(2*0.01,B60) -> 3.364929997
A107: UPL POOLED VARIANCE = | F107: =B74+H104*C98 -> 0.005801973605
